Workbook

Sheet Cover
B2: PATHWAYS Output Tool
B3: Reference, Alternative 1, and Cap-and-Tax Cases
B4: Results from Scoping Plan Draft, March 2017
B6: Prepared by:
B11: 101 Montgomery Street, Suite 1600
B12: San Francisco, CA 94104
B13: (415) 391-5100
B15: 2017-03-08
B19: Table of Contents
B20: Tab Name | C20: Description
B21: Annual GHG Emissions - Sector | C21: Breaks down the total emissions in each case by ARB emissions inventory sector and case
B22: Summary Costs | C22: Provides single-year snapshot views of costs and emissions across cases
B23: Final Energy Demand | C23: Displays the final energy demand across time for a selected case
B24: Generation Portfolio | C24: Displays the generation portfolio and composition of renewables for a selected case
B25: Generation Snapshot | C25: Compares the total generation portfolio across all cases for a selected year
B26: Electricity Demand | C26: Charts the total electricity demand by case and year, and compares to IEPR projection
B27: Energy Intensity | C27: Compares energy intensity metrics across cases and years
B28: Annual Costs | C28: Calculates the total cumulative cost between two user-provided years for all cases, and compares them to a base case
B29: Fuel Shares | C29: Describes the proportion of various fuel mixes (diesel, gasoline, and natural gas) coming from renewable sources for a given year
B30: NonEnergy GHGs | C30: Greenhouse gas emissions from non-fossil fuel combustion sources
B32: Guide to Cell Coloring
B33: Cell Color | C33: Description
B34: Drop-Down Menu | C34: The user can choose an input from a dropdown menu that appears when the cell is selected
B35: Text Entry | C35: The user can enter data (usually a year) as text
B40: * Disclaimer: All results are draft and subject to change

Sheet Annual GHG Emissions - Sector
AP1: Chart Legend
AJ2: Active Case 1 | AL2: Reference
AJ3: Active Case 2 | AL3: SP - Cap and Tax
AJ4: Active Case 3 | AL4: Alternative 1
AJ5: Active Case 4
AJ6: Active Case 5
BI13: ="California GHG Emissions by Sector - "&$I$37 -> California GHG Emissions by Sector - PATHWAYS - Reference | BT13: ="California GHG Emissions by Sector - "&$I$48 -> California GHG Emissions by Sector - PATHWAYS - SP - Cap and Tax | BZ13: ="California GHG Emissions by Sector - "&$I$59 -> California GHG Emissions by Sector - PATHWAYS - Alternative 1
I37: ="PATHWAYS - "&actCaseAnnGHG_1 -> PATHWAYS - Reference | BZ37: ="California GHG Emissions by Sector - "&$I$71 -> California GHG Emissions by Sector - PATHWAYS -
J38: 1990 | K38: 1991 | L38: 1992 | M38: 1993 | N38: 1994 | O38: 1995 | P38: 1996 | Q38: 1997 | R38: 1998 | S38: 1999 | T38: 2000 | U38: 2001 | V38: 2002 | W38: 2003 | X38: 2004 | Y38: 2005 | Z38: 2006 | AA38: 2007 | AB38: 2008 | AC38: 2009 | AD38: 2010 | AE38: 2011 | AF38: 2012 | AG38: 2013 | AH38: 2014 | AI38: 2015 | AJ38: 2016 | AK38: 2017 | AL38: 2018 | AM38: 2019 | AN38: 2020 | AO38: 2021 | AP38: 2022 | AQ38: 2023 | AR38: 2024 | AS38: 2025 | AT38: 2026 | AU38: 2027 | AV38: 2028 | AW38: 2029 | AX38: 2030 | AY38: 2031 | AZ38: 2032 | BA38: 2033 | BB38: 2034 | BC38: 2035 | BD38: 2036 | BE38: 2037 | BF38: 2038 | BG38: 2039 | BH38: 2040 | BI38: 2041 | BJ38: 2042 | BK38: 2043 | BL38: 2044 | BM38: 2045 | BN38: 2046 | BO38: 2047 | BP38: 2048 | BQ38: 2049 | BR38: 2050 | BT38: 2030 Gap | BU38: 2050 Gap
I39: Agriculture | AI39: =IF(actCaseAnnGHG_1="",NA(),INDEX(Total_Emissions_by_A_vals,MATCH('Annual GHG Emissions - Sector'!AI$38&"#"&actCaseAnnGHG_1&"#"&'Annual GHG Emissions - Sector'!$I39,Total_Emissions_by_A_index,0))) -> 36.33502205 | AJ39: =IF(actCaseAnnGHG_1="",NA(),INDEX(Total_Emissions_by_A_vals,MATCH('Annual GHG Emissions - Sector'!AJ$38&"#"&actCaseAnnGHG_1&"#"&'Annual GHG Emissions - Sector'!$I39,Total_Emissions_by_A_index,0))) -> 36.304966 | AK39: =IF(actCaseAnnGHG_1="",NA(),INDEX(Total_Emissions_by_A_vals,MATCH('Annual GHG Emissions - Sector'!AK$38&"#"&actCaseAnnGHG_1&"#"&'Annual GHG Emissions - Sector'!$I39,Total_Emissions_by_A_index,0))) -> 36.19665026 | AL39: =IF(actCaseAnnGHG_1="",NA(),INDEX(Total_Emissions_by_A_vals,MATCH('Annual GHG Emissions - Sector'!AL$38&"#"&actCaseAnnGHG_1&"#"&'Annual GHG Emissions - Sector'!$I39,Total_Emissions_by_A_index,0))) -> 36.13911502 | AM39: =IF(actCaseAnnGHG_1="",NA(),INDEX(Total_Emissions_by_A_vals,MATCH('Annual GHG Emissions - Sector'!AM$38&"#"&actCaseAnnGHG_1&"#"&'Annual GHG Emissions - Sector'!$I39,Total_Emissions_by_A_index,0))) -> 36.05451257 | AN39: =IF(actCaseAnnGHG_1="",NA(),INDEX(Total_Emissions_by_A_vals,MATCH('Annual GHG Emissions - Sector'!AN$38&"#"&actCaseAnnGHG_1&"#"&'Annual GHG Emissions - Sector'!$I39,Total_Emissions_by_A_index,0))) -> 35.95083548 | AO39: =IF(actCaseAnnGHG_1="",NA(),INDEX(Total_Emissions_by_A_vals,MATCH('Annual GHG Emissions - Sector'!AO$38&"#"&actCaseAnnGHG_1&"#"&'Annual GHG Emissions - Sector'!$I39,Total_Emissions_by_A_index,0))) -> 35.83680067 | AP39: =IF(actCaseAnnGHG_1="",NA(),INDEX(Total_Emissions_by_A_vals,MATCH('Annual GHG Emissions - Sector'!AP$38&"#"&actCaseAnnGHG_1&"#"&'Annual GHG Emissions - Sector'!$I39,Total_Emissions_by_A_index,0))) -> 35.6912181 | AQ39: =IF(actCaseAnnGHG_1="",NA(),INDEX(Total_Emissions_by_A_vals,MATCH('Annual GHG Emissions - Sector'!AQ$38&"#"&actCaseAnnGHG_1&"#"&'Annual GHG Emissions - Sector'!$I39,Total_Emissions_by_A_index,0))) -> 35.547409 | AR39: =IF(actCaseAnnGHG_1="",NA(),INDEX(Total_Emissions_by_A_vals,MATCH('Annual GHG Emissions - Sector'!AR$38&"#"&actCaseAnnGHG_1&"#"&'Annual GHG Emissions - Sector'!$I39,Total_Emissions_by_A_index,0))) -> 35.57442052 | AS39: =IF(actCaseAnnGHG_1="",NA(),INDEX(Total_Emissions_by_A_vals,MATCH('Annual GHG Emissions - Sector'!AS$38&"#"&actCaseAnnGHG_1&"#"&'Annual GHG Emissions - Sector'!$I39,Total_Emissions_by_A_index,0))) -> 35.61011105 | AT39: =IF(actCaseAnnGHG_1="",NA(),INDEX(Total_Emissions_by_A_vals,MATCH('Annual GHG Emissions - Sector'!AT$38&"#"&actCaseAnnGHG_1&"#"&'Annual GHG Emissions - Sector'!$I39,Total_Emissions_by_A_index,0))) -> 35.64486385 | AU39: =IF(actCaseAnnGHG_1="",NA(),INDEX(Total_Emissions_by_A_vals,MATCH('Annual GHG Emissions - Sector'!AU$38&"#"&actCaseAnnGHG_1&"#"&'Annual GHG Emissions - Sector'!$I39,Total_Emissions_by_A_index,0))) -> 35.67889082 | AV39: =IF(actCaseAnnGHG_1="",NA(),INDEX(Total_Emissions_by_A_vals,MATCH('Annual GHG Emissions - Sector'!AV$38&"#"&actCaseAnnGHG_1&"#"&'Annual GHG Emissions - Sector'!$I39,Total_Emissions_by_A_index,0))) -> 35.71178873 | AW39: =IF(actCaseAnnGHG_1="",NA(),INDEX(Total_Emissions_by_A_vals,MATCH('Annual GHG Emissions - Sector'!AW$38&"#"&actCaseAnnGHG_1&"#"&'Annual GHG Emissions - Sector'!$I39,Total_Emissions_by_A_index,0))) -> 35.74489368 | AX39: =IF(actCaseAnnGHG_1="",NA(),INDEX(Total_Emissions_by_A_vals,MATCH('Annual GHG Emissions - Sector'!AX$38&"#"&actCaseAnnGHG_1&"#"&'Annual GHG Emissions - Sector'!$I39,Total_Emissions_by_A_index,0))) -> 35.77492786 | AY39: =IF(actCaseAnnGHG_1="",NA(),INDEX(Total_Emissions_by_A_vals,MATCH('Annual GHG Emissions - Sector'!AY$38&"#"&actCaseAnnGHG_1&"#"&'Annual GHG Emissions - Sector'!$I39,Total_Emissions_by_A_index,0))) -> 35.68412962 | AZ39: =IF(actCaseAnnGHG_1="",NA(),INDEX(Total_Emissions_by_A_vals,MATCH('Annual GHG Emissions - Sector'!AZ$38&"#"&actCaseAnnGHG_1&"#"&'Annual GHG Emissions - Sector'!$I39,Total_Emissions_by_A_index,0))) -> 35.72446694 | BA39: =IF(actCaseAnnGHG_1="",NA(),INDEX(Total_Emissions_by_A_vals,MATCH('Annual GHG Emissions - Sector'!BA$38&"#"&actCaseAnnGHG_1&"#"&'Annual GHG Emissions - Sector'!$I39,Total_Emissions_by_A_index,0))) -> 35.76393769 | BB39: =IF(actCaseAnnGHG_1="",NA(),INDEX(Total_Emissions_by_A_vals,MATCH('Annual GHG Emissions - Sector'!BB$38&"#"&actCaseAnnGHG_1&"#"&'Annual GHG Emissions - Sector'!$I39,Total_Emissions_by_A_index,0))) -> 35.80320049 | BC39: =IF(actCaseAnnGHG_1="",NA(),INDEX(Total_Emissions_by_A_vals,MATCH('Annual GHG Emissions - Sector'!BC$38&"#"&actCaseAnnGHG_1&"#"&'Annual GHG Emissions - Sector'!$I39,Total_Emissions_by_A_index,0))) -> 35.74466345 | BD39: =IF(actCaseAnnGHG_1="",NA(),INDEX(Total_Emissions_by_A_vals,MATCH('Annual GHG Emissions - Sector'!BD$38&"#"&actCaseAnnGHG_1&"#"&'Annual GHG Emissions - Sector'!$I39,Total_Emissions_by_A_index,0))) -> 35.78574228 | BE39: =IF(actCaseAnnGHG_1="",NA(),INDEX(Total_Emissions_by_A_vals,MATCH('Annual GHG Emissions - Sector'!BE$38&"#"&actCaseAnnGHG_1&"#"&'Annual GHG Emissions - Sector'!$I39,Total_Emissions_by_A_index,0))) -> 35.82987837 | BF39: =IF(actCaseAnnGHG_1="",NA(),INDEX(Total_Emissions_by_A_vals,MATCH('Annual GHG Emissions - Sector'!BF$38&"#"&actCaseAnnGHG_1&"#"&'Annual GHG Emissions - Sector'!$I39,Total_Emissions_by_A_index,0))) -> 35.86866223 | BG39: =IF(actCaseAnnGHG_1="",NA(),INDEX(Total_Emissions_by_A_vals,MATCH('Annual GHG Emissions - Sector'!BG$38&"#"&actCaseAnnGHG_1&"#"&'Annual GHG Emissions - Sector'!$I39,Total_Emissions_by_A_index,0))) -> 35.90638547 | BH39: =IF(actCaseAnnGHG_1="",NA(),INDEX(Total_Emissions_by_A_vals,MATCH('Annual GHG Emissions - Sector'!BH$38&"#"&actCaseAnnGHG_1&"#"&'Annual GHG Emissions - Sector'!$I39,Total_Emissions_by_A_index,0))) -> 35.93889133 | BI39: =IF(actCaseAnnGHG_1="",NA(),INDEX(Total_Emissions_by_A_vals,MATCH('Annual GHG Emissions - Sector'!BI$38&"#"&actCaseAnnGHG_1&"#"&'Annual GHG Emissions - Sector'!$I39,Total_Emissions_by_A_index,0))) -> 35.97775743 | BJ39: =IF(actCaseAnnGHG_1="",NA(),INDEX(Total_Emissions_by_A_vals,MATCH('Annual GHG Emissions - Sector'!BJ$38&"#"&actCaseAnnGHG_1&"#"&'Annual GHG Emissions - Sector'!$I39,Total_Emissions_by_A_index,0))) -> 36.01213269 | BK39: =IF(actCaseAnnGHG_1="",NA(),INDEX(Total_Emissions_by_A_vals,MATCH('Annual GHG Emissions - Sector'!BK$38&"#"&actCaseAnnGHG_1&"#"&'Annual GHG Emissions - Sector'!$I39,Total_Emissions_by_A_index,0))) -> 36.01185283 | BL39: =IF(actCaseAnnGHG_1="",NA(),INDEX(Total_Emissions_by_A_vals,MATCH('Annual GHG Emissions - Sector'!BL$38&"#"&actCaseAnnGHG_1&"#"&'Annual GHG Emissions - Sector'!$I39,Total_Emissions_by_A_index,0))) -> 36.04373165 | BM39: =IF(actCaseAnnGHG_1="",NA(),INDEX(Total_Emissions_by_A_vals,MATCH('Annual GHG Emissions - Sector'!BM$38&"#"&actCaseAnnGHG_1&"#"&'Annual GHG Emissions - Sector'!$I39,Total_Emissions_by_A_index,0))) -> 36.08257774 | BN39: =IF(actCaseAnnGHG_1="",NA(),INDEX(Total_Emissions_by_A_vals,MATCH('Annual GHG Emissions - Sector'!BN$38&"#"&actCaseAnnGHG_1&"#"&'Annual GHG Emissions - Sector'!$I39,Total_Emissions_by_A_index,0))) -> 36.12027474 | BO39: =IF(actCaseAnnGHG_1="",NA(),INDEX(Total_Emissions_by_A_vals,MATCH('Annual GHG Emissions - Sector'!BO$38&"#"&actCaseAnnGHG_1&"#"&'Annual GHG Emissions - Sector'!$I39,Total_Emissions_by_A_index,0))) -> 36.15693729 | BP39: =IF(actCaseAnnGHG_1="",NA(),INDEX(Total_Emissions_by_A_vals,MATCH('Annual GHG Emissions - Sector'!BP$38&"#"&actCaseAnnGHG_1&"#"&'Annual GHG Emissions - Sector'!$I39,Total_Emissions_by_A_index,0))) -> 36.19265511 | BQ39: =IF(actCaseAnnGHG_1="",NA(),INDEX(Total_Emissions_by_A_vals,MATCH('Annual GHG Emissions - Sector'!BQ$38&"#"&actCaseAnnGHG_1&"#"&'Annual GHG Emissions - Sector'!$I39,Total_Emissions_by_A_index,0))) -> 36.22751732 | BR39: =IF(actCaseAnnGHG_1="",NA(),INDEX(Total_Emissions_by_A_vals,MATCH('Annual GHG Emissions - Sector'!BR$38&"#"&actCaseAnnGHG_1&"#"&'Annual GHG Emissions - Sector'!$I39,Total_Emissions_by_A_index,0))) -> 36.26259321
I40: Residential and Commercial | AI40: =IF(actCaseAnnGHG_1="",NA(),INDEX(Total_Emissions_by_A_vals,MATCH('Annual GHG Emissions - Sector'!AI$38&"#"&actCaseAnnGHG_1&"#"&'Annual GHG Emissions - Sector'!$I40,Total_Emissions_by_A_index,0))) -> 40.88617466 | AJ40: =IF(actCaseAnnGHG_1="",NA(),INDEX(Total_Emissions_by_A_vals,MATCH('Annual GHG Emissions - Sector'!AJ$38&"#"&actCaseAnnGHG_1&"#"&'Annual GHG Emissions - Sector'!$I40,Total_Emissions_by_A_index,0))) -> 41.15140039 | AK40: =IF(actCaseAnnGHG_1="",NA(),INDEX(Total_Emissions_by_A_vals,MATCH('Annual GHG Emissions - Sector'!AK$38&"#"&actCaseAnnGHG_1&"#"&'Annual GHG Emissions - Sector'!$I40,Total_Emissions_by_A_index,0))) -> 41.39278137 | AL40: =IF(actCaseAnnGHG_1="",NA(),INDEX(Total_Emissions_by_A_vals,MATCH('Annual GHG Emissions - Sector'!AL$38&"#"&actCaseAnnGHG_1&"#"&'Annual GHG Emissions - Sector'!$I40,Total_Emissions_by_A_index,0))) -> 41.54688821 | AM40: =IF(actCaseAnnGHG_1="",NA(),INDEX(Total_Emissions_by_A_vals,MATCH('Annual GHG Emissions - Sector'!AM$38&"#"&actCaseAnnGHG_1&"#"&'Annual GHG Emissions - Sector'!$I40,Total_Emissions_by_A_index,0))) -> 41.70617261 | AN40: =IF(actCaseAnnGHG_1="",NA(),INDEX(Total_Emissions_by_A_vals,MATCH('Annual GHG Emissions - Sector'!AN$38&"#"&actCaseAnnGHG_1&"#"&'Annual GHG Emissions - Sector'!$I40,Total_Emissions_by_A_index,0))) -> 41.78733502 | AO40: =IF(actCaseAnnGHG_1="",NA(),INDEX(Total_Emissions_by_A_vals,MATCH('Annual GHG Emissions - Sector'!AO$38&"#"&actCaseAnnGHG_1&"#"&'Annual GHG Emissions - Sector'!$I40,Total_Emissions_by_A_index,0))) -> 41.79591957 | AP40: =IF(actCaseAnnGHG_1="",NA(),INDEX(Total_Emissions_by_A_vals,MATCH('Annual GHG Emissions - Sector'!AP$38&"#"&actCaseAnnGHG_1&"#"&'Annual GHG Emissions - Sector'!$I40,Total_Emissions_by_A_index,0))) -> 41.74042559 | AQ40: =IF(actCaseAnnGHG_1="",NA(),INDEX(Total_Emissions_by_A_vals,MATCH('Annual GHG Emissions - Sector'!AQ$38&"#"&actCaseAnnGHG_1&"#"&'Annual GHG Emissions - Sector'!$I40,Total_Emissions_by_A_index,0))) -> 41.67725954 | AR40: =IF(actCaseAnnGHG_1="",NA(),INDEX(Total_Emissions_by_A_vals,MATCH('Annual GHG Emissions - Sector'!AR$38&"#"&actCaseAnnGHG_1&"#"&'Annual GHG Emissions - Sector'!$I40,Total_Emissions_by_A_index,0))) -> 41.61078879 | AS40: =IF(actCaseAnnGHG_1="",NA(),INDEX(Total_Emissions_by_A_vals,MATCH('Annual GHG Emissions - Sector'!AS$38&"#"&actCaseAnnGHG_1&"#"&'Annual GHG Emissions - Sector'!$I40,Total_Emissions_by_A_index,0))) -> 41.57311509 | AT40: =IF(actCaseAnnGHG_1="",NA(),INDEX(Total_Emissions_by_A_vals,MATCH('Annual GHG Emissions - Sector'!AT$38&"#"&actCaseAnnGHG_1&"#"&'Annual GHG Emissions - Sector'!$I40,Total_Emissions_by_A_index,0))) -> 41.54387425 | AU40: =IF(actCaseAnnGHG_1="",NA(),INDEX(Total_Emissions_by_A_vals,MATCH('Annual GHG Emissions - Sector'!AU$38&"#"&actCaseAnnGHG_1&"#"&'Annual GHG Emissions - Sector'!$I40,Total_Emissions_by_A_index,0))) -> 41.52870071 | AV40: =IF(actCaseAnnGHG_1="",NA(),INDEX(Total_Emissions_by_A_vals,MATCH('Annual GHG Emissions - Sector'!AV$38&"#"&actCaseAnnGHG_1&"#"&'Annual GHG Emissions - Sector'!$I40,Total_Emissions_by_A_index,0))) -> 41.5231848 | AW40: =IF(actCaseAnnGHG_1="",NA(),INDEX(Total_Emissions_by_A_vals,MATCH('Annual GHG Emissions - Sector'!AW$38&"#"&actCaseAnnGHG_1&"#"&'Annual GHG Emissions - Sector'!$I40,Total_Emissions_by_A_index,0))) -> 41.52015035 | AX40: =IF(actCaseAnnGHG_1="",NA(),INDEX(Total_Emissions_by_A_vals,MATCH('Annual GHG Emissions - Sector'!AX$38&"#"&actCaseAnnGHG_1&"#"&'Annual GHG Emissions - Sector'!$I40,Total_Emissions_by_A_index,0))) -> 41.16033416 | AY40: =IF(actCaseAnnGHG_1="",NA(),INDEX(Total_Emissions_by_A_vals,MATCH('Annual GHG Emissions - Sector'!AY$38&"#"&actCaseAnnGHG_1&"#"&'Annual GHG Emissions - Sector'!$I40,Total_Emissions_by_A_index,0))) -> 41.14579803 | AZ40: =IF(actCaseAnnGHG_1="",NA(),INDEX(Total_Emissions_by_A_vals,MATCH('Annual GHG Emissions - Sector'!AZ$38&"#"&actCaseAnnGHG_1&"#"&'Annual GHG Emissions - Sector'!$I40,Total_Emissions_by_A_index,0))) -> 41.15822799 | BA40: =IF(actCaseAnnGHG_1="",NA(),INDEX(Total_Emissions_by_A_vals,MATCH('Annual GHG Emissions - Sector'!BA$38&"#"&actCaseAnnGHG_1&"#"&'Annual GHG Emissions - Sector'!$I40,Total_Emissions_by_A_index,0))) -> 41.19283233 | BB40: =IF(actCaseAnnGHG_1="",NA(),INDEX(Total_Emissions_by_A_vals,MATCH('Annual GHG Emissions - Sector'!BB$38&"#"&actCaseAnnGHG_1&"#"&'Annual GHG Emissions - Sector'!$I40,Total_Emissions_by_A_index,0))) -> 41.23043031 | BC40: =IF(actCaseAnnGHG_1="",NA(),INDEX(Total_Emissions_by_A_vals,MATCH('Annual GHG Emissions - Sector'!BC$38&"#"&actCaseAnnGHG_1&"#"&'Annual GHG Emissions - Sector'!$I40,Total_Emissions_by_A_index,0))) -> 41.28100949 | BD40: =IF(actCaseAnnGHG_1="",NA(),INDEX(Total_Emissions_by_A_vals,MATCH('Annual GHG Emissions - Sector'!BD$38&"#"&actCaseAnnGHG_1&"#"&'Annual GHG Emissions - Sector'!$I40,Total_Emissions_by_A_index,0))) -> 41.33762501 | BE40: =IF(actCaseAnnGHG_1="",NA(),INDEX(Total_Emissions_by_A_vals,MATCH('Annual GHG Emissions - Sector'!BE$38&"#"&actCaseAnnGHG_1&"#"&'Annual GHG Emissions - Sector'!$I40,Total_Emissions_by_A_index,0))) -> 41.41038207 | BF40: =IF(actCaseAnnGHG_1="",NA(),INDEX(Total_Emissions_by_A_vals,MATCH('Annual GHG Emissions - Sector'!BF$38&"#"&actCaseAnnGHG_1&"#"&'Annual GHG Emissions - Sector'!$I40,Total_Emissions_by_A_index,0))) -> 41.49994814 | BG40: =IF(actCaseAnnGHG_1="",NA(),INDEX(Total_Emissions_by_A_vals,MATCH('Annual GHG Emissions - Sector'!BG$38&"#"&actCaseAnnGHG_1&"#"&'Annual GHG Emissions - Sector'!$I40,Total_Emissions_by_A_index,0))) -> 41.6006703 | BH40: =IF(actCaseAnnGHG_1="",NA(),INDEX(Total_Emissions_by_A_vals,MATCH('Annual GHG Emissions - Sector'!BH$38&"#"&actCaseAnnGHG_1&"#"&'Annual GHG Emissions - Sector'!$I40,Total_Emissions_by_A_index,0))) -> 41.70993751 | BI40: =IF(actCaseAnnGHG_1="",NA(),INDEX(Total_Emissions_by_A_vals,MATCH('Annual GHG Emissions - Sector'!BI$38&"#"&actCaseAnnGHG_1&"#"&'Annual GHG Emissions - Sector'!$I40,Total_Emissions_by_A_index,0))) -> 41.82997388 | BJ40: =IF(actCaseAnnGHG_1="",NA(),INDEX(Total_Emissions_by_A_vals,MATCH('Annual GHG Emissions - Sector'!BJ$38&"#"&actCaseAnnGHG_1&"#"&'Annual GHG Emissions - Sector'!$I40,Total_Emissions_by_A_index,0))) -> 41.95810986 | BK40: =IF(actCaseAnnGHG_1="",NA(),INDEX(Total_Emissions_by_A_vals,MATCH('Annual GHG Emissions - Sector'!BK$38&"#"&actCaseAnnGHG_1&"#"&'Annual GHG Emissions - Sector'!$I40,Total_Emissions_by_A_index,0))) -> 42.09261506 | BL40: =IF(actCaseAnnGHG_1="",NA(),INDEX(Total_Emissions_by_A_vals,MATCH('Annual GHG Emissions - Sector'!BL$38&"#"&actCaseAnnGHG_1&"#"&'Annual GHG Emissions - Sector'!$I40,Total_Emissions_by_A_index,0))) -> 42.23153238 | BM40: =IF(actCaseAnnGHG_1="",NA(),INDEX(Total_Emissions_by_A_vals,MATCH('Annual GHG Emissions - Sector'!BM$38&"#"&actCaseAnnGHG_1&"#"&'Annual GHG Emissions - Sector'!$I40,Total_Emissions_by_A_index,0))) -> 42.37301204 | BN40: =IF(actCaseAnnGHG_1="",NA(),INDEX(Total_Emissions_by_A_vals,MATCH('Annual GHG Emissions - Sector'!BN$38&"#"&actCaseAnnGHG_1&"#"&'Annual GHG Emissions - Sector'!$I40,Total_Emissions_by_A_index,0))) -> 42.51513042 | BO40: =IF(actCaseAnnGHG_1="",NA(),INDEX(Total_Emissions_by_A_vals,MATCH('Annual GHG Emissions - Sector'!BO$38&"#"&actCaseAnnGHG_1&"#"&'Annual GHG Emissions - Sector'!$I40,Total_Emissions_by_A_index,0))) -> 42.65739774 | BP40: =IF(actCaseAnnGHG_1="",NA(),INDEX(Total_Emissions_by_A_vals,MATCH('Annual GHG Emissions - Sector'!BP$38&"#"&actCaseAnnGHG_1&"#"&'Annual GHG Emissions - Sector'!$I40,Total_Emissions_by_A_index,0))) -> 42.7998306 | BQ40: =IF(actCaseAnnGHG_1="",NA(),INDEX(Total_Emissions_by_A_vals,MATCH('Annual GHG Emissions - Sector'!BQ$38&"#"&actCaseAnnGHG_1&"#"&'Annual GHG Emissions - Sector'!$I40,Total_Emissions_by_A_index,0))) -> 42.94139065 | BR40: =IF(actCaseAnnGHG_1="",NA(),INDEX(Total_Emissions_by_A_vals,MATCH('Annual GHG Emissions - Sector'!BR$38&"#"&actCaseAnnGHG_1&"#"&'Annual GHG Emissions - Sector'!$I40,Total_Emissions_by_A_index,0))) -> 43.07910999
I41: Electric Power | AI41: =IF(actCaseAnnGHG_1="",NA(),INDEX(Total_Emissions_by_A_vals,MATCH('Annual GHG Emissions - Sector'!AI$38&"#"&actCaseAnnGHG_1&"#"&'Annual GHG Emissions - Sector'!$I41,Total_Emissions_by_A_index,0))) -> 74.90886966 | AJ41: =IF(actCaseAnnGHG_1="",NA(),INDEX(Total_Emissions_by_A_vals,MATCH('Annual GHG Emissions - Sector'!AJ$38&"#"&actCaseAnnGHG_1&"#"&'Annual GHG Emissions - Sector'!$I41,Total_Emissions_by_A_index,0))) -> 72.98877905 | AK41: =IF(actCaseAnnGHG_1="",NA(),INDEX(Total_Emissions_by_A_vals,MATCH('Annual GHG Emissions - Sector'!AK$38&"#"&actCaseAnnGHG_1&"#"&'Annual GHG Emissions - Sector'!$I41,Total_Emissions_by_A_index,0))) -> 68.51790995 | AL41: =IF(actCaseAnnGHG_1="",NA(),INDEX(Total_Emissions_by_A_vals,MATCH('Annual GHG Emissions - Sector'!AL$38&"#"&actCaseAnnGHG_1&"#"&'Annual GHG Emissions - Sector'!$I41,Total_Emissions_by_A_index,0))) -> 68.74914867 | AM41: =IF(actCaseAnnGHG_1="",NA(),INDEX(Total_Emissions_by_A_vals,MATCH('Annual GHG Emissions - Sector'!AM$38&"#"&actCaseAnnGHG_1&"#"&'Annual GHG Emissions - Sector'!$I41,Total_Emissions_by_A_index,0))) -> 68.51697171 | AN41: =IF(actCaseAnnGHG_1="",NA(),INDEX(Total_Emissions_by_A_vals,MATCH('Annual GHG Emissions - Sector'!AN$38&"#"&actCaseAnnGHG_1&"#"&'Annual GHG Emissions - Sector'!$I41,Total_Emissions_by_A_index,0))) -> 67.96790023 | AO41: =IF(actCaseAnnGHG_1="",NA(),INDEX(Total_Emissions_by_A_vals,MATCH('Annual GHG Emissions - Sector'!AO$38&"#"&actCaseAnnGHG_1&"#"&'Annual GHG Emissions - Sector'!$I41,Total_Emissions_by_A_index,0))) -> 67.46030218 | AP41: =IF(actCaseAnnGHG_1="",NA(),INDEX(Total_Emissions_by_A_vals,MATCH('Annual GHG Emissions - Sector'!AP$38&"#"&actCaseAnnGHG_1&"#"&'Annual GHG Emissions - Sector'!$I41,Total_Emissions_by_A_index,0))) -> 67.39542915 | AQ41: =IF(actCaseAnnGHG_1="",NA(),INDEX(Total_Emissions_by_A_vals,MATCH('Annual GHG Emissions - Sector'!AQ$38&"#"&actCaseAnnGHG_1&"#"&'Annual GHG Emissions - Sector'!$I41,Total_Emissions_by_A_index,0))) -> 67.39006755 | AR41: =IF(actCaseAnnGHG_1="",NA(),INDEX(Total_Emissions_by_A_vals,MATCH('Annual GHG Emissions - Sector'!AR$38&"#"&actCaseAnnGHG_1&"#"&'Annual GHG Emissions - Sector'!$I41,Total_Emissions_by_A_index,0))) -> 67.614338 | AS41: =IF(actCaseAnnGHG_1="",NA(),INDEX(Total_Emissions_by_A_vals,MATCH('Annual GHG Emissions - Sector'!AS$38&"#"&actCaseAnnGHG_1&"#"&'Annual GHG Emissions - Sector'!$I41,Total_Emissions_by_A_index,0))) -> 75.33153631 | AT41: =IF(actCaseAnnGHG_1="",NA(),INDEX(Total_Emissions_by_A_vals,MATCH('Annual GHG Emissions - Sector'!AT$38&"#"&actCaseAnnGHG_1&"#"&'Annual GHG Emissions - Sector'!$I41,Total_Emissions_by_A_index,0))) -> 75.54974569 | AU41: =IF(actCaseAnnGHG_1="",NA(),INDEX(Total_Emissions_by_A_vals,MATCH('Annual GHG Emissions - Sector'!AU$38&"#"&actCaseAnnGHG_1&"#"&'Annual GHG Emissions - Sector'!$I41,Total_Emissions_by_A_index,0))) -> 75.53500686 | AV41: =IF(actCaseAnnGHG_1="",NA(),INDEX(Total_Emissions_by_A_vals,MATCH('Annual GHG Emissions - Sector'!AV$38&"#"&actCaseAnnGHG_1&"#"&'Annual GHG Emissions - Sector'!$I41,Total_Emissions_by_A_index,0))) -> 68.2100801 | AW41: =IF(actCaseAnnGHG_1="",NA(),INDEX(Total_Emissions_by_A_vals,MATCH('Annual GHG Emissions - Sector'!AW$38&"#"&actCaseAnnGHG_1&"#"&'Annual GHG Emissions - Sector'!$I41,Total_Emissions_by_A_index,0))) -> 68.17921408 | AX41: =IF(actCaseAnnGHG_1="",NA(),INDEX(Total_Emissions_by_A_vals,MATCH('Annual GHG Emissions - Sector'!AX$38&"#"&actCaseAnnGHG_1&"#"&'Annual GHG Emissions - Sector'!$I41,Total_Emissions_by_A_index,0))) -> 65.38464676 | AY41: =IF(actCaseAnnGHG_1="",NA(),INDEX(Total_Emissions_by_A_vals,MATCH('Annual GHG Emissions - Sector'!AY$38&"#"&actCaseAnnGHG_1&"#"&'Annual GHG Emissions - Sector'!$I41,Total_Emissions_by_A_index,0))) -> 64.44287911 | AZ41: =IF(actCaseAnnGHG_1="",NA(),INDEX(Total_Emissions_by_A_vals,MATCH('Annual GHG Emissions - Sector'!AZ$38&"#"&actCaseAnnGHG_1&"#"&'Annual GHG Emissions - Sector'!$I41,Total_Emissions_by_A_index,0))) -> 64.72578598 | BA41: =IF(actCaseAnnGHG_1="",NA(),INDEX(Total_Emissions_by_A_vals,MATCH('Annual GHG Emissions - Sector'!BA$38&"#"&actCaseAnnGHG_1&"#"&'Annual GHG Emissions - Sector'!$I41,Total_Emissions_by_A_index,0))) -> 65.09091227 | BB41: =IF(actCaseAnnGHG_1="",NA(),INDEX(Total_Emissions_by_A_vals,MATCH('Annual GHG Emissions - Sector'!BB$38&"#"&actCaseAnnGHG_1&"#"&'Annual GHG Emissions - Sector'!$I41,Total_Emissions_by_A_index,0))) -> 64.31246365 | BC41: =IF(actCaseAnnGHG_1="",NA(),INDEX(Total_Emissions_by_A_vals,MATCH('Annual GHG Emissions - Sector'!BC$38&"#"&actCaseAnnGHG_1&"#"&'Annual GHG Emissions - Sector'!$I41,Total_Emissions_by_A_index,0))) -> 64.63425243 | BD41: =IF(actCaseAnnGHG_1="",NA(),INDEX(Total_Emissions_by_A_vals,MATCH('Annual GHG Emissions - Sector'!BD$38&"#"&actCaseAnnGHG_1&"#"&'Annual GHG Emissions - Sector'!$I41,Total_Emissions_by_A_index,0))) -> 65.01843148 | BE41: =IF(actCaseAnnGHG_1="",NA(),INDEX(Total_Emissions_by_A_vals,MATCH('Annual GHG Emissions - Sector'!BE$38&"#"&actCaseAnnGHG_1&"#"&'Annual GHG Emissions - Sector'!$I41,Total_Emissions_by_A_index,0))) -> 65.19309336 | BF41: =IF(actCaseAnnGHG_1="",NA(),INDEX(Total_Emissions_by_A_vals,MATCH('Annual GHG Emissions - Sector'!BF$38&"#"&actCaseAnnGHG_1&"#"&'Annual GHG Emissions - Sector'!$I41,Total_Emissions_by_A_index,0))) -> 65.45368841 | BG41: =IF(actCaseAnnGHG_1="",NA(),INDEX(Total_Emissions_by_A_vals,MATCH('Annual GHG Emissions - Sector'!BG$38&"#"&actCaseAnnGHG_1&"#"&'Annual GHG Emissions - Sector'!$I41,Total_Emissions_by_A_index,0))) -> 65.68661267 | BH41: =IF(actCaseAnnGHG_1="",NA(),INDEX(Total_Emissions_by_A_vals,MATCH('Annual GHG Emissions - Sector'!BH$38&"#"&actCaseAnnGHG_1&"#"&'Annual GHG Emissions - Sector'!$I41,Total_Emissions_by_A_index,0))) -> 66.0017077 | BI41: =IF(actCaseAnnGHG_1="",NA(),INDEX(Total_Emissions_by_A_vals,MATCH('Annual GHG Emissions - Sector'!BI$38&"#"&actCaseAnnGHG_1&"#"&'Annual GHG Emissions - Sector'!$I41,Total_Emissions_by_A_index,0))) -> 66.35222267 | BJ41: =IF(actCaseAnnGHG_1="",NA(),INDEX(Total_Emissions_by_A_vals,MATCH('Annual GHG Emissions - Sector'!BJ$38&"#"&actCaseAnnGHG_1&"#"&'Annual GHG Emissions - Sector'!$I41,Total_Emissions_by_A_index,0))) -> 66.72566116 | BK41: =IF(actCaseAnnGHG_1="",NA(),INDEX(Total_Emissions_by_A_vals,MATCH('Annual GHG Emissions - Sector'!BK$38&"#"&actCaseAnnGHG_1&"#"&'Annual GHG Emissions - Sector'!$I41,Total_Emissions_by_A_index,0))) -> 67.16733899 | BL41: =IF(actCaseAnnGHG_1="",NA(),INDEX(Total_Emissions_by_A_vals,MATCH('Annual GHG Emissions - Sector'!BL$38&"#"&actCaseAnnGHG_1&"#"&'Annual GHG Emissions - Sector'!$I41,Total_Emissions_by_A_index,0))) -> 67.58475814 | BM41: =IF(actCaseAnnGHG_1="",NA(),INDEX(Total_Emissions_by_A_vals,MATCH('Annual GHG Emissions - Sector'!BM$38&"#"&actCaseAnnGHG_1&"#"&'Annual GHG Emissions - Sector'!$I41,Total_Emissions_by_A_index,0))) -> 68.07238503 | BN41: =IF(actCaseAnnGHG_1="",NA(),INDEX(Total_Emissions_by_A_vals,MATCH('Annual GHG Emissions - Sector'!BN$38&"#"&actCaseAnnGHG_1&"#"&'Annual GHG Emissions - Sector'!$I41,Total_Emissions_by_A_index,0))) -> 68.56358751 | BO41: =IF(actCaseAnnGHG_1="",NA(),INDEX(Total_Emissions_by_A_vals,MATCH('Annual GHG Emissions - Sector'!BO$38&"#"&actCaseAnnGHG_1&"#"&'Annual GHG Emissions - Sector'!$I41,Total_Emissions_by_A_index,0))) -> 69.0231781 | BP41: =IF(actCaseAnnGHG_1="",NA(),INDEX(Total_Emissions_by_A_vals,MATCH('Annual GHG Emissions - Sector'!BP$38&"#"&actCaseAnnGHG_1&"#"&'Annual GHG Emissions - Sector'!$I41,Total_Emissions_by_A_index,0))) -> 69.5008602 | BQ41: =IF(actCaseAnnGHG_1="",NA(),INDEX(Total_Emissions_by_A_vals,MATCH('Annual GHG Emissions - Sector'!BQ$38&"#"&actCaseAnnGHG_1&"#"&'Annual GHG Emissions - Sector'!$I41,Total_Emissions_by_A_index,0))) -> 70.01760161 | BR41: =IF(actCaseAnnGHG_1="",NA(),INDEX(Total_Emissions_by_A_vals,MATCH('Annual GHG Emissions - Sector'!BR$38&"#"&actCaseAnnGHG_1&"#"&'Annual GHG Emissions - Sector'!$I41,Total_Emissions_by_A_index,0))) -> 70.63573031
I42: High GWP | AI42: =IF(actCaseAnnGHG_1="",NA(),INDEX(Total_Emissions_by_A_vals,MATCH('Annual GHG Emissions - Sector'!AI$38&"#"&actCaseAnnGHG_1&"#"&'Annual GHG Emissions - Sector'!$I42,Total_Emissions_by_A_index,0))) -> 18.81184626 | AJ42: =IF(actCaseAnnGHG_1="",NA(),INDEX(Total_Emissions_by_A_vals,MATCH('Annual GHG Emissions - Sector'!AJ$38&"#"&actCaseAnnGHG_1&"#"&'Annual GHG Emissions - Sector'!$I42,Total_Emissions_by_A_index,0))) -> 19.23798571 | AK42: =IF(actCaseAnnGHG_1="",NA(),INDEX(Total_Emissions_by_A_vals,MATCH('Annual GHG Emissions - Sector'!AK$38&"#"&actCaseAnnGHG_1&"#"&'Annual GHG Emissions - Sector'!$I42,Total_Emissions_by_A_index,0))) -> 20.15494227 | AL42: =IF(actCaseAnnGHG_1="",NA(),INDEX(Total_Emissions_by_A_vals,MATCH('Annual GHG Emissions - Sector'!AL$38&"#"&actCaseAnnGHG_1&"#"&'Annual GHG Emissions - Sector'!$I42,Total_Emissions_by_A_index,0))) -> 20.79624687 | AM42: =IF(actCaseAnnGHG_1="",NA(),INDEX(Total_Emissions_by_A_vals,MATCH('Annual GHG Emissions - Sector'!AM$38&"#"&actCaseAnnGHG_1&"#"&'Annual GHG Emissions - Sector'!$I42,Total_Emissions_by_A_index,0))) -> 21.69725399 | AN42: =IF(actCaseAnnGHG_1="",NA(),INDEX(Total_Emissions_by_A_vals,MATCH('Annual GHG Emissions - Sector'!AN$38&"#"&actCaseAnnGHG_1&"#"&'Annual GHG Emissions - Sector'!$I42,Total_Emissions_by_A_index,0))) -> 22.4720277 | AO42: =IF(actCaseAnnGHG_1="",NA(),INDEX(Total_Emissions_by_A_vals,MATCH('Annual GHG Emissions - Sector'!AO$38&"#"&actCaseAnnGHG_1&"#"&'Annual GHG Emissions - Sector'!$I42,Total_Emissions_by_A_index,0))) -> 23.24170248 | AP42: =IF(actCaseAnnGHG_1="",NA(),INDEX(Total_Emissions_by_A_vals,MATCH('Annual GHG Emissions - Sector'!AP$38&"#"&actCaseAnnGHG_1&"#"&'Annual GHG Emissions - Sector'!$I42,Total_Emissions_by_A_index,0))) -> 24.02106733 | AQ42: =IF(actCaseAnnGHG_1="",NA(),INDEX(Total_Emissions_by_A_vals,MATCH('Annual GHG Emissions - Sector'!AQ$38&"#"&actCaseAnnGHG_1&"#"&'Annual GHG Emissions - Sector'!$I42,Total_Emissions_by_A_index,0))) -> 24.80770363 | AR42: =IF(actCaseAnnGHG_1="",NA(),INDEX(Total_Emissions_by_A_vals,MATCH('Annual GHG Emissions - Sector'!AR$38&"#"&actCaseAnnGHG_1&"#"&'Annual GHG Emissions - Sector'!$I42,Total_Emissions_by_A_index,0))) -> 25.60102133 | AS42: =IF(actCaseAnnGHG_1="",NA(),INDEX(Total_Emissions_by_A_vals,MATCH('Annual GHG Emissions - Sector'!AS$38&"#"&actCaseAnnGHG_1&"#"&'Annual GHG Emissions - Sector'!$I42,Total_Emissions_by_A_index,0))) -> 26.35090457 | AT42: =IF(actCaseAnnGHG_1="",NA(),INDEX(Total_Emissions_by_A_vals,MATCH('Annual GHG Emissions - Sector'!AT$38&"#"&actCaseAnnGHG_1&"#"&'Annual GHG Emissions - Sector'!$I42,Total_Emissions_by_A_index,0))) -> 26.85230341 | AU42: =IF(actCaseAnnGHG_1="",NA(),INDEX(Total_Emissions_by_A_vals,MATCH('Annual GHG Emissions - Sector'!AU$38&"#"&actCaseAnnGHG_1&"#"&'Annual GHG Emissions - Sector'!$I42,Total_Emissions_by_A_index,0))) -> 27.35755749 | AV42: =IF(actCaseAnnGHG_1="",NA(),INDEX(Total_Emissions_by_A_vals,MATCH('Annual GHG Emissions - Sector'!AV$38&"#"&actCaseAnnGHG_1&"#"&'Annual GHG Emissions - Sector'!$I42,Total_Emissions_by_A_index,0))) -> 27.86751693 | AW42: =IF(actCaseAnnGHG_1="",NA(),INDEX(Total_Emissions_by_A_vals,MATCH('Annual GHG Emissions - Sector'!AW$38&"#"&actCaseAnnGHG_1&"#"&'Annual GHG Emissions - Sector'!$I42,Total_Emissions_by_A_index,0))) -> 28.38088238 | AX42: =IF(actCaseAnnGHG_1="",NA(),INDEX(Total_Emissions_by_A_vals,MATCH('Annual GHG Emissions - Sector'!AX$38&"#"&actCaseAnnGHG_1&"#"&'Annual GHG Emissions - Sector'!$I42,Total_Emissions_by_A_index,0))) -> 28.89851494 | AY42: =IF(actCaseAnnGHG_1="",NA(),INDEX(Total_Emissions_by_A_vals,MATCH('Annual GHG Emissions - Sector'!AY$38&"#"&actCaseAnnGHG_1&"#"&'Annual GHG Emissions - Sector'!$I42,Total_Emissions_by_A_index,0))) -> 29.00523625 | AZ42: =IF(actCaseAnnGHG_1="",NA(),INDEX(Total_Emissions_by_A_vals,MATCH('Annual GHG Emissions - Sector'!AZ$38&"#"&actCaseAnnGHG_1&"#"&'Annual GHG Emissions - Sector'!$I42,Total_Emissions_by_A_index,0))) -> 29.11173754 | BA42: =IF(actCaseAnnGHG_1="",NA(),INDEX(Total_Emissions_by_A_vals,MATCH('Annual GHG Emissions - Sector'!BA$38&"#"&actCaseAnnGHG_1&"#"&'Annual GHG Emissions - Sector'!$I42,Total_Emissions_by_A_index,0))) -> 29.21948442 | BB42: =IF(actCaseAnnGHG_1="",NA(),INDEX(Total_Emissions_by_A_vals,MATCH('Annual GHG Emissions - Sector'!BB$38&"#"&actCaseAnnGHG_1&"#"&'Annual GHG Emissions - Sector'!$I42,Total_Emissions_by_A_index,0))) -> 29.32963198 | BC42: =IF(actCaseAnnGHG_1="",NA(),INDEX(Total_Emissions_by_A_vals,MATCH('Annual GHG Emissions - Sector'!BC$38&"#"&actCaseAnnGHG_1&"#"&'Annual GHG Emissions - Sector'!$I42,Total_Emissions_by_A_index,0))) -> 29.44123906 | BD42: =IF(actCaseAnnGHG_1="",NA(),INDEX(Total_Emissions_by_A_vals,MATCH('Annual GHG Emissions - Sector'!BD$38&"#"&actCaseAnnGHG_1&"#"&'Annual GHG Emissions - Sector'!$I42,Total_Emissions_by_A_index,0))) -> 29.59089861 | BE42: =IF(actCaseAnnGHG_1="",NA(),INDEX(Total_Emissions_by_A_vals,MATCH('Annual GHG Emissions - Sector'!BE$38&"#"&actCaseAnnGHG_1&"#"&'Annual GHG Emissions - Sector'!$I42,Total_Emissions_by_A_index,0))) -> 29.74196561 | BF42: =IF(actCaseAnnGHG_1="",NA(),INDEX(Total_Emissions_by_A_vals,MATCH('Annual GHG Emissions - Sector'!BF$38&"#"&actCaseAnnGHG_1&"#"&'Annual GHG Emissions - Sector'!$I42,Total_Emissions_by_A_index,0))) -> 29.89473728 | BG42: =IF(actCaseAnnGHG_1="",NA(),INDEX(Total_Emissions_by_A_vals,MATCH('Annual GHG Emissions - Sector'!BG$38&"#"&actCaseAnnGHG_1&"#"&'Annual GHG Emissions - Sector'!$I42,Total_Emissions_by_A_index,0))) -> 30.04934431 | BH42: =IF(actCaseAnnGHG_1="",NA(),INDEX(Total_Emissions_by_A_vals,MATCH('Annual GHG Emissions - Sector'!BH$38&"#"&actCaseAnnGHG_1&"#"&'Annual GHG Emissions - Sector'!$I42,Total_Emissions_by_A_index,0))) -> 30.20594204 | BI42: =IF(actCaseAnnGHG_1="",NA(),INDEX(Total_Emissions_by_A_vals,MATCH('Annual GHG Emissions - Sector'!BI$38&"#"&actCaseAnnGHG_1&"#"&'Annual GHG Emissions - Sector'!$I42,Total_Emissions_by_A_index,0))) -> 30.33898066 | BJ42: =IF(actCaseAnnGHG_1="",NA(),INDEX(Total_Emissions_by_A_vals,MATCH('Annual GHG Emissions - Sector'!BJ$38&"#"&actCaseAnnGHG_1&"#"&'Annual GHG Emissions - Sector'!$I42,Total_Emissions_by_A_index,0))) -> 30.47492948 | BK42: =IF(actCaseAnnGHG_1="",NA(),INDEX(Total_Emissions_by_A_vals,MATCH('Annual GHG Emissions - Sector'!BK$38&"#"&actCaseAnnGHG_1&"#"&'Annual GHG Emissions - Sector'!$I42,Total_Emissions_by_A_index,0))) -> 30.61386439 | BL42: =IF(actCaseAnnGHG_1="",NA(),INDEX(Total_Emissions_by_A_vals,MATCH('Annual GHG Emissions - Sector'!BL$38&"#"&actCaseAnnGHG_1&"#"&'Annual GHG Emissions - Sector'!$I42,Total_Emissions_by_A_index,0))) -> 30.75597766 | BM42: =IF(actCaseAnnGHG_1="",NA(),INDEX(Total_Emissions_by_A_vals,MATCH('Annual GHG Emissions - Sector'!BM$38&"#"&actCaseAnnGHG_1&"#"&'Annual GHG Emissions - Sector'!$I42,Total_Emissions_by_A_index,0))) -> 30.90142256 | BN42: =IF(actCaseAnnGHG_1="",NA(),INDEX(Total_Emissions_by_A_vals,MATCH('Annual GHG Emissions - Sector'!BN$38&"#"&actCaseAnnGHG_1&"#"&'Annual GHG Emissions - Sector'!$I42,Total_Emissions_by_A_index,0))) -> 31.04219704 | BO42: =IF(actCaseAnnGHG_1="",NA(),INDEX(Total_Emissions_by_A_vals,MATCH('Annual GHG Emissions - Sector'!BO$38&"#"&actCaseAnnGHG_1&"#"&'Annual GHG Emissions - Sector'!$I42,Total_Emissions_by_A_index,0))) -> 31.18683035 | BP42: =IF(actCaseAnnGHG_1="",NA(),INDEX(Total_Emissions_by_A_vals,MATCH('Annual GHG Emissions - Sector'!BP$38&"#"&actCaseAnnGHG_1&"#"&'Annual GHG Emissions - Sector'!$I42,Total_Emissions_by_A_index,0))) -> 31.33540568 | BQ42: =IF(actCaseAnnGHG_1="",NA(),INDEX(Total_Emissions_by_A_vals,MATCH('Annual GHG Emissions - Sector'!BQ$38&"#"&actCaseAnnGHG_1&"#"&'Annual GHG Emissions - Sector'!$I42,Total_Emissions_by_A_index,0))) -> 31.48812429 | BR42: =IF(actCaseAnnGHG_1="",NA(),INDEX(Total_Emissions_by_A_vals,MATCH('Annual GHG Emissions - Sector'!BR$38&"#"&actCaseAnnGHG_1&"#"&'Annual GHG Emissions - Sector'!$I42,Total_Emissions_by_A_index,0))) -> 31.64511236
I43: Industrial | AI43: =IF(actCaseAnnGHG_1="",NA(),INDEX(Total_Emissions_by_A_vals,MATCH('Annual GHG Emissions - Sector'!AI$38&"#"&actCaseAnnGHG_1&"#"&'Annual GHG Emissions - Sector'!$I43,Total_Emissions_by_A_index,0))) -> 92.3982009 | AJ43: =IF(actCaseAnnGHG_1="",NA(),INDEX(Total_Emissions_by_A_vals,MATCH('Annual GHG Emissions - Sector'!AJ$38&"#"&actCaseAnnGHG_1&"#"&'Annual GHG Emissions - Sector'!$I43,Total_Emissions_by_A_index,0))) -> 92.01227949 | AK43: =IF(actCaseAnnGHG_1="",NA(),INDEX(Total_Emissions_by_A_vals,MATCH('Annual GHG Emissions - Sector'!AK$38&"#"&actCaseAnnGHG_1&"#"&'Annual GHG Emissions - Sector'!$I43,Total_Emissions_by_A_index,0))) -> 91.50761085 | AL43: =IF(actCaseAnnGHG_1="",NA(),INDEX(Total_Emissions_by_A_vals,MATCH('Annual GHG Emissions - Sector'!AL$38&"#"&actCaseAnnGHG_1&"#"&'Annual GHG Emissions - Sector'!$I43,Total_Emissions_by_A_index,0))) -> 91.24161672 | AM43: =IF(actCaseAnnGHG_1="",NA(),INDEX(Total_Emissions_by_A_vals,MATCH('Annual GHG Emissions - Sector'!AM$38&"#"&actCaseAnnGHG_1&"#"&'Annual GHG Emissions - Sector'!$I43,Total_Emissions_by_A_index,0))) -> 90.82952756 | AN43: =IF(actCaseAnnGHG_1="",NA(),INDEX(Total_Emissions_by_A_vals,MATCH('Annual GHG Emissions - Sector'!AN$38&"#"&actCaseAnnGHG_1&"#"&'Annual GHG Emissions - Sector'!$I43,Total_Emissions_by_A_index,0))) -> 90.46224366 | AO43: =IF(actCaseAnnGHG_1="",NA(),INDEX(Total_Emissions_by_A_vals,MATCH('Annual GHG Emissions - Sector'!AO$38&"#"&actCaseAnnGHG_1&"#"&'Annual GHG Emissions - Sector'!$I43,Total_Emissions_by_A_index,0))) -> 89.97034407 | AP43: =IF(actCaseAnnGHG_1="",NA(),INDEX(Total_Emissions_by_A_vals,MATCH('Annual GHG Emissions - Sector'!AP$38&"#"&actCaseAnnGHG_1&"#"&'Annual GHG Emissions - Sector'!$I43,Total_Emissions_by_A_index,0))) -> 89.48318863 | AQ43: =IF(actCaseAnnGHG_1="",NA(),INDEX(Total_Emissions_by_A_vals,MATCH('Annual GHG Emissions - Sector'!AQ$38&"#"&actCaseAnnGHG_1&"#"&'Annual GHG Emissions - Sector'!$I43,Total_Emissions_by_A_index,0))) -> 88.99905324 | AR43: =IF(actCaseAnnGHG_1="",NA(),INDEX(Total_Emissions_by_A_vals,MATCH('Annual GHG Emissions - Sector'!AR$38&"#"&actCaseAnnGHG_1&"#"&'Annual GHG Emissions - Sector'!$I43,Total_Emissions_by_A_index,0))) -> 88.70319209 | AS43: =IF(actCaseAnnGHG_1="",NA(),INDEX(Total_Emissions_by_A_vals,MATCH('Annual GHG Emissions - Sector'!AS$38&"#"&actCaseAnnGHG_1&"#"&'Annual GHG Emissions - Sector'!$I43,Total_Emissions_by_A_index,0))) -> 88.9600875 | AT43: =IF(actCaseAnnGHG_1="",NA(),INDEX(Total_Emissions_by_A_vals,MATCH('Annual GHG Emissions - Sector'!AT$38&"#"&actCaseAnnGHG_1&"#"&'Annual GHG Emissions - Sector'!$I43,Total_Emissions_by_A_index,0))) -> 89.13231292 | AU43: =IF(actCaseAnnGHG_1="",NA(),INDEX(Total_Emissions_by_A_vals,MATCH('Annual GHG Emissions - Sector'!AU$38&"#"&actCaseAnnGHG_1&"#"&'Annual GHG Emissions - Sector'!$I43,Total_Emissions_by_A_index,0))) -> 89.30112901 | AV43: =IF(actCaseAnnGHG_1="",NA(),INDEX(Total_Emissions_by_A_vals,MATCH('Annual GHG Emissions - Sector'!AV$38&"#"&actCaseAnnGHG_1&"#"&'Annual GHG Emissions - Sector'!$I43,Total_Emissions_by_A_index,0))) -> 89.47070755 | AW43: =IF(actCaseAnnGHG_1="",NA(),INDEX(Total_Emissions_by_A_vals,MATCH('Annual GHG Emissions - Sector'!AW$38&"#"&actCaseAnnGHG_1&"#"&'Annual GHG Emissions - Sector'!$I43,Total_Emissions_by_A_index,0))) -> 89.64210603 | AX43: =IF(actCaseAnnGHG_1="",NA(),INDEX(Total_Emissions_by_A_vals,MATCH('Annual GHG Emissions - Sector'!AX$38&"#"&actCaseAnnGHG_1&"#"&'Annual GHG Emissions - Sector'!$I43,Total_Emissions_by_A_index,0))) -> 88.22108622 | AY43: =IF(actCaseAnnGHG_1="",NA(),INDEX(Total_Emissions_by_A_vals,MATCH('Annual GHG Emissions - Sector'!AY$38&"#"&actCaseAnnGHG_1&"#"&'Annual GHG Emissions - Sector'!$I43,Total_Emissions_by_A_index,0))) -> 88.18486922 | AZ43: =IF(actCaseAnnGHG_1="",NA(),INDEX(Total_Emissions_by_A_vals,MATCH('Annual GHG Emissions - Sector'!AZ$38&"#"&actCaseAnnGHG_1&"#"&'Annual GHG Emissions - Sector'!$I43,Total_Emissions_by_A_index,0))) -> 88.33215779 | BA43: =IF(actCaseAnnGHG_1="",NA(),INDEX(Total_Emissions_by_A_vals,MATCH('Annual GHG Emissions - Sector'!BA$38&"#"&actCaseAnnGHG_1&"#"&'Annual GHG Emissions - Sector'!$I43,Total_Emissions_by_A_index,0))) -> 88.47714824 | BB43: =IF(actCaseAnnGHG_1="",NA(),INDEX(Total_Emissions_by_A_vals,MATCH('Annual GHG Emissions - Sector'!BB$38&"#"&actCaseAnnGHG_1&"#"&'Annual GHG Emissions - Sector'!$I43,Total_Emissions_by_A_index,0))) -> 88.62090689 | BC43: =IF(actCaseAnnGHG_1="",NA(),INDEX(Total_Emissions_by_A_vals,MATCH('Annual GHG Emissions - Sector'!BC$38&"#"&actCaseAnnGHG_1&"#"&'Annual GHG Emissions - Sector'!$I43,Total_Emissions_by_A_index,0))) -> 88.61805373 | BD43: =IF(actCaseAnnGHG_1="",NA(),INDEX(Total_Emissions_by_A_vals,MATCH('Annual GHG Emissions - Sector'!BD$38&"#"&actCaseAnnGHG_1&"#"&'Annual GHG Emissions - Sector'!$I43,Total_Emissions_by_A_index,0))) -> 88.76275198 | BE43: =IF(actCaseAnnGHG_1="",NA(),INDEX(Total_Emissions_by_A_vals,MATCH('Annual GHG Emissions - Sector'!BE$38&"#"&actCaseAnnGHG_1&"#"&'Annual GHG Emissions - Sector'!$I43,Total_Emissions_by_A_index,0))) -> 88.91383856 | BF43: =IF(actCaseAnnGHG_1="",NA(),INDEX(Total_Emissions_by_A_vals,MATCH('Annual GHG Emissions - Sector'!BF$38&"#"&actCaseAnnGHG_1&"#"&'Annual GHG Emissions - Sector'!$I43,Total_Emissions_by_A_index,0))) -> 89.03028654 | BG43: =IF(actCaseAnnGHG_1="",NA(),INDEX(Total_Emissions_by_A_vals,MATCH('Annual GHG Emissions - Sector'!BG$38&"#"&actCaseAnnGHG_1&"#"&'Annual GHG Emissions - Sector'!$I43,Total_Emissions_by_A_index,0))) -> 89.14774138 | BH43: =IF(actCaseAnnGHG_1="",NA(),INDEX(Total_Emissions_by_A_vals,MATCH('Annual GHG Emissions - Sector'!BH$38&"#"&actCaseAnnGHG_1&"#"&'Annual GHG Emissions - Sector'!$I43,Total_Emissions_by_A_index,0))) -> 89.25878624 | BI43: =IF(actCaseAnnGHG_1="",NA(),INDEX(Total_Emissions_by_A_vals,MATCH('Annual GHG Emissions - Sector'!BI$38&"#"&actCaseAnnGHG_1&"#"&'Annual GHG Emissions - Sector'!$I43,Total_Emissions_by_A_index,0))) -> 89.38579241 | BJ43: =IF(actCaseAnnGHG_1="",NA(),INDEX(Total_Emissions_by_A_vals,MATCH('Annual GHG Emissions - Sector'!BJ$38&"#"&actCaseAnnGHG_1&"#"&'Annual GHG Emissions - Sector'!$I43,Total_Emissions_by_A_index,0))) -> 89.50725093 | BK43: =IF(actCaseAnnGHG_1="",NA(),INDEX(Total_Emissions_by_A_vals,MATCH('Annual GHG Emissions - Sector'!BK$38&"#"&actCaseAnnGHG_1&"#"&'Annual GHG Emissions - Sector'!$I43,Total_Emissions_by_A_index,0))) -> 89.57449024 | BL43: =IF(actCaseAnnGHG_1="",NA(),INDEX(Total_Emissions_by_A_vals,MATCH('Annual GHG Emissions - Sector'!BL$38&"#"&actCaseAnnGHG_1&"#"&'Annual GHG Emissions - Sector'!$I43,Total_Emissions_by_A_index,0))) -> 89.69448324 | BM43: =IF(actCaseAnnGHG_1="",NA(),INDEX(Total_Emissions_by_A_vals,MATCH('Annual GHG Emissions - Sector'!BM$38&"#"&actCaseAnnGHG_1&"#"&'Annual GHG Emissions - Sector'!$I43,Total_Emissions_by_A_index,0))) -> 89.8272161 | BN43: =IF(actCaseAnnGHG_1="",NA(),INDEX(Total_Emissions_by_A_vals,MATCH('Annual GHG Emissions - Sector'!BN$38&"#"&actCaseAnnGHG_1&"#"&'Annual GHG Emissions - Sector'!$I43,Total_Emissions_by_A_index,0))) -> 89.95967456 | BO43: =IF(actCaseAnnGHG_1="",NA(),INDEX(Total_Emissions_by_A_vals,MATCH('Annual GHG Emissions - Sector'!BO$38&"#"&actCaseAnnGHG_1&"#"&'Annual GHG Emissions - Sector'!$I43,Total_Emissions_by_A_index,0))) -> 90.09184833 | BP43: =IF(actCaseAnnGHG_1="",NA(),INDEX(Total_Emissions_by_A_vals,MATCH('Annual GHG Emissions - Sector'!BP$38&"#"&actCaseAnnGHG_1&"#"&'Annual GHG Emissions - Sector'!$I43,Total_Emissions_by_A_index,0))) -> 90.22374425 | BQ43: =IF(actCaseAnnGHG_1="",NA(),INDEX(Total_Emissions_by_A_vals,MATCH('Annual GHG Emissions - Sector'!BQ$38&"#"&actCaseAnnGHG_1&"#"&'Annual GHG Emissions - Sector'!$I43,Total_Emissions_by_A_index,0))) -> 90.35541759 | BR43: =IF(actCaseAnnGHG_1="",NA(),INDEX(Total_Emissions_by_A_vals,MATCH('Annual GHG Emissions - Sector'!BR$38&"#"&actCaseAnnGHG_1&"#"&'Annual GHG Emissions - Sector'!$I43,Total_Emissions_by_A_index,0))) -> 90.48830085
I44: Recycling and Waste | AI44: =IF(actCaseAnnGHG_1="",NA(),INDEX(Total_Emissions_by_A_vals,MATCH('Annual GHG Emissions - Sector'!AI$38&"#"&actCaseAnnGHG_1&"#"&'Annual GHG Emissions - Sector'!$I44,Total_Emissions_by_A_index,0))) -> 10.73087981 | AJ44: =IF(actCaseAnnGHG_1="",NA(),INDEX(Total_Emissions_by_A_vals,MATCH('Annual GHG Emissions - Sector'!AJ$38&"#"&actCaseAnnGHG_1&"#"&'Annual GHG Emissions - Sector'!$I44,Total_Emissions_by_A_index,0))) -> 10.73087981 | AK44: =IF(actCaseAnnGHG_1="",NA(),INDEX(Total_Emissions_by_A_vals,MATCH('Annual GHG Emissions - Sector'!AK$38&"#"&actCaseAnnGHG_1&"#"&'Annual GHG Emissions - Sector'!$I44,Total_Emissions_by_A_index,0))) -> 10.73087981 | AL44: =IF(actCaseAnnGHG_1="",NA(),INDEX(Total_Emissions_by_A_vals,MATCH('Annual GHG Emissions - Sector'!AL$38&"#"&actCaseAnnGHG_1&"#"&'Annual GHG Emissions - Sector'!$I44,Total_Emissions_by_A_index,0))) -> 10.73087981 | AM44: =IF(actCaseAnnGHG_1="",NA(),INDEX(Total_Emissions_by_A_vals,MATCH('Annual GHG Emissions - Sector'!AM$38&"#"&actCaseAnnGHG_1&"#"&'Annual GHG Emissions - Sector'!$I44,Total_Emissions_by_A_index,0))) -> 10.73087981 | AN44: =IF(actCaseAnnGHG_1="",NA(),INDEX(Total_Emissions_by_A_vals,MATCH('Annual GHG Emissions - Sector'!AN$38&"#"&actCaseAnnGHG_1&"#"&'Annual GHG Emissions - Sector'!$I44,Total_Emissions_by_A_index,0))) -> 10.73087981 | AO44: =IF(actCaseAnnGHG_1="",NA(),INDEX(Total_Emissions_by_A_vals,MATCH('Annual GHG Emissions - Sector'!AO$38&"#"&actCaseAnnGHG_1&"#"&'Annual GHG Emissions - Sector'!$I44,Total_Emissions_by_A_index,0))) -> 10.73087981 | AP44: =IF(actCaseAnnGHG_1="",NA(),INDEX(Total_Emissions_by_A_vals,MATCH('Annual GHG Emissions - Sector'!AP$38&"#"&actCaseAnnGHG_1&"#"&'Annual GHG Emissions - Sector'!$I44,Total_Emissions_by_A_index,0))) -> 10.73087981 | AQ44: =IF(actCaseAnnGHG_1="",NA(),INDEX(Total_Emissions_by_A_vals,MATCH('Annual GHG Emissions - Sector'!AQ$38&"#"&actCaseAnnGHG_1&"#"&'Annual GHG Emissions - Sector'!$I44,Total_Emissions_by_A_index,0))) -> 10.73087981 | AR44: =IF(actCaseAnnGHG_1="",NA(),INDEX(Total_Emissions_by_A_vals,MATCH('Annual GHG Emissions - Sector'!AR$38&"#"&actCaseAnnGHG_1&"#"&'Annual GHG Emissions - Sector'!$I44,Total_Emissions_by_A_index,0))) -> 10.73087981 | AS44: =IF(actCaseAnnGHG_1="",NA(),INDEX(Total_Emissions_by_A_vals,MATCH('Annual GHG Emissions - Sector'!AS$38&"#"&actCaseAnnGHG_1&"#"&'Annual GHG Emissions - Sector'!$I44,Total_Emissions_by_A_index,0))) -> 10.73087981 | AT44: =IF(actCaseAnnGHG_1="",NA(),INDEX(Total_Emissions_by_A_vals,MATCH('Annual GHG Emissions - Sector'!AT$38&"#"&actCaseAnnGHG_1&"#"&'Annual GHG Emissions - Sector'!$I44,Total_Emissions_by_A_index,0))) -> 10.73087981 | AU44: =IF(actCaseAnnGHG_1="",NA(),INDEX(Total_Emissions_by_A_vals,MATCH('Annual GHG Emissions - Sector'!AU$38&"#"&actCaseAnnGHG_1&"#"&'Annual GHG Emissions - Sector'!$I44,Total_Emissions_by_A_index,0))) -> 10.73087981 | AV44: =IF(actCaseAnnGHG_1="",NA(),INDEX(Total_Emissions_by_A_vals,MATCH('Annual GHG Emissions - Sector'!AV$38&"#"&actCaseAnnGHG_1&"#"&'Annual GHG Emissions - Sector'!$I44,Total_Emissions_by_A_index,0))) -> 10.73087981 | AW44: =IF(actCaseAnnGHG_1="",NA(),INDEX(Total_Emissions_by_A_vals,MATCH('Annual GHG Emissions - Sector'!AW$38&"#"&actCaseAnnGHG_1&"#"&'Annual GHG Emissions - Sector'!$I44,Total_Emissions_by_A_index,0))) -> 10.73087981 | AX44: =IF(actCaseAnnGHG_1="",NA(),INDEX(Total_Emissions_by_A_vals,MATCH('Annual GHG Emissions - Sector'!AX$38&"#"&actCaseAnnGHG_1&"#"&'Annual GHG Emissions - Sector'!$I44,Total_Emissions_by_A_index,0))) -> 10.73087981 | AY44: =IF(actCaseAnnGHG_1="",NA(),INDEX(Total_Emissions_by_A_vals,MATCH('Annual GHG Emissions - Sector'!AY$38&"#"&actCaseAnnGHG_1&"#"&'Annual GHG Emissions - Sector'!$I44,Total_Emissions_by_A_index,0))) -> 10.73087981 | AZ44: =IF(actCaseAnnGHG_1="",NA(),INDEX(Total_Emissions_by_A_vals,MATCH('Annual GHG Emissions - Sector'!AZ$38&"#"&actCaseAnnGHG_1&"#"&'Annual GHG Emissions - Sector'!$I44,Total_Emissions_by_A_index,0))) -> 10.73087981 | BA44: =IF(actCaseAnnGHG_1="",NA(),INDEX(Total_Emissions_by_A_vals,MATCH('Annual GHG Emissions - Sector'!BA$38&"#"&actCaseAnnGHG_1&"#"&'Annual GHG Emissions - Sector'!$I44,Total_Emissions_by_A_index,0))) -> 10.73087981 | BB44: =IF(actCaseAnnGHG_1="",NA(),INDEX(Total_Emissions_by_A_vals,MATCH('Annual GHG Emissions - Sector'!BB$38&"#"&actCaseAnnGHG_1&"#"&'Annual GHG Emissions - Sector'!$I44,Total_Emissions_by_A_index,0))) -> 10.73087981 | BC44: =IF(actCaseAnnGHG_1="",NA(),INDEX(Total_Emissions_by_A_vals,MATCH('Annual GHG Emissions - Sector'!BC$38&"#"&actCaseAnnGHG_1&"#"&'Annual GHG Emissions - Sector'!$I44,Total_Emissions_by_A_index,0))) -> 10.73087981 | BD44: =IF(actCaseAnnGHG_1="",NA(),INDEX(Total_Emissions_by_A_vals,MATCH('Annual GHG Emissions - Sector'!BD$38&"#"&actCaseAnnGHG_1&"#"&'Annual GHG Emissions - Sector'!$I44,Total_Emissions_by_A_index,0))) -> 10.73087981 | BE44: =IF(actCaseAnnGHG_1="",NA(),INDEX(Total_Emissions_by_A_vals,MATCH('Annual GHG Emissions - Sector'!BE$38&"#"&actCaseAnnGHG_1&"#"&'Annual GHG Emissions - Sector'!$I44,Total_Emissions_by_A_index,0))) -> 10.73087981 | BF44: =IF(actCaseAnnGHG_1="",NA(),INDEX(Total_Emissions_by_A_vals,MATCH('Annual GHG Emissions - Sector'!BF$38&"#"&actCaseAnnGHG_1&"#"&'Annual GHG Emissions - Sector'!$I44,Total_Emissions_by_A_index,0))) -> 10.73087981 | BG44: =IF(actCaseAnnGHG_1="",NA(),INDEX(Total_Emissions_by_A_vals,MATCH('Annual GHG Emissions - Sector'!BG$38&"#"&actCaseAnnGHG_1&"#"&'Annual GHG Emissions - Sector'!$I44,Total_Emissions_by_A_index,0))) -> 10.73087981 | BH44: =IF(actCaseAnnGHG_1="",NA(),INDEX(Total_Emissions_by_A_vals,MATCH('Annual GHG Emissions - Sector'!BH$38&"#"&actCaseAnnGHG_1&"#"&'Annual GHG Emissions - Sector'!$I44,Total_Emissions_by_A_index,0))) -> 10.73087981 | BI44: =IF(actCaseAnnGHG_1="",NA(),INDEX(Total_Emissions_by_A_vals,MATCH('Annual GHG Emissions - Sector'!BI$38&"#"&actCaseAnnGHG_1&"#"&'Annual GHG Emissions - Sector'!$I44,Total_Emissions_by_A_index,0))) -> 10.73087981 | BJ44: =IF(actCaseAnnGHG_1="",NA(),INDEX(Total_Emissions_by_A_vals,MATCH('Annual GHG Emissions - Sector'!BJ$38&"#"&actCaseAnnGHG_1&"#"&'Annual GHG Emissions - Sector'!$I44,Total_Emissions_by_A_index,0))) -> 10.73087981 | BK44: =IF(actCaseAnnGHG_1="",NA(),INDEX(Total_Emissions_by_A_vals,MATCH('Annual GHG Emissions - Sector'!BK$38&"#"&actCaseAnnGHG_1&"#"&'Annual GHG Emissions - Sector'!$I44,Total_Emissions_by_A_index,0))) -> 10.73087981 | BL44: =IF(actCaseAnnGHG_1="",NA(),INDEX(Total_Emissions_by_A_vals,MATCH('Annual GHG Emissions - Sector'!BL$38&"#"&actCaseAnnGHG_1&"#"&'Annual GHG Emissions - Sector'!$I44,Total_Emissions_by_A_index,0))) -> 10.73087981 | BM44: =IF(actCaseAnnGHG_1="",NA(),INDEX(Total_Emissions_by_A_vals,MATCH('Annual GHG Emissions - Sector'!BM$38&"#"&actCaseAnnGHG_1&"#"&'Annual GHG Emissions - Sector'!$I44,Total_Emissions_by_A_index,0))) -> 10.73087981 | BN44: =IF(actCaseAnnGHG_1="",NA(),INDEX(Total_Emissions_by_A_vals,MATCH('Annual GHG Emissions - Sector'!BN$38&"#"&actCaseAnnGHG_1&"#"&'Annual GHG Emissions - Sector'!$I44,Total_Emissions_by_A_index,0))) -> 10.73087981 | BO44: =IF(actCaseAnnGHG_1="",NA(),INDEX(Total_Emissions_by_A_vals,MATCH('Annual GHG Emissions - Sector'!BO$38&"#"&actCaseAnnGHG_1&"#"&'Annual GHG Emissions - Sector'!$I44,Total_Emissions_by_A_index,0))) -> 10.73087981 | BP44: =IF(actCaseAnnGHG_1="",NA(),INDEX(Total_Emissions_by_A_vals,MATCH('Annual GHG Emissions - Sector'!BP$38&"#"&actCaseAnnGHG_1&"#"&'Annual GHG Emissions - Sector'!$I44,Total_Emissions_by_A_index,0))) -> 10.73087981 | BQ44: =IF(actCaseAnnGHG_1="",NA(),INDEX(Total_Emissions_by_A_vals,MATCH('Annual GHG Emissions - Sector'!BQ$38&"#"&actCaseAnnGHG_1&"#"&'Annual GHG Emissions - Sector'!$I44,Total_Emissions_by_A_index,0))) -> 10.73087981 | BR44: =IF(actCaseAnnGHG_1="",NA(),INDEX(Total_Emissions_by_A_vals,MATCH('Annual GHG Emissions - Sector'!BR$38&"#"&actCaseAnnGHG_1&"#"&'Annual GHG Emissions - Sector'!$I44,Total_Emissions_by_A_index,0))) -> 10.73087981
I45: Transportation (Incl. TCU) | AI45: =IF(actCaseAnnGHG_1="",NA(),INDEX(Total_Emissions_by_A_vals,MATCH('Annual GHG Emissions - Sector'!AI$38&"#"&actCaseAnnGHG_1&"#"&'Annual GHG Emissions - Sector'!$I45,Total_Emissions_by_A_index,0))) -> 168.2812124 | AJ45: =IF(actCaseAnnGHG_1="",NA(),INDEX(Total_Emissions_by_A_vals,MATCH('Annual GHG Emissions - Sector'!AJ$38&"#"&actCaseAnnGHG_1&"#"&'Annual GHG Emissions - Sector'!$I45,Total_Emissions_by_A_index,0))) -> 167.2174495 | AK45: =IF(actCaseAnnGHG_1="",NA(),INDEX(Total_Emissions_by_A_vals,MATCH('Annual GHG Emissions - Sector'!AK$38&"#"&actCaseAnnGHG_1&"#"&'Annual GHG Emissions - Sector'!$I45,Total_Emissions_by_A_index,0))) -> 164.5075046 | AL45: =IF(actCaseAnnGHG_1="",NA(),INDEX(Total_Emissions_by_A_vals,MATCH('Annual GHG Emissions - Sector'!AL$38&"#"&actCaseAnnGHG_1&"#"&'Annual GHG Emissions - Sector'!$I45,Total_Emissions_by_A_index,0))) -> 160.5499616 | AM45: =IF(actCaseAnnGHG_1="",NA(),INDEX(Total_Emissions_by_A_vals,MATCH('Annual GHG Emissions - Sector'!AM$38&"#"&actCaseAnnGHG_1&"#"&'Annual GHG Emissions - Sector'!$I45,Total_Emissions_by_A_index,0))) -> 155.8557551 | AN45: =IF(actCaseAnnGHG_1="",NA(),INDEX(Total_Emissions_by_A_vals,MATCH('Annual GHG Emissions - Sector'!AN$38&"#"&actCaseAnnGHG_1&"#"&'Annual GHG Emissions - Sector'!$I45,Total_Emissions_by_A_index,0))) -> 151.0980755 | AO45: =IF(actCaseAnnGHG_1="",NA(),INDEX(Total_Emissions_by_A_vals,MATCH('Annual GHG Emissions - Sector'!AO$38&"#"&actCaseAnnGHG_1&"#"&'Annual GHG Emissions - Sector'!$I45,Total_Emissions_by_A_index,0))) -> 146.6218814 | AP45: =IF(actCaseAnnGHG_1="",NA(),INDEX(Total_Emissions_by_A_vals,MATCH('Annual GHG Emissions - Sector'!AP$38&"#"&actCaseAnnGHG_1&"#"&'Annual GHG Emissions - Sector'!$I45,Total_Emissions_by_A_index,0))) -> 141.2345305 | AQ45: =IF(actCaseAnnGHG_1="",NA(),INDEX(Total_Emissions_by_A_vals,MATCH('Annual GHG Emissions - Sector'!AQ$38&"#"&actCaseAnnGHG_1&"#"&'Annual GHG Emissions - Sector'!$I45,Total_Emissions_by_A_index,0))) -> 136.1903838 | AR45: =IF(actCaseAnnGHG_1="",NA(),INDEX(Total_Emissions_by_A_vals,MATCH('Annual GHG Emissions - Sector'!AR$38&"#"&actCaseAnnGHG_1&"#"&'Annual GHG Emissions - Sector'!$I45,Total_Emissions_by_A_index,0))) -> 133.1155382 | AS45: =IF(actCaseAnnGHG_1="",NA(),INDEX(Total_Emissions_by_A_vals,MATCH('Annual GHG Emissions - Sector'!AS$38&"#"&actCaseAnnGHG_1&"#"&'Annual GHG Emissions - Sector'!$I45,Total_Emissions_by_A_index,0))) -> 129.9400522 | AT45: =IF(actCaseAnnGHG_1="",NA(),INDEX(Total_Emissions_by_A_vals,MATCH('Annual GHG Emissions - Sector'!AT$38&"#"&actCaseAnnGHG_1&"#"&'Annual GHG Emissions - Sector'!$I45,Total_Emissions_by_A_index,0))) -> 127.0338932 | AU45: =IF(actCaseAnnGHG_1="",NA(),INDEX(Total_Emissions_by_A_vals,MATCH('Annual GHG Emissions - Sector'!AU$38&"#"&actCaseAnnGHG_1&"#"&'Annual GHG Emissions - Sector'!$I45,Total_Emissions_by_A_index,0))) -> 125.1991668 | AV45: =IF(actCaseAnnGHG_1="",NA(),INDEX(Total_Emissions_by_A_vals,MATCH('Annual GHG Emissions - Sector'!AV$38&"#"&actCaseAnnGHG_1&"#"&'Annual GHG Emissions - Sector'!$I45,Total_Emissions_by_A_index,0))) -> 123.7977337 | AW45: =IF(actCaseAnnGHG_1="",NA(),INDEX(Total_Emissions_by_A_vals,MATCH('Annual GHG Emissions - Sector'!AW$38&"#"&actCaseAnnGHG_1&"#"&'Annual GHG Emissions - Sector'!$I45,Total_Emissions_by_A_index,0))) -> 122.8313966 | AX45: =IF(actCaseAnnGHG_1="",NA(),INDEX(Total_Emissions_by_A_vals,MATCH('Annual GHG Emissions - Sector'!AX$38&"#"&actCaseAnnGHG_1&"#"&'Annual GHG Emissions - Sector'!$I45,Total_Emissions_by_A_index,0))) -> 122.0792705 | AY45: =IF(actCaseAnnGHG_1="",NA(),INDEX(Total_Emissions_by_A_vals,MATCH('Annual GHG Emissions - Sector'!AY$38&"#"&actCaseAnnGHG_1&"#"&'Annual GHG Emissions - Sector'!$I45,Total_Emissions_by_A_index,0))) -> 120.0502635 | AZ45: =IF(actCaseAnnGHG_1="",NA(),INDEX(Total_Emissions_by_A_vals,MATCH('Annual GHG Emissions - Sector'!AZ$38&"#"&actCaseAnnGHG_1&"#"&'Annual GHG Emissions - Sector'!$I45,Total_Emissions_by_A_index,0))) -> 120.0782127 | BA45: =IF(actCaseAnnGHG_1="",NA(),INDEX(Total_Emissions_by_A_vals,MATCH('Annual GHG Emissions - Sector'!BA$38&"#"&actCaseAnnGHG_1&"#"&'Annual GHG Emissions - Sector'!$I45,Total_Emissions_by_A_index,0))) -> 120.2040756 | BB45: =IF(actCaseAnnGHG_1="",NA(),INDEX(Total_Emissions_by_A_vals,MATCH('Annual GHG Emissions - Sector'!BB$38&"#"&actCaseAnnGHG_1&"#"&'Annual GHG Emissions - Sector'!$I45,Total_Emissions_by_A_index,0))) -> 120.5774683 | BC45: =IF(actCaseAnnGHG_1="",NA(),INDEX(Total_Emissions_by_A_vals,MATCH('Annual GHG Emissions - Sector'!BC$38&"#"&actCaseAnnGHG_1&"#"&'Annual GHG Emissions - Sector'!$I45,Total_Emissions_by_A_index,0))) -> 119.5703375 | BD45: =IF(actCaseAnnGHG_1="",NA(),INDEX(Total_Emissions_by_A_vals,MATCH('Annual GHG Emissions - Sector'!BD$38&"#"&actCaseAnnGHG_1&"#"&'Annual GHG Emissions - Sector'!$I45,Total_Emissions_by_A_index,0))) -> 120.201729 | BE45: =IF(actCaseAnnGHG_1="",NA(),INDEX(Total_Emissions_by_A_vals,MATCH('Annual GHG Emissions - Sector'!BE$38&"#"&actCaseAnnGHG_1&"#"&'Annual GHG Emissions - Sector'!$I45,Total_Emissions_by_A_index,0))) -> 121.2667793 | BF45: =IF(actCaseAnnGHG_1="",NA(),INDEX(Total_Emissions_by_A_vals,MATCH('Annual GHG Emissions - Sector'!BF$38&"#"&actCaseAnnGHG_1&"#"&'Annual GHG Emissions - Sector'!$I45,Total_Emissions_by_A_index,0))) -> 122.2280419 | BG45: =IF(actCaseAnnGHG_1="",NA(),INDEX(Total_Emissions_by_A_vals,MATCH('Annual GHG Emissions - Sector'!BG$38&"#"&actCaseAnnGHG_1&"#"&'Annual GHG Emissions - Sector'!$I45,Total_Emissions_by_A_index,0))) -> 123.3076291 | BH45: =IF(actCaseAnnGHG_1="",NA(),INDEX(Total_Emissions_by_A_vals,MATCH('Annual GHG Emissions - Sector'!BH$38&"#"&actCaseAnnGHG_1&"#"&'Annual GHG Emissions - Sector'!$I45,Total_Emissions_by_A_index,0))) -> 124.5934215 | BI45: =IF(actCaseAnnGHG_1="",NA(),INDEX(Total_Emissions_by_A_vals,MATCH('Annual GHG Emissions - Sector'!BI$38&"#"&actCaseAnnGHG_1&"#"&'Annual GHG Emissions - Sector'!$I45,Total_Emissions_by_A_index,0))) -> 126.2424058 | BJ45: =IF(actCaseAnnGHG_1="",NA(),INDEX(Total_Emissions_by_A_vals,MATCH('Annual GHG Emissions - Sector'!BJ$38&"#"&actCaseAnnGHG_1&"#"&'Annual GHG Emissions - Sector'!$I45,Total_Emissions_by_A_index,0))) -> 127.8928673 | BK45: =IF(actCaseAnnGHG_1="",NA(),INDEX(Total_Emissions_by_A_vals,MATCH('Annual GHG Emissions - Sector'!BK$38&"#"&actCaseAnnGHG_1&"#"&'Annual GHG Emissions - Sector'!$I45,Total_Emissions_by_A_index,0))) -> 129.018774 | BL45: =IF(actCaseAnnGHG_1="",NA(),INDEX(Total_Emissions_by_A_vals,MATCH('Annual GHG Emissions - Sector'!BL$38&"#"&actCaseAnnGHG_1&"#"&'Annual GHG Emissions - Sector'!$I45,Total_Emissions_by_A_index,0))) -> 130.7238075 | BM45: =IF(actCaseAnnGHG_1="",NA(),INDEX(Total_Emissions_by_A_vals,MATCH('Annual GHG Emissions - Sector'!BM$38&"#"&actCaseAnnGHG_1&"#"&'Annual GHG Emissions - Sector'!$I45,Total_Emissions_by_A_index,0))) -> 132.5798456 | BN45: =IF(actCaseAnnGHG_1="",NA(),INDEX(Total_Emissions_by_A_vals,MATCH('Annual GHG Emissions - Sector'!BN$38&"#"&actCaseAnnGHG_1&"#"&'Annual GHG Emissions - Sector'!$I45,Total_Emissions_by_A_index,0))) -> 134.4336835 | BO45: =IF(actCaseAnnGHG_1="",NA(),INDEX(Total_Emissions_by_A_vals,MATCH('Annual GHG Emissions - Sector'!BO$38&"#"&actCaseAnnGHG_1&"#"&'Annual GHG Emissions - Sector'!$I45,Total_Emissions_by_A_index,0))) -> 136.2717749 | BP45: =IF(actCaseAnnGHG_1="",NA(),INDEX(Total_Emissions_by_A_vals,MATCH('Annual GHG Emissions - Sector'!BP$38&"#"&actCaseAnnGHG_1&"#"&'Annual GHG Emissions - Sector'!$I45,Total_Emissions_by_A_index,0))) -> 138.0940804 | BQ45: =IF(actCaseAnnGHG_1="",NA(),INDEX(Total_Emissions_by_A_vals,MATCH('Annual GHG Emissions - Sector'!BQ$38&"#"&actCaseAnnGHG_1&"#"&'Annual GHG Emissions - Sector'!$I45,Total_Emissions_by_A_index,0))) -> 140.1076668 | BR45: =IF(actCaseAnnGHG_1="",NA(),INDEX(Total_Emissions_by_A_vals,MATCH('Annual GHG Emissions - Sector'!BR$38&"#"&actCaseAnnGHG_1&"#"&'Annual GHG Emissions - Sector'!$I45,Total_Emissions_by_A_index,0))) -> 142.2908146
I46: Total | AI46: =SUM(AI39:AI45) -> 442.3522058 | AJ46: =SUM(AJ39:AJ45) -> 439.64374 | AK46: 433.0082791 | AL46: 429.7538569 | AM46: 425.3910734 | AN46: 420.4692974 | AO46: 415.6578302 | AP46: 410.2967391 | AQ46: 405.3427565 | AR46: 402.9501788 | AS46: 408.4966865 | AT46: 406.4878732 | AU46: 405.3313315 | AV46: 397.3118916 | AW46: 397.0295229 | AX46: 392.2496603 | AY46: 389.2440556 | AZ46: 389.8614688 | BA46: 390.6792704 | BB46: 390.6049815 | BC46: 390.0204355 | BD46: 391.4280581 | BE46: 393.086817 | BF46: 394.7062443 | BG46: 396.429263 | BH46: 398.4395662 | BI46: 400.8580127 | BJ46: 403.3018312 | BK46: 405.2098154 | BL46: 407.7651704 | BM46: 410.5673389 | BN46: 413.3654276 | BO46: 416.1188465 | BP46: 418.8774561 | BQ46: 421.8685981 | BR46: 425.1325411 | BT46: 133.750051 | BU46: 338.9810821
I48: ="PATHWAYS - "&actCaseAnnGHG_2 -> PATHWAYS - SP - Cap and Tax
J49: 1990 | K49: 1991 | L49: 1992 | M49: 1993 | N49: 1994 | O49: 1995 | P49: 1996 | Q49: 1997 | R49: 1998 | S49: 1999 | T49: 2000 | U49: 2001 | V49: 2002 | W49: 2003 | X49: 2004 | Y49: 2005 | Z49: 2006 | AA49: 2007 | AB49: 2008 | AC49: 2009 | AD49: 2010 | AE49: 2011 | AF49: 2012 | AG49: 2013 | AH49: 2014 | AI49: 2015 | AJ49: 2016 | AK49: 2017 | AL49: 2018 | AM49: 2019 | AN49: 2020 | AO49: 2021 | AP49: 2022 | AQ49: 2023 | AR49: 2024 | AS49: 2025 | AT49: 2026 | AU49: 2027 | AV49: 2028 | AW49: 2029 | AX49: 2030 | AY49: 2031 | AZ49: 2032 | BA49: 2033 | BB49: 2034 | BC49: 2035 | BD49: 2036 | BE49: 2037 | BF49: 2038 | BG49: 2039 | BH49: 2040 | BI49: 2041 | BJ49: 2042 | BK49: 2043 | BL49: 2044 | BM49: 2045 | BN49: 2046 | BO49: 2047 | BP49: 2048 | BQ49: 2049 | BR49: 2050 | BT49: 2030 Gap | BU49: 2050 Gap
I50: Agriculture | AI50: =IF(actCaseAnnGHG_2="",NA(),INDEX(Total_Emissions_by_A_vals,MATCH('Annual GHG Emissions - Sector'!AI$38&"#"&actCaseAnnGHG_2&"#"&'Annual GHG Emissions - Sector'!$I50,Total_Emissions_by_A_index,0))) -> 36.33493864 | AJ50: =IF(actCaseAnnGHG_2="",NA(),INDEX(Total_Emissions_by_A_vals,MATCH('Annual GHG Emissions - Sector'!AJ$38&"#"&actCaseAnnGHG_2&"#"&'Annual GHG Emissions - Sector'!$I50,Total_Emissions_by_A_index,0))) -> 36.30482442 | AK50: =IF(actCaseAnnGHG_2="",NA(),INDEX(Total_Emissions_by_A_vals,MATCH('Annual GHG Emissions - Sector'!AK$38&"#"&actCaseAnnGHG_2&"#"&'Annual GHG Emissions - Sector'!$I50,Total_Emissions_by_A_index,0))) -> 35.93536864 | AL50: =IF(actCaseAnnGHG_2="",NA(),INDEX(Total_Emissions_by_A_vals,MATCH('Annual GHG Emissions - Sector'!AL$38&"#"&actCaseAnnGHG_2&"#"&'Annual GHG Emissions - Sector'!$I50,Total_Emissions_by_A_index,0))) -> 35.61659569 | AM50: =IF(actCaseAnnGHG_2="",NA(),INDEX(Total_Emissions_by_A_vals,MATCH('Annual GHG Emissions - Sector'!AM$38&"#"&actCaseAnnGHG_2&"#"&'Annual GHG Emissions - Sector'!$I50,Total_Emissions_by_A_index,0))) -> 35.27056635 | AN50: =IF(actCaseAnnGHG_2="",NA(),INDEX(Total_Emissions_by_A_vals,MATCH('Annual GHG Emissions - Sector'!AN$38&"#"&actCaseAnnGHG_2&"#"&'Annual GHG Emissions - Sector'!$I50,Total_Emissions_by_A_index,0))) -> 34.19605951 | AO50: =IF(actCaseAnnGHG_2="",NA(),INDEX(Total_Emissions_by_A_vals,MATCH('Annual GHG Emissions - Sector'!AO$38&"#"&actCaseAnnGHG_2&"#"&'Annual GHG Emissions - Sector'!$I50,Total_Emissions_by_A_index,0))) -> 32.90521746 | AP50: =IF(actCaseAnnGHG_2="",NA(),INDEX(Total_Emissions_by_A_vals,MATCH('Annual GHG Emissions - Sector'!AP$38&"#"&actCaseAnnGHG_2&"#"&'Annual GHG Emissions - Sector'!$I50,Total_Emissions_by_A_index,0))) -> 31.57678748 | AQ50: =IF(actCaseAnnGHG_2="",NA(),INDEX(Total_Emissions_by_A_vals,MATCH('Annual GHG Emissions - Sector'!AQ$38&"#"&actCaseAnnGHG_2&"#"&'Annual GHG Emissions - Sector'!$I50,Total_Emissions_by_A_index,0))) -> 30.05313766 | AR50: =IF(actCaseAnnGHG_2="",NA(),INDEX(Total_Emissions_by_A_vals,MATCH('Annual GHG Emissions - Sector'!AR$38&"#"&actCaseAnnGHG_2&"#"&'Annual GHG Emissions - Sector'!$I50,Total_Emissions_by_A_index,0))) -> 28.89042782 | AS50: =IF(actCaseAnnGHG_2="",NA(),INDEX(Total_Emissions_by_A_vals,MATCH('Annual GHG Emissions - Sector'!AS$38&"#"&actCaseAnnGHG_2&"#"&'Annual GHG Emissions - Sector'!$I50,Total_Emissions_by_A_index,0))) -> 27.56240039 | AT50: =IF(actCaseAnnGHG_2="",NA(),INDEX(Total_Emissions_by_A_vals,MATCH('Annual GHG Emissions - Sector'!AT$38&"#"&actCaseAnnGHG_2&"#"&'Annual GHG Emissions - Sector'!$I50,Total_Emissions_by_A_index,0))) -> 26.41344189 | AU50: =IF(actCaseAnnGHG_2="",NA(),INDEX(Total_Emissions_by_A_vals,MATCH('Annual GHG Emissions - Sector'!AU$38&"#"&actCaseAnnGHG_2&"#"&'Annual GHG Emissions - Sector'!$I50,Total_Emissions_by_A_index,0))) -> 25.10092606 | AV50: =IF(actCaseAnnGHG_2="",NA(),INDEX(Total_Emissions_by_A_vals,MATCH('Annual GHG Emissions - Sector'!AV$38&"#"&actCaseAnnGHG_2&"#"&'Annual GHG Emissions - Sector'!$I50,Total_Emissions_by_A_index,0))) -> 23.89169975 | AW50: =IF(actCaseAnnGHG_2="",NA(),INDEX(Total_Emissions_by_A_vals,MATCH('Annual GHG Emissions - Sector'!AW$38&"#"&actCaseAnnGHG_2&"#"&'Annual GHG Emissions - Sector'!$I50,Total_Emissions_by_A_index,0))) -> 22.73382269 | AX50: =IF(actCaseAnnGHG_2="",NA(),INDEX(Total_Emissions_by_A_vals,MATCH('Annual GHG Emissions - Sector'!AX$38&"#"&actCaseAnnGHG_2&"#"&'Annual GHG Emissions - Sector'!$I50,Total_Emissions_by_A_index,0))) -> 21.46242526 | AY50: =IF(actCaseAnnGHG_2="",NA(),INDEX(Total_Emissions_by_A_vals,MATCH('Annual GHG Emissions - Sector'!AY$38&"#"&actCaseAnnGHG_2&"#"&'Annual GHG Emissions - Sector'!$I50,Total_Emissions_by_A_index,0))) -> 21.36882443 | AZ50: =IF(actCaseAnnGHG_2="",NA(),INDEX(Total_Emissions_by_A_vals,MATCH('Annual GHG Emissions - Sector'!AZ$38&"#"&actCaseAnnGHG_2&"#"&'Annual GHG Emissions - Sector'!$I50,Total_Emissions_by_A_index,0))) -> 21.27670786 | BA50: =IF(actCaseAnnGHG_2="",NA(),INDEX(Total_Emissions_by_A_vals,MATCH('Annual GHG Emissions - Sector'!BA$38&"#"&actCaseAnnGHG_2&"#"&'Annual GHG Emissions - Sector'!$I50,Total_Emissions_by_A_index,0))) -> 21.17477666 | BB50: =IF(actCaseAnnGHG_2="",NA(),INDEX(Total_Emissions_by_A_vals,MATCH('Annual GHG Emissions - Sector'!BB$38&"#"&actCaseAnnGHG_2&"#"&'Annual GHG Emissions - Sector'!$I50,Total_Emissions_by_A_index,0))) -> 21.05942273 | BC50: =IF(actCaseAnnGHG_2="",NA(),INDEX(Total_Emissions_by_A_vals,MATCH('Annual GHG Emissions - Sector'!BC$38&"#"&actCaseAnnGHG_2&"#"&'Annual GHG Emissions - Sector'!$I50,Total_Emissions_by_A_index,0))) -> 20.93152636 | BD50: =IF(actCaseAnnGHG_2="",NA(),INDEX(Total_Emissions_by_A_vals,MATCH('Annual GHG Emissions - Sector'!BD$38&"#"&actCaseAnnGHG_2&"#"&'Annual GHG Emissions - Sector'!$I50,Total_Emissions_by_A_index,0))) -> 20.79576221 | BE50: =IF(actCaseAnnGHG_2="",NA(),INDEX(Total_Emissions_by_A_vals,MATCH('Annual GHG Emissions - Sector'!BE$38&"#"&actCaseAnnGHG_2&"#"&'Annual GHG Emissions - Sector'!$I50,Total_Emissions_by_A_index,0))) -> 20.64858332 | BF50: =IF(actCaseAnnGHG_2="",NA(),INDEX(Total_Emissions_by_A_vals,MATCH('Annual GHG Emissions - Sector'!BF$38&"#"&actCaseAnnGHG_2&"#"&'Annual GHG Emissions - Sector'!$I50,Total_Emissions_by_A_index,0))) -> 20.47578652 | BG50: =IF(actCaseAnnGHG_2="",NA(),INDEX(Total_Emissions_by_A_vals,MATCH('Annual GHG Emissions - Sector'!BG$38&"#"&actCaseAnnGHG_2&"#"&'Annual GHG Emissions - Sector'!$I50,Total_Emissions_by_A_index,0))) -> 20.28037998 | BH50: =IF(actCaseAnnGHG_2="",NA(),INDEX(Total_Emissions_by_A_vals,MATCH('Annual GHG Emissions - Sector'!BH$38&"#"&actCaseAnnGHG_2&"#"&'Annual GHG Emissions - Sector'!$I50,Total_Emissions_by_A_index,0))) -> 20.05384081 | BI50: =IF(actCaseAnnGHG_2="",NA(),INDEX(Total_Emissions_by_A_vals,MATCH('Annual GHG Emissions - Sector'!BI$38&"#"&actCaseAnnGHG_2&"#"&'Annual GHG Emissions - Sector'!$I50,Total_Emissions_by_A_index,0))) -> 19.79624676 | BJ50: =IF(actCaseAnnGHG_2="",NA(),INDEX(Total_Emissions_by_A_vals,MATCH('Annual GHG Emissions - Sector'!BJ$38&"#"&actCaseAnnGHG_2&"#"&'Annual GHG Emissions - Sector'!$I50,Total_Emissions_by_A_index,0))) -> 19.66507072 | BK50: =IF(actCaseAnnGHG_2="",NA(),INDEX(Total_Emissions_by_A_vals,MATCH('Annual GHG Emissions - Sector'!BK$38&"#"&actCaseAnnGHG_2&"#"&'Annual GHG Emissions - Sector'!$I50,Total_Emissions_by_A_index,0))) -> 19.54257392 | BL50: =IF(actCaseAnnGHG_2="",NA(),INDEX(Total_Emissions_by_A_vals,MATCH('Annual GHG Emissions - Sector'!BL$38&"#"&actCaseAnnGHG_2&"#"&'Annual GHG Emissions - Sector'!$I50,Total_Emissions_by_A_index,0))) -> 19.41981372 | BM50: =IF(actCaseAnnGHG_2="",NA(),INDEX(Total_Emissions_by_A_vals,MATCH('Annual GHG Emissions - Sector'!BM$38&"#"&actCaseAnnGHG_2&"#"&'Annual GHG Emissions - Sector'!$I50,Total_Emissions_by_A_index,0))) -> 19.30445129 | BN50: =IF(actCaseAnnGHG_2="",NA(),INDEX(Total_Emissions_by_A_vals,MATCH('Annual GHG Emissions - Sector'!BN$38&"#"&actCaseAnnGHG_2&"#"&'Annual GHG Emissions - Sector'!$I50,Total_Emissions_by_A_index,0))) -> 19.19061865 | BO50: =IF(actCaseAnnGHG_2="",NA(),INDEX(Total_Emissions_by_A_vals,MATCH('Annual GHG Emissions - Sector'!BO$38&"#"&actCaseAnnGHG_2&"#"&'Annual GHG Emissions - Sector'!$I50,Total_Emissions_by_A_index,0))) -> 19.07695963 | BP50: =IF(actCaseAnnGHG_2="",NA(),INDEX(Total_Emissions_by_A_vals,MATCH('Annual GHG Emissions - Sector'!BP$38&"#"&actCaseAnnGHG_2&"#"&'Annual GHG Emissions - Sector'!$I50,Total_Emissions_by_A_index,0))) -> 18.96236344 | BQ50: =IF(actCaseAnnGHG_2="",NA(),INDEX(Total_Emissions_by_A_vals,MATCH('Annual GHG Emissions - Sector'!BQ$38&"#"&actCaseAnnGHG_2&"#"&'Annual GHG Emissions - Sector'!$I50,Total_Emissions_by_A_index,0))) -> 18.85222978 | BR50: =IF(actCaseAnnGHG_2="",NA(),INDEX(Total_Emissions_by_A_vals,MATCH('Annual GHG Emissions - Sector'!BR$38&"#"&actCaseAnnGHG_2&"#"&'Annual GHG Emissions - Sector'!$I50,Total_Emissions_by_A_index,0))) -> 18.75879411
I51: Residential and Commercial | AI51: =IF(actCaseAnnGHG_2="",NA(),INDEX(Total_Emissions_by_A_vals,MATCH('Annual GHG Emissions - Sector'!AI$38&"#"&actCaseAnnGHG_2&"#"&'Annual GHG Emissions - Sector'!$I51,Total_Emissions_by_A_index,0))) -> 40.56762627 | AJ51: =IF(actCaseAnnGHG_2="",NA(),INDEX(Total_Emissions_by_A_vals,MATCH('Annual GHG Emissions - Sector'!AJ$38&"#"&actCaseAnnGHG_2&"#"&'Annual GHG Emissions - Sector'!$I51,Total_Emissions_by_A_index,0))) -> 40.47857876 | AK51: =IF(actCaseAnnGHG_2="",NA(),INDEX(Total_Emissions_by_A_vals,MATCH('Annual GHG Emissions - Sector'!AK$38&"#"&actCaseAnnGHG_2&"#"&'Annual GHG Emissions - Sector'!$I51,Total_Emissions_by_A_index,0))) -> 40.29622621 | AL51: =IF(actCaseAnnGHG_2="",NA(),INDEX(Total_Emissions_by_A_vals,MATCH('Annual GHG Emissions - Sector'!AL$38&"#"&actCaseAnnGHG_2&"#"&'Annual GHG Emissions - Sector'!$I51,Total_Emissions_by_A_index,0))) -> 39.97352177 | AM51: =IF(actCaseAnnGHG_2="",NA(),INDEX(Total_Emissions_by_A_vals,MATCH('Annual GHG Emissions - Sector'!AM$38&"#"&actCaseAnnGHG_2&"#"&'Annual GHG Emissions - Sector'!$I51,Total_Emissions_by_A_index,0))) -> 39.6067879 | AN51: =IF(actCaseAnnGHG_2="",NA(),INDEX(Total_Emissions_by_A_vals,MATCH('Annual GHG Emissions - Sector'!AN$38&"#"&actCaseAnnGHG_2&"#"&'Annual GHG Emissions - Sector'!$I51,Total_Emissions_by_A_index,0))) -> 39.13549755 | AO51: =IF(actCaseAnnGHG_2="",NA(),INDEX(Total_Emissions_by_A_vals,MATCH('Annual GHG Emissions - Sector'!AO$38&"#"&actCaseAnnGHG_2&"#"&'Annual GHG Emissions - Sector'!$I51,Total_Emissions_by_A_index,0))) -> 38.73982809 | AP51: =IF(actCaseAnnGHG_2="",NA(),INDEX(Total_Emissions_by_A_vals,MATCH('Annual GHG Emissions - Sector'!AP$38&"#"&actCaseAnnGHG_2&"#"&'Annual GHG Emissions - Sector'!$I51,Total_Emissions_by_A_index,0))) -> 38.12369648 | AQ51: =IF(actCaseAnnGHG_2="",NA(),INDEX(Total_Emissions_by_A_vals,MATCH('Annual GHG Emissions - Sector'!AQ$38&"#"&actCaseAnnGHG_2&"#"&'Annual GHG Emissions - Sector'!$I51,Total_Emissions_by_A_index,0))) -> 37.11043427 | AR51: =IF(actCaseAnnGHG_2="",NA(),INDEX(Total_Emissions_by_A_vals,MATCH('Annual GHG Emissions - Sector'!AR$38&"#"&actCaseAnnGHG_2&"#"&'Annual GHG Emissions - Sector'!$I51,Total_Emissions_by_A_index,0))) -> 35.89417826 | AS51: =IF(actCaseAnnGHG_2="",NA(),INDEX(Total_Emissions_by_A_vals,MATCH('Annual GHG Emissions - Sector'!AS$38&"#"&actCaseAnnGHG_2&"#"&'Annual GHG Emissions - Sector'!$I51,Total_Emissions_by_A_index,0))) -> 34.23549278 | AT51: =IF(actCaseAnnGHG_2="",NA(),INDEX(Total_Emissions_by_A_vals,MATCH('Annual GHG Emissions - Sector'!AT$38&"#"&actCaseAnnGHG_2&"#"&'Annual GHG Emissions - Sector'!$I51,Total_Emissions_by_A_index,0))) -> 32.57873885 | AU51: =IF(actCaseAnnGHG_2="",NA(),INDEX(Total_Emissions_by_A_vals,MATCH('Annual GHG Emissions - Sector'!AU$38&"#"&actCaseAnnGHG_2&"#"&'Annual GHG Emissions - Sector'!$I51,Total_Emissions_by_A_index,0))) -> 30.6505784 | AV51: =IF(actCaseAnnGHG_2="",NA(),INDEX(Total_Emissions_by_A_vals,MATCH('Annual GHG Emissions - Sector'!AV$38&"#"&actCaseAnnGHG_2&"#"&'Annual GHG Emissions - Sector'!$I51,Total_Emissions_by_A_index,0))) -> 28.79671198 | AW51: =IF(actCaseAnnGHG_2="",NA(),INDEX(Total_Emissions_by_A_vals,MATCH('Annual GHG Emissions - Sector'!AW$38&"#"&actCaseAnnGHG_2&"#"&'Annual GHG Emissions - Sector'!$I51,Total_Emissions_by_A_index,0))) -> 27.01982411 | AX51: =IF(actCaseAnnGHG_2="",NA(),INDEX(Total_Emissions_by_A_vals,MATCH('Annual GHG Emissions - Sector'!AX$38&"#"&actCaseAnnGHG_2&"#"&'Annual GHG Emissions - Sector'!$I51,Total_Emissions_by_A_index,0))) -> 25.09531272 | AY51: =IF(actCaseAnnGHG_2="",NA(),INDEX(Total_Emissions_by_A_vals,MATCH('Annual GHG Emissions - Sector'!AY$38&"#"&actCaseAnnGHG_2&"#"&'Annual GHG Emissions - Sector'!$I51,Total_Emissions_by_A_index,0))) -> 23.90438415 | AZ51: =IF(actCaseAnnGHG_2="",NA(),INDEX(Total_Emissions_by_A_vals,MATCH('Annual GHG Emissions - Sector'!AZ$38&"#"&actCaseAnnGHG_2&"#"&'Annual GHG Emissions - Sector'!$I51,Total_Emissions_by_A_index,0))) -> 22.74323896 | BA51: =IF(actCaseAnnGHG_2="",NA(),INDEX(Total_Emissions_by_A_vals,MATCH('Annual GHG Emissions - Sector'!BA$38&"#"&actCaseAnnGHG_2&"#"&'Annual GHG Emissions - Sector'!$I51,Total_Emissions_by_A_index,0))) -> 21.61505466 | BB51: =IF(actCaseAnnGHG_2="",NA(),INDEX(Total_Emissions_by_A_vals,MATCH('Annual GHG Emissions - Sector'!BB$38&"#"&actCaseAnnGHG_2&"#"&'Annual GHG Emissions - Sector'!$I51,Total_Emissions_by_A_index,0))) -> 20.52543345 | BC51: =IF(actCaseAnnGHG_2="",NA(),INDEX(Total_Emissions_by_A_vals,MATCH('Annual GHG Emissions - Sector'!BC$38&"#"&actCaseAnnGHG_2&"#"&'Annual GHG Emissions - Sector'!$I51,Total_Emissions_by_A_index,0))) -> 19.50304157 | BD51: =IF(actCaseAnnGHG_2="",NA(),INDEX(Total_Emissions_by_A_vals,MATCH('Annual GHG Emissions - Sector'!BD$38&"#"&actCaseAnnGHG_2&"#"&'Annual GHG Emissions - Sector'!$I51,Total_Emissions_by_A_index,0))) -> 18.52589776 | BE51: =IF(actCaseAnnGHG_2="",NA(),INDEX(Total_Emissions_by_A_vals,MATCH('Annual GHG Emissions - Sector'!BE$38&"#"&actCaseAnnGHG_2&"#"&'Annual GHG Emissions - Sector'!$I51,Total_Emissions_by_A_index,0))) -> 17.63586643 | BF51: =IF(actCaseAnnGHG_2="",NA(),INDEX(Total_Emissions_by_A_vals,MATCH('Annual GHG Emissions - Sector'!BF$38&"#"&actCaseAnnGHG_2&"#"&'Annual GHG Emissions - Sector'!$I51,Total_Emissions_by_A_index,0))) -> 16.81984674 | BG51: =IF(actCaseAnnGHG_2="",NA(),INDEX(Total_Emissions_by_A_vals,MATCH('Annual GHG Emissions - Sector'!BG$38&"#"&actCaseAnnGHG_2&"#"&'Annual GHG Emissions - Sector'!$I51,Total_Emissions_by_A_index,0))) -> 16.08312079 | BH51: =IF(actCaseAnnGHG_2="",NA(),INDEX(Total_Emissions_by_A_vals,MATCH('Annual GHG Emissions - Sector'!BH$38&"#"&actCaseAnnGHG_2&"#"&'Annual GHG Emissions - Sector'!$I51,Total_Emissions_by_A_index,0))) -> 15.42710551 | BI51: =IF(actCaseAnnGHG_2="",NA(),INDEX(Total_Emissions_by_A_vals,MATCH('Annual GHG Emissions - Sector'!BI$38&"#"&actCaseAnnGHG_2&"#"&'Annual GHG Emissions - Sector'!$I51,Total_Emissions_by_A_index,0))) -> 14.85495034 | BJ51: =IF(actCaseAnnGHG_2="",NA(),INDEX(Total_Emissions_by_A_vals,MATCH('Annual GHG Emissions - Sector'!BJ$38&"#"&actCaseAnnGHG_2&"#"&'Annual GHG Emissions - Sector'!$I51,Total_Emissions_by_A_index,0))) -> 14.35196491 | BK51: =IF(actCaseAnnGHG_2="",NA(),INDEX(Total_Emissions_by_A_vals,MATCH('Annual GHG Emissions - Sector'!BK$38&"#"&actCaseAnnGHG_2&"#"&'Annual GHG Emissions - Sector'!$I51,Total_Emissions_by_A_index,0))) -> 13.92187669 | BL51: =IF(actCaseAnnGHG_2="",NA(),INDEX(Total_Emissions_by_A_vals,MATCH('Annual GHG Emissions - Sector'!BL$38&"#"&actCaseAnnGHG_2&"#"&'Annual GHG Emissions - Sector'!$I51,Total_Emissions_by_A_index,0))) -> 13.54739951 | BM51: =IF(actCaseAnnGHG_2="",NA(),INDEX(Total_Emissions_by_A_vals,MATCH('Annual GHG Emissions - Sector'!BM$38&"#"&actCaseAnnGHG_2&"#"&'Annual GHG Emissions - Sector'!$I51,Total_Emissions_by_A_index,0))) -> 13.23578553 | BN51: =IF(actCaseAnnGHG_2="",NA(),INDEX(Total_Emissions_by_A_vals,MATCH('Annual GHG Emissions - Sector'!BN$38&"#"&actCaseAnnGHG_2&"#"&'Annual GHG Emissions - Sector'!$I51,Total_Emissions_by_A_index,0))) -> 12.96341917 | BO51: =IF(actCaseAnnGHG_2="",NA(),INDEX(Total_Emissions_by_A_vals,MATCH('Annual GHG Emissions - Sector'!BO$38&"#"&actCaseAnnGHG_2&"#"&'Annual GHG Emissions - Sector'!$I51,Total_Emissions_by_A_index,0))) -> 12.72892248 | BP51: =IF(actCaseAnnGHG_2="",NA(),INDEX(Total_Emissions_by_A_vals,MATCH('Annual GHG Emissions - Sector'!BP$38&"#"&actCaseAnnGHG_2&"#"&'Annual GHG Emissions - Sector'!$I51,Total_Emissions_by_A_index,0))) -> 12.54069167 | BQ51: =IF(actCaseAnnGHG_2="",NA(),INDEX(Total_Emissions_by_A_vals,MATCH('Annual GHG Emissions - Sector'!BQ$38&"#"&actCaseAnnGHG_2&"#"&'Annual GHG Emissions - Sector'!$I51,Total_Emissions_by_A_index,0))) -> 12.37244514 | BR51: =IF(actCaseAnnGHG_2="",NA(),INDEX(Total_Emissions_by_A_vals,MATCH('Annual GHG Emissions - Sector'!BR$38&"#"&actCaseAnnGHG_2&"#"&'Annual GHG Emissions - Sector'!$I51,Total_Emissions_by_A_index,0))) -> 12.22851176
I52: Electric Power | AI52: =IF(actCaseAnnGHG_2="",NA(),INDEX(Total_Emissions_by_A_vals,MATCH('Annual GHG Emissions - Sector'!AI$38&"#"&actCaseAnnGHG_2&"#"&'Annual GHG Emissions - Sector'!$I52,Total_Emissions_by_A_index,0))) -> 75.18203144 | AJ52: =IF(actCaseAnnGHG_2="",NA(),INDEX(Total_Emissions_by_A_vals,MATCH('Annual GHG Emissions - Sector'!AJ$38&"#"&actCaseAnnGHG_2&"#"&'Annual GHG Emissions - Sector'!$I52,Total_Emissions_by_A_index,0))) -> 72.89364051 | AK52: =IF(actCaseAnnGHG_2="",NA(),INDEX(Total_Emissions_by_A_vals,MATCH('Annual GHG Emissions - Sector'!AK$38&"#"&actCaseAnnGHG_2&"#"&'Annual GHG Emissions - Sector'!$I52,Total_Emissions_by_A_index,0))) -> 68.01317565 | AL52: =IF(actCaseAnnGHG_2="",NA(),INDEX(Total_Emissions_by_A_vals,MATCH('Annual GHG Emissions - Sector'!AL$38&"#"&actCaseAnnGHG_2&"#"&'Annual GHG Emissions - Sector'!$I52,Total_Emissions_by_A_index,0))) -> 67.69917853 | AM52: =IF(actCaseAnnGHG_2="",NA(),INDEX(Total_Emissions_by_A_vals,MATCH('Annual GHG Emissions - Sector'!AM$38&"#"&actCaseAnnGHG_2&"#"&'Annual GHG Emissions - Sector'!$I52,Total_Emissions_by_A_index,0))) -> 66.95707912 | AN52: =IF(actCaseAnnGHG_2="",NA(),INDEX(Total_Emissions_by_A_vals,MATCH('Annual GHG Emissions - Sector'!AN$38&"#"&actCaseAnnGHG_2&"#"&'Annual GHG Emissions - Sector'!$I52,Total_Emissions_by_A_index,0))) -> 65.41936606 | AO52: =IF(actCaseAnnGHG_2="",NA(),INDEX(Total_Emissions_by_A_vals,MATCH('Annual GHG Emissions - Sector'!AO$38&"#"&actCaseAnnGHG_2&"#"&'Annual GHG Emissions - Sector'!$I52,Total_Emissions_by_A_index,0))) -> 63.03457879 | AP52: =IF(actCaseAnnGHG_2="",NA(),INDEX(Total_Emissions_by_A_vals,MATCH('Annual GHG Emissions - Sector'!AP$38&"#"&actCaseAnnGHG_2&"#"&'Annual GHG Emissions - Sector'!$I52,Total_Emissions_by_A_index,0))) -> 59.8435069 | AQ52: =IF(actCaseAnnGHG_2="",NA(),INDEX(Total_Emissions_by_A_vals,MATCH('Annual GHG Emissions - Sector'!AQ$38&"#"&actCaseAnnGHG_2&"#"&'Annual GHG Emissions - Sector'!$I52,Total_Emissions_by_A_index,0))) -> 56.97620067 | AR52: =IF(actCaseAnnGHG_2="",NA(),INDEX(Total_Emissions_by_A_vals,MATCH('Annual GHG Emissions - Sector'!AR$38&"#"&actCaseAnnGHG_2&"#"&'Annual GHG Emissions - Sector'!$I52,Total_Emissions_by_A_index,0))) -> 54.39658704 | AS52: =IF(actCaseAnnGHG_2="",NA(),INDEX(Total_Emissions_by_A_vals,MATCH('Annual GHG Emissions - Sector'!AS$38&"#"&actCaseAnnGHG_2&"#"&'Annual GHG Emissions - Sector'!$I52,Total_Emissions_by_A_index,0))) -> 59.28899646 | AT52: =IF(actCaseAnnGHG_2="",NA(),INDEX(Total_Emissions_by_A_vals,MATCH('Annual GHG Emissions - Sector'!AT$38&"#"&actCaseAnnGHG_2&"#"&'Annual GHG Emissions - Sector'!$I52,Total_Emissions_by_A_index,0))) -> 56.99259182 | AU52: =IF(actCaseAnnGHG_2="",NA(),INDEX(Total_Emissions_by_A_vals,MATCH('Annual GHG Emissions - Sector'!AU$38&"#"&actCaseAnnGHG_2&"#"&'Annual GHG Emissions - Sector'!$I52,Total_Emissions_by_A_index,0))) -> 55.31966844 | AV52: =IF(actCaseAnnGHG_2="",NA(),INDEX(Total_Emissions_by_A_vals,MATCH('Annual GHG Emissions - Sector'!AV$38&"#"&actCaseAnnGHG_2&"#"&'Annual GHG Emissions - Sector'!$I52,Total_Emissions_by_A_index,0))) -> 46.50094024 | AW52: =IF(actCaseAnnGHG_2="",NA(),INDEX(Total_Emissions_by_A_vals,MATCH('Annual GHG Emissions - Sector'!AW$38&"#"&actCaseAnnGHG_2&"#"&'Annual GHG Emissions - Sector'!$I52,Total_Emissions_by_A_index,0))) -> 45.2414812 | AX52: =IF(actCaseAnnGHG_2="",NA(),INDEX(Total_Emissions_by_A_vals,MATCH('Annual GHG Emissions - Sector'!AX$38&"#"&actCaseAnnGHG_2&"#"&'Annual GHG Emissions - Sector'!$I52,Total_Emissions_by_A_index,0))) -> 42.22957813 | AY52: =IF(actCaseAnnGHG_2="",NA(),INDEX(Total_Emissions_by_A_vals,MATCH('Annual GHG Emissions - Sector'!AY$38&"#"&actCaseAnnGHG_2&"#"&'Annual GHG Emissions - Sector'!$I52,Total_Emissions_by_A_index,0))) -> 40.50361254 | AZ52: =IF(actCaseAnnGHG_2="",NA(),INDEX(Total_Emissions_by_A_vals,MATCH('Annual GHG Emissions - Sector'!AZ$38&"#"&actCaseAnnGHG_2&"#"&'Annual GHG Emissions - Sector'!$I52,Total_Emissions_by_A_index,0))) -> 40.14941544 | BA52: =IF(actCaseAnnGHG_2="",NA(),INDEX(Total_Emissions_by_A_vals,MATCH('Annual GHG Emissions - Sector'!BA$38&"#"&actCaseAnnGHG_2&"#"&'Annual GHG Emissions - Sector'!$I52,Total_Emissions_by_A_index,0))) -> 39.86716455 | BB52: =IF(actCaseAnnGHG_2="",NA(),INDEX(Total_Emissions_by_A_vals,MATCH('Annual GHG Emissions - Sector'!BB$38&"#"&actCaseAnnGHG_2&"#"&'Annual GHG Emissions - Sector'!$I52,Total_Emissions_by_A_index,0))) -> 38.47543685 | BC52: =IF(actCaseAnnGHG_2="",NA(),INDEX(Total_Emissions_by_A_vals,MATCH('Annual GHG Emissions - Sector'!BC$38&"#"&actCaseAnnGHG_2&"#"&'Annual GHG Emissions - Sector'!$I52,Total_Emissions_by_A_index,0))) -> 38.14481827 | BD52: =IF(actCaseAnnGHG_2="",NA(),INDEX(Total_Emissions_by_A_vals,MATCH('Annual GHG Emissions - Sector'!BD$38&"#"&actCaseAnnGHG_2&"#"&'Annual GHG Emissions - Sector'!$I52,Total_Emissions_by_A_index,0))) -> 37.78977602 | BE52: =IF(actCaseAnnGHG_2="",NA(),INDEX(Total_Emissions_by_A_vals,MATCH('Annual GHG Emissions - Sector'!BE$38&"#"&actCaseAnnGHG_2&"#"&'Annual GHG Emissions - Sector'!$I52,Total_Emissions_by_A_index,0))) -> 37.3646339 | BF52: =IF(actCaseAnnGHG_2="",NA(),INDEX(Total_Emissions_by_A_vals,MATCH('Annual GHG Emissions - Sector'!BF$38&"#"&actCaseAnnGHG_2&"#"&'Annual GHG Emissions - Sector'!$I52,Total_Emissions_by_A_index,0))) -> 36.99363591 | BG52: =IF(actCaseAnnGHG_2="",NA(),INDEX(Total_Emissions_by_A_vals,MATCH('Annual GHG Emissions - Sector'!BG$38&"#"&actCaseAnnGHG_2&"#"&'Annual GHG Emissions - Sector'!$I52,Total_Emissions_by_A_index,0))) -> 36.53743184 | BH52: =IF(actCaseAnnGHG_2="",NA(),INDEX(Total_Emissions_by_A_vals,MATCH('Annual GHG Emissions - Sector'!BH$38&"#"&actCaseAnnGHG_2&"#"&'Annual GHG Emissions - Sector'!$I52,Total_Emissions_by_A_index,0))) -> 36.1227982 | BI52: =IF(actCaseAnnGHG_2="",NA(),INDEX(Total_Emissions_by_A_vals,MATCH('Annual GHG Emissions - Sector'!BI$38&"#"&actCaseAnnGHG_2&"#"&'Annual GHG Emissions - Sector'!$I52,Total_Emissions_by_A_index,0))) -> 34.94426921 | BJ52: =IF(actCaseAnnGHG_2="",NA(),INDEX(Total_Emissions_by_A_vals,MATCH('Annual GHG Emissions - Sector'!BJ$38&"#"&actCaseAnnGHG_2&"#"&'Annual GHG Emissions - Sector'!$I52,Total_Emissions_by_A_index,0))) -> 34.17230254 | BK52: =IF(actCaseAnnGHG_2="",NA(),INDEX(Total_Emissions_by_A_vals,MATCH('Annual GHG Emissions - Sector'!BK$38&"#"&actCaseAnnGHG_2&"#"&'Annual GHG Emissions - Sector'!$I52,Total_Emissions_by_A_index,0))) -> 33.36643076 | BL52: =IF(actCaseAnnGHG_2="",NA(),INDEX(Total_Emissions_by_A_vals,MATCH('Annual GHG Emissions - Sector'!BL$38&"#"&actCaseAnnGHG_2&"#"&'Annual GHG Emissions - Sector'!$I52,Total_Emissions_by_A_index,0))) -> 32.53878446 | BM52: =IF(actCaseAnnGHG_2="",NA(),INDEX(Total_Emissions_by_A_vals,MATCH('Annual GHG Emissions - Sector'!BM$38&"#"&actCaseAnnGHG_2&"#"&'Annual GHG Emissions - Sector'!$I52,Total_Emissions_by_A_index,0))) -> 31.68938831 | BN52: =IF(actCaseAnnGHG_2="",NA(),INDEX(Total_Emissions_by_A_vals,MATCH('Annual GHG Emissions - Sector'!BN$38&"#"&actCaseAnnGHG_2&"#"&'Annual GHG Emissions - Sector'!$I52,Total_Emissions_by_A_index,0))) -> 30.82581326 | BO52: =IF(actCaseAnnGHG_2="",NA(),INDEX(Total_Emissions_by_A_vals,MATCH('Annual GHG Emissions - Sector'!BO$38&"#"&actCaseAnnGHG_2&"#"&'Annual GHG Emissions - Sector'!$I52,Total_Emissions_by_A_index,0))) -> 29.96619807 | BP52: =IF(actCaseAnnGHG_2="",NA(),INDEX(Total_Emissions_by_A_vals,MATCH('Annual GHG Emissions - Sector'!BP$38&"#"&actCaseAnnGHG_2&"#"&'Annual GHG Emissions - Sector'!$I52,Total_Emissions_by_A_index,0))) -> 29.12333418 | BQ52: =IF(actCaseAnnGHG_2="",NA(),INDEX(Total_Emissions_by_A_vals,MATCH('Annual GHG Emissions - Sector'!BQ$38&"#"&actCaseAnnGHG_2&"#"&'Annual GHG Emissions - Sector'!$I52,Total_Emissions_by_A_index,0))) -> 28.29201534 | BR52: =IF(actCaseAnnGHG_2="",NA(),INDEX(Total_Emissions_by_A_vals,MATCH('Annual GHG Emissions - Sector'!BR$38&"#"&actCaseAnnGHG_2&"#"&'Annual GHG Emissions - Sector'!$I52,Total_Emissions_by_A_index,0))) -> 27.51939006
I53: High GWP | AI53: =IF(actCaseAnnGHG_2="",NA(),INDEX(Total_Emissions_by_A_vals,MATCH('Annual GHG Emissions - Sector'!AI$38&"#"&actCaseAnnGHG_2&"#"&'Annual GHG Emissions - Sector'!$I53,Total_Emissions_by_A_index,0))) -> 18.81184626 | AJ53: =IF(actCaseAnnGHG_2="",NA(),INDEX(Total_Emissions_by_A_vals,MATCH('Annual GHG Emissions - Sector'!AJ$38&"#"&actCaseAnnGHG_2&"#"&'Annual GHG Emissions - Sector'!$I53,Total_Emissions_by_A_index,0))) -> 19.23798571 | AK53: =IF(actCaseAnnGHG_2="",NA(),INDEX(Total_Emissions_by_A_vals,MATCH('Annual GHG Emissions - Sector'!AK$38&"#"&actCaseAnnGHG_2&"#"&'Annual GHG Emissions - Sector'!$I53,Total_Emissions_by_A_index,0))) -> 19.26273119 | AL53: =IF(actCaseAnnGHG_2="",NA(),INDEX(Total_Emissions_by_A_vals,MATCH('Annual GHG Emissions - Sector'!AL$38&"#"&actCaseAnnGHG_2&"#"&'Annual GHG Emissions - Sector'!$I53,Total_Emissions_by_A_index,0))) -> 18.95410728 | AM53: =IF(actCaseAnnGHG_2="",NA(),INDEX(Total_Emissions_by_A_vals,MATCH('Annual GHG Emissions - Sector'!AM$38&"#"&actCaseAnnGHG_2&"#"&'Annual GHG Emissions - Sector'!$I53,Total_Emissions_by_A_index,0))) -> 18.81240865 | AN53: =IF(actCaseAnnGHG_2="",NA(),INDEX(Total_Emissions_by_A_vals,MATCH('Annual GHG Emissions - Sector'!AN$38&"#"&actCaseAnnGHG_2&"#"&'Annual GHG Emissions - Sector'!$I53,Total_Emissions_by_A_index,0))) -> 18.48610798 | AO53: =IF(actCaseAnnGHG_2="",NA(),INDEX(Total_Emissions_by_A_vals,MATCH('Annual GHG Emissions - Sector'!AO$38&"#"&actCaseAnnGHG_2&"#"&'Annual GHG Emissions - Sector'!$I53,Total_Emissions_by_A_index,0))) -> 18.08612601 | AP53: =IF(actCaseAnnGHG_2="",NA(),INDEX(Total_Emissions_by_A_vals,MATCH('Annual GHG Emissions - Sector'!AP$38&"#"&actCaseAnnGHG_2&"#"&'Annual GHG Emissions - Sector'!$I53,Total_Emissions_by_A_index,0))) -> 17.62394705 | AQ53: =IF(actCaseAnnGHG_2="",NA(),INDEX(Total_Emissions_by_A_vals,MATCH('Annual GHG Emissions - Sector'!AQ$38&"#"&actCaseAnnGHG_2&"#"&'Annual GHG Emissions - Sector'!$I53,Total_Emissions_by_A_index,0))) -> 17.09660621 | AR53: =IF(actCaseAnnGHG_2="",NA(),INDEX(Total_Emissions_by_A_vals,MATCH('Annual GHG Emissions - Sector'!AR$38&"#"&actCaseAnnGHG_2&"#"&'Annual GHG Emissions - Sector'!$I53,Total_Emissions_by_A_index,0))) -> 16.50274418 | AS53: =IF(actCaseAnnGHG_2="",NA(),INDEX(Total_Emissions_by_A_vals,MATCH('Annual GHG Emissions - Sector'!AS$38&"#"&actCaseAnnGHG_2&"#"&'Annual GHG Emissions - Sector'!$I53,Total_Emissions_by_A_index,0))) -> 15.81164007 | AT53: =IF(actCaseAnnGHG_2="",NA(),INDEX(Total_Emissions_by_A_vals,MATCH('Annual GHG Emissions - Sector'!AT$38&"#"&actCaseAnnGHG_2&"#"&'Annual GHG Emissions - Sector'!$I53,Total_Emissions_by_A_index,0))) -> 14.91638004 | AU53: =IF(actCaseAnnGHG_2="",NA(),INDEX(Total_Emissions_by_A_vals,MATCH('Annual GHG Emissions - Sector'!AU$38&"#"&actCaseAnnGHG_2&"#"&'Annual GHG Emissions - Sector'!$I53,Total_Emissions_by_A_index,0))) -> 13.97794102 | AV53: =IF(actCaseAnnGHG_2="",NA(),INDEX(Total_Emissions_by_A_vals,MATCH('Annual GHG Emissions - Sector'!AV$38&"#"&actCaseAnnGHG_2&"#"&'Annual GHG Emissions - Sector'!$I53,Total_Emissions_by_A_index,0))) -> 12.99619359 | AW53: =IF(actCaseAnnGHG_2="",NA(),INDEX(Total_Emissions_by_A_vals,MATCH('Annual GHG Emissions - Sector'!AW$38&"#"&actCaseAnnGHG_2&"#"&'Annual GHG Emissions - Sector'!$I53,Total_Emissions_by_A_index,0))) -> 11.96996331 | AX53: =IF(actCaseAnnGHG_2="",NA(),INDEX(Total_Emissions_by_A_vals,MATCH('Annual GHG Emissions - Sector'!AX$38&"#"&actCaseAnnGHG_2&"#"&'Annual GHG Emissions - Sector'!$I53,Total_Emissions_by_A_index,0))) -> 10.65532773 | AY53: =IF(actCaseAnnGHG_2="",NA(),INDEX(Total_Emissions_by_A_vals,MATCH('Annual GHG Emissions - Sector'!AY$38&"#"&actCaseAnnGHG_2&"#"&'Annual GHG Emissions - Sector'!$I53,Total_Emissions_by_A_index,0))) -> 10.44930551 | AZ53: =IF(actCaseAnnGHG_2="",NA(),INDEX(Total_Emissions_by_A_vals,MATCH('Annual GHG Emissions - Sector'!AZ$38&"#"&actCaseAnnGHG_2&"#"&'Annual GHG Emissions - Sector'!$I53,Total_Emissions_by_A_index,0))) -> 10.24147935 | BA53: =IF(actCaseAnnGHG_2="",NA(),INDEX(Total_Emissions_by_A_vals,MATCH('Annual GHG Emissions - Sector'!BA$38&"#"&actCaseAnnGHG_2&"#"&'Annual GHG Emissions - Sector'!$I53,Total_Emissions_by_A_index,0))) -> 10.03234943 | BB53: =IF(actCaseAnnGHG_2="",NA(),INDEX(Total_Emissions_by_A_vals,MATCH('Annual GHG Emissions - Sector'!BB$38&"#"&actCaseAnnGHG_2&"#"&'Annual GHG Emissions - Sector'!$I53,Total_Emissions_by_A_index,0))) -> 9.82226611 | BC53: =IF(actCaseAnnGHG_2="",NA(),INDEX(Total_Emissions_by_A_vals,MATCH('Annual GHG Emissions - Sector'!BC$38&"#"&actCaseAnnGHG_2&"#"&'Annual GHG Emissions - Sector'!$I53,Total_Emissions_by_A_index,0))) -> 9.610868581 | BD53: =IF(actCaseAnnGHG_2="",NA(),INDEX(Total_Emissions_by_A_vals,MATCH('Annual GHG Emissions - Sector'!BD$38&"#"&actCaseAnnGHG_2&"#"&'Annual GHG Emissions - Sector'!$I53,Total_Emissions_by_A_index,0))) -> 9.409587189 | BE53: =IF(actCaseAnnGHG_2="",NA(),INDEX(Total_Emissions_by_A_vals,MATCH('Annual GHG Emissions - Sector'!BE$38&"#"&actCaseAnnGHG_2&"#"&'Annual GHG Emissions - Sector'!$I53,Total_Emissions_by_A_index,0))) -> 9.206312344 | BF53: =IF(actCaseAnnGHG_2="",NA(),INDEX(Total_Emissions_by_A_vals,MATCH('Annual GHG Emissions - Sector'!BF$38&"#"&actCaseAnnGHG_2&"#"&'Annual GHG Emissions - Sector'!$I53,Total_Emissions_by_A_index,0))) -> 9.001098185 | BG53: =IF(actCaseAnnGHG_2="",NA(),INDEX(Total_Emissions_by_A_vals,MATCH('Annual GHG Emissions - Sector'!BG$38&"#"&actCaseAnnGHG_2&"#"&'Annual GHG Emissions - Sector'!$I53,Total_Emissions_by_A_index,0))) -> 8.793941083 | BH53: =IF(actCaseAnnGHG_2="",NA(),INDEX(Total_Emissions_by_A_vals,MATCH('Annual GHG Emissions - Sector'!BH$38&"#"&actCaseAnnGHG_2&"#"&'Annual GHG Emissions - Sector'!$I53,Total_Emissions_by_A_index,0))) -> 8.584840114 | BI53: =IF(actCaseAnnGHG_2="",NA(),INDEX(Total_Emissions_by_A_vals,MATCH('Annual GHG Emissions - Sector'!BI$38&"#"&actCaseAnnGHG_2&"#"&'Annual GHG Emissions - Sector'!$I53,Total_Emissions_by_A_index,0))) -> 8.36677548 | BJ53: =IF(actCaseAnnGHG_2="",NA(),INDEX(Total_Emissions_by_A_vals,MATCH('Annual GHG Emissions - Sector'!BJ$38&"#"&actCaseAnnGHG_2&"#"&'Annual GHG Emissions - Sector'!$I53,Total_Emissions_by_A_index,0))) -> 8.147327401 | BK53: =IF(actCaseAnnGHG_2="",NA(),INDEX(Total_Emissions_by_A_vals,MATCH('Annual GHG Emissions - Sector'!BK$38&"#"&actCaseAnnGHG_2&"#"&'Annual GHG Emissions - Sector'!$I53,Total_Emissions_by_A_index,0))) -> 7.926444672 | BL53: =IF(actCaseAnnGHG_2="",NA(),INDEX(Total_Emissions_by_A_vals,MATCH('Annual GHG Emissions - Sector'!BL$38&"#"&actCaseAnnGHG_2&"#"&'Annual GHG Emissions - Sector'!$I53,Total_Emissions_by_A_index,0))) -> 7.704102571 | BM53: =IF(actCaseAnnGHG_2="",NA(),INDEX(Total_Emissions_by_A_vals,MATCH('Annual GHG Emissions - Sector'!BM$38&"#"&actCaseAnnGHG_2&"#"&'Annual GHG Emissions - Sector'!$I53,Total_Emissions_by_A_index,0))) -> 7.480260766 | BN53: =IF(actCaseAnnGHG_2="",NA(),INDEX(Total_Emissions_by_A_vals,MATCH('Annual GHG Emissions - Sector'!BN$38&"#"&actCaseAnnGHG_2&"#"&'Annual GHG Emissions - Sector'!$I53,Total_Emissions_by_A_index,0))) -> 7.252978823 | BO53: =IF(actCaseAnnGHG_2="",NA(),INDEX(Total_Emissions_by_A_vals,MATCH('Annual GHG Emissions - Sector'!BO$38&"#"&actCaseAnnGHG_2&"#"&'Annual GHG Emissions - Sector'!$I53,Total_Emissions_by_A_index,0))) -> 7.024283154 | BP53: =IF(actCaseAnnGHG_2="",NA(),INDEX(Total_Emissions_by_A_vals,MATCH('Annual GHG Emissions - Sector'!BP$38&"#"&actCaseAnnGHG_2&"#"&'Annual GHG Emissions - Sector'!$I53,Total_Emissions_by_A_index,0))) -> 6.794098032 | BQ53: =IF(actCaseAnnGHG_2="",NA(),INDEX(Total_Emissions_by_A_vals,MATCH('Annual GHG Emissions - Sector'!BQ$38&"#"&actCaseAnnGHG_2&"#"&'Annual GHG Emissions - Sector'!$I53,Total_Emissions_by_A_index,0))) -> 6.5623696 | BR53: =IF(actCaseAnnGHG_2="",NA(),INDEX(Total_Emissions_by_A_vals,MATCH('Annual GHG Emissions - Sector'!BR$38&"#"&actCaseAnnGHG_2&"#"&'Annual GHG Emissions - Sector'!$I53,Total_Emissions_by_A_index,0))) -> 6.329022471
I54: Industrial | AI54: =IF(actCaseAnnGHG_2="",NA(),INDEX(Total_Emissions_by_A_vals,MATCH('Annual GHG Emissions - Sector'!AI$38&"#"&actCaseAnnGHG_2&"#"&'Annual GHG Emissions - Sector'!$I54,Total_Emissions_by_A_index,0))) -> 92.39813657 | AJ54: =IF(actCaseAnnGHG_2="",NA(),INDEX(Total_Emissions_by_A_vals,MATCH('Annual GHG Emissions - Sector'!AJ$38&"#"&actCaseAnnGHG_2&"#"&'Annual GHG Emissions - Sector'!$I54,Total_Emissions_by_A_index,0))) -> 91.98230717 | AK54: =IF(actCaseAnnGHG_2="",NA(),INDEX(Total_Emissions_by_A_vals,MATCH('Annual GHG Emissions - Sector'!AK$38&"#"&actCaseAnnGHG_2&"#"&'Annual GHG Emissions - Sector'!$I54,Total_Emissions_by_A_index,0))) -> 91.20618756 | AL54: =IF(actCaseAnnGHG_2="",NA(),INDEX(Total_Emissions_by_A_vals,MATCH('Annual GHG Emissions - Sector'!AL$38&"#"&actCaseAnnGHG_2&"#"&'Annual GHG Emissions - Sector'!$I54,Total_Emissions_by_A_index,0))) -> 90.66967258 | AM54: =IF(actCaseAnnGHG_2="",NA(),INDEX(Total_Emissions_by_A_vals,MATCH('Annual GHG Emissions - Sector'!AM$38&"#"&actCaseAnnGHG_2&"#"&'Annual GHG Emissions - Sector'!$I54,Total_Emissions_by_A_index,0))) -> 89.98774667 | AN54: =IF(actCaseAnnGHG_2="",NA(),INDEX(Total_Emissions_by_A_vals,MATCH('Annual GHG Emissions - Sector'!AN$38&"#"&actCaseAnnGHG_2&"#"&'Annual GHG Emissions - Sector'!$I54,Total_Emissions_by_A_index,0))) -> 88.79417432 | AO54: =IF(actCaseAnnGHG_2="",NA(),INDEX(Total_Emissions_by_A_vals,MATCH('Annual GHG Emissions - Sector'!AO$38&"#"&actCaseAnnGHG_2&"#"&'Annual GHG Emissions - Sector'!$I54,Total_Emissions_by_A_index,0))) -> 85.71885431 | AP54: =IF(actCaseAnnGHG_2="",NA(),INDEX(Total_Emissions_by_A_vals,MATCH('Annual GHG Emissions - Sector'!AP$38&"#"&actCaseAnnGHG_2&"#"&'Annual GHG Emissions - Sector'!$I54,Total_Emissions_by_A_index,0))) -> 82.22060511 | AQ54: =IF(actCaseAnnGHG_2="",NA(),INDEX(Total_Emissions_by_A_vals,MATCH('Annual GHG Emissions - Sector'!AQ$38&"#"&actCaseAnnGHG_2&"#"&'Annual GHG Emissions - Sector'!$I54,Total_Emissions_by_A_index,0))) -> 78.58700599 | AR54: =IF(actCaseAnnGHG_2="",NA(),INDEX(Total_Emissions_by_A_vals,MATCH('Annual GHG Emissions - Sector'!AR$38&"#"&actCaseAnnGHG_2&"#"&'Annual GHG Emissions - Sector'!$I54,Total_Emissions_by_A_index,0))) -> 75.3626293 | AS54: =IF(actCaseAnnGHG_2="",NA(),INDEX(Total_Emissions_by_A_vals,MATCH('Annual GHG Emissions - Sector'!AS$38&"#"&actCaseAnnGHG_2&"#"&'Annual GHG Emissions - Sector'!$I54,Total_Emissions_by_A_index,0))) -> 72.39507939 | AT54: =IF(actCaseAnnGHG_2="",NA(),INDEX(Total_Emissions_by_A_vals,MATCH('Annual GHG Emissions - Sector'!AT$38&"#"&actCaseAnnGHG_2&"#"&'Annual GHG Emissions - Sector'!$I54,Total_Emissions_by_A_index,0))) -> 69.55727076 | AU54: =IF(actCaseAnnGHG_2="",NA(),INDEX(Total_Emissions_by_A_vals,MATCH('Annual GHG Emissions - Sector'!AU$38&"#"&actCaseAnnGHG_2&"#"&'Annual GHG Emissions - Sector'!$I54,Total_Emissions_by_A_index,0))) -> 66.49786712 | AV54: =IF(actCaseAnnGHG_2="",NA(),INDEX(Total_Emissions_by_A_vals,MATCH('Annual GHG Emissions - Sector'!AV$38&"#"&actCaseAnnGHG_2&"#"&'Annual GHG Emissions - Sector'!$I54,Total_Emissions_by_A_index,0))) -> 63.501974 | AW54: =IF(actCaseAnnGHG_2="",NA(),INDEX(Total_Emissions_by_A_vals,MATCH('Annual GHG Emissions - Sector'!AW$38&"#"&actCaseAnnGHG_2&"#"&'Annual GHG Emissions - Sector'!$I54,Total_Emissions_by_A_index,0))) -> 60.51099837 | AX54: =IF(actCaseAnnGHG_2="",NA(),INDEX(Total_Emissions_by_A_vals,MATCH('Annual GHG Emissions - Sector'!AX$38&"#"&actCaseAnnGHG_2&"#"&'Annual GHG Emissions - Sector'!$I54,Total_Emissions_by_A_index,0))) -> 56.21728717 | AY54: =IF(actCaseAnnGHG_2="",NA(),INDEX(Total_Emissions_by_A_vals,MATCH('Annual GHG Emissions - Sector'!AY$38&"#"&actCaseAnnGHG_2&"#"&'Annual GHG Emissions - Sector'!$I54,Total_Emissions_by_A_index,0))) -> 56.06681891 | AZ54: =IF(actCaseAnnGHG_2="",NA(),INDEX(Total_Emissions_by_A_vals,MATCH('Annual GHG Emissions - Sector'!AZ$38&"#"&actCaseAnnGHG_2&"#"&'Annual GHG Emissions - Sector'!$I54,Total_Emissions_by_A_index,0))) -> 55.9122241 | BA54: =IF(actCaseAnnGHG_2="",NA(),INDEX(Total_Emissions_by_A_vals,MATCH('Annual GHG Emissions - Sector'!BA$38&"#"&actCaseAnnGHG_2&"#"&'Annual GHG Emissions - Sector'!$I54,Total_Emissions_by_A_index,0))) -> 55.75042585 | BB54: =IF(actCaseAnnGHG_2="",NA(),INDEX(Total_Emissions_by_A_vals,MATCH('Annual GHG Emissions - Sector'!BB$38&"#"&actCaseAnnGHG_2&"#"&'Annual GHG Emissions - Sector'!$I54,Total_Emissions_by_A_index,0))) -> 55.57681414 | BC54: =IF(actCaseAnnGHG_2="",NA(),INDEX(Total_Emissions_by_A_vals,MATCH('Annual GHG Emissions - Sector'!BC$38&"#"&actCaseAnnGHG_2&"#"&'Annual GHG Emissions - Sector'!$I54,Total_Emissions_by_A_index,0))) -> 55.38846813 | BD54: =IF(actCaseAnnGHG_2="",NA(),INDEX(Total_Emissions_by_A_vals,MATCH('Annual GHG Emissions - Sector'!BD$38&"#"&actCaseAnnGHG_2&"#"&'Annual GHG Emissions - Sector'!$I54,Total_Emissions_by_A_index,0))) -> 55.1929872 | BE54: =IF(actCaseAnnGHG_2="",NA(),INDEX(Total_Emissions_by_A_vals,MATCH('Annual GHG Emissions - Sector'!BE$38&"#"&actCaseAnnGHG_2&"#"&'Annual GHG Emissions - Sector'!$I54,Total_Emissions_by_A_index,0))) -> 54.98772279 | BF54: =IF(actCaseAnnGHG_2="",NA(),INDEX(Total_Emissions_by_A_vals,MATCH('Annual GHG Emissions - Sector'!BF$38&"#"&actCaseAnnGHG_2&"#"&'Annual GHG Emissions - Sector'!$I54,Total_Emissions_by_A_index,0))) -> 54.75758182 | BG54: =IF(actCaseAnnGHG_2="",NA(),INDEX(Total_Emissions_by_A_vals,MATCH('Annual GHG Emissions - Sector'!BG$38&"#"&actCaseAnnGHG_2&"#"&'Annual GHG Emissions - Sector'!$I54,Total_Emissions_by_A_index,0))) -> 54.50863157 | BH54: =IF(actCaseAnnGHG_2="",NA(),INDEX(Total_Emissions_by_A_vals,MATCH('Annual GHG Emissions - Sector'!BH$38&"#"&actCaseAnnGHG_2&"#"&'Annual GHG Emissions - Sector'!$I54,Total_Emissions_by_A_index,0))) -> 54.22915611 | BI54: =IF(actCaseAnnGHG_2="",NA(),INDEX(Total_Emissions_by_A_vals,MATCH('Annual GHG Emissions - Sector'!BI$38&"#"&actCaseAnnGHG_2&"#"&'Annual GHG Emissions - Sector'!$I54,Total_Emissions_by_A_index,0))) -> 53.91547112 | BJ54: =IF(actCaseAnnGHG_2="",NA(),INDEX(Total_Emissions_by_A_vals,MATCH('Annual GHG Emissions - Sector'!BJ$38&"#"&actCaseAnnGHG_2&"#"&'Annual GHG Emissions - Sector'!$I54,Total_Emissions_by_A_index,0))) -> 53.72906474 | BK54: =IF(actCaseAnnGHG_2="",NA(),INDEX(Total_Emissions_by_A_vals,MATCH('Annual GHG Emissions - Sector'!BK$38&"#"&actCaseAnnGHG_2&"#"&'Annual GHG Emissions - Sector'!$I54,Total_Emissions_by_A_index,0))) -> 53.55130612 | BL54: =IF(actCaseAnnGHG_2="",NA(),INDEX(Total_Emissions_by_A_vals,MATCH('Annual GHG Emissions - Sector'!BL$38&"#"&actCaseAnnGHG_2&"#"&'Annual GHG Emissions - Sector'!$I54,Total_Emissions_by_A_index,0))) -> 53.37328943 | BM54: =IF(actCaseAnnGHG_2="",NA(),INDEX(Total_Emissions_by_A_vals,MATCH('Annual GHG Emissions - Sector'!BM$38&"#"&actCaseAnnGHG_2&"#"&'Annual GHG Emissions - Sector'!$I54,Total_Emissions_by_A_index,0))) -> 53.19322871 | BN54: =IF(actCaseAnnGHG_2="",NA(),INDEX(Total_Emissions_by_A_vals,MATCH('Annual GHG Emissions - Sector'!BN$38&"#"&actCaseAnnGHG_2&"#"&'Annual GHG Emissions - Sector'!$I54,Total_Emissions_by_A_index,0))) -> 53.01409815 | BO54: =IF(actCaseAnnGHG_2="",NA(),INDEX(Total_Emissions_by_A_vals,MATCH('Annual GHG Emissions - Sector'!BO$38&"#"&actCaseAnnGHG_2&"#"&'Annual GHG Emissions - Sector'!$I54,Total_Emissions_by_A_index,0))) -> 52.84010934 | BP54: =IF(actCaseAnnGHG_2="",NA(),INDEX(Total_Emissions_by_A_vals,MATCH('Annual GHG Emissions - Sector'!BP$38&"#"&actCaseAnnGHG_2&"#"&'Annual GHG Emissions - Sector'!$I54,Total_Emissions_by_A_index,0))) -> 52.65901397 | BQ54: =IF(actCaseAnnGHG_2="",NA(),INDEX(Total_Emissions_by_A_vals,MATCH('Annual GHG Emissions - Sector'!BQ$38&"#"&actCaseAnnGHG_2&"#"&'Annual GHG Emissions - Sector'!$I54,Total_Emissions_by_A_index,0))) -> 52.48747431 | BR54: =IF(actCaseAnnGHG_2="",NA(),INDEX(Total_Emissions_by_A_vals,MATCH('Annual GHG Emissions - Sector'!BR$38&"#"&actCaseAnnGHG_2&"#"&'Annual GHG Emissions - Sector'!$I54,Total_Emissions_by_A_index,0))) -> 52.33262675
I55: Recycling and Waste | AI55: =IF(actCaseAnnGHG_2="",NA(),INDEX(Total_Emissions_by_A_vals,MATCH('Annual GHG Emissions - Sector'!AI$38&"#"&actCaseAnnGHG_2&"#"&'Annual GHG Emissions - Sector'!$I55,Total_Emissions_by_A_index,0))) -> 10.73087981 | AJ55: =IF(actCaseAnnGHG_2="",NA(),INDEX(Total_Emissions_by_A_vals,MATCH('Annual GHG Emissions - Sector'!AJ$38&"#"&actCaseAnnGHG_2&"#"&'Annual GHG Emissions - Sector'!$I55,Total_Emissions_by_A_index,0))) -> 10.73087981 | AK55: =IF(actCaseAnnGHG_2="",NA(),INDEX(Total_Emissions_by_A_vals,MATCH('Annual GHG Emissions - Sector'!AK$38&"#"&actCaseAnnGHG_2&"#"&'Annual GHG Emissions - Sector'!$I55,Total_Emissions_by_A_index,0))) -> 10.73087981 | AL55: =IF(actCaseAnnGHG_2="",NA(),INDEX(Total_Emissions_by_A_vals,MATCH('Annual GHG Emissions - Sector'!AL$38&"#"&actCaseAnnGHG_2&"#"&'Annual GHG Emissions - Sector'!$I55,Total_Emissions_by_A_index,0))) -> 10.73087981 | AM55: =IF(actCaseAnnGHG_2="",NA(),INDEX(Total_Emissions_by_A_vals,MATCH('Annual GHG Emissions - Sector'!AM$38&"#"&actCaseAnnGHG_2&"#"&'Annual GHG Emissions - Sector'!$I55,Total_Emissions_by_A_index,0))) -> 10.73087981 | AN55: =IF(actCaseAnnGHG_2="",NA(),INDEX(Total_Emissions_by_A_vals,MATCH('Annual GHG Emissions - Sector'!AN$38&"#"&actCaseAnnGHG_2&"#"&'Annual GHG Emissions - Sector'!$I55,Total_Emissions_by_A_index,0))) -> 10.59430498 | AO55: =IF(actCaseAnnGHG_2="",NA(),INDEX(Total_Emissions_by_A_vals,MATCH('Annual GHG Emissions - Sector'!AO$38&"#"&actCaseAnnGHG_2&"#"&'Annual GHG Emissions - Sector'!$I55,Total_Emissions_by_A_index,0))) -> 10.24311255 | AP55: =IF(actCaseAnnGHG_2="",NA(),INDEX(Total_Emissions_by_A_vals,MATCH('Annual GHG Emissions - Sector'!AP$38&"#"&actCaseAnnGHG_2&"#"&'Annual GHG Emissions - Sector'!$I55,Total_Emissions_by_A_index,0))) -> 9.891920116 | AQ55: =IF(actCaseAnnGHG_2="",NA(),INDEX(Total_Emissions_by_A_vals,MATCH('Annual GHG Emissions - Sector'!AQ$38&"#"&actCaseAnnGHG_2&"#"&'Annual GHG Emissions - Sector'!$I55,Total_Emissions_by_A_index,0))) -> 9.540727686 | AR55: =IF(actCaseAnnGHG_2="",NA(),INDEX(Total_Emissions_by_A_vals,MATCH('Annual GHG Emissions - Sector'!AR$38&"#"&actCaseAnnGHG_2&"#"&'Annual GHG Emissions - Sector'!$I55,Total_Emissions_by_A_index,0))) -> 9.189535255 | AS55: =IF(actCaseAnnGHG_2="",NA(),INDEX(Total_Emissions_by_A_vals,MATCH('Annual GHG Emissions - Sector'!AS$38&"#"&actCaseAnnGHG_2&"#"&'Annual GHG Emissions - Sector'!$I55,Total_Emissions_by_A_index,0))) -> 8.838342825 | AT55: =IF(actCaseAnnGHG_2="",NA(),INDEX(Total_Emissions_by_A_vals,MATCH('Annual GHG Emissions - Sector'!AT$38&"#"&actCaseAnnGHG_2&"#"&'Annual GHG Emissions - Sector'!$I55,Total_Emissions_by_A_index,0))) -> 8.487150395 | AU55: =IF(actCaseAnnGHG_2="",NA(),INDEX(Total_Emissions_by_A_vals,MATCH('Annual GHG Emissions - Sector'!AU$38&"#"&actCaseAnnGHG_2&"#"&'Annual GHG Emissions - Sector'!$I55,Total_Emissions_by_A_index,0))) -> 8.135957965 | AV55: =IF(actCaseAnnGHG_2="",NA(),INDEX(Total_Emissions_by_A_vals,MATCH('Annual GHG Emissions - Sector'!AV$38&"#"&actCaseAnnGHG_2&"#"&'Annual GHG Emissions - Sector'!$I55,Total_Emissions_by_A_index,0))) -> 7.784765535 | AW55: =IF(actCaseAnnGHG_2="",NA(),INDEX(Total_Emissions_by_A_vals,MATCH('Annual GHG Emissions - Sector'!AW$38&"#"&actCaseAnnGHG_2&"#"&'Annual GHG Emissions - Sector'!$I55,Total_Emissions_by_A_index,0))) -> 7.433573105 | AX55: =IF(actCaseAnnGHG_2="",NA(),INDEX(Total_Emissions_by_A_vals,MATCH('Annual GHG Emissions - Sector'!AX$38&"#"&actCaseAnnGHG_2&"#"&'Annual GHG Emissions - Sector'!$I55,Total_Emissions_by_A_index,0))) -> 7.021061361 | AY55: =IF(actCaseAnnGHG_2="",NA(),INDEX(Total_Emissions_by_A_vals,MATCH('Annual GHG Emissions - Sector'!AY$38&"#"&actCaseAnnGHG_2&"#"&'Annual GHG Emissions - Sector'!$I55,Total_Emissions_by_A_index,0))) -> 6.959742048 | AZ55: =IF(actCaseAnnGHG_2="",NA(),INDEX(Total_Emissions_by_A_vals,MATCH('Annual GHG Emissions - Sector'!AZ$38&"#"&actCaseAnnGHG_2&"#"&'Annual GHG Emissions - Sector'!$I55,Total_Emissions_by_A_index,0))) -> 6.898422735 | BA55: =IF(actCaseAnnGHG_2="",NA(),INDEX(Total_Emissions_by_A_vals,MATCH('Annual GHG Emissions - Sector'!BA$38&"#"&actCaseAnnGHG_2&"#"&'Annual GHG Emissions - Sector'!$I55,Total_Emissions_by_A_index,0))) -> 6.837103422 | BB55: =IF(actCaseAnnGHG_2="",NA(),INDEX(Total_Emissions_by_A_vals,MATCH('Annual GHG Emissions - Sector'!BB$38&"#"&actCaseAnnGHG_2&"#"&'Annual GHG Emissions - Sector'!$I55,Total_Emissions_by_A_index,0))) -> 6.775784109 | BC55: =IF(actCaseAnnGHG_2="",NA(),INDEX(Total_Emissions_by_A_vals,MATCH('Annual GHG Emissions - Sector'!BC$38&"#"&actCaseAnnGHG_2&"#"&'Annual GHG Emissions - Sector'!$I55,Total_Emissions_by_A_index,0))) -> 6.714464795 | BD55: =IF(actCaseAnnGHG_2="",NA(),INDEX(Total_Emissions_by_A_vals,MATCH('Annual GHG Emissions - Sector'!BD$38&"#"&actCaseAnnGHG_2&"#"&'Annual GHG Emissions - Sector'!$I55,Total_Emissions_by_A_index,0))) -> 6.653145482 | BE55: =IF(actCaseAnnGHG_2="",NA(),INDEX(Total_Emissions_by_A_vals,MATCH('Annual GHG Emissions - Sector'!BE$38&"#"&actCaseAnnGHG_2&"#"&'Annual GHG Emissions - Sector'!$I55,Total_Emissions_by_A_index,0))) -> 6.591826169 | BF55: =IF(actCaseAnnGHG_2="",NA(),INDEX(Total_Emissions_by_A_vals,MATCH('Annual GHG Emissions - Sector'!BF$38&"#"&actCaseAnnGHG_2&"#"&'Annual GHG Emissions - Sector'!$I55,Total_Emissions_by_A_index,0))) -> 6.530506856 | BG55: =IF(actCaseAnnGHG_2="",NA(),INDEX(Total_Emissions_by_A_vals,MATCH('Annual GHG Emissions - Sector'!BG$38&"#"&actCaseAnnGHG_2&"#"&'Annual GHG Emissions - Sector'!$I55,Total_Emissions_by_A_index,0))) -> 6.469187543 | BH55: =IF(actCaseAnnGHG_2="",NA(),INDEX(Total_Emissions_by_A_vals,MATCH('Annual GHG Emissions - Sector'!BH$38&"#"&actCaseAnnGHG_2&"#"&'Annual GHG Emissions - Sector'!$I55,Total_Emissions_by_A_index,0))) -> 6.407868229 | BI55: =IF(actCaseAnnGHG_2="",NA(),INDEX(Total_Emissions_by_A_vals,MATCH('Annual GHG Emissions - Sector'!BI$38&"#"&actCaseAnnGHG_2&"#"&'Annual GHG Emissions - Sector'!$I55,Total_Emissions_by_A_index,0))) -> 6.346548916 | BJ55: =IF(actCaseAnnGHG_2="",NA(),INDEX(Total_Emissions_by_A_vals,MATCH('Annual GHG Emissions - Sector'!BJ$38&"#"&actCaseAnnGHG_2&"#"&'Annual GHG Emissions - Sector'!$I55,Total_Emissions_by_A_index,0))) -> 6.285229603 | BK55: =IF(actCaseAnnGHG_2="",NA(),INDEX(Total_Emissions_by_A_vals,MATCH('Annual GHG Emissions - Sector'!BK$38&"#"&actCaseAnnGHG_2&"#"&'Annual GHG Emissions - Sector'!$I55,Total_Emissions_by_A_index,0))) -> 6.22391029 | BL55: =IF(actCaseAnnGHG_2="",NA(),INDEX(Total_Emissions_by_A_vals,MATCH('Annual GHG Emissions - Sector'!BL$38&"#"&actCaseAnnGHG_2&"#"&'Annual GHG Emissions - Sector'!$I55,Total_Emissions_by_A_index,0))) -> 6.162590977 | BM55: =IF(actCaseAnnGHG_2="",NA(),INDEX(Total_Emissions_by_A_vals,MATCH('Annual GHG Emissions - Sector'!BM$38&"#"&actCaseAnnGHG_2&"#"&'Annual GHG Emissions - Sector'!$I55,Total_Emissions_by_A_index,0))) -> 6.101271663 | BN55: =IF(actCaseAnnGHG_2="",NA(),INDEX(Total_Emissions_by_A_vals,MATCH('Annual GHG Emissions - Sector'!BN$38&"#"&actCaseAnnGHG_2&"#"&'Annual GHG Emissions - Sector'!$I55,Total_Emissions_by_A_index,0))) -> 6.03995235 | BO55: =IF(actCaseAnnGHG_2="",NA(),INDEX(Total_Emissions_by_A_vals,MATCH('Annual GHG Emissions - Sector'!BO$38&"#"&actCaseAnnGHG_2&"#"&'Annual GHG Emissions - Sector'!$I55,Total_Emissions_by_A_index,0))) -> 5.978633037 | BP55: =IF(actCaseAnnGHG_2="",NA(),INDEX(Total_Emissions_by_A_vals,MATCH('Annual GHG Emissions - Sector'!BP$38&"#"&actCaseAnnGHG_2&"#"&'Annual GHG Emissions - Sector'!$I55,Total_Emissions_by_A_index,0))) -> 5.917313724 | BQ55: =IF(actCaseAnnGHG_2="",NA(),INDEX(Total_Emissions_by_A_vals,MATCH('Annual GHG Emissions - Sector'!BQ$38&"#"&actCaseAnnGHG_2&"#"&'Annual GHG Emissions - Sector'!$I55,Total_Emissions_by_A_index,0))) -> 5.855994411 | BR55: =IF(actCaseAnnGHG_2="",NA(),INDEX(Total_Emissions_by_A_vals,MATCH('Annual GHG Emissions - Sector'!BR$38&"#"&actCaseAnnGHG_2&"#"&'Annual GHG Emissions - Sector'!$I55,Total_Emissions_by_A_index,0))) -> 5.794675097
I56: Transportation (Incl. TCU) | AI56: =IF(actCaseAnnGHG_2="",NA(),INDEX(Total_Emissions_by_A_vals,MATCH('Annual GHG Emissions - Sector'!AI$38&"#"&actCaseAnnGHG_2&"#"&'Annual GHG Emissions - Sector'!$I56,Total_Emissions_by_A_index,0))) -> 167.8743714 | AJ56: =IF(actCaseAnnGHG_2="",NA(),INDEX(Total_Emissions_by_A_vals,MATCH('Annual GHG Emissions - Sector'!AJ$38&"#"&actCaseAnnGHG_2&"#"&'Annual GHG Emissions - Sector'!$I56,Total_Emissions_by_A_index,0))) -> 166.8050433 | AK56: =IF(actCaseAnnGHG_2="",NA(),INDEX(Total_Emissions_by_A_vals,MATCH('Annual GHG Emissions - Sector'!AK$38&"#"&actCaseAnnGHG_2&"#"&'Annual GHG Emissions - Sector'!$I56,Total_Emissions_by_A_index,0))) -> 164.0818599 | AL56: =IF(actCaseAnnGHG_2="",NA(),INDEX(Total_Emissions_by_A_vals,MATCH('Annual GHG Emissions - Sector'!AL$38&"#"&actCaseAnnGHG_2&"#"&'Annual GHG Emissions - Sector'!$I56,Total_Emissions_by_A_index,0))) -> 160.0397161 | AM56: =IF(actCaseAnnGHG_2="",NA(),INDEX(Total_Emissions_by_A_vals,MATCH('Annual GHG Emissions - Sector'!AM$38&"#"&actCaseAnnGHG_2&"#"&'Annual GHG Emissions - Sector'!$I56,Total_Emissions_by_A_index,0))) -> 155.2397384 | AN56: =IF(actCaseAnnGHG_2="",NA(),INDEX(Total_Emissions_by_A_vals,MATCH('Annual GHG Emissions - Sector'!AN$38&"#"&actCaseAnnGHG_2&"#"&'Annual GHG Emissions - Sector'!$I56,Total_Emissions_by_A_index,0))) -> 150.1266858 | AO56: =IF(actCaseAnnGHG_2="",NA(),INDEX(Total_Emissions_by_A_vals,MATCH('Annual GHG Emissions - Sector'!AO$38&"#"&actCaseAnnGHG_2&"#"&'Annual GHG Emissions - Sector'!$I56,Total_Emissions_by_A_index,0))) -> 144.700797 | AP56: =IF(actCaseAnnGHG_2="",NA(),INDEX(Total_Emissions_by_A_vals,MATCH('Annual GHG Emissions - Sector'!AP$38&"#"&actCaseAnnGHG_2&"#"&'Annual GHG Emissions - Sector'!$I56,Total_Emissions_by_A_index,0))) -> 138.1854907 | AQ56: =IF(actCaseAnnGHG_2="",NA(),INDEX(Total_Emissions_by_A_vals,MATCH('Annual GHG Emissions - Sector'!AQ$38&"#"&actCaseAnnGHG_2&"#"&'Annual GHG Emissions - Sector'!$I56,Total_Emissions_by_A_index,0))) -> 129.6701118 | AR56: =IF(actCaseAnnGHG_2="",NA(),INDEX(Total_Emissions_by_A_vals,MATCH('Annual GHG Emissions - Sector'!AR$38&"#"&actCaseAnnGHG_2&"#"&'Annual GHG Emissions - Sector'!$I56,Total_Emissions_by_A_index,0))) -> 125.1420608 | AS56: =IF(actCaseAnnGHG_2="",NA(),INDEX(Total_Emissions_by_A_vals,MATCH('Annual GHG Emissions - Sector'!AS$38&"#"&actCaseAnnGHG_2&"#"&'Annual GHG Emissions - Sector'!$I56,Total_Emissions_by_A_index,0))) -> 118.6104507 | AT56: =IF(actCaseAnnGHG_2="",NA(),INDEX(Total_Emissions_by_A_vals,MATCH('Annual GHG Emissions - Sector'!AT$38&"#"&actCaseAnnGHG_2&"#"&'Annual GHG Emissions - Sector'!$I56,Total_Emissions_by_A_index,0))) -> 114.1794039 | AU56: =IF(actCaseAnnGHG_2="",NA(),INDEX(Total_Emissions_by_A_vals,MATCH('Annual GHG Emissions - Sector'!AU$38&"#"&actCaseAnnGHG_2&"#"&'Annual GHG Emissions - Sector'!$I56,Total_Emissions_by_A_index,0))) -> 108.4280685 | AV56: =IF(actCaseAnnGHG_2="",NA(),INDEX(Total_Emissions_by_A_vals,MATCH('Annual GHG Emissions - Sector'!AV$38&"#"&actCaseAnnGHG_2&"#"&'Annual GHG Emissions - Sector'!$I56,Total_Emissions_by_A_index,0))) -> 104.5617317 | AW56: =IF(actCaseAnnGHG_2="",NA(),INDEX(Total_Emissions_by_A_vals,MATCH('Annual GHG Emissions - Sector'!AW$38&"#"&actCaseAnnGHG_2&"#"&'Annual GHG Emissions - Sector'!$I56,Total_Emissions_by_A_index,0))) -> 99.53888828 | AX56: =IF(actCaseAnnGHG_2="",NA(),INDEX(Total_Emissions_by_A_vals,MATCH('Annual GHG Emissions - Sector'!AX$38&"#"&actCaseAnnGHG_2&"#"&'Annual GHG Emissions - Sector'!$I56,Total_Emissions_by_A_index,0))) -> 95.10458996 | AY56: =IF(actCaseAnnGHG_2="",NA(),INDEX(Total_Emissions_by_A_vals,MATCH('Annual GHG Emissions - Sector'!AY$38&"#"&actCaseAnnGHG_2&"#"&'Annual GHG Emissions - Sector'!$I56,Total_Emissions_by_A_index,0))) -> 91.22072384 | AZ56: =IF(actCaseAnnGHG_2="",NA(),INDEX(Total_Emissions_by_A_vals,MATCH('Annual GHG Emissions - Sector'!AZ$38&"#"&actCaseAnnGHG_2&"#"&'Annual GHG Emissions - Sector'!$I56,Total_Emissions_by_A_index,0))) -> 87.45895901 | BA56: =IF(actCaseAnnGHG_2="",NA(),INDEX(Total_Emissions_by_A_vals,MATCH('Annual GHG Emissions - Sector'!BA$38&"#"&actCaseAnnGHG_2&"#"&'Annual GHG Emissions - Sector'!$I56,Total_Emissions_by_A_index,0))) -> 83.70736365 | BB56: =IF(actCaseAnnGHG_2="",NA(),INDEX(Total_Emissions_by_A_vals,MATCH('Annual GHG Emissions - Sector'!BB$38&"#"&actCaseAnnGHG_2&"#"&'Annual GHG Emissions - Sector'!$I56,Total_Emissions_by_A_index,0))) -> 79.85104426 | BC56: =IF(actCaseAnnGHG_2="",NA(),INDEX(Total_Emissions_by_A_vals,MATCH('Annual GHG Emissions - Sector'!BC$38&"#"&actCaseAnnGHG_2&"#"&'Annual GHG Emissions - Sector'!$I56,Total_Emissions_by_A_index,0))) -> 75.75616055 | BD56: =IF(actCaseAnnGHG_2="",NA(),INDEX(Total_Emissions_by_A_vals,MATCH('Annual GHG Emissions - Sector'!BD$38&"#"&actCaseAnnGHG_2&"#"&'Annual GHG Emissions - Sector'!$I56,Total_Emissions_by_A_index,0))) -> 71.45733422 | BE56: =IF(actCaseAnnGHG_2="",NA(),INDEX(Total_Emissions_by_A_vals,MATCH('Annual GHG Emissions - Sector'!BE$38&"#"&actCaseAnnGHG_2&"#"&'Annual GHG Emissions - Sector'!$I56,Total_Emissions_by_A_index,0))) -> 66.78086844 | BF56: =IF(actCaseAnnGHG_2="",NA(),INDEX(Total_Emissions_by_A_vals,MATCH('Annual GHG Emissions - Sector'!BF$38&"#"&actCaseAnnGHG_2&"#"&'Annual GHG Emissions - Sector'!$I56,Total_Emissions_by_A_index,0))) -> 61.65929772 | BG56: =IF(actCaseAnnGHG_2="",NA(),INDEX(Total_Emissions_by_A_vals,MATCH('Annual GHG Emissions - Sector'!BG$38&"#"&actCaseAnnGHG_2&"#"&'Annual GHG Emissions - Sector'!$I56,Total_Emissions_by_A_index,0))) -> 55.99153457 | BH56: =IF(actCaseAnnGHG_2="",NA(),INDEX(Total_Emissions_by_A_vals,MATCH('Annual GHG Emissions - Sector'!BH$38&"#"&actCaseAnnGHG_2&"#"&'Annual GHG Emissions - Sector'!$I56,Total_Emissions_by_A_index,0))) -> 49.713766 | BI56: =IF(actCaseAnnGHG_2="",NA(),INDEX(Total_Emissions_by_A_vals,MATCH('Annual GHG Emissions - Sector'!BI$38&"#"&actCaseAnnGHG_2&"#"&'Annual GHG Emissions - Sector'!$I56,Total_Emissions_by_A_index,0))) -> 42.71216825 | BJ56: =IF(actCaseAnnGHG_2="",NA(),INDEX(Total_Emissions_by_A_vals,MATCH('Annual GHG Emissions - Sector'!BJ$38&"#"&actCaseAnnGHG_2&"#"&'Annual GHG Emissions - Sector'!$I56,Total_Emissions_by_A_index,0))) -> 36.91228814 | BK56: =IF(actCaseAnnGHG_2="",NA(),INDEX(Total_Emissions_by_A_vals,MATCH('Annual GHG Emissions - Sector'!BK$38&"#"&actCaseAnnGHG_2&"#"&'Annual GHG Emissions - Sector'!$I56,Total_Emissions_by_A_index,0))) -> 30.85162785 | BL56: =IF(actCaseAnnGHG_2="",NA(),INDEX(Total_Emissions_by_A_vals,MATCH('Annual GHG Emissions - Sector'!BL$38&"#"&actCaseAnnGHG_2&"#"&'Annual GHG Emissions - Sector'!$I56,Total_Emissions_by_A_index,0))) -> 24.38219901 | BM56: =IF(actCaseAnnGHG_2="",NA(),INDEX(Total_Emissions_by_A_vals,MATCH('Annual GHG Emissions - Sector'!BM$38&"#"&actCaseAnnGHG_2&"#"&'Annual GHG Emissions - Sector'!$I56,Total_Emissions_by_A_index,0))) -> 22.31647767 | BN56: =IF(actCaseAnnGHG_2="",NA(),INDEX(Total_Emissions_by_A_vals,MATCH('Annual GHG Emissions - Sector'!BN$38&"#"&actCaseAnnGHG_2&"#"&'Annual GHG Emissions - Sector'!$I56,Total_Emissions_by_A_index,0))) -> 21.93992534 | BO56: =IF(actCaseAnnGHG_2="",NA(),INDEX(Total_Emissions_by_A_vals,MATCH('Annual GHG Emissions - Sector'!BO$38&"#"&actCaseAnnGHG_2&"#"&'Annual GHG Emissions - Sector'!$I56,Total_Emissions_by_A_index,0))) -> 21.58817288 | BP56: =IF(actCaseAnnGHG_2="",NA(),INDEX(Total_Emissions_by_A_vals,MATCH('Annual GHG Emissions - Sector'!BP$38&"#"&actCaseAnnGHG_2&"#"&'Annual GHG Emissions - Sector'!$I56,Total_Emissions_by_A_index,0))) -> 21.19847504 | BQ56: =IF(actCaseAnnGHG_2="",NA(),INDEX(Total_Emissions_by_A_vals,MATCH('Annual GHG Emissions - Sector'!BQ$38&"#"&actCaseAnnGHG_2&"#"&'Annual GHG Emissions - Sector'!$I56,Total_Emissions_by_A_index,0))) -> 20.9471354 | BR56: =IF(actCaseAnnGHG_2="",NA(),INDEX(Total_Emissions_by_A_vals,MATCH('Annual GHG Emissions - Sector'!BR$38&"#"&actCaseAnnGHG_2&"#"&'Annual GHG Emissions - Sector'!$I56,Total_Emissions_by_A_index,0))) -> 21.11779608
I57: Total | AI57: =SUM(AI50:AI56) -> 441.8998304 | AJ57: =SUM(AJ50:AJ56) -> 438.4332596 | AK57: 429.526429 | AL57: 423.6836717 | AM57: 416.6052069 | AN57: 406.7521962 | AO57: 393.4285142 | AP57: 377.4659538 | AQ57: 359.0342243 | AR57: 345.3781627 | AS57: 336.7424026 | AT57: 323.1249776 | AU57: 308.1110075 | AV57: 288.0340168 | AW57: 274.4485511 | AX57: 257.7855823 | AY57: 250.4734114 | AZ57: 244.6804475 | BA57: 238.9842382 | BB57: 232.0862017 | BC57: 226.0493483 | BD57: 219.8244901 | BE57: 213.2158134 | BF57: 206.2377537 | BG57: 198.6642274 | BH57: 190.539375 | BI57: 180.9364301 | BJ57: 173.2632481 | BK57: 165.3841703 | BL57: 157.1281797 | BM57: 153.3208639 | BN57: 151.2268057 | BO57: 149.2032786 | BP57: 147.1952901 | BQ57: 145.369664 | BR57: 144.0808163 | BT57: 46.18129453 | BU57: 146.4022459
I59: ="PATHWAYS - "&actCaseAnnGHG_3 -> PATHWAYS - Alternative 1
J60: 1990 | K60: 1991 | L60: 1992 | M60: 1993 | N60: 1994 | O60: 1995 | P60: 1996 | Q60: 1997 | R60: 1998 | S60: 1999 | T60: 2000 | U60: 2001 | V60: 2002 | W60: 2003 | X60: 2004 | Y60: 2005 | Z60: 2006 | AA60: 2007 | AB60: 2008 | AC60: 2009 | AD60: 2010 | AE60: 2011 | AF60: 2012 | AG60: 2013 | AH60: 2014 | AI60: 2015 | AJ60: 2016 | AK60: 2017 | AL60: 2018 | AM60: 2019 | AN60: 2020 | AO60: 2021 | AP60: 2022 | AQ60: 2023 | AR60: 2024 | AS60: 2025 | AT60: 2026 | AU60: 2027 | AV60: 2028 | AW60: 2029 | AX60: 2030 | AY60: 2031 | AZ60: 2032 | BA60: 2033 | BB60: 2034 | BC60: 2035 | BD60: 2036 | BE60: 2037 | BF60: 2038 | BG60: 2039 | BH60: 2040 | BI60: 2041 | BJ60: 2042 | BK60: 2043 | BL60: 2044 | BM60: 2045 | BN60: 2046 | BO60: 2047 | BP60: 2048 | BQ60: 2049 | BR60: 2050 | BT60: 2030 Gap | BU60: 2050 Gap
I61: Agriculture | AI61: =IF(actCaseAnnGHG_3="",NA(),INDEX(Total_Emissions_by_A_vals,MATCH('Annual GHG Emissions - Sector'!AI$38&"#"&actCaseAnnGHG_3&"#"&'Annual GHG Emissions - Sector'!$I61,Total_Emissions_by_A_index,0))) -> 36.33493864 | AJ61: =IF(actCaseAnnGHG_3="",NA(),INDEX(Total_Emissions_by_A_vals,MATCH('Annual GHG Emissions - Sector'!AJ$38&"#"&actCaseAnnGHG_3&"#"&'Annual GHG Emissions - Sector'!$I61,Total_Emissions_by_A_index,0))) -> 36.30482442 | AK61: =IF(actCaseAnnGHG_3="",NA(),INDEX(Total_Emissions_by_A_vals,MATCH('Annual GHG Emissions - Sector'!AK$38&"#"&actCaseAnnGHG_3&"#"&'Annual GHG Emissions - Sector'!$I61,Total_Emissions_by_A_index,0))) -> 35.93536864 | AL61: =IF(actCaseAnnGHG_3="",NA(),INDEX(Total_Emissions_by_A_vals,MATCH('Annual GHG Emissions - Sector'!AL$38&"#"&actCaseAnnGHG_3&"#"&'Annual GHG Emissions - Sector'!$I61,Total_Emissions_by_A_index,0))) -> 35.61659383 | AM61: =IF(actCaseAnnGHG_3="",NA(),INDEX(Total_Emissions_by_A_vals,MATCH('Annual GHG Emissions - Sector'!AM$38&"#"&actCaseAnnGHG_3&"#"&'Annual GHG Emissions - Sector'!$I61,Total_Emissions_by_A_index,0))) -> 35.27056052 | AN61: =IF(actCaseAnnGHG_3="",NA(),INDEX(Total_Emissions_by_A_vals,MATCH('Annual GHG Emissions - Sector'!AN$38&"#"&actCaseAnnGHG_3&"#"&'Annual GHG Emissions - Sector'!$I61,Total_Emissions_by_A_index,0))) -> 34.19593829 | AO61: =IF(actCaseAnnGHG_3="",NA(),INDEX(Total_Emissions_by_A_vals,MATCH('Annual GHG Emissions - Sector'!AO$38&"#"&actCaseAnnGHG_3&"#"&'Annual GHG Emissions - Sector'!$I61,Total_Emissions_by_A_index,0))) -> 33.10865475 | AP61: =IF(actCaseAnnGHG_3="",NA(),INDEX(Total_Emissions_by_A_vals,MATCH('Annual GHG Emissions - Sector'!AP$38&"#"&actCaseAnnGHG_3&"#"&'Annual GHG Emissions - Sector'!$I61,Total_Emissions_by_A_index,0))) -> 31.98387072 | AQ61: =IF(actCaseAnnGHG_3="",NA(),INDEX(Total_Emissions_by_A_vals,MATCH('Annual GHG Emissions - Sector'!AQ$38&"#"&actCaseAnnGHG_3&"#"&'Annual GHG Emissions - Sector'!$I61,Total_Emissions_by_A_index,0))) -> 30.66413613 | AR61: =IF(actCaseAnnGHG_3="",NA(),INDEX(Total_Emissions_by_A_vals,MATCH('Annual GHG Emissions - Sector'!AR$38&"#"&actCaseAnnGHG_3&"#"&'Annual GHG Emissions - Sector'!$I61,Total_Emissions_by_A_index,0))) -> 29.70519119 | AS61: =IF(actCaseAnnGHG_3="",NA(),INDEX(Total_Emissions_by_A_vals,MATCH('Annual GHG Emissions - Sector'!AS$38&"#"&actCaseAnnGHG_3&"#"&'Annual GHG Emissions - Sector'!$I61,Total_Emissions_by_A_index,0))) -> 28.58104372 | AT61: =IF(actCaseAnnGHG_3="",NA(),INDEX(Total_Emissions_by_A_vals,MATCH('Annual GHG Emissions - Sector'!AT$38&"#"&actCaseAnnGHG_3&"#"&'Annual GHG Emissions - Sector'!$I61,Total_Emissions_by_A_index,0))) -> 27.63570859 | AU61: =IF(actCaseAnnGHG_3="",NA(),INDEX(Total_Emissions_by_A_vals,MATCH('Annual GHG Emissions - Sector'!AU$38&"#"&actCaseAnnGHG_3&"#"&'Annual GHG Emissions - Sector'!$I61,Total_Emissions_by_A_index,0))) -> 26.52714559 | AV61: =IF(actCaseAnnGHG_3="",NA(),INDEX(Total_Emissions_by_A_vals,MATCH('Annual GHG Emissions - Sector'!AV$38&"#"&actCaseAnnGHG_3&"#"&'Annual GHG Emissions - Sector'!$I61,Total_Emissions_by_A_index,0))) -> 25.52149042 | AW61: =IF(actCaseAnnGHG_3="",NA(),INDEX(Total_Emissions_by_A_vals,MATCH('Annual GHG Emissions - Sector'!AW$38&"#"&actCaseAnnGHG_3&"#"&'Annual GHG Emissions - Sector'!$I61,Total_Emissions_by_A_index,0))) -> 24.56730281 | AX61: =IF(actCaseAnnGHG_3="",NA(),INDEX(Total_Emissions_by_A_vals,MATCH('Annual GHG Emissions - Sector'!AX$38&"#"&actCaseAnnGHG_3&"#"&'Annual GHG Emissions - Sector'!$I61,Total_Emissions_by_A_index,0))) -> 23.49960846 | AY61: =IF(actCaseAnnGHG_3="",NA(),INDEX(Total_Emissions_by_A_vals,MATCH('Annual GHG Emissions - Sector'!AY$38&"#"&actCaseAnnGHG_3&"#"&'Annual GHG Emissions - Sector'!$I61,Total_Emissions_by_A_index,0))) -> 23.40546746 | AZ61: =IF(actCaseAnnGHG_3="",NA(),INDEX(Total_Emissions_by_A_vals,MATCH('Annual GHG Emissions - Sector'!AZ$38&"#"&actCaseAnnGHG_3&"#"&'Annual GHG Emissions - Sector'!$I61,Total_Emissions_by_A_index,0))) -> 23.31281436 | BA61: =IF(actCaseAnnGHG_3="",NA(),INDEX(Total_Emissions_by_A_vals,MATCH('Annual GHG Emissions - Sector'!BA$38&"#"&actCaseAnnGHG_3&"#"&'Annual GHG Emissions - Sector'!$I61,Total_Emissions_by_A_index,0))) -> 23.21038116 | BB61: =IF(actCaseAnnGHG_3="",NA(),INDEX(Total_Emissions_by_A_vals,MATCH('Annual GHG Emissions - Sector'!BB$38&"#"&actCaseAnnGHG_3&"#"&'Annual GHG Emissions - Sector'!$I61,Total_Emissions_by_A_index,0))) -> 23.0945599 | BC61: =IF(actCaseAnnGHG_3="",NA(),INDEX(Total_Emissions_by_A_vals,MATCH('Annual GHG Emissions - Sector'!BC$38&"#"&actCaseAnnGHG_3&"#"&'Annual GHG Emissions - Sector'!$I61,Total_Emissions_by_A_index,0))) -> 22.96621528 | BD61: =IF(actCaseAnnGHG_3="",NA(),INDEX(Total_Emissions_by_A_vals,MATCH('Annual GHG Emissions - Sector'!BD$38&"#"&actCaseAnnGHG_3&"#"&'Annual GHG Emissions - Sector'!$I61,Total_Emissions_by_A_index,0))) -> 22.82995584 | BE61: =IF(actCaseAnnGHG_3="",NA(),INDEX(Total_Emissions_by_A_vals,MATCH('Annual GHG Emissions - Sector'!BE$38&"#"&actCaseAnnGHG_3&"#"&'Annual GHG Emissions - Sector'!$I61,Total_Emissions_by_A_index,0))) -> 22.68226767 | BF61: =IF(actCaseAnnGHG_3="",NA(),INDEX(Total_Emissions_by_A_vals,MATCH('Annual GHG Emissions - Sector'!BF$38&"#"&actCaseAnnGHG_3&"#"&'Annual GHG Emissions - Sector'!$I61,Total_Emissions_by_A_index,0))) -> 22.50893745 | BG61: =IF(actCaseAnnGHG_3="",NA(),INDEX(Total_Emissions_by_A_vals,MATCH('Annual GHG Emissions - Sector'!BG$38&"#"&actCaseAnnGHG_3&"#"&'Annual GHG Emissions - Sector'!$I61,Total_Emissions_by_A_index,0))) -> 22.31294255 | BH61: =IF(actCaseAnnGHG_3="",NA(),INDEX(Total_Emissions_by_A_vals,MATCH('Annual GHG Emissions - Sector'!BH$38&"#"&actCaseAnnGHG_3&"#"&'Annual GHG Emissions - Sector'!$I61,Total_Emissions_by_A_index,0))) -> 22.08573173 | BI61: =IF(actCaseAnnGHG_3="",NA(),INDEX(Total_Emissions_by_A_vals,MATCH('Annual GHG Emissions - Sector'!BI$38&"#"&actCaseAnnGHG_3&"#"&'Annual GHG Emissions - Sector'!$I61,Total_Emissions_by_A_index,0))) -> 21.82729335 | BJ61: =IF(actCaseAnnGHG_3="",NA(),INDEX(Total_Emissions_by_A_vals,MATCH('Annual GHG Emissions - Sector'!BJ$38&"#"&actCaseAnnGHG_3&"#"&'Annual GHG Emissions - Sector'!$I61,Total_Emissions_by_A_index,0))) -> 21.69535521 | BK61: =IF(actCaseAnnGHG_3="",NA(),INDEX(Total_Emissions_by_A_vals,MATCH('Annual GHG Emissions - Sector'!BK$38&"#"&actCaseAnnGHG_3&"#"&'Annual GHG Emissions - Sector'!$I61,Total_Emissions_by_A_index,0))) -> 21.57210015 | BL61: =IF(actCaseAnnGHG_3="",NA(),INDEX(Total_Emissions_by_A_vals,MATCH('Annual GHG Emissions - Sector'!BL$38&"#"&actCaseAnnGHG_3&"#"&'Annual GHG Emissions - Sector'!$I61,Total_Emissions_by_A_index,0))) -> 21.44859164 | BM61: =IF(actCaseAnnGHG_3="",NA(),INDEX(Total_Emissions_by_A_vals,MATCH('Annual GHG Emissions - Sector'!BM$38&"#"&actCaseAnnGHG_3&"#"&'Annual GHG Emissions - Sector'!$I61,Total_Emissions_by_A_index,0))) -> 21.33278999 | BN61: =IF(actCaseAnnGHG_3="",NA(),INDEX(Total_Emissions_by_A_vals,MATCH('Annual GHG Emissions - Sector'!BN$38&"#"&actCaseAnnGHG_3&"#"&'Annual GHG Emissions - Sector'!$I61,Total_Emissions_by_A_index,0))) -> 21.21866373 | BO61: =IF(actCaseAnnGHG_3="",NA(),INDEX(Total_Emissions_by_A_vals,MATCH('Annual GHG Emissions - Sector'!BO$38&"#"&actCaseAnnGHG_3&"#"&'Annual GHG Emissions - Sector'!$I61,Total_Emissions_by_A_index,0))) -> 21.10475763 | BP61: =IF(actCaseAnnGHG_3="",NA(),INDEX(Total_Emissions_by_A_vals,MATCH('Annual GHG Emissions - Sector'!BP$38&"#"&actCaseAnnGHG_3&"#"&'Annual GHG Emissions - Sector'!$I61,Total_Emissions_by_A_index,0))) -> 20.98994542 | BQ61: =IF(actCaseAnnGHG_3="",NA(),INDEX(Total_Emissions_by_A_vals,MATCH('Annual GHG Emissions - Sector'!BQ$38&"#"&actCaseAnnGHG_3&"#"&'Annual GHG Emissions - Sector'!$I61,Total_Emissions_by_A_index,0))) -> 20.87963438 | BR61: =IF(actCaseAnnGHG_3="",NA(),INDEX(Total_Emissions_by_A_vals,MATCH('Annual GHG Emissions - Sector'!BR$38&"#"&actCaseAnnGHG_3&"#"&'Annual GHG Emissions - Sector'!$I61,Total_Emissions_by_A_index,0))) -> 20.78110993
I62: Residential and Commercial | AI62: =IF(actCaseAnnGHG_3="",NA(),INDEX(Total_Emissions_by_A_vals,MATCH('Annual GHG Emissions - Sector'!AI$38&"#"&actCaseAnnGHG_3&"#"&'Annual GHG Emissions - Sector'!$I62,Total_Emissions_by_A_index,0))) -> 40.56748531 | AJ62: =IF(actCaseAnnGHG_3="",NA(),INDEX(Total_Emissions_by_A_vals,MATCH('Annual GHG Emissions - Sector'!AJ$38&"#"&actCaseAnnGHG_3&"#"&'Annual GHG Emissions - Sector'!$I62,Total_Emissions_by_A_index,0))) -> 40.47823696 | AK62: =IF(actCaseAnnGHG_3="",NA(),INDEX(Total_Emissions_by_A_vals,MATCH('Annual GHG Emissions - Sector'!AK$38&"#"&actCaseAnnGHG_3&"#"&'Annual GHG Emissions - Sector'!$I62,Total_Emissions_by_A_index,0))) -> 40.37315589 | AL62: =IF(actCaseAnnGHG_3="",NA(),INDEX(Total_Emissions_by_A_vals,MATCH('Annual GHG Emissions - Sector'!AL$38&"#"&actCaseAnnGHG_3&"#"&'Annual GHG Emissions - Sector'!$I62,Total_Emissions_by_A_index,0))) -> 40.19189616 | AM62: =IF(actCaseAnnGHG_3="",NA(),INDEX(Total_Emissions_by_A_vals,MATCH('Annual GHG Emissions - Sector'!AM$38&"#"&actCaseAnnGHG_3&"#"&'Annual GHG Emissions - Sector'!$I62,Total_Emissions_by_A_index,0))) -> 40.02540541 | AN62: =IF(actCaseAnnGHG_3="",NA(),INDEX(Total_Emissions_by_A_vals,MATCH('Annual GHG Emissions - Sector'!AN$38&"#"&actCaseAnnGHG_3&"#"&'Annual GHG Emissions - Sector'!$I62,Total_Emissions_by_A_index,0))) -> 39.8000951 | AO62: =IF(actCaseAnnGHG_3="",NA(),INDEX(Total_Emissions_by_A_vals,MATCH('Annual GHG Emissions - Sector'!AO$38&"#"&actCaseAnnGHG_3&"#"&'Annual GHG Emissions - Sector'!$I62,Total_Emissions_by_A_index,0))) -> 39.71953016 | AP62: =IF(actCaseAnnGHG_3="",NA(),INDEX(Total_Emissions_by_A_vals,MATCH('Annual GHG Emissions - Sector'!AP$38&"#"&actCaseAnnGHG_3&"#"&'Annual GHG Emissions - Sector'!$I62,Total_Emissions_by_A_index,0))) -> 39.53676149 | AQ62: =IF(actCaseAnnGHG_3="",NA(),INDEX(Total_Emissions_by_A_vals,MATCH('Annual GHG Emissions - Sector'!AQ$38&"#"&actCaseAnnGHG_3&"#"&'Annual GHG Emissions - Sector'!$I62,Total_Emissions_by_A_index,0))) -> 39.096345 | AR62: =IF(actCaseAnnGHG_3="",NA(),INDEX(Total_Emissions_by_A_vals,MATCH('Annual GHG Emissions - Sector'!AR$38&"#"&actCaseAnnGHG_3&"#"&'Annual GHG Emissions - Sector'!$I62,Total_Emissions_by_A_index,0))) -> 38.41582968 | AS62: =IF(actCaseAnnGHG_3="",NA(),INDEX(Total_Emissions_by_A_vals,MATCH('Annual GHG Emissions - Sector'!AS$38&"#"&actCaseAnnGHG_3&"#"&'Annual GHG Emissions - Sector'!$I62,Total_Emissions_by_A_index,0))) -> 37.08634759 | AT62: =IF(actCaseAnnGHG_3="",NA(),INDEX(Total_Emissions_by_A_vals,MATCH('Annual GHG Emissions - Sector'!AT$38&"#"&actCaseAnnGHG_3&"#"&'Annual GHG Emissions - Sector'!$I62,Total_Emissions_by_A_index,0))) -> 35.5115443 | AU62: =IF(actCaseAnnGHG_3="",NA(),INDEX(Total_Emissions_by_A_vals,MATCH('Annual GHG Emissions - Sector'!AU$38&"#"&actCaseAnnGHG_3&"#"&'Annual GHG Emissions - Sector'!$I62,Total_Emissions_by_A_index,0))) -> 33.43923951 | AV62: =IF(actCaseAnnGHG_3="",NA(),INDEX(Total_Emissions_by_A_vals,MATCH('Annual GHG Emissions - Sector'!AV$38&"#"&actCaseAnnGHG_3&"#"&'Annual GHG Emissions - Sector'!$I62,Total_Emissions_by_A_index,0))) -> 31.34556174 | AW62: =IF(actCaseAnnGHG_3="",NA(),INDEX(Total_Emissions_by_A_vals,MATCH('Annual GHG Emissions - Sector'!AW$38&"#"&actCaseAnnGHG_3&"#"&'Annual GHG Emissions - Sector'!$I62,Total_Emissions_by_A_index,0))) -> 29.29687481 | AX62: =IF(actCaseAnnGHG_3="",NA(),INDEX(Total_Emissions_by_A_vals,MATCH('Annual GHG Emissions - Sector'!AX$38&"#"&actCaseAnnGHG_3&"#"&'Annual GHG Emissions - Sector'!$I62,Total_Emissions_by_A_index,0))) -> 27.12190065 | AY62: =IF(actCaseAnnGHG_3="",NA(),INDEX(Total_Emissions_by_A_vals,MATCH('Annual GHG Emissions - Sector'!AY$38&"#"&actCaseAnnGHG_3&"#"&'Annual GHG Emissions - Sector'!$I62,Total_Emissions_by_A_index,0))) -> 25.70721025 | AZ62: =IF(actCaseAnnGHG_3="",NA(),INDEX(Total_Emissions_by_A_vals,MATCH('Annual GHG Emissions - Sector'!AZ$38&"#"&actCaseAnnGHG_3&"#"&'Annual GHG Emissions - Sector'!$I62,Total_Emissions_by_A_index,0))) -> 24.33581553 | BA62: =IF(actCaseAnnGHG_3="",NA(),INDEX(Total_Emissions_by_A_vals,MATCH('Annual GHG Emissions - Sector'!BA$38&"#"&actCaseAnnGHG_3&"#"&'Annual GHG Emissions - Sector'!$I62,Total_Emissions_by_A_index,0))) -> 23.02708682 | BB62: =IF(actCaseAnnGHG_3="",NA(),INDEX(Total_Emissions_by_A_vals,MATCH('Annual GHG Emissions - Sector'!BB$38&"#"&actCaseAnnGHG_3&"#"&'Annual GHG Emissions - Sector'!$I62,Total_Emissions_by_A_index,0))) -> 21.78646545 | BC62: =IF(actCaseAnnGHG_3="",NA(),INDEX(Total_Emissions_by_A_vals,MATCH('Annual GHG Emissions - Sector'!BC$38&"#"&actCaseAnnGHG_3&"#"&'Annual GHG Emissions - Sector'!$I62,Total_Emissions_by_A_index,0))) -> 20.62635116 | BD62: =IF(actCaseAnnGHG_3="",NA(),INDEX(Total_Emissions_by_A_vals,MATCH('Annual GHG Emissions - Sector'!BD$38&"#"&actCaseAnnGHG_3&"#"&'Annual GHG Emissions - Sector'!$I62,Total_Emissions_by_A_index,0))) -> 19.56520016 | BE62: =IF(actCaseAnnGHG_3="",NA(),INDEX(Total_Emissions_by_A_vals,MATCH('Annual GHG Emissions - Sector'!BE$38&"#"&actCaseAnnGHG_3&"#"&'Annual GHG Emissions - Sector'!$I62,Total_Emissions_by_A_index,0))) -> 18.59452433 | BF62: =IF(actCaseAnnGHG_3="",NA(),INDEX(Total_Emissions_by_A_vals,MATCH('Annual GHG Emissions - Sector'!BF$38&"#"&actCaseAnnGHG_3&"#"&'Annual GHG Emissions - Sector'!$I62,Total_Emissions_by_A_index,0))) -> 17.71445665 | BG62: =IF(actCaseAnnGHG_3="",NA(),INDEX(Total_Emissions_by_A_vals,MATCH('Annual GHG Emissions - Sector'!BG$38&"#"&actCaseAnnGHG_3&"#"&'Annual GHG Emissions - Sector'!$I62,Total_Emissions_by_A_index,0))) -> 16.91704121 | BH62: =IF(actCaseAnnGHG_3="",NA(),INDEX(Total_Emissions_by_A_vals,MATCH('Annual GHG Emissions - Sector'!BH$38&"#"&actCaseAnnGHG_3&"#"&'Annual GHG Emissions - Sector'!$I62,Total_Emissions_by_A_index,0))) -> 16.19222304 | BI62: =IF(actCaseAnnGHG_3="",NA(),INDEX(Total_Emissions_by_A_vals,MATCH('Annual GHG Emissions - Sector'!BI$38&"#"&actCaseAnnGHG_3&"#"&'Annual GHG Emissions - Sector'!$I62,Total_Emissions_by_A_index,0))) -> 15.53078043 | BJ62: =IF(actCaseAnnGHG_3="",NA(),INDEX(Total_Emissions_by_A_vals,MATCH('Annual GHG Emissions - Sector'!BJ$38&"#"&actCaseAnnGHG_3&"#"&'Annual GHG Emissions - Sector'!$I62,Total_Emissions_by_A_index,0))) -> 14.92865316 | BK62: =IF(actCaseAnnGHG_3="",NA(),INDEX(Total_Emissions_by_A_vals,MATCH('Annual GHG Emissions - Sector'!BK$38&"#"&actCaseAnnGHG_3&"#"&'Annual GHG Emissions - Sector'!$I62,Total_Emissions_by_A_index,0))) -> 14.37720918 | BL62: =IF(actCaseAnnGHG_3="",NA(),INDEX(Total_Emissions_by_A_vals,MATCH('Annual GHG Emissions - Sector'!BL$38&"#"&actCaseAnnGHG_3&"#"&'Annual GHG Emissions - Sector'!$I62,Total_Emissions_by_A_index,0))) -> 13.86630216 | BM62: =IF(actCaseAnnGHG_3="",NA(),INDEX(Total_Emissions_by_A_vals,MATCH('Annual GHG Emissions - Sector'!BM$38&"#"&actCaseAnnGHG_3&"#"&'Annual GHG Emissions - Sector'!$I62,Total_Emissions_by_A_index,0))) -> 13.39180571 | BN62: =IF(actCaseAnnGHG_3="",NA(),INDEX(Total_Emissions_by_A_vals,MATCH('Annual GHG Emissions - Sector'!BN$38&"#"&actCaseAnnGHG_3&"#"&'Annual GHG Emissions - Sector'!$I62,Total_Emissions_by_A_index,0))) -> 12.95420679 | BO62: =IF(actCaseAnnGHG_3="",NA(),INDEX(Total_Emissions_by_A_vals,MATCH('Annual GHG Emissions - Sector'!BO$38&"#"&actCaseAnnGHG_3&"#"&'Annual GHG Emissions - Sector'!$I62,Total_Emissions_by_A_index,0))) -> 12.55204746 | BP62: =IF(actCaseAnnGHG_3="",NA(),INDEX(Total_Emissions_by_A_vals,MATCH('Annual GHG Emissions - Sector'!BP$38&"#"&actCaseAnnGHG_3&"#"&'Annual GHG Emissions - Sector'!$I62,Total_Emissions_by_A_index,0))) -> 12.1770954 | BQ62: =IF(actCaseAnnGHG_3="",NA(),INDEX(Total_Emissions_by_A_vals,MATCH('Annual GHG Emissions - Sector'!BQ$38&"#"&actCaseAnnGHG_3&"#"&'Annual GHG Emissions - Sector'!$I62,Total_Emissions_by_A_index,0))) -> 11.82805179 | BR62: =IF(actCaseAnnGHG_3="",NA(),INDEX(Total_Emissions_by_A_vals,MATCH('Annual GHG Emissions - Sector'!BR$38&"#"&actCaseAnnGHG_3&"#"&'Annual GHG Emissions - Sector'!$I62,Total_Emissions_by_A_index,0))) -> 11.51685103
I63: Electric Power | AI63: =IF(actCaseAnnGHG_3="",NA(),INDEX(Total_Emissions_by_A_vals,MATCH('Annual GHG Emissions - Sector'!AI$38&"#"&actCaseAnnGHG_3&"#"&'Annual GHG Emissions - Sector'!$I63,Total_Emissions_by_A_index,0))) -> 74.97699701 | AJ63: =IF(actCaseAnnGHG_3="",NA(),INDEX(Total_Emissions_by_A_vals,MATCH('Annual GHG Emissions - Sector'!AJ$38&"#"&actCaseAnnGHG_3&"#"&'Annual GHG Emissions - Sector'!$I63,Total_Emissions_by_A_index,0))) -> 72.63266659 | AK63: =IF(actCaseAnnGHG_3="",NA(),INDEX(Total_Emissions_by_A_vals,MATCH('Annual GHG Emissions - Sector'!AK$38&"#"&actCaseAnnGHG_3&"#"&'Annual GHG Emissions - Sector'!$I63,Total_Emissions_by_A_index,0))) -> 67.65707646 | AL63: =IF(actCaseAnnGHG_3="",NA(),INDEX(Total_Emissions_by_A_vals,MATCH('Annual GHG Emissions - Sector'!AL$38&"#"&actCaseAnnGHG_3&"#"&'Annual GHG Emissions - Sector'!$I63,Total_Emissions_by_A_index,0))) -> 67.18735258 | AM63: =IF(actCaseAnnGHG_3="",NA(),INDEX(Total_Emissions_by_A_vals,MATCH('Annual GHG Emissions - Sector'!AM$38&"#"&actCaseAnnGHG_3&"#"&'Annual GHG Emissions - Sector'!$I63,Total_Emissions_by_A_index,0))) -> 66.23137558 | AN63: =IF(actCaseAnnGHG_3="",NA(),INDEX(Total_Emissions_by_A_vals,MATCH('Annual GHG Emissions - Sector'!AN$38&"#"&actCaseAnnGHG_3&"#"&'Annual GHG Emissions - Sector'!$I63,Total_Emissions_by_A_index,0))) -> 64.40662318 | AO63: =IF(actCaseAnnGHG_3="",NA(),INDEX(Total_Emissions_by_A_vals,MATCH('Annual GHG Emissions - Sector'!AO$38&"#"&actCaseAnnGHG_3&"#"&'Annual GHG Emissions - Sector'!$I63,Total_Emissions_by_A_index,0))) -> 60.94308586 | AP63: =IF(actCaseAnnGHG_3="",NA(),INDEX(Total_Emissions_by_A_vals,MATCH('Annual GHG Emissions - Sector'!AP$38&"#"&actCaseAnnGHG_3&"#"&'Annual GHG Emissions - Sector'!$I63,Total_Emissions_by_A_index,0))) -> 57.03013584 | AQ63: =IF(actCaseAnnGHG_3="",NA(),INDEX(Total_Emissions_by_A_vals,MATCH('Annual GHG Emissions - Sector'!AQ$38&"#"&actCaseAnnGHG_3&"#"&'Annual GHG Emissions - Sector'!$I63,Total_Emissions_by_A_index,0))) -> 53.40305675 | AR63: =IF(actCaseAnnGHG_3="",NA(),INDEX(Total_Emissions_by_A_vals,MATCH('Annual GHG Emissions - Sector'!AR$38&"#"&actCaseAnnGHG_3&"#"&'Annual GHG Emissions - Sector'!$I63,Total_Emissions_by_A_index,0))) -> 50.05198066 | AS63: =IF(actCaseAnnGHG_3="",NA(),INDEX(Total_Emissions_by_A_vals,MATCH('Annual GHG Emissions - Sector'!AS$38&"#"&actCaseAnnGHG_3&"#"&'Annual GHG Emissions - Sector'!$I63,Total_Emissions_by_A_index,0))) -> 53.8212467 | AT63: =IF(actCaseAnnGHG_3="",NA(),INDEX(Total_Emissions_by_A_vals,MATCH('Annual GHG Emissions - Sector'!AT$38&"#"&actCaseAnnGHG_3&"#"&'Annual GHG Emissions - Sector'!$I63,Total_Emissions_by_A_index,0))) -> 50.8741977 | AU63: =IF(actCaseAnnGHG_3="",NA(),INDEX(Total_Emissions_by_A_vals,MATCH('Annual GHG Emissions - Sector'!AU$38&"#"&actCaseAnnGHG_3&"#"&'Annual GHG Emissions - Sector'!$I63,Total_Emissions_by_A_index,0))) -> 48.56134454 | AV63: =IF(actCaseAnnGHG_3="",NA(),INDEX(Total_Emissions_by_A_vals,MATCH('Annual GHG Emissions - Sector'!AV$38&"#"&actCaseAnnGHG_3&"#"&'Annual GHG Emissions - Sector'!$I63,Total_Emissions_by_A_index,0))) -> 38.93081713 | AW63: =IF(actCaseAnnGHG_3="",NA(),INDEX(Total_Emissions_by_A_vals,MATCH('Annual GHG Emissions - Sector'!AW$38&"#"&actCaseAnnGHG_3&"#"&'Annual GHG Emissions - Sector'!$I63,Total_Emissions_by_A_index,0))) -> 36.96162031 | AX63: =IF(actCaseAnnGHG_3="",NA(),INDEX(Total_Emissions_by_A_vals,MATCH('Annual GHG Emissions - Sector'!AX$38&"#"&actCaseAnnGHG_3&"#"&'Annual GHG Emissions - Sector'!$I63,Total_Emissions_by_A_index,0))) -> 32.98222729 | AY63: =IF(actCaseAnnGHG_3="",NA(),INDEX(Total_Emissions_by_A_vals,MATCH('Annual GHG Emissions - Sector'!AY$38&"#"&actCaseAnnGHG_3&"#"&'Annual GHG Emissions - Sector'!$I63,Total_Emissions_by_A_index,0))) -> 31.71860108 | AZ63: =IF(actCaseAnnGHG_3="",NA(),INDEX(Total_Emissions_by_A_vals,MATCH('Annual GHG Emissions - Sector'!AZ$38&"#"&actCaseAnnGHG_3&"#"&'Annual GHG Emissions - Sector'!$I63,Total_Emissions_by_A_index,0))) -> 31.93765726 | BA63: =IF(actCaseAnnGHG_3="",NA(),INDEX(Total_Emissions_by_A_vals,MATCH('Annual GHG Emissions - Sector'!BA$38&"#"&actCaseAnnGHG_3&"#"&'Annual GHG Emissions - Sector'!$I63,Total_Emissions_by_A_index,0))) -> 32.26320368 | BB63: =IF(actCaseAnnGHG_3="",NA(),INDEX(Total_Emissions_by_A_vals,MATCH('Annual GHG Emissions - Sector'!BB$38&"#"&actCaseAnnGHG_3&"#"&'Annual GHG Emissions - Sector'!$I63,Total_Emissions_by_A_index,0))) -> 31.72402779 | BC63: =IF(actCaseAnnGHG_3="",NA(),INDEX(Total_Emissions_by_A_vals,MATCH('Annual GHG Emissions - Sector'!BC$38&"#"&actCaseAnnGHG_3&"#"&'Annual GHG Emissions - Sector'!$I63,Total_Emissions_by_A_index,0))) -> 31.94819369 | BD63: =IF(actCaseAnnGHG_3="",NA(),INDEX(Total_Emissions_by_A_vals,MATCH('Annual GHG Emissions - Sector'!BD$38&"#"&actCaseAnnGHG_3&"#"&'Annual GHG Emissions - Sector'!$I63,Total_Emissions_by_A_index,0))) -> 32.19447008 | BE63: =IF(actCaseAnnGHG_3="",NA(),INDEX(Total_Emissions_by_A_vals,MATCH('Annual GHG Emissions - Sector'!BE$38&"#"&actCaseAnnGHG_3&"#"&'Annual GHG Emissions - Sector'!$I63,Total_Emissions_by_A_index,0))) -> 32.33603274 | BF63: =IF(actCaseAnnGHG_3="",NA(),INDEX(Total_Emissions_by_A_vals,MATCH('Annual GHG Emissions - Sector'!BF$38&"#"&actCaseAnnGHG_3&"#"&'Annual GHG Emissions - Sector'!$I63,Total_Emissions_by_A_index,0))) -> 32.58710545 | BG63: =IF(actCaseAnnGHG_3="",NA(),INDEX(Total_Emissions_by_A_vals,MATCH('Annual GHG Emissions - Sector'!BG$38&"#"&actCaseAnnGHG_3&"#"&'Annual GHG Emissions - Sector'!$I63,Total_Emissions_by_A_index,0))) -> 32.73400158 | BH63: =IF(actCaseAnnGHG_3="",NA(),INDEX(Total_Emissions_by_A_vals,MATCH('Annual GHG Emissions - Sector'!BH$38&"#"&actCaseAnnGHG_3&"#"&'Annual GHG Emissions - Sector'!$I63,Total_Emissions_by_A_index,0))) -> 32.97755164 | BI63: =IF(actCaseAnnGHG_3="",NA(),INDEX(Total_Emissions_by_A_vals,MATCH('Annual GHG Emissions - Sector'!BI$38&"#"&actCaseAnnGHG_3&"#"&'Annual GHG Emissions - Sector'!$I63,Total_Emissions_by_A_index,0))) -> 32.10472486 | BJ63: =IF(actCaseAnnGHG_3="",NA(),INDEX(Total_Emissions_by_A_vals,MATCH('Annual GHG Emissions - Sector'!BJ$38&"#"&actCaseAnnGHG_3&"#"&'Annual GHG Emissions - Sector'!$I63,Total_Emissions_by_A_index,0))) -> 31.5478899 | BK63: =IF(actCaseAnnGHG_3="",NA(),INDEX(Total_Emissions_by_A_vals,MATCH('Annual GHG Emissions - Sector'!BK$38&"#"&actCaseAnnGHG_3&"#"&'Annual GHG Emissions - Sector'!$I63,Total_Emissions_by_A_index,0))) -> 30.96639945 | BL63: =IF(actCaseAnnGHG_3="",NA(),INDEX(Total_Emissions_by_A_vals,MATCH('Annual GHG Emissions - Sector'!BL$38&"#"&actCaseAnnGHG_3&"#"&'Annual GHG Emissions - Sector'!$I63,Total_Emissions_by_A_index,0))) -> 30.34532264 | BM63: =IF(actCaseAnnGHG_3="",NA(),INDEX(Total_Emissions_by_A_vals,MATCH('Annual GHG Emissions - Sector'!BM$38&"#"&actCaseAnnGHG_3&"#"&'Annual GHG Emissions - Sector'!$I63,Total_Emissions_by_A_index,0))) -> 29.70376961 | BN63: =IF(actCaseAnnGHG_3="",NA(),INDEX(Total_Emissions_by_A_vals,MATCH('Annual GHG Emissions - Sector'!BN$38&"#"&actCaseAnnGHG_3&"#"&'Annual GHG Emissions - Sector'!$I63,Total_Emissions_by_A_index,0))) -> 29.03632698 | BO63: =IF(actCaseAnnGHG_3="",NA(),INDEX(Total_Emissions_by_A_vals,MATCH('Annual GHG Emissions - Sector'!BO$38&"#"&actCaseAnnGHG_3&"#"&'Annual GHG Emissions - Sector'!$I63,Total_Emissions_by_A_index,0))) -> 28.37881689 | BP63: =IF(actCaseAnnGHG_3="",NA(),INDEX(Total_Emissions_by_A_vals,MATCH('Annual GHG Emissions - Sector'!BP$38&"#"&actCaseAnnGHG_3&"#"&'Annual GHG Emissions - Sector'!$I63,Total_Emissions_by_A_index,0))) -> 27.73993391 | BQ63: =IF(actCaseAnnGHG_3="",NA(),INDEX(Total_Emissions_by_A_vals,MATCH('Annual GHG Emissions - Sector'!BQ$38&"#"&actCaseAnnGHG_3&"#"&'Annual GHG Emissions - Sector'!$I63,Total_Emissions_by_A_index,0))) -> 27.09080088 | BR63: =IF(actCaseAnnGHG_3="",NA(),INDEX(Total_Emissions_by_A_vals,MATCH('Annual GHG Emissions - Sector'!BR$38&"#"&actCaseAnnGHG_3&"#"&'Annual GHG Emissions - Sector'!$I63,Total_Emissions_by_A_index,0))) -> 26.49765469 | BZ63: ="California GHG Emissions by Sector - "&$I$83 -> California GHG Emissions by Sector - PATHWAYS -
I64: High GWP | AI64: =IF(actCaseAnnGHG_3="",NA(),INDEX(Total_Emissions_by_A_vals,MATCH('Annual GHG Emissions - Sector'!AI$38&"#"&actCaseAnnGHG_3&"#"&'Annual GHG Emissions - Sector'!$I64,Total_Emissions_by_A_index,0))) -> 18.81184626 | AJ64: =IF(actCaseAnnGHG_3="",NA(),INDEX(Total_Emissions_by_A_vals,MATCH('Annual GHG Emissions - Sector'!AJ$38&"#"&actCaseAnnGHG_3&"#"&'Annual GHG Emissions - Sector'!$I64,Total_Emissions_by_A_index,0))) -> 19.23798571 | AK64: =IF(actCaseAnnGHG_3="",NA(),INDEX(Total_Emissions_by_A_vals,MATCH('Annual GHG Emissions - Sector'!AK$38&"#"&actCaseAnnGHG_3&"#"&'Annual GHG Emissions - Sector'!$I64,Total_Emissions_by_A_index,0))) -> 19.26273119 | AL64: =IF(actCaseAnnGHG_3="",NA(),INDEX(Total_Emissions_by_A_vals,MATCH('Annual GHG Emissions - Sector'!AL$38&"#"&actCaseAnnGHG_3&"#"&'Annual GHG Emissions - Sector'!$I64,Total_Emissions_by_A_index,0))) -> 18.95410728 | AM64: =IF(actCaseAnnGHG_3="",NA(),INDEX(Total_Emissions_by_A_vals,MATCH('Annual GHG Emissions - Sector'!AM$38&"#"&actCaseAnnGHG_3&"#"&'Annual GHG Emissions - Sector'!$I64,Total_Emissions_by_A_index,0))) -> 18.81240865 | AN64: =IF(actCaseAnnGHG_3="",NA(),INDEX(Total_Emissions_by_A_vals,MATCH('Annual GHG Emissions - Sector'!AN$38&"#"&actCaseAnnGHG_3&"#"&'Annual GHG Emissions - Sector'!$I64,Total_Emissions_by_A_index,0))) -> 18.48610798 | AO64: =IF(actCaseAnnGHG_3="",NA(),INDEX(Total_Emissions_by_A_vals,MATCH('Annual GHG Emissions - Sector'!AO$38&"#"&actCaseAnnGHG_3&"#"&'Annual GHG Emissions - Sector'!$I64,Total_Emissions_by_A_index,0))) -> 18.08612601 | AP64: =IF(actCaseAnnGHG_3="",NA(),INDEX(Total_Emissions_by_A_vals,MATCH('Annual GHG Emissions - Sector'!AP$38&"#"&actCaseAnnGHG_3&"#"&'Annual GHG Emissions - Sector'!$I64,Total_Emissions_by_A_index,0))) -> 17.62394705 | AQ64: =IF(actCaseAnnGHG_3="",NA(),INDEX(Total_Emissions_by_A_vals,MATCH('Annual GHG Emissions - Sector'!AQ$38&"#"&actCaseAnnGHG_3&"#"&'Annual GHG Emissions - Sector'!$I64,Total_Emissions_by_A_index,0))) -> 17.09660621 | AR64: =IF(actCaseAnnGHG_3="",NA(),INDEX(Total_Emissions_by_A_vals,MATCH('Annual GHG Emissions - Sector'!AR$38&"#"&actCaseAnnGHG_3&"#"&'Annual GHG Emissions - Sector'!$I64,Total_Emissions_by_A_index,0))) -> 16.50274418 | AS64: =IF(actCaseAnnGHG_3="",NA(),INDEX(Total_Emissions_by_A_vals,MATCH('Annual GHG Emissions - Sector'!AS$38&"#"&actCaseAnnGHG_3&"#"&'Annual GHG Emissions - Sector'!$I64,Total_Emissions_by_A_index,0))) -> 15.81164007 | AT64: =IF(actCaseAnnGHG_3="",NA(),INDEX(Total_Emissions_by_A_vals,MATCH('Annual GHG Emissions - Sector'!AT$38&"#"&actCaseAnnGHG_3&"#"&'Annual GHG Emissions - Sector'!$I64,Total_Emissions_by_A_index,0))) -> 14.91638004 | AU64: =IF(actCaseAnnGHG_3="",NA(),INDEX(Total_Emissions_by_A_vals,MATCH('Annual GHG Emissions - Sector'!AU$38&"#"&actCaseAnnGHG_3&"#"&'Annual GHG Emissions - Sector'!$I64,Total_Emissions_by_A_index,0))) -> 13.97794102 | AV64: =IF(actCaseAnnGHG_3="",NA(),INDEX(Total_Emissions_by_A_vals,MATCH('Annual GHG Emissions - Sector'!AV$38&"#"&actCaseAnnGHG_3&"#"&'Annual GHG Emissions - Sector'!$I64,Total_Emissions_by_A_index,0))) -> 12.99619359 | AW64: =IF(actCaseAnnGHG_3="",NA(),INDEX(Total_Emissions_by_A_vals,MATCH('Annual GHG Emissions - Sector'!AW$38&"#"&actCaseAnnGHG_3&"#"&'Annual GHG Emissions - Sector'!$I64,Total_Emissions_by_A_index,0))) -> 11.96996331 | AX64: =IF(actCaseAnnGHG_3="",NA(),INDEX(Total_Emissions_by_A_vals,MATCH('Annual GHG Emissions - Sector'!AX$38&"#"&actCaseAnnGHG_3&"#"&'Annual GHG Emissions - Sector'!$I64,Total_Emissions_by_A_index,0))) -> 10.65532773 | AY64: =IF(actCaseAnnGHG_3="",NA(),INDEX(Total_Emissions_by_A_vals,MATCH('Annual GHG Emissions - Sector'!AY$38&"#"&actCaseAnnGHG_3&"#"&'Annual GHG Emissions - Sector'!$I64,Total_Emissions_by_A_index,0))) -> 10.44930551 | AZ64: =IF(actCaseAnnGHG_3="",NA(),INDEX(Total_Emissions_by_A_vals,MATCH('Annual GHG Emissions - Sector'!AZ$38&"#"&actCaseAnnGHG_3&"#"&'Annual GHG Emissions - Sector'!$I64,Total_Emissions_by_A_index,0))) -> 10.24147935 | BA64: =IF(actCaseAnnGHG_3="",NA(),INDEX(Total_Emissions_by_A_vals,MATCH('Annual GHG Emissions - Sector'!BA$38&"#"&actCaseAnnGHG_3&"#"&'Annual GHG Emissions - Sector'!$I64,Total_Emissions_by_A_index,0))) -> 10.03234943 | BB64: =IF(actCaseAnnGHG_3="",NA(),INDEX(Total_Emissions_by_A_vals,MATCH('Annual GHG Emissions - Sector'!BB$38&"#"&actCaseAnnGHG_3&"#"&'Annual GHG Emissions - Sector'!$I64,Total_Emissions_by_A_index,0))) -> 9.82226611 | BC64: =IF(actCaseAnnGHG_3="",NA(),INDEX(Total_Emissions_by_A_vals,MATCH('Annual GHG Emissions - Sector'!BC$38&"#"&actCaseAnnGHG_3&"#"&'Annual GHG Emissions - Sector'!$I64,Total_Emissions_by_A_index,0))) -> 9.610868581 | BD64: =IF(actCaseAnnGHG_3="",NA(),INDEX(Total_Emissions_by_A_vals,MATCH('Annual GHG Emissions - Sector'!BD$38&"#"&actCaseAnnGHG_3&"#"&'Annual GHG Emissions - Sector'!$I64,Total_Emissions_by_A_index,0))) -> 9.409587189 | BE64: =IF(actCaseAnnGHG_3="",NA(),INDEX(Total_Emissions_by_A_vals,MATCH('Annual GHG Emissions - Sector'!BE$38&"#"&actCaseAnnGHG_3&"#"&'Annual GHG Emissions - Sector'!$I64,Total_Emissions_by_A_index,0))) -> 9.206312344 | BF64: =IF(actCaseAnnGHG_3="",NA(),INDEX(Total_Emissions_by_A_vals,MATCH('Annual GHG Emissions - Sector'!BF$38&"#"&actCaseAnnGHG_3&"#"&'Annual GHG Emissions - Sector'!$I64,Total_Emissions_by_A_index,0))) -> 9.001098185 | BG64: =IF(actCaseAnnGHG_3="",NA(),INDEX(Total_Emissions_by_A_vals,MATCH('Annual GHG Emissions - Sector'!BG$38&"#"&actCaseAnnGHG_3&"#"&'Annual GHG Emissions - Sector'!$I64,Total_Emissions_by_A_index,0))) -> 8.793941083 | BH64: =IF(actCaseAnnGHG_3="",NA(),INDEX(Total_Emissions_by_A_vals,MATCH('Annual GHG Emissions - Sector'!BH$38&"#"&actCaseAnnGHG_3&"#"&'Annual GHG Emissions - Sector'!$I64,Total_Emissions_by_A_index,0))) -> 8.584840114 | BI64: =IF(actCaseAnnGHG_3="",NA(),INDEX(Total_Emissions_by_A_vals,MATCH('Annual GHG Emissions - Sector'!BI$38&"#"&actCaseAnnGHG_3&"#"&'Annual GHG Emissions - Sector'!$I64,Total_Emissions_by_A_index,0))) -> 8.36677548 | BJ64: =IF(actCaseAnnGHG_3="",NA(),INDEX(Total_Emissions_by_A_vals,MATCH('Annual GHG Emissions - Sector'!BJ$38&"#"&actCaseAnnGHG_3&"#"&'Annual GHG Emissions - Sector'!$I64,Total_Emissions_by_A_index,0))) -> 8.147327401 | BK64: =IF(actCaseAnnGHG_3="",NA(),INDEX(Total_Emissions_by_A_vals,MATCH('Annual GHG Emissions - Sector'!BK$38&"#"&actCaseAnnGHG_3&"#"&'Annual GHG Emissions - Sector'!$I64,Total_Emissions_by_A_index,0))) -> 7.926444672 | BL64: =IF(actCaseAnnGHG_3="",NA(),INDEX(Total_Emissions_by_A_vals,MATCH('Annual GHG Emissions - Sector'!BL$38&"#"&actCaseAnnGHG_3&"#"&'Annual GHG Emissions - Sector'!$I64,Total_Emissions_by_A_index,0))) -> 7.704102571 | BM64: =IF(actCaseAnnGHG_3="",NA(),INDEX(Total_Emissions_by_A_vals,MATCH('Annual GHG Emissions - Sector'!BM$38&"#"&actCaseAnnGHG_3&"#"&'Annual GHG Emissions - Sector'!$I64,Total_Emissions_by_A_index,0))) -> 7.480260766 | BN64: =IF(actCaseAnnGHG_3="",NA(),INDEX(Total_Emissions_by_A_vals,MATCH('Annual GHG Emissions - Sector'!BN$38&"#"&actCaseAnnGHG_3&"#"&'Annual GHG Emissions - Sector'!$I64,Total_Emissions_by_A_index,0))) -> 7.252978823 | BO64: =IF(actCaseAnnGHG_3="",NA(),INDEX(Total_Emissions_by_A_vals,MATCH('Annual GHG Emissions - Sector'!BO$38&"#"&actCaseAnnGHG_3&"#"&'Annual GHG Emissions - Sector'!$I64,Total_Emissions_by_A_index,0))) -> 7.024283154 | BP64: =IF(actCaseAnnGHG_3="",NA(),INDEX(Total_Emissions_by_A_vals,MATCH('Annual GHG Emissions - Sector'!BP$38&"#"&actCaseAnnGHG_3&"#"&'Annual GHG Emissions - Sector'!$I64,Total_Emissions_by_A_index,0))) -> 6.794098032 | BQ64: =IF(actCaseAnnGHG_3="",NA(),INDEX(Total_Emissions_by_A_vals,MATCH('Annual GHG Emissions - Sector'!BQ$38&"#"&actCaseAnnGHG_3&"#"&'Annual GHG Emissions - Sector'!$I64,Total_Emissions_by_A_index,0))) -> 6.5623696 | BR64: =IF(actCaseAnnGHG_3="",NA(),INDEX(Total_Emissions_by_A_vals,MATCH('Annual GHG Emissions - Sector'!BR$38&"#"&actCaseAnnGHG_3&"#"&'Annual GHG Emissions - Sector'!$I64,Total_Emissions_by_A_index,0))) -> 6.329022471
I65: Industrial | AI65: =IF(actCaseAnnGHG_3="",NA(),INDEX(Total_Emissions_by_A_vals,MATCH('Annual GHG Emissions - Sector'!AI$38&"#"&actCaseAnnGHG_3&"#"&'Annual GHG Emissions - Sector'!$I65,Total_Emissions_by_A_index,0))) -> 92.39813657 | AJ65: =IF(actCaseAnnGHG_3="",NA(),INDEX(Total_Emissions_by_A_vals,MATCH('Annual GHG Emissions - Sector'!AJ$38&"#"&actCaseAnnGHG_3&"#"&'Annual GHG Emissions - Sector'!$I65,Total_Emissions_by_A_index,0))) -> 91.98230717 | AK65: =IF(actCaseAnnGHG_3="",NA(),INDEX(Total_Emissions_by_A_vals,MATCH('Annual GHG Emissions - Sector'!AK$38&"#"&actCaseAnnGHG_3&"#"&'Annual GHG Emissions - Sector'!$I65,Total_Emissions_by_A_index,0))) -> 91.20618756 | AL65: =IF(actCaseAnnGHG_3="",NA(),INDEX(Total_Emissions_by_A_vals,MATCH('Annual GHG Emissions - Sector'!AL$38&"#"&actCaseAnnGHG_3&"#"&'Annual GHG Emissions - Sector'!$I65,Total_Emissions_by_A_index,0))) -> 90.66960719 | AM65: =IF(actCaseAnnGHG_3="",NA(),INDEX(Total_Emissions_by_A_vals,MATCH('Annual GHG Emissions - Sector'!AM$38&"#"&actCaseAnnGHG_3&"#"&'Annual GHG Emissions - Sector'!$I65,Total_Emissions_by_A_index,0))) -> 89.98754354 | AN65: =IF(actCaseAnnGHG_3="",NA(),INDEX(Total_Emissions_by_A_vals,MATCH('Annual GHG Emissions - Sector'!AN$38&"#"&actCaseAnnGHG_3&"#"&'Annual GHG Emissions - Sector'!$I65,Total_Emissions_by_A_index,0))) -> 88.79362824 | AO65: =IF(actCaseAnnGHG_3="",NA(),INDEX(Total_Emissions_by_A_vals,MATCH('Annual GHG Emissions - Sector'!AO$38&"#"&actCaseAnnGHG_3&"#"&'Annual GHG Emissions - Sector'!$I65,Total_Emissions_by_A_index,0))) -> 86.13400662 | AP65: =IF(actCaseAnnGHG_3="",NA(),INDEX(Total_Emissions_by_A_vals,MATCH('Annual GHG Emissions - Sector'!AP$38&"#"&actCaseAnnGHG_3&"#"&'Annual GHG Emissions - Sector'!$I65,Total_Emissions_by_A_index,0))) -> 83.49172524 | AQ65: =IF(actCaseAnnGHG_3="",NA(),INDEX(Total_Emissions_by_A_vals,MATCH('Annual GHG Emissions - Sector'!AQ$38&"#"&actCaseAnnGHG_3&"#"&'Annual GHG Emissions - Sector'!$I65,Total_Emissions_by_A_index,0))) -> 80.69693161 | AR65: =IF(actCaseAnnGHG_3="",NA(),INDEX(Total_Emissions_by_A_vals,MATCH('Annual GHG Emissions - Sector'!AR$38&"#"&actCaseAnnGHG_3&"#"&'Annual GHG Emissions - Sector'!$I65,Total_Emissions_by_A_index,0))) -> 78.31318699 | AS65: =IF(actCaseAnnGHG_3="",NA(),INDEX(Total_Emissions_by_A_vals,MATCH('Annual GHG Emissions - Sector'!AS$38&"#"&actCaseAnnGHG_3&"#"&'Annual GHG Emissions - Sector'!$I65,Total_Emissions_by_A_index,0))) -> 76.1926241 | AT65: =IF(actCaseAnnGHG_3="",NA(),INDEX(Total_Emissions_by_A_vals,MATCH('Annual GHG Emissions - Sector'!AT$38&"#"&actCaseAnnGHG_3&"#"&'Annual GHG Emissions - Sector'!$I65,Total_Emissions_by_A_index,0))) -> 74.20036479 | AU65: =IF(actCaseAnnGHG_3="",NA(),INDEX(Total_Emissions_by_A_vals,MATCH('Annual GHG Emissions - Sector'!AU$38&"#"&actCaseAnnGHG_3&"#"&'Annual GHG Emissions - Sector'!$I65,Total_Emissions_by_A_index,0))) -> 71.97397622 | AV65: =IF(actCaseAnnGHG_3="",NA(),INDEX(Total_Emissions_by_A_vals,MATCH('Annual GHG Emissions - Sector'!AV$38&"#"&actCaseAnnGHG_3&"#"&'Annual GHG Emissions - Sector'!$I65,Total_Emissions_by_A_index,0))) -> 69.80892092 | AW65: =IF(actCaseAnnGHG_3="",NA(),INDEX(Total_Emissions_by_A_vals,MATCH('Annual GHG Emissions - Sector'!AW$38&"#"&actCaseAnnGHG_3&"#"&'Annual GHG Emissions - Sector'!$I65,Total_Emissions_by_A_index,0))) -> 67.64140047 | AX65: =IF(actCaseAnnGHG_3="",NA(),INDEX(Total_Emissions_by_A_vals,MATCH('Annual GHG Emissions - Sector'!AX$38&"#"&actCaseAnnGHG_3&"#"&'Annual GHG Emissions - Sector'!$I65,Total_Emissions_by_A_index,0))) -> 63.98909158 | AY65: =IF(actCaseAnnGHG_3="",NA(),INDEX(Total_Emissions_by_A_vals,MATCH('Annual GHG Emissions - Sector'!AY$38&"#"&actCaseAnnGHG_3&"#"&'Annual GHG Emissions - Sector'!$I65,Total_Emissions_by_A_index,0))) -> 63.83563737 | AZ65: =IF(actCaseAnnGHG_3="",NA(),INDEX(Total_Emissions_by_A_vals,MATCH('Annual GHG Emissions - Sector'!AZ$38&"#"&actCaseAnnGHG_3&"#"&'Annual GHG Emissions - Sector'!$I65,Total_Emissions_by_A_index,0))) -> 63.68163643 | BA65: =IF(actCaseAnnGHG_3="",NA(),INDEX(Total_Emissions_by_A_vals,MATCH('Annual GHG Emissions - Sector'!BA$38&"#"&actCaseAnnGHG_3&"#"&'Annual GHG Emissions - Sector'!$I65,Total_Emissions_by_A_index,0))) -> 63.51321648 | BB65: =IF(actCaseAnnGHG_3="",NA(),INDEX(Total_Emissions_by_A_vals,MATCH('Annual GHG Emissions - Sector'!BB$38&"#"&actCaseAnnGHG_3&"#"&'Annual GHG Emissions - Sector'!$I65,Total_Emissions_by_A_index,0))) -> 63.33093971 | BC65: =IF(actCaseAnnGHG_3="",NA(),INDEX(Total_Emissions_by_A_vals,MATCH('Annual GHG Emissions - Sector'!BC$38&"#"&actCaseAnnGHG_3&"#"&'Annual GHG Emissions - Sector'!$I65,Total_Emissions_by_A_index,0))) -> 63.1357905 | BD65: =IF(actCaseAnnGHG_3="",NA(),INDEX(Total_Emissions_by_A_vals,MATCH('Annual GHG Emissions - Sector'!BD$38&"#"&actCaseAnnGHG_3&"#"&'Annual GHG Emissions - Sector'!$I65,Total_Emissions_by_A_index,0))) -> 62.93086019 | BE65: =IF(actCaseAnnGHG_3="",NA(),INDEX(Total_Emissions_by_A_vals,MATCH('Annual GHG Emissions - Sector'!BE$38&"#"&actCaseAnnGHG_3&"#"&'Annual GHG Emissions - Sector'!$I65,Total_Emissions_by_A_index,0))) -> 62.71405951 | BF65: =IF(actCaseAnnGHG_3="",NA(),INDEX(Total_Emissions_by_A_vals,MATCH('Annual GHG Emissions - Sector'!BF$38&"#"&actCaseAnnGHG_3&"#"&'Annual GHG Emissions - Sector'!$I65,Total_Emissions_by_A_index,0))) -> 62.47133222 | BG65: =IF(actCaseAnnGHG_3="",NA(),INDEX(Total_Emissions_by_A_vals,MATCH('Annual GHG Emissions - Sector'!BG$38&"#"&actCaseAnnGHG_3&"#"&'Annual GHG Emissions - Sector'!$I65,Total_Emissions_by_A_index,0))) -> 62.20184809 | BH65: =IF(actCaseAnnGHG_3="",NA(),INDEX(Total_Emissions_by_A_vals,MATCH('Annual GHG Emissions - Sector'!BH$38&"#"&actCaseAnnGHG_3&"#"&'Annual GHG Emissions - Sector'!$I65,Total_Emissions_by_A_index,0))) -> 61.90106689 | BI65: =IF(actCaseAnnGHG_3="",NA(),INDEX(Total_Emissions_by_A_vals,MATCH('Annual GHG Emissions - Sector'!BI$38&"#"&actCaseAnnGHG_3&"#"&'Annual GHG Emissions - Sector'!$I65,Total_Emissions_by_A_index,0))) -> 61.56064134 | BJ65: =IF(actCaseAnnGHG_3="",NA(),INDEX(Total_Emissions_by_A_vals,MATCH('Annual GHG Emissions - Sector'!BJ$38&"#"&actCaseAnnGHG_3&"#"&'Annual GHG Emissions - Sector'!$I65,Total_Emissions_by_A_index,0))) -> 61.36371079 | BK65: =IF(actCaseAnnGHG_3="",NA(),INDEX(Total_Emissions_by_A_vals,MATCH('Annual GHG Emissions - Sector'!BK$38&"#"&actCaseAnnGHG_3&"#"&'Annual GHG Emissions - Sector'!$I65,Total_Emissions_by_A_index,0))) -> 61.17690581 | BL65: =IF(actCaseAnnGHG_3="",NA(),INDEX(Total_Emissions_by_A_vals,MATCH('Annual GHG Emissions - Sector'!BL$38&"#"&actCaseAnnGHG_3&"#"&'Annual GHG Emissions - Sector'!$I65,Total_Emissions_by_A_index,0))) -> 60.98947488 | BM65: =IF(actCaseAnnGHG_3="",NA(),INDEX(Total_Emissions_by_A_vals,MATCH('Annual GHG Emissions - Sector'!BM$38&"#"&actCaseAnnGHG_3&"#"&'Annual GHG Emissions - Sector'!$I65,Total_Emissions_by_A_index,0))) -> 60.80569524 | BN65: =IF(actCaseAnnGHG_3="",NA(),INDEX(Total_Emissions_by_A_vals,MATCH('Annual GHG Emissions - Sector'!BN$38&"#"&actCaseAnnGHG_3&"#"&'Annual GHG Emissions - Sector'!$I65,Total_Emissions_by_A_index,0))) -> 60.61754968 | BO65: =IF(actCaseAnnGHG_3="",NA(),INDEX(Total_Emissions_by_A_vals,MATCH('Annual GHG Emissions - Sector'!BO$38&"#"&actCaseAnnGHG_3&"#"&'Annual GHG Emissions - Sector'!$I65,Total_Emissions_by_A_index,0))) -> 60.42853731 | BP65: =IF(actCaseAnnGHG_3="",NA(),INDEX(Total_Emissions_by_A_vals,MATCH('Annual GHG Emissions - Sector'!BP$38&"#"&actCaseAnnGHG_3&"#"&'Annual GHG Emissions - Sector'!$I65,Total_Emissions_by_A_index,0))) -> 60.24334097 | BQ65: =IF(actCaseAnnGHG_3="",NA(),INDEX(Total_Emissions_by_A_vals,MATCH('Annual GHG Emissions - Sector'!BQ$38&"#"&actCaseAnnGHG_3&"#"&'Annual GHG Emissions - Sector'!$I65,Total_Emissions_by_A_index,0))) -> 60.05938857 | BR65: =IF(actCaseAnnGHG_3="",NA(),INDEX(Total_Emissions_by_A_vals,MATCH('Annual GHG Emissions - Sector'!BR$38&"#"&actCaseAnnGHG_3&"#"&'Annual GHG Emissions - Sector'!$I65,Total_Emissions_by_A_index,0))) -> 59.90102205
I66: Recycling and Waste | AI66: =IF(actCaseAnnGHG_3="",NA(),INDEX(Total_Emissions_by_A_vals,MATCH('Annual GHG Emissions - Sector'!AI$38&"#"&actCaseAnnGHG_3&"#"&'Annual GHG Emissions - Sector'!$I66,Total_Emissions_by_A_index,0))) -> 10.73087981 | AJ66: =IF(actCaseAnnGHG_3="",NA(),INDEX(Total_Emissions_by_A_vals,MATCH('Annual GHG Emissions - Sector'!AJ$38&"#"&actCaseAnnGHG_3&"#"&'Annual GHG Emissions - Sector'!$I66,Total_Emissions_by_A_index,0))) -> 10.73087981 | AK66: =IF(actCaseAnnGHG_3="",NA(),INDEX(Total_Emissions_by_A_vals,MATCH('Annual GHG Emissions - Sector'!AK$38&"#"&actCaseAnnGHG_3&"#"&'Annual GHG Emissions - Sector'!$I66,Total_Emissions_by_A_index,0))) -> 10.73087981 | AL66: =IF(actCaseAnnGHG_3="",NA(),INDEX(Total_Emissions_by_A_vals,MATCH('Annual GHG Emissions - Sector'!AL$38&"#"&actCaseAnnGHG_3&"#"&'Annual GHG Emissions - Sector'!$I66,Total_Emissions_by_A_index,0))) -> 10.73087981 | AM66: =IF(actCaseAnnGHG_3="",NA(),INDEX(Total_Emissions_by_A_vals,MATCH('Annual GHG Emissions - Sector'!AM$38&"#"&actCaseAnnGHG_3&"#"&'Annual GHG Emissions - Sector'!$I66,Total_Emissions_by_A_index,0))) -> 10.73087981 | AN66: =IF(actCaseAnnGHG_3="",NA(),INDEX(Total_Emissions_by_A_vals,MATCH('Annual GHG Emissions - Sector'!AN$38&"#"&actCaseAnnGHG_3&"#"&'Annual GHG Emissions - Sector'!$I66,Total_Emissions_by_A_index,0))) -> 10.59430498 | AO66: =IF(actCaseAnnGHG_3="",NA(),INDEX(Total_Emissions_by_A_vals,MATCH('Annual GHG Emissions - Sector'!AO$38&"#"&actCaseAnnGHG_3&"#"&'Annual GHG Emissions - Sector'!$I66,Total_Emissions_by_A_index,0))) -> 10.45773014 | AP66: =IF(actCaseAnnGHG_3="",NA(),INDEX(Total_Emissions_by_A_vals,MATCH('Annual GHG Emissions - Sector'!AP$38&"#"&actCaseAnnGHG_3&"#"&'Annual GHG Emissions - Sector'!$I66,Total_Emissions_by_A_index,0))) -> 10.32115531 | AQ66: =IF(actCaseAnnGHG_3="",NA(),INDEX(Total_Emissions_by_A_vals,MATCH('Annual GHG Emissions - Sector'!AQ$38&"#"&actCaseAnnGHG_3&"#"&'Annual GHG Emissions - Sector'!$I66,Total_Emissions_by_A_index,0))) -> 10.18458047 | AR66: =IF(actCaseAnnGHG_3="",NA(),INDEX(Total_Emissions_by_A_vals,MATCH('Annual GHG Emissions - Sector'!AR$38&"#"&actCaseAnnGHG_3&"#"&'Annual GHG Emissions - Sector'!$I66,Total_Emissions_by_A_index,0))) -> 10.04800564 | AS66: =IF(actCaseAnnGHG_3="",NA(),INDEX(Total_Emissions_by_A_vals,MATCH('Annual GHG Emissions - Sector'!AS$38&"#"&actCaseAnnGHG_3&"#"&'Annual GHG Emissions - Sector'!$I66,Total_Emissions_by_A_index,0))) -> 9.911430806 | AT66: =IF(actCaseAnnGHG_3="",NA(),INDEX(Total_Emissions_by_A_vals,MATCH('Annual GHG Emissions - Sector'!AT$38&"#"&actCaseAnnGHG_3&"#"&'Annual GHG Emissions - Sector'!$I66,Total_Emissions_by_A_index,0))) -> 9.774855972 | AU66: =IF(actCaseAnnGHG_3="",NA(),INDEX(Total_Emissions_by_A_vals,MATCH('Annual GHG Emissions - Sector'!AU$38&"#"&actCaseAnnGHG_3&"#"&'Annual GHG Emissions - Sector'!$I66,Total_Emissions_by_A_index,0))) -> 9.638281138 | AV66: =IF(actCaseAnnGHG_3="",NA(),INDEX(Total_Emissions_by_A_vals,MATCH('Annual GHG Emissions - Sector'!AV$38&"#"&actCaseAnnGHG_3&"#"&'Annual GHG Emissions - Sector'!$I66,Total_Emissions_by_A_index,0))) -> 9.501706304 | AW66: =IF(actCaseAnnGHG_3="",NA(),INDEX(Total_Emissions_by_A_vals,MATCH('Annual GHG Emissions - Sector'!AW$38&"#"&actCaseAnnGHG_3&"#"&'Annual GHG Emissions - Sector'!$I66,Total_Emissions_by_A_index,0))) -> 9.365131471 | AX66: =IF(actCaseAnnGHG_3="",NA(),INDEX(Total_Emissions_by_A_vals,MATCH('Annual GHG Emissions - Sector'!AX$38&"#"&actCaseAnnGHG_3&"#"&'Annual GHG Emissions - Sector'!$I66,Total_Emissions_by_A_index,0))) -> 9.167237323 | AY66: =IF(actCaseAnnGHG_3="",NA(),INDEX(Total_Emissions_by_A_vals,MATCH('Annual GHG Emissions - Sector'!AY$38&"#"&actCaseAnnGHG_3&"#"&'Annual GHG Emissions - Sector'!$I66,Total_Emissions_by_A_index,0))) -> 9.10591801 | AZ66: =IF(actCaseAnnGHG_3="",NA(),INDEX(Total_Emissions_by_A_vals,MATCH('Annual GHG Emissions - Sector'!AZ$38&"#"&actCaseAnnGHG_3&"#"&'Annual GHG Emissions - Sector'!$I66,Total_Emissions_by_A_index,0))) -> 9.044598697 | BA66: =IF(actCaseAnnGHG_3="",NA(),INDEX(Total_Emissions_by_A_vals,MATCH('Annual GHG Emissions - Sector'!BA$38&"#"&actCaseAnnGHG_3&"#"&'Annual GHG Emissions - Sector'!$I66,Total_Emissions_by_A_index,0))) -> 8.983279384 | BB66: =IF(actCaseAnnGHG_3="",NA(),INDEX(Total_Emissions_by_A_vals,MATCH('Annual GHG Emissions - Sector'!BB$38&"#"&actCaseAnnGHG_3&"#"&'Annual GHG Emissions - Sector'!$I66,Total_Emissions_by_A_index,0))) -> 8.921960071 | BC66: =IF(actCaseAnnGHG_3="",NA(),INDEX(Total_Emissions_by_A_vals,MATCH('Annual GHG Emissions - Sector'!BC$38&"#"&actCaseAnnGHG_3&"#"&'Annual GHG Emissions - Sector'!$I66,Total_Emissions_by_A_index,0))) -> 8.860640757 | BD66: =IF(actCaseAnnGHG_3="",NA(),INDEX(Total_Emissions_by_A_vals,MATCH('Annual GHG Emissions - Sector'!BD$38&"#"&actCaseAnnGHG_3&"#"&'Annual GHG Emissions - Sector'!$I66,Total_Emissions_by_A_index,0))) -> 8.799321444 | BE66: =IF(actCaseAnnGHG_3="",NA(),INDEX(Total_Emissions_by_A_vals,MATCH('Annual GHG Emissions - Sector'!BE$38&"#"&actCaseAnnGHG_3&"#"&'Annual GHG Emissions - Sector'!$I66,Total_Emissions_by_A_index,0))) -> 8.738002131 | BF66: =IF(actCaseAnnGHG_3="",NA(),INDEX(Total_Emissions_by_A_vals,MATCH('Annual GHG Emissions - Sector'!BF$38&"#"&actCaseAnnGHG_3&"#"&'Annual GHG Emissions - Sector'!$I66,Total_Emissions_by_A_index,0))) -> 8.676682818 | BG66: =IF(actCaseAnnGHG_3="",NA(),INDEX(Total_Emissions_by_A_vals,MATCH('Annual GHG Emissions - Sector'!BG$38&"#"&actCaseAnnGHG_3&"#"&'Annual GHG Emissions - Sector'!$I66,Total_Emissions_by_A_index,0))) -> 8.615363505 | BH66: =IF(actCaseAnnGHG_3="",NA(),INDEX(Total_Emissions_by_A_vals,MATCH('Annual GHG Emissions - Sector'!BH$38&"#"&actCaseAnnGHG_3&"#"&'Annual GHG Emissions - Sector'!$I66,Total_Emissions_by_A_index,0))) -> 8.554044191 | BI66: =IF(actCaseAnnGHG_3="",NA(),INDEX(Total_Emissions_by_A_vals,MATCH('Annual GHG Emissions - Sector'!BI$38&"#"&actCaseAnnGHG_3&"#"&'Annual GHG Emissions - Sector'!$I66,Total_Emissions_by_A_index,0))) -> 8.492724878 | BJ66: =IF(actCaseAnnGHG_3="",NA(),INDEX(Total_Emissions_by_A_vals,MATCH('Annual GHG Emissions - Sector'!BJ$38&"#"&actCaseAnnGHG_3&"#"&'Annual GHG Emissions - Sector'!$I66,Total_Emissions_by_A_index,0))) -> 8.431405565 | BK66: =IF(actCaseAnnGHG_3="",NA(),INDEX(Total_Emissions_by_A_vals,MATCH('Annual GHG Emissions - Sector'!BK$38&"#"&actCaseAnnGHG_3&"#"&'Annual GHG Emissions - Sector'!$I66,Total_Emissions_by_A_index,0))) -> 8.370086252 | BL66: =IF(actCaseAnnGHG_3="",NA(),INDEX(Total_Emissions_by_A_vals,MATCH('Annual GHG Emissions - Sector'!BL$38&"#"&actCaseAnnGHG_3&"#"&'Annual GHG Emissions - Sector'!$I66,Total_Emissions_by_A_index,0))) -> 8.308766939 | BM66: =IF(actCaseAnnGHG_3="",NA(),INDEX(Total_Emissions_by_A_vals,MATCH('Annual GHG Emissions - Sector'!BM$38&"#"&actCaseAnnGHG_3&"#"&'Annual GHG Emissions - Sector'!$I66,Total_Emissions_by_A_index,0))) -> 8.247447625 | BN66: =IF(actCaseAnnGHG_3="",NA(),INDEX(Total_Emissions_by_A_vals,MATCH('Annual GHG Emissions - Sector'!BN$38&"#"&actCaseAnnGHG_3&"#"&'Annual GHG Emissions - Sector'!$I66,Total_Emissions_by_A_index,0))) -> 8.186128312 | BO66: =IF(actCaseAnnGHG_3="",NA(),INDEX(Total_Emissions_by_A_vals,MATCH('Annual GHG Emissions - Sector'!BO$38&"#"&actCaseAnnGHG_3&"#"&'Annual GHG Emissions - Sector'!$I66,Total_Emissions_by_A_index,0))) -> 8.124808999 | BP66: =IF(actCaseAnnGHG_3="",NA(),INDEX(Total_Emissions_by_A_vals,MATCH('Annual GHG Emissions - Sector'!BP$38&"#"&actCaseAnnGHG_3&"#"&'Annual GHG Emissions - Sector'!$I66,Total_Emissions_by_A_index,0))) -> 8.063489686 | BQ66: =IF(actCaseAnnGHG_3="",NA(),INDEX(Total_Emissions_by_A_vals,MATCH('Annual GHG Emissions - Sector'!BQ$38&"#"&actCaseAnnGHG_3&"#"&'Annual GHG Emissions - Sector'!$I66,Total_Emissions_by_A_index,0))) -> 8.002170373 | BR66: =IF(actCaseAnnGHG_3="",NA(),INDEX(Total_Emissions_by_A_vals,MATCH('Annual GHG Emissions - Sector'!BR$38&"#"&actCaseAnnGHG_3&"#"&'Annual GHG Emissions - Sector'!$I66,Total_Emissions_by_A_index,0))) -> 7.940851059
I67: Transportation (Incl. TCU) | AI67: =IF(actCaseAnnGHG_3="",NA(),INDEX(Total_Emissions_by_A_vals,MATCH('Annual GHG Emissions - Sector'!AI$38&"#"&actCaseAnnGHG_3&"#"&'Annual GHG Emissions - Sector'!$I67,Total_Emissions_by_A_index,0))) -> 167.8743714 | AJ67: =IF(actCaseAnnGHG_3="",NA(),INDEX(Total_Emissions_by_A_vals,MATCH('Annual GHG Emissions - Sector'!AJ$38&"#"&actCaseAnnGHG_3&"#"&'Annual GHG Emissions - Sector'!$I67,Total_Emissions_by_A_index,0))) -> 166.8050433 | AK67: =IF(actCaseAnnGHG_3="",NA(),INDEX(Total_Emissions_by_A_vals,MATCH('Annual GHG Emissions - Sector'!AK$38&"#"&actCaseAnnGHG_3&"#"&'Annual GHG Emissions - Sector'!$I67,Total_Emissions_by_A_index,0))) -> 164.0818599 | AL67: =IF(actCaseAnnGHG_3="",NA(),INDEX(Total_Emissions_by_A_vals,MATCH('Annual GHG Emissions - Sector'!AL$38&"#"&actCaseAnnGHG_3&"#"&'Annual GHG Emissions - Sector'!$I67,Total_Emissions_by_A_index,0))) -> 159.6876685 | AM67: =IF(actCaseAnnGHG_3="",NA(),INDEX(Total_Emissions_by_A_vals,MATCH('Annual GHG Emissions - Sector'!AM$38&"#"&actCaseAnnGHG_3&"#"&'Annual GHG Emissions - Sector'!$I67,Total_Emissions_by_A_index,0))) -> 154.549094 | AN67: =IF(actCaseAnnGHG_3="",NA(),INDEX(Total_Emissions_by_A_vals,MATCH('Annual GHG Emissions - Sector'!AN$38&"#"&actCaseAnnGHG_3&"#"&'Annual GHG Emissions - Sector'!$I67,Total_Emissions_by_A_index,0))) -> 149.1030749 | AO67: =IF(actCaseAnnGHG_3="",NA(),INDEX(Total_Emissions_by_A_vals,MATCH('Annual GHG Emissions - Sector'!AO$38&"#"&actCaseAnnGHG_3&"#"&'Annual GHG Emissions - Sector'!$I67,Total_Emissions_by_A_index,0))) -> 143.3184416 | AP67: =IF(actCaseAnnGHG_3="",NA(),INDEX(Total_Emissions_by_A_vals,MATCH('Annual GHG Emissions - Sector'!AP$38&"#"&actCaseAnnGHG_3&"#"&'Annual GHG Emissions - Sector'!$I67,Total_Emissions_by_A_index,0))) -> 136.4730839 | AQ67: =IF(actCaseAnnGHG_3="",NA(),INDEX(Total_Emissions_by_A_vals,MATCH('Annual GHG Emissions - Sector'!AQ$38&"#"&actCaseAnnGHG_3&"#"&'Annual GHG Emissions - Sector'!$I67,Total_Emissions_by_A_index,0))) -> 127.6662752 | AR67: =IF(actCaseAnnGHG_3="",NA(),INDEX(Total_Emissions_by_A_vals,MATCH('Annual GHG Emissions - Sector'!AR$38&"#"&actCaseAnnGHG_3&"#"&'Annual GHG Emissions - Sector'!$I67,Total_Emissions_by_A_index,0))) -> 122.8700566 | AS67: =IF(actCaseAnnGHG_3="",NA(),INDEX(Total_Emissions_by_A_vals,MATCH('Annual GHG Emissions - Sector'!AS$38&"#"&actCaseAnnGHG_3&"#"&'Annual GHG Emissions - Sector'!$I67,Total_Emissions_by_A_index,0))) -> 115.5260933 | AT67: =IF(actCaseAnnGHG_3="",NA(),INDEX(Total_Emissions_by_A_vals,MATCH('Annual GHG Emissions - Sector'!AT$38&"#"&actCaseAnnGHG_3&"#"&'Annual GHG Emissions - Sector'!$I67,Total_Emissions_by_A_index,0))) -> 110.5963066 | AU67: =IF(actCaseAnnGHG_3="",NA(),INDEX(Total_Emissions_by_A_vals,MATCH('Annual GHG Emissions - Sector'!AU$38&"#"&actCaseAnnGHG_3&"#"&'Annual GHG Emissions - Sector'!$I67,Total_Emissions_by_A_index,0))) -> 104.5689375 | AV67: =IF(actCaseAnnGHG_3="",NA(),INDEX(Total_Emissions_by_A_vals,MATCH('Annual GHG Emissions - Sector'!AV$38&"#"&actCaseAnnGHG_3&"#"&'Annual GHG Emissions - Sector'!$I67,Total_Emissions_by_A_index,0))) -> 100.4538169 | AW67: =IF(actCaseAnnGHG_3="",NA(),INDEX(Total_Emissions_by_A_vals,MATCH('Annual GHG Emissions - Sector'!AW$38&"#"&actCaseAnnGHG_3&"#"&'Annual GHG Emissions - Sector'!$I67,Total_Emissions_by_A_index,0))) -> 95.4916264 | AX67: =IF(actCaseAnnGHG_3="",NA(),INDEX(Total_Emissions_by_A_vals,MATCH('Annual GHG Emissions - Sector'!AX$38&"#"&actCaseAnnGHG_3&"#"&'Annual GHG Emissions - Sector'!$I67,Total_Emissions_by_A_index,0))) -> 91.19755822 | AY67: =IF(actCaseAnnGHG_3="",NA(),INDEX(Total_Emissions_by_A_vals,MATCH('Annual GHG Emissions - Sector'!AY$38&"#"&actCaseAnnGHG_3&"#"&'Annual GHG Emissions - Sector'!$I67,Total_Emissions_by_A_index,0))) -> 87.81343505 | AZ67: =IF(actCaseAnnGHG_3="",NA(),INDEX(Total_Emissions_by_A_vals,MATCH('Annual GHG Emissions - Sector'!AZ$38&"#"&actCaseAnnGHG_3&"#"&'Annual GHG Emissions - Sector'!$I67,Total_Emissions_by_A_index,0))) -> 84.45421381 | BA67: =IF(actCaseAnnGHG_3="",NA(),INDEX(Total_Emissions_by_A_vals,MATCH('Annual GHG Emissions - Sector'!BA$38&"#"&actCaseAnnGHG_3&"#"&'Annual GHG Emissions - Sector'!$I67,Total_Emissions_by_A_index,0))) -> 81.01924511 | BB67: =IF(actCaseAnnGHG_3="",NA(),INDEX(Total_Emissions_by_A_vals,MATCH('Annual GHG Emissions - Sector'!BB$38&"#"&actCaseAnnGHG_3&"#"&'Annual GHG Emissions - Sector'!$I67,Total_Emissions_by_A_index,0))) -> 77.41474886 | BC67: =IF(actCaseAnnGHG_3="",NA(),INDEX(Total_Emissions_by_A_vals,MATCH('Annual GHG Emissions - Sector'!BC$38&"#"&actCaseAnnGHG_3&"#"&'Annual GHG Emissions - Sector'!$I67,Total_Emissions_by_A_index,0))) -> 73.51978966 | BD67: =IF(actCaseAnnGHG_3="",NA(),INDEX(Total_Emissions_by_A_vals,MATCH('Annual GHG Emissions - Sector'!BD$38&"#"&actCaseAnnGHG_3&"#"&'Annual GHG Emissions - Sector'!$I67,Total_Emissions_by_A_index,0))) -> 69.37459706 | BE67: =IF(actCaseAnnGHG_3="",NA(),INDEX(Total_Emissions_by_A_vals,MATCH('Annual GHG Emissions - Sector'!BE$38&"#"&actCaseAnnGHG_3&"#"&'Annual GHG Emissions - Sector'!$I67,Total_Emissions_by_A_index,0))) -> 64.81768289 | BF67: =IF(actCaseAnnGHG_3="",NA(),INDEX(Total_Emissions_by_A_vals,MATCH('Annual GHG Emissions - Sector'!BF$38&"#"&actCaseAnnGHG_3&"#"&'Annual GHG Emissions - Sector'!$I67,Total_Emissions_by_A_index,0))) -> 59.78824755 | BG67: =IF(actCaseAnnGHG_3="",NA(),INDEX(Total_Emissions_by_A_vals,MATCH('Annual GHG Emissions - Sector'!BG$38&"#"&actCaseAnnGHG_3&"#"&'Annual GHG Emissions - Sector'!$I67,Total_Emissions_by_A_index,0))) -> 54.19177609 | BH67: =IF(actCaseAnnGHG_3="",NA(),INDEX(Total_Emissions_by_A_vals,MATCH('Annual GHG Emissions - Sector'!BH$38&"#"&actCaseAnnGHG_3&"#"&'Annual GHG Emissions - Sector'!$I67,Total_Emissions_by_A_index,0))) -> 47.96982907 | BI67: =IF(actCaseAnnGHG_3="",NA(),INDEX(Total_Emissions_by_A_vals,MATCH('Annual GHG Emissions - Sector'!BI$38&"#"&actCaseAnnGHG_3&"#"&'Annual GHG Emissions - Sector'!$I67,Total_Emissions_by_A_index,0))) -> 41.01828491 | BJ67: =IF(actCaseAnnGHG_3="",NA(),INDEX(Total_Emissions_by_A_vals,MATCH('Annual GHG Emissions - Sector'!BJ$38&"#"&actCaseAnnGHG_3&"#"&'Annual GHG Emissions - Sector'!$I67,Total_Emissions_by_A_index,0))) -> 35.23540777 | BK67: =IF(actCaseAnnGHG_3="",NA(),INDEX(Total_Emissions_by_A_vals,MATCH('Annual GHG Emissions - Sector'!BK$38&"#"&actCaseAnnGHG_3&"#"&'Annual GHG Emissions - Sector'!$I67,Total_Emissions_by_A_index,0))) -> 29.18366306 | BL67: =IF(actCaseAnnGHG_3="",NA(),INDEX(Total_Emissions_by_A_vals,MATCH('Annual GHG Emissions - Sector'!BL$38&"#"&actCaseAnnGHG_3&"#"&'Annual GHG Emissions - Sector'!$I67,Total_Emissions_by_A_index,0))) -> 22.72409788 | BM67: =IF(actCaseAnnGHG_3="",NA(),INDEX(Total_Emissions_by_A_vals,MATCH('Annual GHG Emissions - Sector'!BM$38&"#"&actCaseAnnGHG_3&"#"&'Annual GHG Emissions - Sector'!$I67,Total_Emissions_by_A_index,0))) -> 20.6727229 | BN67: =IF(actCaseAnnGHG_3="",NA(),INDEX(Total_Emissions_by_A_vals,MATCH('Annual GHG Emissions - Sector'!BN$38&"#"&actCaseAnnGHG_3&"#"&'Annual GHG Emissions - Sector'!$I67,Total_Emissions_by_A_index,0))) -> 20.31463126 | BO67: =IF(actCaseAnnGHG_3="",NA(),INDEX(Total_Emissions_by_A_vals,MATCH('Annual GHG Emissions - Sector'!BO$38&"#"&actCaseAnnGHG_3&"#"&'Annual GHG Emissions - Sector'!$I67,Total_Emissions_by_A_index,0))) -> 20.00205674 | BP67: =IF(actCaseAnnGHG_3="",NA(),INDEX(Total_Emissions_by_A_vals,MATCH('Annual GHG Emissions - Sector'!BP$38&"#"&actCaseAnnGHG_3&"#"&'Annual GHG Emissions - Sector'!$I67,Total_Emissions_by_A_index,0))) -> 19.65752504 | BQ67: =IF(actCaseAnnGHG_3="",NA(),INDEX(Total_Emissions_by_A_vals,MATCH('Annual GHG Emissions - Sector'!BQ$38&"#"&actCaseAnnGHG_3&"#"&'Annual GHG Emissions - Sector'!$I67,Total_Emissions_by_A_index,0))) -> 19.45983561 | BR67: =IF(actCaseAnnGHG_3="",NA(),INDEX(Total_Emissions_by_A_vals,MATCH('Annual GHG Emissions - Sector'!BR$38&"#"&actCaseAnnGHG_3&"#"&'Annual GHG Emissions - Sector'!$I67,Total_Emissions_by_A_index,0))) -> 19.68801627
I68: Total | AI68: =SUM(AI61:AI67) -> 441.694655 | AJ68: =SUM(AJ61:AJ67) -> 438.1719439 | AK68: 429.2472595 | AL68: 423.0381053 | AM68: 415.6072676 | AN68: 405.3797726 | AO68: 391.7675751 | AP68: 376.4606795 | AQ68: 358.8079314 | AR68: 345.9069949 | AS68: 336.9304263 | AT68: 323.509358 | AU68: 308.6868655 | AV68: 288.558507 | AW68: 275.2939196 | AX68: 258.6129513 | AY68: 252.0355747 | AZ68: 247.0082154 | BA68: 242.0487621 | BB68: 236.0949679 | BC68: 230.6678496 | BD68: 225.103992 | BE68: 219.0888816 | BF68: 212.7478603 | BG68: 205.7669141 | BH68: 198.2652867 | BI68: 188.9012252 | BJ68: 181.3497498 | BK68: 173.5728086 | BL68: 165.3866587 | BM68: 161.6344918 | BN68: 159.5804856 | BO68: 157.6153082 | BP68: 155.6654285 | BQ68: 153.8822512 | BR68: 152.6545275 | BT68: 0.02663429893 | BU68: 66.97562588
I71: ="PATHWAYS - "&actCaseAnnGHG_4 -> PATHWAYS -
J72: 1990 | K72: 1991 | L72: 1992 | M72: 1993 | N72: 1994 | O72: 1995 | P72: 1996 | Q72: 1997 | R72: 1998 | S72: 1999 | T72: 2000 | U72: 2001 | V72: 2002 | W72: 2003 | X72: 2004 | Y72: 2005 | Z72: 2006 | AA72: 2007 | AB72: 2008 | AC72: 2009 | AD72: 2010 | AE72: 2011 | AF72: 2012 | AG72: 2013 | AH72: 2014 | AI72: 2015 | AJ72: 2016 | AK72: 2017 | AL72: 2018 | AM72: 2019 | AN72: 2020 | AO72: 2021 | AP72: 2022 | AQ72: 2023 | AR72: 2024 | AS72: 2025 | AT72: 2026 | AU72: 2027 | AV72: 2028 | AW72: 2029 | AX72: 2030 | AY72: 2031 | AZ72: 2032 | BA72: 2033 | BB72: 2034 | BC72: 2035 | BD72: 2036 | BE72: 2037 | BF72: 2038 | BG72: 2039 | BH72: 2040 | BI72: 2041 | BJ72: 2042 | BK72: 2043 | BL72: 2044 | BM72: 2045 | BN72: 2046 | BO72: 2047 | BP72: 2048 | BQ72: 2049 | BR72: 2050 | BT72: 2030 Gap | BU72: 2050 Gap
I73: Agriculture | AI73: =IF(actCaseAnnGHG_4="",NA(),INDEX(Total_Emissions_by_A_vals,MATCH('Annual GHG Emissions - Sector'!AI$38&"#"&actCaseAnnGHG_4&"#"&'Annual GHG Emissions - Sector'!$I73,Total_Emissions_by_A_index,0))) ->  | AJ73: =IF(actCaseAnnGHG_4="",NA(),INDEX(Total_Emissions_by_A_vals,MATCH('Annual GHG Emissions - Sector'!AJ$38&"#"&actCaseAnnGHG_4&"#"&'Annual GHG Emissions - Sector'!$I73,Total_Emissions_by_A_index,0))) ->  | AK73: =IF(actCaseAnnGHG_4="",NA(),INDEX(Total_Emissions_by_A_vals,MATCH('Annual GHG Emissions - Sector'!AK$38&"#"&actCaseAnnGHG_4&"#"&'Annual GHG Emissions - Sector'!$I73,Total_Emissions_by_A_index,0))) ->  | AL73: =IF(actCaseAnnGHG_4="",NA(),INDEX(Total_Emissions_by_A_vals,MATCH('Annual GHG Emissions - Sector'!AL$38&"#"&actCaseAnnGHG_4&"#"&'Annual GHG Emissions - Sector'!$I73,Total_Emissions_by_A_index,0))) ->  | AM73: =IF(actCaseAnnGHG_4="",NA(),INDEX(Total_Emissions_by_A_vals,MATCH('Annual GHG Emissions - Sector'!AM$38&"#"&actCaseAnnGHG_4&"#"&'Annual GHG Emissions - Sector'!$I73,Total_Emissions_by_A_index,0))) ->  | AN73: =IF(actCaseAnnGHG_4="",NA(),INDEX(Total_Emissions_by_A_vals,MATCH('Annual GHG Emissions - Sector'!AN$38&"#"&actCaseAnnGHG_4&"#"&'Annual GHG Emissions - Sector'!$I73,Total_Emissions_by_A_index,0))) ->  | AO73: =IF(actCaseAnnGHG_4="",NA(),INDEX(Total_Emissions_by_A_vals,MATCH('Annual GHG Emissions - Sector'!AO$38&"#"&actCaseAnnGHG_4&"#"&'Annual GHG Emissions - Sector'!$I73,Total_Emissions_by_A_index,0))) ->  | AP73: =IF(actCaseAnnGHG_4="",NA(),INDEX(Total_Emissions_by_A_vals,MATCH('Annual GHG Emissions - Sector'!AP$38&"#"&actCaseAnnGHG_4&"#"&'Annual GHG Emissions - Sector'!$I73,Total_Emissions_by_A_index,0))) ->  | AQ73: =IF(actCaseAnnGHG_4="",NA(),INDEX(Total_Emissions_by_A_vals,MATCH('Annual GHG Emissions - Sector'!AQ$38&"#"&actCaseAnnGHG_4&"#"&'Annual GHG Emissions - Sector'!$I73,Total_Emissions_by_A_index,0))) ->  | AR73: =IF(actCaseAnnGHG_4="",NA(),INDEX(Total_Emissions_by_A_vals,MATCH('Annual GHG Emissions - Sector'!AR$38&"#"&actCaseAnnGHG_4&"#"&'Annual GHG Emissions - Sector'!$I73,Total_Emissions_by_A_index,0))) ->  | AS73: =IF(actCaseAnnGHG_4="",NA(),INDEX(Total_Emissions_by_A_vals,MATCH('Annual GHG Emissions - Sector'!AS$38&"#"&actCaseAnnGHG_4&"#"&'Annual GHG Emissions - Sector'!$I73,Total_Emissions_by_A_index,0))) ->  | AT73: =IF(actCaseAnnGHG_4="",NA(),INDEX(Total_Emissions_by_A_vals,MATCH('Annual GHG Emissions - Sector'!AT$38&"#"&actCaseAnnGHG_4&"#"&'Annual GHG Emissions - Sector'!$I73,Total_Emissions_by_A_index,0))) ->  | AU73: =IF(actCaseAnnGHG_4="",NA(),INDEX(Total_Emissions_by_A_vals,MATCH('Annual GHG Emissions - Sector'!AU$38&"#"&actCaseAnnGHG_4&"#"&'Annual GHG Emissions - Sector'!$I73,Total_Emissions_by_A_index,0))) ->  | AV73: =IF(actCaseAnnGHG_4="",NA(),INDEX(Total_Emissions_by_A_vals,MATCH('Annual GHG Emissions - Sector'!AV$38&"#"&actCaseAnnGHG_4&"#"&'Annual GHG Emissions - Sector'!$I73,Total_Emissions_by_A_index,0))) ->  | AW73: =IF(actCaseAnnGHG_4="",NA(),INDEX(Total_Emissions_by_A_vals,MATCH('Annual GHG Emissions - Sector'!AW$38&"#"&actCaseAnnGHG_4&"#"&'Annual GHG Emissions - Sector'!$I73,Total_Emissions_by_A_index,0))) ->  | AX73: =IF(actCaseAnnGHG_4="",NA(),INDEX(Total_Emissions_by_A_vals,MATCH('Annual GHG Emissions - Sector'!AX$38&"#"&actCaseAnnGHG_4&"#"&'Annual GHG Emissions - Sector'!$I73,Total_Emissions_by_A_index,0))) ->  | AY73: =IF(actCaseAnnGHG_4="",NA(),INDEX(Total_Emissions_by_A_vals,MATCH('Annual GHG Emissions - Sector'!AY$38&"#"&actCaseAnnGHG_4&"#"&'Annual GHG Emissions - Sector'!$I73,Total_Emissions_by_A_index,0))) ->  | AZ73: =IF(actCaseAnnGHG_4="",NA(),INDEX(Total_Emissions_by_A_vals,MATCH('Annual GHG Emissions - Sector'!AZ$38&"#"&actCaseAnnGHG_4&"#"&'Annual GHG Emissions - Sector'!$I73,Total_Emissions_by_A_index,0))) ->  | BA73: =IF(actCaseAnnGHG_4="",NA(),INDEX(Total_Emissions_by_A_vals,MATCH('Annual GHG Emissions - Sector'!BA$38&"#"&actCaseAnnGHG_4&"#"&'Annual GHG Emissions - Sector'!$I73,Total_Emissions_by_A_index,0))) ->  | BB73: =IF(actCaseAnnGHG_4="",NA(),INDEX(Total_Emissions_by_A_vals,MATCH('Annual GHG Emissions - Sector'!BB$38&"#"&actCaseAnnGHG_4&"#"&'Annual GHG Emissions - Sector'!$I73,Total_Emissions_by_A_index,0))) ->  | BC73: =IF(actCaseAnnGHG_4="",NA(),INDEX(Total_Emissions_by_A_vals,MATCH('Annual GHG Emissions - Sector'!BC$38&"#"&actCaseAnnGHG_4&"#"&'Annual GHG Emissions - Sector'!$I73,Total_Emissions_by_A_index,0))) ->  | BD73: =IF(actCaseAnnGHG_4="",NA(),INDEX(Total_Emissions_by_A_vals,MATCH('Annual GHG Emissions - Sector'!BD$38&"#"&actCaseAnnGHG_4&"#"&'Annual GHG Emissions - Sector'!$I73,Total_Emissions_by_A_index,0))) ->  | BE73: =IF(actCaseAnnGHG_4="",NA(),INDEX(Total_Emissions_by_A_vals,MATCH('Annual GHG Emissions - Sector'!BE$38&"#"&actCaseAnnGHG_4&"#"&'Annual GHG Emissions - Sector'!$I73,Total_Emissions_by_A_index,0))) ->  | BF73: =IF(actCaseAnnGHG_4="",NA(),INDEX(Total_Emissions_by_A_vals,MATCH('Annual GHG Emissions - Sector'!BF$38&"#"&actCaseAnnGHG_4&"#"&'Annual GHG Emissions - Sector'!$I73,Total_Emissions_by_A_index,0))) ->  | BG73: =IF(actCaseAnnGHG_4="",NA(),INDEX(Total_Emissions_by_A_vals,MATCH('Annual GHG Emissions - Sector'!BG$38&"#"&actCaseAnnGHG_4&"#"&'Annual GHG Emissions - Sector'!$I73,Total_Emissions_by_A_index,0))) ->  | BH73: =IF(actCaseAnnGHG_4="",NA(),INDEX(Total_Emissions_by_A_vals,MATCH('Annual GHG Emissions - Sector'!BH$38&"#"&actCaseAnnGHG_4&"#"&'Annual GHG Emissions - Sector'!$I73,Total_Emissions_by_A_index,0))) ->  | BI73: =IF(actCaseAnnGHG_4="",NA(),INDEX(Total_Emissions_by_A_vals,MATCH('Annual GHG Emissions - Sector'!BI$38&"#"&actCaseAnnGHG_4&"#"&'Annual GHG Emissions - Sector'!$I73,Total_Emissions_by_A_index,0))) ->  | BJ73: =IF(actCaseAnnGHG_4="",NA(),INDEX(Total_Emissions_by_A_vals,MATCH('Annual GHG Emissions - Sector'!BJ$38&"#"&actCaseAnnGHG_4&"#"&'Annual GHG Emissions - Sector'!$I73,Total_Emissions_by_A_index,0))) ->  | BK73: =IF(actCaseAnnGHG_4="",NA(),INDEX(Total_Emissions_by_A_vals,MATCH('Annual GHG Emissions - Sector'!BK$38&"#"&actCaseAnnGHG_4&"#"&'Annual GHG Emissions - Sector'!$I73,Total_Emissions_by_A_index,0))) ->  | BL73: =IF(actCaseAnnGHG_4="",NA(),INDEX(Total_Emissions_by_A_vals,MATCH('Annual GHG Emissions - Sector'!BL$38&"#"&actCaseAnnGHG_4&"#"&'Annual GHG Emissions - Sector'!$I73,Total_Emissions_by_A_index,0))) ->  | BM73: =IF(actCaseAnnGHG_4="",NA(),INDEX(Total_Emissions_by_A_vals,MATCH('Annual GHG Emissions - Sector'!BM$38&"#"&actCaseAnnGHG_4&"#"&'Annual GHG Emissions - Sector'!$I73,Total_Emissions_by_A_index,0))) ->  | BN73: =IF(actCaseAnnGHG_4="",NA(),INDEX(Total_Emissions_by_A_vals,MATCH('Annual GHG Emissions - Sector'!BN$38&"#"&actCaseAnnGHG_4&"#"&'Annual GHG Emissions - Sector'!$I73,Total_Emissions_by_A_index,0))) ->  | BO73: =IF(actCaseAnnGHG_4="",NA(),INDEX(Total_Emissions_by_A_vals,MATCH('Annual GHG Emissions - Sector'!BO$38&"#"&actCaseAnnGHG_4&"#"&'Annual GHG Emissions - Sector'!$I73,Total_Emissions_by_A_index,0))) ->  | BP73: =IF(actCaseAnnGHG_4="",NA(),INDEX(Total_Emissions_by_A_vals,MATCH('Annual GHG Emissions - Sector'!BP$38&"#"&actCaseAnnGHG_4&"#"&'Annual GHG Emissions - Sector'!$I73,Total_Emissions_by_A_index,0))) ->  | BQ73: =IF(actCaseAnnGHG_4="",NA(),INDEX(Total_Emissions_by_A_vals,MATCH('Annual GHG Emissions - Sector'!BQ$38&"#"&actCaseAnnGHG_4&"#"&'Annual GHG Emissions - Sector'!$I73,Total_Emissions_by_A_index,0))) ->  | BR73: =IF(actCaseAnnGHG_4="",NA(),INDEX(Total_Emissions_by_A_vals,MATCH('Annual GHG Emissions - Sector'!BR$38&"#"&actCaseAnnGHG_4&"#"&'Annual GHG Emissions - Sector'!$I73,Total_Emissions_by_A_index,0))) -> 
I74: Residential and Commercial | AI74: =IF(actCaseAnnGHG_4="",NA(),INDEX(Total_Emissions_by_A_vals,MATCH('Annual GHG Emissions - Sector'!AI$38&"#"&actCaseAnnGHG_4&"#"&'Annual GHG Emissions - Sector'!$I74,Total_Emissions_by_A_index,0))) ->  | AJ74: =IF(actCaseAnnGHG_4="",NA(),INDEX(Total_Emissions_by_A_vals,MATCH('Annual GHG Emissions - Sector'!AJ$38&"#"&actCaseAnnGHG_4&"#"&'Annual GHG Emissions - Sector'!$I74,Total_Emissions_by_A_index,0))) ->  | AK74: =IF(actCaseAnnGHG_4="",NA(),INDEX(Total_Emissions_by_A_vals,MATCH('Annual GHG Emissions - Sector'!AK$38&"#"&actCaseAnnGHG_4&"#"&'Annual GHG Emissions - Sector'!$I74,Total_Emissions_by_A_index,0))) ->  | AL74: =IF(actCaseAnnGHG_4="",NA(),INDEX(Total_Emissions_by_A_vals,MATCH('Annual GHG Emissions - Sector'!AL$38&"#"&actCaseAnnGHG_4&"#"&'Annual GHG Emissions - Sector'!$I74,Total_Emissions_by_A_index,0))) ->  | AM74: =IF(actCaseAnnGHG_4="",NA(),INDEX(Total_Emissions_by_A_vals,MATCH('Annual GHG Emissions - Sector'!AM$38&"#"&actCaseAnnGHG_4&"#"&'Annual GHG Emissions - Sector'!$I74,Total_Emissions_by_A_index,0))) ->  | AN74: =IF(actCaseAnnGHG_4="",NA(),INDEX(Total_Emissions_by_A_vals,MATCH('Annual GHG Emissions - Sector'!AN$38&"#"&actCaseAnnGHG_4&"#"&'Annual GHG Emissions - Sector'!$I74,Total_Emissions_by_A_index,0))) ->  | AO74: =IF(actCaseAnnGHG_4="",NA(),INDEX(Total_Emissions_by_A_vals,MATCH('Annual GHG Emissions - Sector'!AO$38&"#"&actCaseAnnGHG_4&"#"&'Annual GHG Emissions - Sector'!$I74,Total_Emissions_by_A_index,0))) ->  | AP74: =IF(actCaseAnnGHG_4="",NA(),INDEX(Total_Emissions_by_A_vals,MATCH('Annual GHG Emissions - Sector'!AP$38&"#"&actCaseAnnGHG_4&"#"&'Annual GHG Emissions - Sector'!$I74,Total_Emissions_by_A_index,0))) ->  | AQ74: =IF(actCaseAnnGHG_4="",NA(),INDEX(Total_Emissions_by_A_vals,MATCH('Annual GHG Emissions - Sector'!AQ$38&"#"&actCaseAnnGHG_4&"#"&'Annual GHG Emissions - Sector'!$I74,Total_Emissions_by_A_index,0))) ->  | AR74: =IF(actCaseAnnGHG_4="",NA(),INDEX(Total_Emissions_by_A_vals,MATCH('Annual GHG Emissions - Sector'!AR$38&"#"&actCaseAnnGHG_4&"#"&'Annual GHG Emissions - Sector'!$I74,Total_Emissions_by_A_index,0))) ->  | AS74: =IF(actCaseAnnGHG_4="",NA(),INDEX(Total_Emissions_by_A_vals,MATCH('Annual GHG Emissions - Sector'!AS$38&"#"&actCaseAnnGHG_4&"#"&'Annual GHG Emissions - Sector'!$I74,Total_Emissions_by_A_index,0))) ->  | AT74: =IF(actCaseAnnGHG_4="",NA(),INDEX(Total_Emissions_by_A_vals,MATCH('Annual GHG Emissions - Sector'!AT$38&"#"&actCaseAnnGHG_4&"#"&'Annual GHG Emissions - Sector'!$I74,Total_Emissions_by_A_index,0))) ->  | AU74: =IF(actCaseAnnGHG_4="",NA(),INDEX(Total_Emissions_by_A_vals,MATCH('Annual GHG Emissions - Sector'!AU$38&"#"&actCaseAnnGHG_4&"#"&'Annual GHG Emissions - Sector'!$I74,Total_Emissions_by_A_index,0))) ->  | AV74: =IF(actCaseAnnGHG_4="",NA(),INDEX(Total_Emissions_by_A_vals,MATCH('Annual GHG Emissions - Sector'!AV$38&"#"&actCaseAnnGHG_4&"#"&'Annual GHG Emissions - Sector'!$I74,Total_Emissions_by_A_index,0))) ->  | AW74: =IF(actCaseAnnGHG_4="",NA(),INDEX(Total_Emissions_by_A_vals,MATCH('Annual GHG Emissions - Sector'!AW$38&"#"&actCaseAnnGHG_4&"#"&'Annual GHG Emissions - Sector'!$I74,Total_Emissions_by_A_index,0))) ->  | AX74: =IF(actCaseAnnGHG_4="",NA(),INDEX(Total_Emissions_by_A_vals,MATCH('Annual GHG Emissions - Sector'!AX$38&"#"&actCaseAnnGHG_4&"#"&'Annual GHG Emissions - Sector'!$I74,Total_Emissions_by_A_index,0))) ->  | AY74: =IF(actCaseAnnGHG_4="",NA(),INDEX(Total_Emissions_by_A_vals,MATCH('Annual GHG Emissions - Sector'!AY$38&"#"&actCaseAnnGHG_4&"#"&'Annual GHG Emissions - Sector'!$I74,Total_Emissions_by_A_index,0))) ->  | AZ74: =IF(actCaseAnnGHG_4="",NA(),INDEX(Total_Emissions_by_A_vals,MATCH('Annual GHG Emissions - Sector'!AZ$38&"#"&actCaseAnnGHG_4&"#"&'Annual GHG Emissions - Sector'!$I74,Total_Emissions_by_A_index,0))) ->  | BA74: =IF(actCaseAnnGHG_4="",NA(),INDEX(Total_Emissions_by_A_vals,MATCH('Annual GHG Emissions - Sector'!BA$38&"#"&actCaseAnnGHG_4&"#"&'Annual GHG Emissions - Sector'!$I74,Total_Emissions_by_A_index,0))) ->  | BB74: =IF(actCaseAnnGHG_4="",NA(),INDEX(Total_Emissions_by_A_vals,MATCH('Annual GHG Emissions - Sector'!BB$38&"#"&actCaseAnnGHG_4&"#"&'Annual GHG Emissions - Sector'!$I74,Total_Emissions_by_A_index,0))) ->  | BC74: =IF(actCaseAnnGHG_4="",NA(),INDEX(Total_Emissions_by_A_vals,MATCH('Annual GHG Emissions - Sector'!BC$38&"#"&actCaseAnnGHG_4&"#"&'Annual GHG Emissions - Sector'!$I74,Total_Emissions_by_A_index,0))) ->  | BD74: =IF(actCaseAnnGHG_4="",NA(),INDEX(Total_Emissions_by_A_vals,MATCH('Annual GHG Emissions - Sector'!BD$38&"#"&actCaseAnnGHG_4&"#"&'Annual GHG Emissions - Sector'!$I74,Total_Emissions_by_A_index,0))) ->  | BE74: =IF(actCaseAnnGHG_4="",NA(),INDEX(Total_Emissions_by_A_vals,MATCH('Annual GHG Emissions - Sector'!BE$38&"#"&actCaseAnnGHG_4&"#"&'Annual GHG Emissions - Sector'!$I74,Total_Emissions_by_A_index,0))) ->  | BF74: =IF(actCaseAnnGHG_4="",NA(),INDEX(Total_Emissions_by_A_vals,MATCH('Annual GHG Emissions - Sector'!BF$38&"#"&actCaseAnnGHG_4&"#"&'Annual GHG Emissions - Sector'!$I74,Total_Emissions_by_A_index,0))) ->  | BG74: =IF(actCaseAnnGHG_4="",NA(),INDEX(Total_Emissions_by_A_vals,MATCH('Annual GHG Emissions - Sector'!BG$38&"#"&actCaseAnnGHG_4&"#"&'Annual GHG Emissions - Sector'!$I74,Total_Emissions_by_A_index,0))) ->  | BH74: =IF(actCaseAnnGHG_4="",NA(),INDEX(Total_Emissions_by_A_vals,MATCH('Annual GHG Emissions - Sector'!BH$38&"#"&actCaseAnnGHG_4&"#"&'Annual GHG Emissions - Sector'!$I74,Total_Emissions_by_A_index,0))) ->  | BI74: =IF(actCaseAnnGHG_4="",NA(),INDEX(Total_Emissions_by_A_vals,MATCH('Annual GHG Emissions - Sector'!BI$38&"#"&actCaseAnnGHG_4&"#"&'Annual GHG Emissions - Sector'!$I74,Total_Emissions_by_A_index,0))) ->  | BJ74: =IF(actCaseAnnGHG_4="",NA(),INDEX(Total_Emissions_by_A_vals,MATCH('Annual GHG Emissions - Sector'!BJ$38&"#"&actCaseAnnGHG_4&"#"&'Annual GHG Emissions - Sector'!$I74,Total_Emissions_by_A_index,0))) ->  | BK74: =IF(actCaseAnnGHG_4="",NA(),INDEX(Total_Emissions_by_A_vals,MATCH('Annual GHG Emissions - Sector'!BK$38&"#"&actCaseAnnGHG_4&"#"&'Annual GHG Emissions - Sector'!$I74,Total_Emissions_by_A_index,0))) ->  | BL74: =IF(actCaseAnnGHG_4="",NA(),INDEX(Total_Emissions_by_A_vals,MATCH('Annual GHG Emissions - Sector'!BL$38&"#"&actCaseAnnGHG_4&"#"&'Annual GHG Emissions - Sector'!$I74,Total_Emissions_by_A_index,0))) ->  | BM74: =IF(actCaseAnnGHG_4="",NA(),INDEX(Total_Emissions_by_A_vals,MATCH('Annual GHG Emissions - Sector'!BM$38&"#"&actCaseAnnGHG_4&"#"&'Annual GHG Emissions - Sector'!$I74,Total_Emissions_by_A_index,0))) ->  | BN74: =IF(actCaseAnnGHG_4="",NA(),INDEX(Total_Emissions_by_A_vals,MATCH('Annual GHG Emissions - Sector'!BN$38&"#"&actCaseAnnGHG_4&"#"&'Annual GHG Emissions - Sector'!$I74,Total_Emissions_by_A_index,0))) ->  | BO74: =IF(actCaseAnnGHG_4="",NA(),INDEX(Total_Emissions_by_A_vals,MATCH('Annual GHG Emissions - Sector'!BO$38&"#"&actCaseAnnGHG_4&"#"&'Annual GHG Emissions - Sector'!$I74,Total_Emissions_by_A_index,0))) ->  | BP74: =IF(actCaseAnnGHG_4="",NA(),INDEX(Total_Emissions_by_A_vals,MATCH('Annual GHG Emissions - Sector'!BP$38&"#"&actCaseAnnGHG_4&"#"&'Annual GHG Emissions - Sector'!$I74,Total_Emissions_by_A_index,0))) ->  | BQ74: =IF(actCaseAnnGHG_4="",NA(),INDEX(Total_Emissions_by_A_vals,MATCH('Annual GHG Emissions - Sector'!BQ$38&"#"&actCaseAnnGHG_4&"#"&'Annual GHG Emissions - Sector'!$I74,Total_Emissions_by_A_index,0))) ->  | BR74: =IF(actCaseAnnGHG_4="",NA(),INDEX(Total_Emissions_by_A_vals,MATCH('Annual GHG Emissions - Sector'!BR$38&"#"&actCaseAnnGHG_4&"#"&'Annual GHG Emissions - Sector'!$I74,Total_Emissions_by_A_index,0))) -> 
I75: Electric Power | AI75: =IF(actCaseAnnGHG_4="",NA(),INDEX(Total_Emissions_by_A_vals,MATCH('Annual GHG Emissions - Sector'!AI$38&"#"&actCaseAnnGHG_4&"#"&'Annual GHG Emissions - Sector'!$I75,Total_Emissions_by_A_index,0))) ->  | AJ75: =IF(actCaseAnnGHG_4="",NA(),INDEX(Total_Emissions_by_A_vals,MATCH('Annual GHG Emissions - Sector'!AJ$38&"#"&actCaseAnnGHG_4&"#"&'Annual GHG Emissions - Sector'!$I75,Total_Emissions_by_A_index,0))) ->  | AK75: =IF(actCaseAnnGHG_4="",NA(),INDEX(Total_Emissions_by_A_vals,MATCH('Annual GHG Emissions - Sector'!AK$38&"#"&actCaseAnnGHG_4&"#"&'Annual GHG Emissions - Sector'!$I75,Total_Emissions_by_A_index,0))) ->  | AL75: =IF(actCaseAnnGHG_4="",NA(),INDEX(Total_Emissions_by_A_vals,MATCH('Annual GHG Emissions - Sector'!AL$38&"#"&actCaseAnnGHG_4&"#"&'Annual GHG Emissions - Sector'!$I75,Total_Emissions_by_A_index,0))) ->  | AM75: =IF(actCaseAnnGHG_4="",NA(),INDEX(Total_Emissions_by_A_vals,MATCH('Annual GHG Emissions - Sector'!AM$38&"#"&actCaseAnnGHG_4&"#"&'Annual GHG Emissions - Sector'!$I75,Total_Emissions_by_A_index,0))) ->  | AN75: =IF(actCaseAnnGHG_4="",NA(),INDEX(Total_Emissions_by_A_vals,MATCH('Annual GHG Emissions - Sector'!AN$38&"#"&actCaseAnnGHG_4&"#"&'Annual GHG Emissions - Sector'!$I75,Total_Emissions_by_A_index,0))) ->  | AO75: =IF(actCaseAnnGHG_4="",NA(),INDEX(Total_Emissions_by_A_vals,MATCH('Annual GHG Emissions - Sector'!AO$38&"#"&actCaseAnnGHG_4&"#"&'Annual GHG Emissions - Sector'!$I75,Total_Emissions_by_A_index,0))) ->  | AP75: =IF(actCaseAnnGHG_4="",NA(),INDEX(Total_Emissions_by_A_vals,MATCH('Annual GHG Emissions - Sector'!AP$38&"#"&actCaseAnnGHG_4&"#"&'Annual GHG Emissions - Sector'!$I75,Total_Emissions_by_A_index,0))) ->  | AQ75: =IF(actCaseAnnGHG_4="",NA(),INDEX(Total_Emissions_by_A_vals,MATCH('Annual GHG Emissions - Sector'!AQ$38&"#"&actCaseAnnGHG_4&"#"&'Annual GHG Emissions - Sector'!$I75,Total_Emissions_by_A_index,0))) ->  | AR75: =IF(actCaseAnnGHG_4="",NA(),INDEX(Total_Emissions_by_A_vals,MATCH('Annual GHG Emissions - Sector'!AR$38&"#"&actCaseAnnGHG_4&"#"&'Annual GHG Emissions - Sector'!$I75,Total_Emissions_by_A_index,0))) ->  | AS75: =IF(actCaseAnnGHG_4="",NA(),INDEX(Total_Emissions_by_A_vals,MATCH('Annual GHG Emissions - Sector'!AS$38&"#"&actCaseAnnGHG_4&"#"&'Annual GHG Emissions - Sector'!$I75,Total_Emissions_by_A_index,0))) ->  | AT75: =IF(actCaseAnnGHG_4="",NA(),INDEX(Total_Emissions_by_A_vals,MATCH('Annual GHG Emissions - Sector'!AT$38&"#"&actCaseAnnGHG_4&"#"&'Annual GHG Emissions - Sector'!$I75,Total_Emissions_by_A_index,0))) ->  | AU75: =IF(actCaseAnnGHG_4="",NA(),INDEX(Total_Emissions_by_A_vals,MATCH('Annual GHG Emissions - Sector'!AU$38&"#"&actCaseAnnGHG_4&"#"&'Annual GHG Emissions - Sector'!$I75,Total_Emissions_by_A_index,0))) ->  | AV75: =IF(actCaseAnnGHG_4="",NA(),INDEX(Total_Emissions_by_A_vals,MATCH('Annual GHG Emissions - Sector'!AV$38&"#"&actCaseAnnGHG_4&"#"&'Annual GHG Emissions - Sector'!$I75,Total_Emissions_by_A_index,0))) ->  | AW75: =IF(actCaseAnnGHG_4="",NA(),INDEX(Total_Emissions_by_A_vals,MATCH('Annual GHG Emissions - Sector'!AW$38&"#"&actCaseAnnGHG_4&"#"&'Annual GHG Emissions - Sector'!$I75,Total_Emissions_by_A_index,0))) ->  | AX75: =IF(actCaseAnnGHG_4="",NA(),INDEX(Total_Emissions_by_A_vals,MATCH('Annual GHG Emissions - Sector'!AX$38&"#"&actCaseAnnGHG_4&"#"&'Annual GHG Emissions - Sector'!$I75,Total_Emissions_by_A_index,0))) ->  | AY75: =IF(actCaseAnnGHG_4="",NA(),INDEX(Total_Emissions_by_A_vals,MATCH('Annual GHG Emissions - Sector'!AY$38&"#"&actCaseAnnGHG_4&"#"&'Annual GHG Emissions - Sector'!$I75,Total_Emissions_by_A_index,0))) ->  | AZ75: =IF(actCaseAnnGHG_4="",NA(),INDEX(Total_Emissions_by_A_vals,MATCH('Annual GHG Emissions - Sector'!AZ$38&"#"&actCaseAnnGHG_4&"#"&'Annual GHG Emissions - Sector'!$I75,Total_Emissions_by_A_index,0))) ->  | BA75: =IF(actCaseAnnGHG_4="",NA(),INDEX(Total_Emissions_by_A_vals,MATCH('Annual GHG Emissions - Sector'!BA$38&"#"&actCaseAnnGHG_4&"#"&'Annual GHG Emissions - Sector'!$I75,Total_Emissions_by_A_index,0))) ->  | BB75: =IF(actCaseAnnGHG_4="",NA(),INDEX(Total_Emissions_by_A_vals,MATCH('Annual GHG Emissions - Sector'!BB$38&"#"&actCaseAnnGHG_4&"#"&'Annual GHG Emissions - Sector'!$I75,Total_Emissions_by_A_index,0))) ->  | BC75: =IF(actCaseAnnGHG_4="",NA(),INDEX(Total_Emissions_by_A_vals,MATCH('Annual GHG Emissions - Sector'!BC$38&"#"&actCaseAnnGHG_4&"#"&'Annual GHG Emissions - Sector'!$I75,Total_Emissions_by_A_index,0))) ->  | BD75: =IF(actCaseAnnGHG_4="",NA(),INDEX(Total_Emissions_by_A_vals,MATCH('Annual GHG Emissions - Sector'!BD$38&"#"&actCaseAnnGHG_4&"#"&'Annual GHG Emissions - Sector'!$I75,Total_Emissions_by_A_index,0))) ->  | BE75: =IF(actCaseAnnGHG_4="",NA(),INDEX(Total_Emissions_by_A_vals,MATCH('Annual GHG Emissions - Sector'!BE$38&"#"&actCaseAnnGHG_4&"#"&'Annual GHG Emissions - Sector'!$I75,Total_Emissions_by_A_index,0))) ->  | BF75: =IF(actCaseAnnGHG_4="",NA(),INDEX(Total_Emissions_by_A_vals,MATCH('Annual GHG Emissions - Sector'!BF$38&"#"&actCaseAnnGHG_4&"#"&'Annual GHG Emissions - Sector'!$I75,Total_Emissions_by_A_index,0))) ->  | BG75: =IF(actCaseAnnGHG_4="",NA(),INDEX(Total_Emissions_by_A_vals,MATCH('Annual GHG Emissions - Sector'!BG$38&"#"&actCaseAnnGHG_4&"#"&'Annual GHG Emissions - Sector'!$I75,Total_Emissions_by_A_index,0))) ->  | BH75: =IF(actCaseAnnGHG_4="",NA(),INDEX(Total_Emissions_by_A_vals,MATCH('Annual GHG Emissions - Sector'!BH$38&"#"&actCaseAnnGHG_4&"#"&'Annual GHG Emissions - Sector'!$I75,Total_Emissions_by_A_index,0))) ->  | BI75: =IF(actCaseAnnGHG_4="",NA(),INDEX(Total_Emissions_by_A_vals,MATCH('Annual GHG Emissions - Sector'!BI$38&"#"&actCaseAnnGHG_4&"#"&'Annual GHG Emissions - Sector'!$I75,Total_Emissions_by_A_index,0))) ->  | BJ75: =IF(actCaseAnnGHG_4="",NA(),INDEX(Total_Emissions_by_A_vals,MATCH('Annual GHG Emissions - Sector'!BJ$38&"#"&actCaseAnnGHG_4&"#"&'Annual GHG Emissions - Sector'!$I75,Total_Emissions_by_A_index,0))) ->  | BK75: =IF(actCaseAnnGHG_4="",NA(),INDEX(Total_Emissions_by_A_vals,MATCH('Annual GHG Emissions - Sector'!BK$38&"#"&actCaseAnnGHG_4&"#"&'Annual GHG Emissions - Sector'!$I75,Total_Emissions_by_A_index,0))) ->  | BL75: =IF(actCaseAnnGHG_4="",NA(),INDEX(Total_Emissions_by_A_vals,MATCH('Annual GHG Emissions - Sector'!BL$38&"#"&actCaseAnnGHG_4&"#"&'Annual GHG Emissions - Sector'!$I75,Total_Emissions_by_A_index,0))) ->  | BM75: =IF(actCaseAnnGHG_4="",NA(),INDEX(Total_Emissions_by_A_vals,MATCH('Annual GHG Emissions - Sector'!BM$38&"#"&actCaseAnnGHG_4&"#"&'Annual GHG Emissions - Sector'!$I75,Total_Emissions_by_A_index,0))) ->  | BN75: =IF(actCaseAnnGHG_4="",NA(),INDEX(Total_Emissions_by_A_vals,MATCH('Annual GHG Emissions - Sector'!BN$38&"#"&actCaseAnnGHG_4&"#"&'Annual GHG Emissions - Sector'!$I75,Total_Emissions_by_A_index,0))) ->  | BO75: =IF(actCaseAnnGHG_4="",NA(),INDEX(Total_Emissions_by_A_vals,MATCH('Annual GHG Emissions - Sector'!BO$38&"#"&actCaseAnnGHG_4&"#"&'Annual GHG Emissions - Sector'!$I75,Total_Emissions_by_A_index,0))) ->  | BP75: =IF(actCaseAnnGHG_4="",NA(),INDEX(Total_Emissions_by_A_vals,MATCH('Annual GHG Emissions - Sector'!BP$38&"#"&actCaseAnnGHG_4&"#"&'Annual GHG Emissions - Sector'!$I75,Total_Emissions_by_A_index,0))) ->  | BQ75: =IF(actCaseAnnGHG_4="",NA(),INDEX(Total_Emissions_by_A_vals,MATCH('Annual GHG Emissions - Sector'!BQ$38&"#"&actCaseAnnGHG_4&"#"&'Annual GHG Emissions - Sector'!$I75,Total_Emissions_by_A_index,0))) ->  | BR75: =IF(actCaseAnnGHG_4="",NA(),INDEX(Total_Emissions_by_A_vals,MATCH('Annual GHG Emissions - Sector'!BR$38&"#"&actCaseAnnGHG_4&"#"&'Annual GHG Emissions - Sector'!$I75,Total_Emissions_by_A_index,0))) -> 
I76: High GWP | AI76: =IF(actCaseAnnGHG_4="",NA(),INDEX(Total_Emissions_by_A_vals,MATCH('Annual GHG Emissions - Sector'!AI$38&"#"&actCaseAnnGHG_4&"#"&'Annual GHG Emissions - Sector'!$I76,Total_Emissions_by_A_index,0))) ->  | AJ76: =IF(actCaseAnnGHG_4="",NA(),INDEX(Total_Emissions_by_A_vals,MATCH('Annual GHG Emissions - Sector'!AJ$38&"#"&actCaseAnnGHG_4&"#"&'Annual GHG Emissions - Sector'!$I76,Total_Emissions_by_A_index,0))) ->  | AK76: =IF(actCaseAnnGHG_4="",NA(),INDEX(Total_Emissions_by_A_vals,MATCH('Annual GHG Emissions - Sector'!AK$38&"#"&actCaseAnnGHG_4&"#"&'Annual GHG Emissions - Sector'!$I76,Total_Emissions_by_A_index,0))) ->  | AL76: =IF(actCaseAnnGHG_4="",NA(),INDEX(Total_Emissions_by_A_vals,MATCH('Annual GHG Emissions - Sector'!AL$38&"#"&actCaseAnnGHG_4&"#"&'Annual GHG Emissions - Sector'!$I76,Total_Emissions_by_A_index,0))) ->  | AM76: =IF(actCaseAnnGHG_4="",NA(),INDEX(Total_Emissions_by_A_vals,MATCH('Annual GHG Emissions - Sector'!AM$38&"#"&actCaseAnnGHG_4&"#"&'Annual GHG Emissions - Sector'!$I76,Total_Emissions_by_A_index,0))) ->  | AN76: =IF(actCaseAnnGHG_4="",NA(),INDEX(Total_Emissions_by_A_vals,MATCH('Annual GHG Emissions - Sector'!AN$38&"#"&actCaseAnnGHG_4&"#"&'Annual GHG Emissions - Sector'!$I76,Total_Emissions_by_A_index,0))) ->  | AO76: =IF(actCaseAnnGHG_4="",NA(),INDEX(Total_Emissions_by_A_vals,MATCH('Annual GHG Emissions - Sector'!AO$38&"#"&actCaseAnnGHG_4&"#"&'Annual GHG Emissions - Sector'!$I76,Total_Emissions_by_A_index,0))) ->  | AP76: =IF(actCaseAnnGHG_4="",NA(),INDEX(Total_Emissions_by_A_vals,MATCH('Annual GHG Emissions - Sector'!AP$38&"#"&actCaseAnnGHG_4&"#"&'Annual GHG Emissions - Sector'!$I76,Total_Emissions_by_A_index,0))) ->  | AQ76: =IF(actCaseAnnGHG_4="",NA(),INDEX(Total_Emissions_by_A_vals,MATCH('Annual GHG Emissions - Sector'!AQ$38&"#"&actCaseAnnGHG_4&"#"&'Annual GHG Emissions - Sector'!$I76,Total_Emissions_by_A_index,0))) ->  | AR76: =IF(actCaseAnnGHG_4="",NA(),INDEX(Total_Emissions_by_A_vals,MATCH('Annual GHG Emissions - Sector'!AR$38&"#"&actCaseAnnGHG_4&"#"&'Annual GHG Emissions - Sector'!$I76,Total_Emissions_by_A_index,0))) ->  | AS76: =IF(actCaseAnnGHG_4="",NA(),INDEX(Total_Emissions_by_A_vals,MATCH('Annual GHG Emissions - Sector'!AS$38&"#"&actCaseAnnGHG_4&"#"&'Annual GHG Emissions - Sector'!$I76,Total_Emissions_by_A_index,0))) ->  | AT76: =IF(actCaseAnnGHG_4="",NA(),INDEX(Total_Emissions_by_A_vals,MATCH('Annual GHG Emissions - Sector'!AT$38&"#"&actCaseAnnGHG_4&"#"&'Annual GHG Emissions - Sector'!$I76,Total_Emissions_by_A_index,0))) ->  | AU76: =IF(actCaseAnnGHG_4="",NA(),INDEX(Total_Emissions_by_A_vals,MATCH('Annual GHG Emissions - Sector'!AU$38&"#"&actCaseAnnGHG_4&"#"&'Annual GHG Emissions - Sector'!$I76,Total_Emissions_by_A_index,0))) ->  | AV76: =IF(actCaseAnnGHG_4="",NA(),INDEX(Total_Emissions_by_A_vals,MATCH('Annual GHG Emissions - Sector'!AV$38&"#"&actCaseAnnGHG_4&"#"&'Annual GHG Emissions - Sector'!$I76,Total_Emissions_by_A_index,0))) ->  | AW76: =IF(actCaseAnnGHG_4="",NA(),INDEX(Total_Emissions_by_A_vals,MATCH('Annual GHG Emissions - Sector'!AW$38&"#"&actCaseAnnGHG_4&"#"&'Annual GHG Emissions - Sector'!$I76,Total_Emissions_by_A_index,0))) ->  | AX76: =IF(actCaseAnnGHG_4="",NA(),INDEX(Total_Emissions_by_A_vals,MATCH('Annual GHG Emissions - Sector'!AX$38&"#"&actCaseAnnGHG_4&"#"&'Annual GHG Emissions - Sector'!$I76,Total_Emissions_by_A_index,0))) ->  | AY76: =IF(actCaseAnnGHG_4="",NA(),INDEX(Total_Emissions_by_A_vals,MATCH('Annual GHG Emissions - Sector'!AY$38&"#"&actCaseAnnGHG_4&"#"&'Annual GHG Emissions - Sector'!$I76,Total_Emissions_by_A_index,0))) ->  | AZ76: =IF(actCaseAnnGHG_4="",NA(),INDEX(Total_Emissions_by_A_vals,MATCH('Annual GHG Emissions - Sector'!AZ$38&"#"&actCaseAnnGHG_4&"#"&'Annual GHG Emissions - Sector'!$I76,Total_Emissions_by_A_index,0))) ->  | BA76: =IF(actCaseAnnGHG_4="",NA(),INDEX(Total_Emissions_by_A_vals,MATCH('Annual GHG Emissions - Sector'!BA$38&"#"&actCaseAnnGHG_4&"#"&'Annual GHG Emissions - Sector'!$I76,Total_Emissions_by_A_index,0))) ->  | BB76: =IF(actCaseAnnGHG_4="",NA(),INDEX(Total_Emissions_by_A_vals,MATCH('Annual GHG Emissions - Sector'!BB$38&"#"&actCaseAnnGHG_4&"#"&'Annual GHG Emissions - Sector'!$I76,Total_Emissions_by_A_index,0))) ->  | BC76: =IF(actCaseAnnGHG_4="",NA(),INDEX(Total_Emissions_by_A_vals,MATCH('Annual GHG Emissions - Sector'!BC$38&"#"&actCaseAnnGHG_4&"#"&'Annual GHG Emissions - Sector'!$I76,Total_Emissions_by_A_index,0))) ->  | BD76: =IF(actCaseAnnGHG_4="",NA(),INDEX(Total_Emissions_by_A_vals,MATCH('Annual GHG Emissions - Sector'!BD$38&"#"&actCaseAnnGHG_4&"#"&'Annual GHG Emissions - Sector'!$I76,Total_Emissions_by_A_index,0))) ->  | BE76: =IF(actCaseAnnGHG_4="",NA(),INDEX(Total_Emissions_by_A_vals,MATCH('Annual GHG Emissions - Sector'!BE$38&"#"&actCaseAnnGHG_4&"#"&'Annual GHG Emissions - Sector'!$I76,Total_Emissions_by_A_index,0))) ->  | BF76: =IF(actCaseAnnGHG_4="",NA(),INDEX(Total_Emissions_by_A_vals,MATCH('Annual GHG Emissions - Sector'!BF$38&"#"&actCaseAnnGHG_4&"#"&'Annual GHG Emissions - Sector'!$I76,Total_Emissions_by_A_index,0))) ->  | BG76: =IF(actCaseAnnGHG_4="",NA(),INDEX(Total_Emissions_by_A_vals,MATCH('Annual GHG Emissions - Sector'!BG$38&"#"&actCaseAnnGHG_4&"#"&'Annual GHG Emissions - Sector'!$I76,Total_Emissions_by_A_index,0))) ->  | BH76: =IF(actCaseAnnGHG_4="",NA(),INDEX(Total_Emissions_by_A_vals,MATCH('Annual GHG Emissions - Sector'!BH$38&"#"&actCaseAnnGHG_4&"#"&'Annual GHG Emissions - Sector'!$I76,Total_Emissions_by_A_index,0))) ->  | BI76: =IF(actCaseAnnGHG_4="",NA(),INDEX(Total_Emissions_by_A_vals,MATCH('Annual GHG Emissions - Sector'!BI$38&"#"&actCaseAnnGHG_4&"#"&'Annual GHG Emissions - Sector'!$I76,Total_Emissions_by_A_index,0))) ->  | BJ76: =IF(actCaseAnnGHG_4="",NA(),INDEX(Total_Emissions_by_A_vals,MATCH('Annual GHG Emissions - Sector'!BJ$38&"#"&actCaseAnnGHG_4&"#"&'Annual GHG Emissions - Sector'!$I76,Total_Emissions_by_A_index,0))) ->  | BK76: =IF(actCaseAnnGHG_4="",NA(),INDEX(Total_Emissions_by_A_vals,MATCH('Annual GHG Emissions - Sector'!BK$38&"#"&actCaseAnnGHG_4&"#"&'Annual GHG Emissions - Sector'!$I76,Total_Emissions_by_A_index,0))) ->  | BL76: =IF(actCaseAnnGHG_4="",NA(),INDEX(Total_Emissions_by_A_vals,MATCH('Annual GHG Emissions - Sector'!BL$38&"#"&actCaseAnnGHG_4&"#"&'Annual GHG Emissions - Sector'!$I76,Total_Emissions_by_A_index,0))) ->  | BM76: =IF(actCaseAnnGHG_4="",NA(),INDEX(Total_Emissions_by_A_vals,MATCH('Annual GHG Emissions - Sector'!BM$38&"#"&actCaseAnnGHG_4&"#"&'Annual GHG Emissions - Sector'!$I76,Total_Emissions_by_A_index,0))) ->  | BN76: =IF(actCaseAnnGHG_4="",NA(),INDEX(Total_Emissions_by_A_vals,MATCH('Annual GHG Emissions - Sector'!BN$38&"#"&actCaseAnnGHG_4&"#"&'Annual GHG Emissions - Sector'!$I76,Total_Emissions_by_A_index,0))) ->  | BO76: =IF(actCaseAnnGHG_4="",NA(),INDEX(Total_Emissions_by_A_vals,MATCH('Annual GHG Emissions - Sector'!BO$38&"#"&actCaseAnnGHG_4&"#"&'Annual GHG Emissions - Sector'!$I76,Total_Emissions_by_A_index,0))) ->  | BP76: =IF(actCaseAnnGHG_4="",NA(),INDEX(Total_Emissions_by_A_vals,MATCH('Annual GHG Emissions - Sector'!BP$38&"#"&actCaseAnnGHG_4&"#"&'Annual GHG Emissions - Sector'!$I76,Total_Emissions_by_A_index,0))) ->  | BQ76: =IF(actCaseAnnGHG_4="",NA(),INDEX(Total_Emissions_by_A_vals,MATCH('Annual GHG Emissions - Sector'!BQ$38&"#"&actCaseAnnGHG_4&"#"&'Annual GHG Emissions - Sector'!$I76,Total_Emissions_by_A_index,0))) ->  | BR76: =IF(actCaseAnnGHG_4="",NA(),INDEX(Total_Emissions_by_A_vals,MATCH('Annual GHG Emissions - Sector'!BR$38&"#"&actCaseAnnGHG_4&"#"&'Annual GHG Emissions - Sector'!$I76,Total_Emissions_by_A_index,0))) -> 
I77: Industrial | AI77: =IF(actCaseAnnGHG_4="",NA(),INDEX(Total_Emissions_by_A_vals,MATCH('Annual GHG Emissions - Sector'!AI$38&"#"&actCaseAnnGHG_4&"#"&'Annual GHG Emissions - Sector'!$I77,Total_Emissions_by_A_index,0))) ->  | AJ77: =IF(actCaseAnnGHG_4="",NA(),INDEX(Total_Emissions_by_A_vals,MATCH('Annual GHG Emissions - Sector'!AJ$38&"#"&actCaseAnnGHG_4&"#"&'Annual GHG Emissions - Sector'!$I77,Total_Emissions_by_A_index,0))) ->  | AK77: =IF(actCaseAnnGHG_4="",NA(),INDEX(Total_Emissions_by_A_vals,MATCH('Annual GHG Emissions - Sector'!AK$38&"#"&actCaseAnnGHG_4&"#"&'Annual GHG Emissions - Sector'!$I77,Total_Emissions_by_A_index,0))) ->  | AL77: =IF(actCaseAnnGHG_4="",NA(),INDEX(Total_Emissions_by_A_vals,MATCH('Annual GHG Emissions - Sector'!AL$38&"#"&actCaseAnnGHG_4&"#"&'Annual GHG Emissions - Sector'!$I77,Total_Emissions_by_A_index,0))) ->  | AM77: =IF(actCaseAnnGHG_4="",NA(),INDEX(Total_Emissions_by_A_vals,MATCH('Annual GHG Emissions - Sector'!AM$38&"#"&actCaseAnnGHG_4&"#"&'Annual GHG Emissions - Sector'!$I77,Total_Emissions_by_A_index,0))) ->  | AN77: =IF(actCaseAnnGHG_4="",NA(),INDEX(Total_Emissions_by_A_vals,MATCH('Annual GHG Emissions - Sector'!AN$38&"#"&actCaseAnnGHG_4&"#"&'Annual GHG Emissions - Sector'!$I77,Total_Emissions_by_A_index,0))) ->  | AO77: =IF(actCaseAnnGHG_4="",NA(),INDEX(Total_Emissions_by_A_vals,MATCH('Annual GHG Emissions - Sector'!AO$38&"#"&actCaseAnnGHG_4&"#"&'Annual GHG Emissions - Sector'!$I77,Total_Emissions_by_A_index,0))) ->  | AP77: =IF(actCaseAnnGHG_4="",NA(),INDEX(Total_Emissions_by_A_vals,MATCH('Annual GHG Emissions - Sector'!AP$38&"#"&actCaseAnnGHG_4&"#"&'Annual GHG Emissions - Sector'!$I77,Total_Emissions_by_A_index,0))) ->  | AQ77: =IF(actCaseAnnGHG_4="",NA(),INDEX(Total_Emissions_by_A_vals,MATCH('Annual GHG Emissions - Sector'!AQ$38&"#"&actCaseAnnGHG_4&"#"&'Annual GHG Emissions - Sector'!$I77,Total_Emissions_by_A_index,0))) ->  | AR77: =IF(actCaseAnnGHG_4="",NA(),INDEX(Total_Emissions_by_A_vals,MATCH('Annual GHG Emissions - Sector'!AR$38&"#"&actCaseAnnGHG_4&"#"&'Annual GHG Emissions - Sector'!$I77,Total_Emissions_by_A_index,0))) ->  | AS77: =IF(actCaseAnnGHG_4="",NA(),INDEX(Total_Emissions_by_A_vals,MATCH('Annual GHG Emissions - Sector'!AS$38&"#"&actCaseAnnGHG_4&"#"&'Annual GHG Emissions - Sector'!$I77,Total_Emissions_by_A_index,0))) ->  | AT77: =IF(actCaseAnnGHG_4="",NA(),INDEX(Total_Emissions_by_A_vals,MATCH('Annual GHG Emissions - Sector'!AT$38&"#"&actCaseAnnGHG_4&"#"&'Annual GHG Emissions - Sector'!$I77,Total_Emissions_by_A_index,0))) ->  | AU77: =IF(actCaseAnnGHG_4="",NA(),INDEX(Total_Emissions_by_A_vals,MATCH('Annual GHG Emissions - Sector'!AU$38&"#"&actCaseAnnGHG_4&"#"&'Annual GHG Emissions - Sector'!$I77,Total_Emissions_by_A_index,0))) ->  | AV77: =IF(actCaseAnnGHG_4="",NA(),INDEX(Total_Emissions_by_A_vals,MATCH('Annual GHG Emissions - Sector'!AV$38&"#"&actCaseAnnGHG_4&"#"&'Annual GHG Emissions - Sector'!$I77,Total_Emissions_by_A_index,0))) ->  | AW77: =IF(actCaseAnnGHG_4="",NA(),INDEX(Total_Emissions_by_A_vals,MATCH('Annual GHG Emissions - Sector'!AW$38&"#"&actCaseAnnGHG_4&"#"&'Annual GHG Emissions - Sector'!$I77,Total_Emissions_by_A_index,0))) ->  | AX77: =IF(actCaseAnnGHG_4="",NA(),INDEX(Total_Emissions_by_A_vals,MATCH('Annual GHG Emissions - Sector'!AX$38&"#"&actCaseAnnGHG_4&"#"&'Annual GHG Emissions - Sector'!$I77,Total_Emissions_by_A_index,0))) ->  | AY77: =IF(actCaseAnnGHG_4="",NA(),INDEX(Total_Emissions_by_A_vals,MATCH('Annual GHG Emissions - Sector'!AY$38&"#"&actCaseAnnGHG_4&"#"&'Annual GHG Emissions - Sector'!$I77,Total_Emissions_by_A_index,0))) ->  | AZ77: =IF(actCaseAnnGHG_4="",NA(),INDEX(Total_Emissions_by_A_vals,MATCH('Annual GHG Emissions - Sector'!AZ$38&"#"&actCaseAnnGHG_4&"#"&'Annual GHG Emissions - Sector'!$I77,Total_Emissions_by_A_index,0))) ->  | BA77: =IF(actCaseAnnGHG_4="",NA(),INDEX(Total_Emissions_by_A_vals,MATCH('Annual GHG Emissions - Sector'!BA$38&"#"&actCaseAnnGHG_4&"#"&'Annual GHG Emissions - Sector'!$I77,Total_Emissions_by_A_index,0))) ->  | BB77: =IF(actCaseAnnGHG_4="",NA(),INDEX(Total_Emissions_by_A_vals,MATCH('Annual GHG Emissions - Sector'!BB$38&"#"&actCaseAnnGHG_4&"#"&'Annual GHG Emissions - Sector'!$I77,Total_Emissions_by_A_index,0))) ->  | BC77: =IF(actCaseAnnGHG_4="",NA(),INDEX(Total_Emissions_by_A_vals,MATCH('Annual GHG Emissions - Sector'!BC$38&"#"&actCaseAnnGHG_4&"#"&'Annual GHG Emissions - Sector'!$I77,Total_Emissions_by_A_index,0))) ->  | BD77: =IF(actCaseAnnGHG_4="",NA(),INDEX(Total_Emissions_by_A_vals,MATCH('Annual GHG Emissions - Sector'!BD$38&"#"&actCaseAnnGHG_4&"#"&'Annual GHG Emissions - Sector'!$I77,Total_Emissions_by_A_index,0))) ->  | BE77: =IF(actCaseAnnGHG_4="",NA(),INDEX(Total_Emissions_by_A_vals,MATCH('Annual GHG Emissions - Sector'!BE$38&"#"&actCaseAnnGHG_4&"#"&'Annual GHG Emissions - Sector'!$I77,Total_Emissions_by_A_index,0))) ->  | BF77: =IF(actCaseAnnGHG_4="",NA(),INDEX(Total_Emissions_by_A_vals,MATCH('Annual GHG Emissions - Sector'!BF$38&"#"&actCaseAnnGHG_4&"#"&'Annual GHG Emissions - Sector'!$I77,Total_Emissions_by_A_index,0))) ->  | BG77: =IF(actCaseAnnGHG_4="",NA(),INDEX(Total_Emissions_by_A_vals,MATCH('Annual GHG Emissions - Sector'!BG$38&"#"&actCaseAnnGHG_4&"#"&'Annual GHG Emissions - Sector'!$I77,Total_Emissions_by_A_index,0))) ->  | BH77: =IF(actCaseAnnGHG_4="",NA(),INDEX(Total_Emissions_by_A_vals,MATCH('Annual GHG Emissions - Sector'!BH$38&"#"&actCaseAnnGHG_4&"#"&'Annual GHG Emissions - Sector'!$I77,Total_Emissions_by_A_index,0))) ->  | BI77: =IF(actCaseAnnGHG_4="",NA(),INDEX(Total_Emissions_by_A_vals,MATCH('Annual GHG Emissions - Sector'!BI$38&"#"&actCaseAnnGHG_4&"#"&'Annual GHG Emissions - Sector'!$I77,Total_Emissions_by_A_index,0))) ->  | BJ77: =IF(actCaseAnnGHG_4="",NA(),INDEX(Total_Emissions_by_A_vals,MATCH('Annual GHG Emissions - Sector'!BJ$38&"#"&actCaseAnnGHG_4&"#"&'Annual GHG Emissions - Sector'!$I77,Total_Emissions_by_A_index,0))) ->  | BK77: =IF(actCaseAnnGHG_4="",NA(),INDEX(Total_Emissions_by_A_vals,MATCH('Annual GHG Emissions - Sector'!BK$38&"#"&actCaseAnnGHG_4&"#"&'Annual GHG Emissions - Sector'!$I77,Total_Emissions_by_A_index,0))) ->  | BL77: =IF(actCaseAnnGHG_4="",NA(),INDEX(Total_Emissions_by_A_vals,MATCH('Annual GHG Emissions - Sector'!BL$38&"#"&actCaseAnnGHG_4&"#"&'Annual GHG Emissions - Sector'!$I77,Total_Emissions_by_A_index,0))) ->  | BM77: =IF(actCaseAnnGHG_4="",NA(),INDEX(Total_Emissions_by_A_vals,MATCH('Annual GHG Emissions - Sector'!BM$38&"#"&actCaseAnnGHG_4&"#"&'Annual GHG Emissions - Sector'!$I77,Total_Emissions_by_A_index,0))) ->  | BN77: =IF(actCaseAnnGHG_4="",NA(),INDEX(Total_Emissions_by_A_vals,MATCH('Annual GHG Emissions - Sector'!BN$38&"#"&actCaseAnnGHG_4&"#"&'Annual GHG Emissions - Sector'!$I77,Total_Emissions_by_A_index,0))) ->  | BO77: =IF(actCaseAnnGHG_4="",NA(),INDEX(Total_Emissions_by_A_vals,MATCH('Annual GHG Emissions - Sector'!BO$38&"#"&actCaseAnnGHG_4&"#"&'Annual GHG Emissions - Sector'!$I77,Total_Emissions_by_A_index,0))) ->  | BP77: =IF(actCaseAnnGHG_4="",NA(),INDEX(Total_Emissions_by_A_vals,MATCH('Annual GHG Emissions - Sector'!BP$38&"#"&actCaseAnnGHG_4&"#"&'Annual GHG Emissions - Sector'!$I77,Total_Emissions_by_A_index,0))) ->  | BQ77: =IF(actCaseAnnGHG_4="",NA(),INDEX(Total_Emissions_by_A_vals,MATCH('Annual GHG Emissions - Sector'!BQ$38&"#"&actCaseAnnGHG_4&"#"&'Annual GHG Emissions - Sector'!$I77,Total_Emissions_by_A_index,0))) ->  | BR77: =IF(actCaseAnnGHG_4="",NA(),INDEX(Total_Emissions_by_A_vals,MATCH('Annual GHG Emissions - Sector'!BR$38&"#"&actCaseAnnGHG_4&"#"&'Annual GHG Emissions - Sector'!$I77,Total_Emissions_by_A_index,0))) -> 
I78: Recycling and Waste | AI78: =IF(actCaseAnnGHG_4="",NA(),INDEX(Total_Emissions_by_A_vals,MATCH('Annual GHG Emissions - Sector'!AI$38&"#"&actCaseAnnGHG_4&"#"&'Annual GHG Emissions - Sector'!$I78,Total_Emissions_by_A_index,0))) ->  | AJ78: =IF(actCaseAnnGHG_4="",NA(),INDEX(Total_Emissions_by_A_vals,MATCH('Annual GHG Emissions - Sector'!AJ$38&"#"&actCaseAnnGHG_4&"#"&'Annual GHG Emissions - Sector'!$I78,Total_Emissions_by_A_index,0))) ->  | AK78: =IF(actCaseAnnGHG_4="",NA(),INDEX(Total_Emissions_by_A_vals,MATCH('Annual GHG Emissions - Sector'!AK$38&"#"&actCaseAnnGHG_4&"#"&'Annual GHG Emissions - Sector'!$I78,Total_Emissions_by_A_index,0))) ->  | AL78: =IF(actCaseAnnGHG_4="",NA(),INDEX(Total_Emissions_by_A_vals,MATCH('Annual GHG Emissions - Sector'!AL$38&"#"&actCaseAnnGHG_4&"#"&'Annual GHG Emissions - Sector'!$I78,Total_Emissions_by_A_index,0))) ->  | AM78: =IF(actCaseAnnGHG_4="",NA(),INDEX(Total_Emissions_by_A_vals,MATCH('Annual GHG Emissions - Sector'!AM$38&"#"&actCaseAnnGHG_4&"#"&'Annual GHG Emissions - Sector'!$I78,Total_Emissions_by_A_index,0))) ->  | AN78: =IF(actCaseAnnGHG_4="",NA(),INDEX(Total_Emissions_by_A_vals,MATCH('Annual GHG Emissions - Sector'!AN$38&"#"&actCaseAnnGHG_4&"#"&'Annual GHG Emissions - Sector'!$I78,Total_Emissions_by_A_index,0))) ->  | AO78: =IF(actCaseAnnGHG_4="",NA(),INDEX(Total_Emissions_by_A_vals,MATCH('Annual GHG Emissions - Sector'!AO$38&"#"&actCaseAnnGHG_4&"#"&'Annual GHG Emissions - Sector'!$I78,Total_Emissions_by_A_index,0))) ->  | AP78: =IF(actCaseAnnGHG_4="",NA(),INDEX(Total_Emissions_by_A_vals,MATCH('Annual GHG Emissions - Sector'!AP$38&"#"&actCaseAnnGHG_4&"#"&'Annual GHG Emissions - Sector'!$I78,Total_Emissions_by_A_index,0))) ->  | AQ78: =IF(actCaseAnnGHG_4="",NA(),INDEX(Total_Emissions_by_A_vals,MATCH('Annual GHG Emissions - Sector'!AQ$38&"#"&actCaseAnnGHG_4&"#"&'Annual GHG Emissions - Sector'!$I78,Total_Emissions_by_A_index,0))) ->  | AR78: =IF(actCaseAnnGHG_4="",NA(),INDEX(Total_Emissions_by_A_vals,MATCH('Annual GHG Emissions - Sector'!AR$38&"#"&actCaseAnnGHG_4&"#"&'Annual GHG Emissions - Sector'!$I78,Total_Emissions_by_A_index,0))) ->  | AS78: =IF(actCaseAnnGHG_4="",NA(),INDEX(Total_Emissions_by_A_vals,MATCH('Annual GHG Emissions - Sector'!AS$38&"#"&actCaseAnnGHG_4&"#"&'Annual GHG Emissions - Sector'!$I78,Total_Emissions_by_A_index,0))) ->  | AT78: =IF(actCaseAnnGHG_4="",NA(),INDEX(Total_Emissions_by_A_vals,MATCH('Annual GHG Emissions - Sector'!AT$38&"#"&actCaseAnnGHG_4&"#"&'Annual GHG Emissions - Sector'!$I78,Total_Emissions_by_A_index,0))) ->  | AU78: =IF(actCaseAnnGHG_4="",NA(),INDEX(Total_Emissions_by_A_vals,MATCH('Annual GHG Emissions - Sector'!AU$38&"#"&actCaseAnnGHG_4&"#"&'Annual GHG Emissions - Sector'!$I78,Total_Emissions_by_A_index,0))) ->  | AV78: =IF(actCaseAnnGHG_4="",NA(),INDEX(Total_Emissions_by_A_vals,MATCH('Annual GHG Emissions - Sector'!AV$38&"#"&actCaseAnnGHG_4&"#"&'Annual GHG Emissions - Sector'!$I78,Total_Emissions_by_A_index,0))) ->  | AW78: =IF(actCaseAnnGHG_4="",NA(),INDEX(Total_Emissions_by_A_vals,MATCH('Annual GHG Emissions - Sector'!AW$38&"#"&actCaseAnnGHG_4&"#"&'Annual GHG Emissions - Sector'!$I78,Total_Emissions_by_A_index,0))) ->  | AX78: =IF(actCaseAnnGHG_4="",NA(),INDEX(Total_Emissions_by_A_vals,MATCH('Annual GHG Emissions - Sector'!AX$38&"#"&actCaseAnnGHG_4&"#"&'Annual GHG Emissions - Sector'!$I78,Total_Emissions_by_A_index,0))) ->  | AY78: =IF(actCaseAnnGHG_4="",NA(),INDEX(Total_Emissions_by_A_vals,MATCH('Annual GHG Emissions - Sector'!AY$38&"#"&actCaseAnnGHG_4&"#"&'Annual GHG Emissions - Sector'!$I78,Total_Emissions_by_A_index,0))) ->  | AZ78: =IF(actCaseAnnGHG_4="",NA(),INDEX(Total_Emissions_by_A_vals,MATCH('Annual GHG Emissions - Sector'!AZ$38&"#"&actCaseAnnGHG_4&"#"&'Annual GHG Emissions - Sector'!$I78,Total_Emissions_by_A_index,0))) ->  | BA78: =IF(actCaseAnnGHG_4="",NA(),INDEX(Total_Emissions_by_A_vals,MATCH('Annual GHG Emissions - Sector'!BA$38&"#"&actCaseAnnGHG_4&"#"&'Annual GHG Emissions - Sector'!$I78,Total_Emissions_by_A_index,0))) ->  | BB78: =IF(actCaseAnnGHG_4="",NA(),INDEX(Total_Emissions_by_A_vals,MATCH('Annual GHG Emissions - Sector'!BB$38&"#"&actCaseAnnGHG_4&"#"&'Annual GHG Emissions - Sector'!$I78,Total_Emissions_by_A_index,0))) ->  | BC78: =IF(actCaseAnnGHG_4="",NA(),INDEX(Total_Emissions_by_A_vals,MATCH('Annual GHG Emissions - Sector'!BC$38&"#"&actCaseAnnGHG_4&"#"&'Annual GHG Emissions - Sector'!$I78,Total_Emissions_by_A_index,0))) ->  | BD78: =IF(actCaseAnnGHG_4="",NA(),INDEX(Total_Emissions_by_A_vals,MATCH('Annual GHG Emissions - Sector'!BD$38&"#"&actCaseAnnGHG_4&"#"&'Annual GHG Emissions - Sector'!$I78,Total_Emissions_by_A_index,0))) ->  | BE78: =IF(actCaseAnnGHG_4="",NA(),INDEX(Total_Emissions_by_A_vals,MATCH('Annual GHG Emissions - Sector'!BE$38&"#"&actCaseAnnGHG_4&"#"&'Annual GHG Emissions - Sector'!$I78,Total_Emissions_by_A_index,0))) ->  | BF78: =IF(actCaseAnnGHG_4="",NA(),INDEX(Total_Emissions_by_A_vals,MATCH('Annual GHG Emissions - Sector'!BF$38&"#"&actCaseAnnGHG_4&"#"&'Annual GHG Emissions - Sector'!$I78,Total_Emissions_by_A_index,0))) ->  | BG78: =IF(actCaseAnnGHG_4="",NA(),INDEX(Total_Emissions_by_A_vals,MATCH('Annual GHG Emissions - Sector'!BG$38&"#"&actCaseAnnGHG_4&"#"&'Annual GHG Emissions - Sector'!$I78,Total_Emissions_by_A_index,0))) ->  | BH78: =IF(actCaseAnnGHG_4="",NA(),INDEX(Total_Emissions_by_A_vals,MATCH('Annual GHG Emissions - Sector'!BH$38&"#"&actCaseAnnGHG_4&"#"&'Annual GHG Emissions - Sector'!$I78,Total_Emissions_by_A_index,0))) ->  | BI78: =IF(actCaseAnnGHG_4="",NA(),INDEX(Total_Emissions_by_A_vals,MATCH('Annual GHG Emissions - Sector'!BI$38&"#"&actCaseAnnGHG_4&"#"&'Annual GHG Emissions - Sector'!$I78,Total_Emissions_by_A_index,0))) ->  | BJ78: =IF(actCaseAnnGHG_4="",NA(),INDEX(Total_Emissions_by_A_vals,MATCH('Annual GHG Emissions - Sector'!BJ$38&"#"&actCaseAnnGHG_4&"#"&'Annual GHG Emissions - Sector'!$I78,Total_Emissions_by_A_index,0))) ->  | BK78: =IF(actCaseAnnGHG_4="",NA(),INDEX(Total_Emissions_by_A_vals,MATCH('Annual GHG Emissions - Sector'!BK$38&"#"&actCaseAnnGHG_4&"#"&'Annual GHG Emissions - Sector'!$I78,Total_Emissions_by_A_index,0))) ->  | BL78: =IF(actCaseAnnGHG_4="",NA(),INDEX(Total_Emissions_by_A_vals,MATCH('Annual GHG Emissions - Sector'!BL$38&"#"&actCaseAnnGHG_4&"#"&'Annual GHG Emissions - Sector'!$I78,Total_Emissions_by_A_index,0))) ->  | BM78: =IF(actCaseAnnGHG_4="",NA(),INDEX(Total_Emissions_by_A_vals,MATCH('Annual GHG Emissions - Sector'!BM$38&"#"&actCaseAnnGHG_4&"#"&'Annual GHG Emissions - Sector'!$I78,Total_Emissions_by_A_index,0))) ->  | BN78: =IF(actCaseAnnGHG_4="",NA(),INDEX(Total_Emissions_by_A_vals,MATCH('Annual GHG Emissions - Sector'!BN$38&"#"&actCaseAnnGHG_4&"#"&'Annual GHG Emissions - Sector'!$I78,Total_Emissions_by_A_index,0))) ->  | BO78: =IF(actCaseAnnGHG_4="",NA(),INDEX(Total_Emissions_by_A_vals,MATCH('Annual GHG Emissions - Sector'!BO$38&"#"&actCaseAnnGHG_4&"#"&'Annual GHG Emissions - Sector'!$I78,Total_Emissions_by_A_index,0))) ->  | BP78: =IF(actCaseAnnGHG_4="",NA(),INDEX(Total_Emissions_by_A_vals,MATCH('Annual GHG Emissions - Sector'!BP$38&"#"&actCaseAnnGHG_4&"#"&'Annual GHG Emissions - Sector'!$I78,Total_Emissions_by_A_index,0))) ->  | BQ78: =IF(actCaseAnnGHG_4="",NA(),INDEX(Total_Emissions_by_A_vals,MATCH('Annual GHG Emissions - Sector'!BQ$38&"#"&actCaseAnnGHG_4&"#"&'Annual GHG Emissions - Sector'!$I78,Total_Emissions_by_A_index,0))) ->  | BR78: =IF(actCaseAnnGHG_4="",NA(),INDEX(Total_Emissions_by_A_vals,MATCH('Annual GHG Emissions - Sector'!BR$38&"#"&actCaseAnnGHG_4&"#"&'Annual GHG Emissions - Sector'!$I78,Total_Emissions_by_A_index,0))) -> 
I79: Transportation (Incl. TCU) | AI79: =IF(actCaseAnnGHG_4="",NA(),INDEX(Total_Emissions_by_A_vals,MATCH('Annual GHG Emissions - Sector'!AI$38&"#"&actCaseAnnGHG_4&"#"&'Annual GHG Emissions - Sector'!$I79,Total_Emissions_by_A_index,0))) ->  | AJ79: =IF(actCaseAnnGHG_4="",NA(),INDEX(Total_Emissions_by_A_vals,MATCH('Annual GHG Emissions - Sector'!AJ$38&"#"&actCaseAnnGHG_4&"#"&'Annual GHG Emissions - Sector'!$I79,Total_Emissions_by_A_index,0))) ->  | AK79: =IF(actCaseAnnGHG_4="",NA(),INDEX(Total_Emissions_by_A_vals,MATCH('Annual GHG Emissions - Sector'!AK$38&"#"&actCaseAnnGHG_4&"#"&'Annual GHG Emissions - Sector'!$I79,Total_Emissions_by_A_index,0))) ->  | AL79: =IF(actCaseAnnGHG_4="",NA(),INDEX(Total_Emissions_by_A_vals,MATCH('Annual GHG Emissions - Sector'!AL$38&"#"&actCaseAnnGHG_4&"#"&'Annual GHG Emissions - Sector'!$I79,Total_Emissions_by_A_index,0))) ->  | AM79: =IF(actCaseAnnGHG_4="",NA(),INDEX(Total_Emissions_by_A_vals,MATCH('Annual GHG Emissions - Sector'!AM$38&"#"&actCaseAnnGHG_4&"#"&'Annual GHG Emissions - Sector'!$I79,Total_Emissions_by_A_index,0))) ->  | AN79: =IF(actCaseAnnGHG_4="",NA(),INDEX(Total_Emissions_by_A_vals,MATCH('Annual GHG Emissions - Sector'!AN$38&"#"&actCaseAnnGHG_4&"#"&'Annual GHG Emissions - Sector'!$I79,Total_Emissions_by_A_index,0))) ->  | AO79: =IF(actCaseAnnGHG_4="",NA(),INDEX(Total_Emissions_by_A_vals,MATCH('Annual GHG Emissions - Sector'!AO$38&"#"&actCaseAnnGHG_4&"#"&'Annual GHG Emissions - Sector'!$I79,Total_Emissions_by_A_index,0))) ->  | AP79: =IF(actCaseAnnGHG_4="",NA(),INDEX(Total_Emissions_by_A_vals,MATCH('Annual GHG Emissions - Sector'!AP$38&"#"&actCaseAnnGHG_4&"#"&'Annual GHG Emissions - Sector'!$I79,Total_Emissions_by_A_index,0))) ->  | AQ79: =IF(actCaseAnnGHG_4="",NA(),INDEX(Total_Emissions_by_A_vals,MATCH('Annual GHG Emissions - Sector'!AQ$38&"#"&actCaseAnnGHG_4&"#"&'Annual GHG Emissions - Sector'!$I79,Total_Emissions_by_A_index,0))) ->  | AR79: =IF(actCaseAnnGHG_4="",NA(),INDEX(Total_Emissions_by_A_vals,MATCH('Annual GHG Emissions - Sector'!AR$38&"#"&actCaseAnnGHG_4&"#"&'Annual GHG Emissions - Sector'!$I79,Total_Emissions_by_A_index,0))) ->  | AS79: =IF(actCaseAnnGHG_4="",NA(),INDEX(Total_Emissions_by_A_vals,MATCH('Annual GHG Emissions - Sector'!AS$38&"#"&actCaseAnnGHG_4&"#"&'Annual GHG Emissions - Sector'!$I79,Total_Emissions_by_A_index,0))) ->  | AT79: =IF(actCaseAnnGHG_4="",NA(),INDEX(Total_Emissions_by_A_vals,MATCH('Annual GHG Emissions - Sector'!AT$38&"#"&actCaseAnnGHG_4&"#"&'Annual GHG Emissions - Sector'!$I79,Total_Emissions_by_A_index,0))) ->  | AU79: =IF(actCaseAnnGHG_4="",NA(),INDEX(Total_Emissions_by_A_vals,MATCH('Annual GHG Emissions - Sector'!AU$38&"#"&actCaseAnnGHG_4&"#"&'Annual GHG Emissions - Sector'!$I79,Total_Emissions_by_A_index,0))) ->  | AV79: =IF(actCaseAnnGHG_4="",NA(),INDEX(Total_Emissions_by_A_vals,MATCH('Annual GHG Emissions - Sector'!AV$38&"#"&actCaseAnnGHG_4&"#"&'Annual GHG Emissions - Sector'!$I79,Total_Emissions_by_A_index,0))) ->  | AW79: =IF(actCaseAnnGHG_4="",NA(),INDEX(Total_Emissions_by_A_vals,MATCH('Annual GHG Emissions - Sector'!AW$38&"#"&actCaseAnnGHG_4&"#"&'Annual GHG Emissions - Sector'!$I79,Total_Emissions_by_A_index,0))) ->  | AX79: =IF(actCaseAnnGHG_4="",NA(),INDEX(Total_Emissions_by_A_vals,MATCH('Annual GHG Emissions - Sector'!AX$38&"#"&actCaseAnnGHG_4&"#"&'Annual GHG Emissions - Sector'!$I79,Total_Emissions_by_A_index,0))) ->  | AY79: =IF(actCaseAnnGHG_4="",NA(),INDEX(Total_Emissions_by_A_vals,MATCH('Annual GHG Emissions - Sector'!AY$38&"#"&actCaseAnnGHG_4&"#"&'Annual GHG Emissions - Sector'!$I79,Total_Emissions_by_A_index,0))) ->  | AZ79: =IF(actCaseAnnGHG_4="",NA(),INDEX(Total_Emissions_by_A_vals,MATCH('Annual GHG Emissions - Sector'!AZ$38&"#"&actCaseAnnGHG_4&"#"&'Annual GHG Emissions - Sector'!$I79,Total_Emissions_by_A_index,0))) ->  | BA79: =IF(actCaseAnnGHG_4="",NA(),INDEX(Total_Emissions_by_A_vals,MATCH('Annual GHG Emissions - Sector'!BA$38&"#"&actCaseAnnGHG_4&"#"&'Annual GHG Emissions - Sector'!$I79,Total_Emissions_by_A_index,0))) ->  | BB79: =IF(actCaseAnnGHG_4="",NA(),INDEX(Total_Emissions_by_A_vals,MATCH('Annual GHG Emissions - Sector'!BB$38&"#"&actCaseAnnGHG_4&"#"&'Annual GHG Emissions - Sector'!$I79,Total_Emissions_by_A_index,0))) ->  | BC79: =IF(actCaseAnnGHG_4="",NA(),INDEX(Total_Emissions_by_A_vals,MATCH('Annual GHG Emissions - Sector'!BC$38&"#"&actCaseAnnGHG_4&"#"&'Annual GHG Emissions - Sector'!$I79,Total_Emissions_by_A_index,0))) ->  | BD79: =IF(actCaseAnnGHG_4="",NA(),INDEX(Total_Emissions_by_A_vals,MATCH('Annual GHG Emissions - Sector'!BD$38&"#"&actCaseAnnGHG_4&"#"&'Annual GHG Emissions - Sector'!$I79,Total_Emissions_by_A_index,0))) ->  | BE79: =IF(actCaseAnnGHG_4="",NA(),INDEX(Total_Emissions_by_A_vals,MATCH('Annual GHG Emissions - Sector'!BE$38&"#"&actCaseAnnGHG_4&"#"&'Annual GHG Emissions - Sector'!$I79,Total_Emissions_by_A_index,0))) ->  | BF79: =IF(actCaseAnnGHG_4="",NA(),INDEX(Total_Emissions_by_A_vals,MATCH('Annual GHG Emissions - Sector'!BF$38&"#"&actCaseAnnGHG_4&"#"&'Annual GHG Emissions - Sector'!$I79,Total_Emissions_by_A_index,0))) ->  | BG79: =IF(actCaseAnnGHG_4="",NA(),INDEX(Total_Emissions_by_A_vals,MATCH('Annual GHG Emissions - Sector'!BG$38&"#"&actCaseAnnGHG_4&"#"&'Annual GHG Emissions - Sector'!$I79,Total_Emissions_by_A_index,0))) ->  | BH79: =IF(actCaseAnnGHG_4="",NA(),INDEX(Total_Emissions_by_A_vals,MATCH('Annual GHG Emissions - Sector'!BH$38&"#"&actCaseAnnGHG_4&"#"&'Annual GHG Emissions - Sector'!$I79,Total_Emissions_by_A_index,0))) ->  | BI79: =IF(actCaseAnnGHG_4="",NA(),INDEX(Total_Emissions_by_A_vals,MATCH('Annual GHG Emissions - Sector'!BI$38&"#"&actCaseAnnGHG_4&"#"&'Annual GHG Emissions - Sector'!$I79,Total_Emissions_by_A_index,0))) ->  | BJ79: =IF(actCaseAnnGHG_4="",NA(),INDEX(Total_Emissions_by_A_vals,MATCH('Annual GHG Emissions - Sector'!BJ$38&"#"&actCaseAnnGHG_4&"#"&'Annual GHG Emissions - Sector'!$I79,Total_Emissions_by_A_index,0))) ->  | BK79: =IF(actCaseAnnGHG_4="",NA(),INDEX(Total_Emissions_by_A_vals,MATCH('Annual GHG Emissions - Sector'!BK$38&"#"&actCaseAnnGHG_4&"#"&'Annual GHG Emissions - Sector'!$I79,Total_Emissions_by_A_index,0))) ->  | BL79: =IF(actCaseAnnGHG_4="",NA(),INDEX(Total_Emissions_by_A_vals,MATCH('Annual GHG Emissions - Sector'!BL$38&"#"&actCaseAnnGHG_4&"#"&'Annual GHG Emissions - Sector'!$I79,Total_Emissions_by_A_index,0))) ->  | BM79: =IF(actCaseAnnGHG_4="",NA(),INDEX(Total_Emissions_by_A_vals,MATCH('Annual GHG Emissions - Sector'!BM$38&"#"&actCaseAnnGHG_4&"#"&'Annual GHG Emissions - Sector'!$I79,Total_Emissions_by_A_index,0))) ->  | BN79: =IF(actCaseAnnGHG_4="",NA(),INDEX(Total_Emissions_by_A_vals,MATCH('Annual GHG Emissions - Sector'!BN$38&"#"&actCaseAnnGHG_4&"#"&'Annual GHG Emissions - Sector'!$I79,Total_Emissions_by_A_index,0))) ->  | BO79: =IF(actCaseAnnGHG_4="",NA(),INDEX(Total_Emissions_by_A_vals,MATCH('Annual GHG Emissions - Sector'!BO$38&"#"&actCaseAnnGHG_4&"#"&'Annual GHG Emissions - Sector'!$I79,Total_Emissions_by_A_index,0))) ->  | BP79: =IF(actCaseAnnGHG_4="",NA(),INDEX(Total_Emissions_by_A_vals,MATCH('Annual GHG Emissions - Sector'!BP$38&"#"&actCaseAnnGHG_4&"#"&'Annual GHG Emissions - Sector'!$I79,Total_Emissions_by_A_index,0))) ->  | BQ79: =IF(actCaseAnnGHG_4="",NA(),INDEX(Total_Emissions_by_A_vals,MATCH('Annual GHG Emissions - Sector'!BQ$38&"#"&actCaseAnnGHG_4&"#"&'Annual GHG Emissions - Sector'!$I79,Total_Emissions_by_A_index,0))) ->  | BR79: =IF(actCaseAnnGHG_4="",NA(),INDEX(Total_Emissions_by_A_vals,MATCH('Annual GHG Emissions - Sector'!BR$38&"#"&actCaseAnnGHG_4&"#"&'Annual GHG Emissions - Sector'!$I79,Total_Emissions_by_A_index,0))) -> 
I80: Total | AI80: =SUM(AI73:AI79) ->  | AJ80: =SUM(AJ73:AJ79) ->  | BT80: 0.02663429893 | BU80: 66.97562588
I83: ="PATHWAYS - "&actCaseAnnGHG_5 -> PATHWAYS -
J84: 1990 | K84: 1991 | L84: 1992 | M84: 1993 | N84: 1994 | O84: 1995 | P84: 1996 | Q84: 1997 | R84: 1998 | S84: 1999 | T84: 2000 | U84: 2001 | V84: 2002 | W84: 2003 | X84: 2004 | Y84: 2005 | Z84: 2006 | AA84: 2007 | AB84: 2008 | AC84: 2009 | AD84: 2010 | AE84: 2011 | AF84: 2012 | AG84: 2013 | AH84: 2014 | AI84: 2015 | AJ84: 2016 | AK84: 2017 | AL84: 2018 | AM84: 2019 | AN84: 2020 | AO84: 2021 | AP84: 2022 | AQ84: 2023 | AR84: 2024 | AS84: 2025 | AT84: 2026 | AU84: 2027 | AV84: 2028 | AW84: 2029 | AX84: 2030 | AY84: 2031 | AZ84: 2032 | BA84: 2033 | BB84: 2034 | BC84: 2035 | BD84: 2036 | BE84: 2037 | BF84: 2038 | BG84: 2039 | BH84: 2040 | BI84: 2041 | BJ84: 2042 | BK84: 2043 | BL84: 2044 | BM84: 2045 | BN84: 2046 | BO84: 2047 | BP84: 2048 | BQ84: 2049 | BR84: 2050 | BT84: 2030 Gap | BU84: 2050 Gap
I85: Agriculture | AI85: =IF(actCaseAnnGHG_5="",NA(),INDEX(Total_Emissions_by_A_vals,MATCH('Annual GHG Emissions - Sector'!AI$38&"#"&actCaseAnnGHG_5&"#"&'Annual GHG Emissions - Sector'!$I85,Total_Emissions_by_A_index,0))) ->  | AJ85: =IF(actCaseAnnGHG_5="",NA(),INDEX(Total_Emissions_by_A_vals,MATCH('Annual GHG Emissions - Sector'!AJ$38&"#"&actCaseAnnGHG_5&"#"&'Annual GHG Emissions - Sector'!$I85,Total_Emissions_by_A_index,0))) ->  | AK85: =IF(actCaseAnnGHG_5="",NA(),INDEX(Total_Emissions_by_A_vals,MATCH('Annual GHG Emissions - Sector'!AK$38&"#"&actCaseAnnGHG_5&"#"&'Annual GHG Emissions - Sector'!$I85,Total_Emissions_by_A_index,0))) ->  | AL85: =IF(actCaseAnnGHG_5="",NA(),INDEX(Total_Emissions_by_A_vals,MATCH('Annual GHG Emissions - Sector'!AL$38&"#"&actCaseAnnGHG_5&"#"&'Annual GHG Emissions - Sector'!$I85,Total_Emissions_by_A_index,0))) ->  | AM85: =IF(actCaseAnnGHG_5="",NA(),INDEX(Total_Emissions_by_A_vals,MATCH('Annual GHG Emissions - Sector'!AM$38&"#"&actCaseAnnGHG_5&"#"&'Annual GHG Emissions - Sector'!$I85,Total_Emissions_by_A_index,0))) ->  | AN85: =IF(actCaseAnnGHG_5="",NA(),INDEX(Total_Emissions_by_A_vals,MATCH('Annual GHG Emissions - Sector'!AN$38&"#"&actCaseAnnGHG_5&"#"&'Annual GHG Emissions - Sector'!$I85,Total_Emissions_by_A_index,0))) ->  | AO85: =IF(actCaseAnnGHG_5="",NA(),INDEX(Total_Emissions_by_A_vals,MATCH('Annual GHG Emissions - Sector'!AO$38&"#"&actCaseAnnGHG_5&"#"&'Annual GHG Emissions - Sector'!$I85,Total_Emissions_by_A_index,0))) ->  | AP85: =IF(actCaseAnnGHG_5="",NA(),INDEX(Total_Emissions_by_A_vals,MATCH('Annual GHG Emissions - Sector'!AP$38&"#"&actCaseAnnGHG_5&"#"&'Annual GHG Emissions - Sector'!$I85,Total_Emissions_by_A_index,0))) ->  | AQ85: =IF(actCaseAnnGHG_5="",NA(),INDEX(Total_Emissions_by_A_vals,MATCH('Annual GHG Emissions - Sector'!AQ$38&"#"&actCaseAnnGHG_5&"#"&'Annual GHG Emissions - Sector'!$I85,Total_Emissions_by_A_index,0))) ->  | AR85: =IF(actCaseAnnGHG_5="",NA(),INDEX(Total_Emissions_by_A_vals,MATCH('Annual GHG Emissions - Sector'!AR$38&"#"&actCaseAnnGHG_5&"#"&'Annual GHG Emissions - Sector'!$I85,Total_Emissions_by_A_index,0))) ->  | AS85: =IF(actCaseAnnGHG_5="",NA(),INDEX(Total_Emissions_by_A_vals,MATCH('Annual GHG Emissions - Sector'!AS$38&"#"&actCaseAnnGHG_5&"#"&'Annual GHG Emissions - Sector'!$I85,Total_Emissions_by_A_index,0))) ->  | AT85: =IF(actCaseAnnGHG_5="",NA(),INDEX(Total_Emissions_by_A_vals,MATCH('Annual GHG Emissions - Sector'!AT$38&"#"&actCaseAnnGHG_5&"#"&'Annual GHG Emissions - Sector'!$I85,Total_Emissions_by_A_index,0))) ->  | AU85: =IF(actCaseAnnGHG_5="",NA(),INDEX(Total_Emissions_by_A_vals,MATCH('Annual GHG Emissions - Sector'!AU$38&"#"&actCaseAnnGHG_5&"#"&'Annual GHG Emissions - Sector'!$I85,Total_Emissions_by_A_index,0))) ->  | AV85: =IF(actCaseAnnGHG_5="",NA(),INDEX(Total_Emissions_by_A_vals,MATCH('Annual GHG Emissions - Sector'!AV$38&"#"&actCaseAnnGHG_5&"#"&'Annual GHG Emissions - Sector'!$I85,Total_Emissions_by_A_index,0))) ->  | AW85: =IF(actCaseAnnGHG_5="",NA(),INDEX(Total_Emissions_by_A_vals,MATCH('Annual GHG Emissions - Sector'!AW$38&"#"&actCaseAnnGHG_5&"#"&'Annual GHG Emissions - Sector'!$I85,Total_Emissions_by_A_index,0))) ->  | AX85: =IF(actCaseAnnGHG_5="",NA(),INDEX(Total_Emissions_by_A_vals,MATCH('Annual GHG Emissions - Sector'!AX$38&"#"&actCaseAnnGHG_5&"#"&'Annual GHG Emissions - Sector'!$I85,Total_Emissions_by_A_index,0))) ->  | AY85: =IF(actCaseAnnGHG_5="",NA(),INDEX(Total_Emissions_by_A_vals,MATCH('Annual GHG Emissions - Sector'!AY$38&"#"&actCaseAnnGHG_5&"#"&'Annual GHG Emissions - Sector'!$I85,Total_Emissions_by_A_index,0))) ->  | AZ85: =IF(actCaseAnnGHG_5="",NA(),INDEX(Total_Emissions_by_A_vals,MATCH('Annual GHG Emissions - Sector'!AZ$38&"#"&actCaseAnnGHG_5&"#"&'Annual GHG Emissions - Sector'!$I85,Total_Emissions_by_A_index,0))) ->  | BA85: =IF(actCaseAnnGHG_5="",NA(),INDEX(Total_Emissions_by_A_vals,MATCH('Annual GHG Emissions - Sector'!BA$38&"#"&actCaseAnnGHG_5&"#"&'Annual GHG Emissions - Sector'!$I85,Total_Emissions_by_A_index,0))) ->  | BB85: =IF(actCaseAnnGHG_5="",NA(),INDEX(Total_Emissions_by_A_vals,MATCH('Annual GHG Emissions - Sector'!BB$38&"#"&actCaseAnnGHG_5&"#"&'Annual GHG Emissions - Sector'!$I85,Total_Emissions_by_A_index,0))) ->  | BC85: =IF(actCaseAnnGHG_5="",NA(),INDEX(Total_Emissions_by_A_vals,MATCH('Annual GHG Emissions - Sector'!BC$38&"#"&actCaseAnnGHG_5&"#"&'Annual GHG Emissions - Sector'!$I85,Total_Emissions_by_A_index,0))) ->  | BD85: =IF(actCaseAnnGHG_5="",NA(),INDEX(Total_Emissions_by_A_vals,MATCH('Annual GHG Emissions - Sector'!BD$38&"#"&actCaseAnnGHG_5&"#"&'Annual GHG Emissions - Sector'!$I85,Total_Emissions_by_A_index,0))) ->  | BE85: =IF(actCaseAnnGHG_5="",NA(),INDEX(Total_Emissions_by_A_vals,MATCH('Annual GHG Emissions - Sector'!BE$38&"#"&actCaseAnnGHG_5&"#"&'Annual GHG Emissions - Sector'!$I85,Total_Emissions_by_A_index,0))) ->  | BF85: =IF(actCaseAnnGHG_5="",NA(),INDEX(Total_Emissions_by_A_vals,MATCH('Annual GHG Emissions - Sector'!BF$38&"#"&actCaseAnnGHG_5&"#"&'Annual GHG Emissions - Sector'!$I85,Total_Emissions_by_A_index,0))) ->  | BG85: =IF(actCaseAnnGHG_5="",NA(),INDEX(Total_Emissions_by_A_vals,MATCH('Annual GHG Emissions - Sector'!BG$38&"#"&actCaseAnnGHG_5&"#"&'Annual GHG Emissions - Sector'!$I85,Total_Emissions_by_A_index,0))) ->  | BH85: =IF(actCaseAnnGHG_5="",NA(),INDEX(Total_Emissions_by_A_vals,MATCH('Annual GHG Emissions - Sector'!BH$38&"#"&actCaseAnnGHG_5&"#"&'Annual GHG Emissions - Sector'!$I85,Total_Emissions_by_A_index,0))) ->  | BI85: =IF(actCaseAnnGHG_5="",NA(),INDEX(Total_Emissions_by_A_vals,MATCH('Annual GHG Emissions - Sector'!BI$38&"#"&actCaseAnnGHG_5&"#"&'Annual GHG Emissions - Sector'!$I85,Total_Emissions_by_A_index,0))) ->  | BJ85: =IF(actCaseAnnGHG_5="",NA(),INDEX(Total_Emissions_by_A_vals,MATCH('Annual GHG Emissions - Sector'!BJ$38&"#"&actCaseAnnGHG_5&"#"&'Annual GHG Emissions - Sector'!$I85,Total_Emissions_by_A_index,0))) ->  | BK85: =IF(actCaseAnnGHG_5="",NA(),INDEX(Total_Emissions_by_A_vals,MATCH('Annual GHG Emissions - Sector'!BK$38&"#"&actCaseAnnGHG_5&"#"&'Annual GHG Emissions - Sector'!$I85,Total_Emissions_by_A_index,0))) ->  | BL85: =IF(actCaseAnnGHG_5="",NA(),INDEX(Total_Emissions_by_A_vals,MATCH('Annual GHG Emissions - Sector'!BL$38&"#"&actCaseAnnGHG_5&"#"&'Annual GHG Emissions - Sector'!$I85,Total_Emissions_by_A_index,0))) ->  | BM85: =IF(actCaseAnnGHG_5="",NA(),INDEX(Total_Emissions_by_A_vals,MATCH('Annual GHG Emissions - Sector'!BM$38&"#"&actCaseAnnGHG_5&"#"&'Annual GHG Emissions - Sector'!$I85,Total_Emissions_by_A_index,0))) ->  | BN85: =IF(actCaseAnnGHG_5="",NA(),INDEX(Total_Emissions_by_A_vals,MATCH('Annual GHG Emissions - Sector'!BN$38&"#"&actCaseAnnGHG_5&"#"&'Annual GHG Emissions - Sector'!$I85,Total_Emissions_by_A_index,0))) ->  | BO85: =IF(actCaseAnnGHG_5="",NA(),INDEX(Total_Emissions_by_A_vals,MATCH('Annual GHG Emissions - Sector'!BO$38&"#"&actCaseAnnGHG_5&"#"&'Annual GHG Emissions - Sector'!$I85,Total_Emissions_by_A_index,0))) ->  | BP85: =IF(actCaseAnnGHG_5="",NA(),INDEX(Total_Emissions_by_A_vals,MATCH('Annual GHG Emissions - Sector'!BP$38&"#"&actCaseAnnGHG_5&"#"&'Annual GHG Emissions - Sector'!$I85,Total_Emissions_by_A_index,0))) ->  | BQ85: =IF(actCaseAnnGHG_5="",NA(),INDEX(Total_Emissions_by_A_vals,MATCH('Annual GHG Emissions - Sector'!BQ$38&"#"&actCaseAnnGHG_5&"#"&'Annual GHG Emissions - Sector'!$I85,Total_Emissions_by_A_index,0))) ->  | BR85: =IF(actCaseAnnGHG_5="",NA(),INDEX(Total_Emissions_by_A_vals,MATCH('Annual GHG Emissions - Sector'!BR$38&"#"&actCaseAnnGHG_5&"#"&'Annual GHG Emissions - Sector'!$I85,Total_Emissions_by_A_index,0))) -> 
I86: Residential and Commercial | AI86: =IF(actCaseAnnGHG_5="",NA(),INDEX(Total_Emissions_by_A_vals,MATCH('Annual GHG Emissions - Sector'!AI$38&"#"&actCaseAnnGHG_5&"#"&'Annual GHG Emissions - Sector'!$I86,Total_Emissions_by_A_index,0))) ->  | AJ86: =IF(actCaseAnnGHG_5="",NA(),INDEX(Total_Emissions_by_A_vals,MATCH('Annual GHG Emissions - Sector'!AJ$38&"#"&actCaseAnnGHG_5&"#"&'Annual GHG Emissions - Sector'!$I86,Total_Emissions_by_A_index,0))) ->  | AK86: =IF(actCaseAnnGHG_5="",NA(),INDEX(Total_Emissions_by_A_vals,MATCH('Annual GHG Emissions - Sector'!AK$38&"#"&actCaseAnnGHG_5&"#"&'Annual GHG Emissions - Sector'!$I86,Total_Emissions_by_A_index,0))) ->  | AL86: =IF(actCaseAnnGHG_5="",NA(),INDEX(Total_Emissions_by_A_vals,MATCH('Annual GHG Emissions - Sector'!AL$38&"#"&actCaseAnnGHG_5&"#"&'Annual GHG Emissions - Sector'!$I86,Total_Emissions_by_A_index,0))) ->  | AM86: =IF(actCaseAnnGHG_5="",NA(),INDEX(Total_Emissions_by_A_vals,MATCH('Annual GHG Emissions - Sector'!AM$38&"#"&actCaseAnnGHG_5&"#"&'Annual GHG Emissions - Sector'!$I86,Total_Emissions_by_A_index,0))) ->  | AN86: =IF(actCaseAnnGHG_5="",NA(),INDEX(Total_Emissions_by_A_vals,MATCH('Annual GHG Emissions - Sector'!AN$38&"#"&actCaseAnnGHG_5&"#"&'Annual GHG Emissions - Sector'!$I86,Total_Emissions_by_A_index,0))) ->  | AO86: =IF(actCaseAnnGHG_5="",NA(),INDEX(Total_Emissions_by_A_vals,MATCH('Annual GHG Emissions - Sector'!AO$38&"#"&actCaseAnnGHG_5&"#"&'Annual GHG Emissions - Sector'!$I86,Total_Emissions_by_A_index,0))) ->  | AP86: =IF(actCaseAnnGHG_5="",NA(),INDEX(Total_Emissions_by_A_vals,MATCH('Annual GHG Emissions - Sector'!AP$38&"#"&actCaseAnnGHG_5&"#"&'Annual GHG Emissions - Sector'!$I86,Total_Emissions_by_A_index,0))) ->  | AQ86: =IF(actCaseAnnGHG_5="",NA(),INDEX(Total_Emissions_by_A_vals,MATCH('Annual GHG Emissions - Sector'!AQ$38&"#"&actCaseAnnGHG_5&"#"&'Annual GHG Emissions - Sector'!$I86,Total_Emissions_by_A_index,0))) ->  | AR86: =IF(actCaseAnnGHG_5="",NA(),INDEX(Total_Emissions_by_A_vals,MATCH('Annual GHG Emissions - Sector'!AR$38&"#"&actCaseAnnGHG_5&"#"&'Annual GHG Emissions - Sector'!$I86,Total_Emissions_by_A_index,0))) ->  | AS86: =IF(actCaseAnnGHG_5="",NA(),INDEX(Total_Emissions_by_A_vals,MATCH('Annual GHG Emissions - Sector'!AS$38&"#"&actCaseAnnGHG_5&"#"&'Annual GHG Emissions - Sector'!$I86,Total_Emissions_by_A_index,0))) ->  | AT86: =IF(actCaseAnnGHG_5="",NA(),INDEX(Total_Emissions_by_A_vals,MATCH('Annual GHG Emissions - Sector'!AT$38&"#"&actCaseAnnGHG_5&"#"&'Annual GHG Emissions - Sector'!$I86,Total_Emissions_by_A_index,0))) ->  | AU86: =IF(actCaseAnnGHG_5="",NA(),INDEX(Total_Emissions_by_A_vals,MATCH('Annual GHG Emissions - Sector'!AU$38&"#"&actCaseAnnGHG_5&"#"&'Annual GHG Emissions - Sector'!$I86,Total_Emissions_by_A_index,0))) ->  | AV86: =IF(actCaseAnnGHG_5="",NA(),INDEX(Total_Emissions_by_A_vals,MATCH('Annual GHG Emissions - Sector'!AV$38&"#"&actCaseAnnGHG_5&"#"&'Annual GHG Emissions - Sector'!$I86,Total_Emissions_by_A_index,0))) ->  | AW86: =IF(actCaseAnnGHG_5="",NA(),INDEX(Total_Emissions_by_A_vals,MATCH('Annual GHG Emissions - Sector'!AW$38&"#"&actCaseAnnGHG_5&"#"&'Annual GHG Emissions - Sector'!$I86,Total_Emissions_by_A_index,0))) ->  | AX86: =IF(actCaseAnnGHG_5="",NA(),INDEX(Total_Emissions_by_A_vals,MATCH('Annual GHG Emissions - Sector'!AX$38&"#"&actCaseAnnGHG_5&"#"&'Annual GHG Emissions - Sector'!$I86,Total_Emissions_by_A_index,0))) ->  | AY86: =IF(actCaseAnnGHG_5="",NA(),INDEX(Total_Emissions_by_A_vals,MATCH('Annual GHG Emissions - Sector'!AY$38&"#"&actCaseAnnGHG_5&"#"&'Annual GHG Emissions - Sector'!$I86,Total_Emissions_by_A_index,0))) ->  | AZ86: =IF(actCaseAnnGHG_5="",NA(),INDEX(Total_Emissions_by_A_vals,MATCH('Annual GHG Emissions - Sector'!AZ$38&"#"&actCaseAnnGHG_5&"#"&'Annual GHG Emissions - Sector'!$I86,Total_Emissions_by_A_index,0))) ->  | BA86: =IF(actCaseAnnGHG_5="",NA(),INDEX(Total_Emissions_by_A_vals,MATCH('Annual GHG Emissions - Sector'!BA$38&"#"&actCaseAnnGHG_5&"#"&'Annual GHG Emissions - Sector'!$I86,Total_Emissions_by_A_index,0))) ->  | BB86: =IF(actCaseAnnGHG_5="",NA(),INDEX(Total_Emissions_by_A_vals,MATCH('Annual GHG Emissions - Sector'!BB$38&"#"&actCaseAnnGHG_5&"#"&'Annual GHG Emissions - Sector'!$I86,Total_Emissions_by_A_index,0))) ->  | BC86: =IF(actCaseAnnGHG_5="",NA(),INDEX(Total_Emissions_by_A_vals,MATCH('Annual GHG Emissions - Sector'!BC$38&"#"&actCaseAnnGHG_5&"#"&'Annual GHG Emissions - Sector'!$I86,Total_Emissions_by_A_index,0))) ->  | BD86: =IF(actCaseAnnGHG_5="",NA(),INDEX(Total_Emissions_by_A_vals,MATCH('Annual GHG Emissions - Sector'!BD$38&"#"&actCaseAnnGHG_5&"#"&'Annual GHG Emissions - Sector'!$I86,Total_Emissions_by_A_index,0))) ->  | BE86: =IF(actCaseAnnGHG_5="",NA(),INDEX(Total_Emissions_by_A_vals,MATCH('Annual GHG Emissions - Sector'!BE$38&"#"&actCaseAnnGHG_5&"#"&'Annual GHG Emissions - Sector'!$I86,Total_Emissions_by_A_index,0))) ->  | BF86: =IF(actCaseAnnGHG_5="",NA(),INDEX(Total_Emissions_by_A_vals,MATCH('Annual GHG Emissions - Sector'!BF$38&"#"&actCaseAnnGHG_5&"#"&'Annual GHG Emissions - Sector'!$I86,Total_Emissions_by_A_index,0))) ->  | BG86: =IF(actCaseAnnGHG_5="",NA(),INDEX(Total_Emissions_by_A_vals,MATCH('Annual GHG Emissions - Sector'!BG$38&"#"&actCaseAnnGHG_5&"#"&'Annual GHG Emissions - Sector'!$I86,Total_Emissions_by_A_index,0))) ->  | BH86: =IF(actCaseAnnGHG_5="",NA(),INDEX(Total_Emissions_by_A_vals,MATCH('Annual GHG Emissions - Sector'!BH$38&"#"&actCaseAnnGHG_5&"#"&'Annual GHG Emissions - Sector'!$I86,Total_Emissions_by_A_index,0))) ->  | BI86: =IF(actCaseAnnGHG_5="",NA(),INDEX(Total_Emissions_by_A_vals,MATCH('Annual GHG Emissions - Sector'!BI$38&"#"&actCaseAnnGHG_5&"#"&'Annual GHG Emissions - Sector'!$I86,Total_Emissions_by_A_index,0))) ->  | BJ86: =IF(actCaseAnnGHG_5="",NA(),INDEX(Total_Emissions_by_A_vals,MATCH('Annual GHG Emissions - Sector'!BJ$38&"#"&actCaseAnnGHG_5&"#"&'Annual GHG Emissions - Sector'!$I86,Total_Emissions_by_A_index,0))) ->  | BK86: =IF(actCaseAnnGHG_5="",NA(),INDEX(Total_Emissions_by_A_vals,MATCH('Annual GHG Emissions - Sector'!BK$38&"#"&actCaseAnnGHG_5&"#"&'Annual GHG Emissions - Sector'!$I86,Total_Emissions_by_A_index,0))) ->  | BL86: =IF(actCaseAnnGHG_5="",NA(),INDEX(Total_Emissions_by_A_vals,MATCH('Annual GHG Emissions - Sector'!BL$38&"#"&actCaseAnnGHG_5&"#"&'Annual GHG Emissions - Sector'!$I86,Total_Emissions_by_A_index,0))) ->  | BM86: =IF(actCaseAnnGHG_5="",NA(),INDEX(Total_Emissions_by_A_vals,MATCH('Annual GHG Emissions - Sector'!BM$38&"#"&actCaseAnnGHG_5&"#"&'Annual GHG Emissions - Sector'!$I86,Total_Emissions_by_A_index,0))) ->  | BN86: =IF(actCaseAnnGHG_5="",NA(),INDEX(Total_Emissions_by_A_vals,MATCH('Annual GHG Emissions - Sector'!BN$38&"#"&actCaseAnnGHG_5&"#"&'Annual GHG Emissions - Sector'!$I86,Total_Emissions_by_A_index,0))) ->  | BO86: =IF(actCaseAnnGHG_5="",NA(),INDEX(Total_Emissions_by_A_vals,MATCH('Annual GHG Emissions - Sector'!BO$38&"#"&actCaseAnnGHG_5&"#"&'Annual GHG Emissions - Sector'!$I86,Total_Emissions_by_A_index,0))) ->  | BP86: =IF(actCaseAnnGHG_5="",NA(),INDEX(Total_Emissions_by_A_vals,MATCH('Annual GHG Emissions - Sector'!BP$38&"#"&actCaseAnnGHG_5&"#"&'Annual GHG Emissions - Sector'!$I86,Total_Emissions_by_A_index,0))) ->  | BQ86: =IF(actCaseAnnGHG_5="",NA(),INDEX(Total_Emissions_by_A_vals,MATCH('Annual GHG Emissions - Sector'!BQ$38&"#"&actCaseAnnGHG_5&"#"&'Annual GHG Emissions - Sector'!$I86,Total_Emissions_by_A_index,0))) ->  | BR86: =IF(actCaseAnnGHG_5="",NA(),INDEX(Total_Emissions_by_A_vals,MATCH('Annual GHG Emissions - Sector'!BR$38&"#"&actCaseAnnGHG_5&"#"&'Annual GHG Emissions - Sector'!$I86,Total_Emissions_by_A_index,0))) -> 
I87: Electric Power | AI87: =IF(actCaseAnnGHG_5="",NA(),INDEX(Total_Emissions_by_A_vals,MATCH('Annual GHG Emissions - Sector'!AI$38&"#"&actCaseAnnGHG_5&"#"&'Annual GHG Emissions - Sector'!$I87,Total_Emissions_by_A_index,0))) ->  | AJ87: =IF(actCaseAnnGHG_5="",NA(),INDEX(Total_Emissions_by_A_vals,MATCH('Annual GHG Emissions - Sector'!AJ$38&"#"&actCaseAnnGHG_5&"#"&'Annual GHG Emissions - Sector'!$I87,Total_Emissions_by_A_index,0))) ->  | AK87: =IF(actCaseAnnGHG_5="",NA(),INDEX(Total_Emissions_by_A_vals,MATCH('Annual GHG Emissions - Sector'!AK$38&"#"&actCaseAnnGHG_5&"#"&'Annual GHG Emissions - Sector'!$I87,Total_Emissions_by_A_index,0))) ->  | AL87: =IF(actCaseAnnGHG_5="",NA(),INDEX(Total_Emissions_by_A_vals,MATCH('Annual GHG Emissions - Sector'!AL$38&"#"&actCaseAnnGHG_5&"#"&'Annual GHG Emissions - Sector'!$I87,Total_Emissions_by_A_index,0))) ->  | AM87: =IF(actCaseAnnGHG_5="",NA(),INDEX(Total_Emissions_by_A_vals,MATCH('Annual GHG Emissions - Sector'!AM$38&"#"&actCaseAnnGHG_5&"#"&'Annual GHG Emissions - Sector'!$I87,Total_Emissions_by_A_index,0))) ->  | AN87: =IF(actCaseAnnGHG_5="",NA(),INDEX(Total_Emissions_by_A_vals,MATCH('Annual GHG Emissions - Sector'!AN$38&"#"&actCaseAnnGHG_5&"#"&'Annual GHG Emissions - Sector'!$I87,Total_Emissions_by_A_index,0))) ->  | AO87: =IF(actCaseAnnGHG_5="",NA(),INDEX(Total_Emissions_by_A_vals,MATCH('Annual GHG Emissions - Sector'!AO$38&"#"&actCaseAnnGHG_5&"#"&'Annual GHG Emissions - Sector'!$I87,Total_Emissions_by_A_index,0))) ->  | AP87: =IF(actCaseAnnGHG_5="",NA(),INDEX(Total_Emissions_by_A_vals,MATCH('Annual GHG Emissions - Sector'!AP$38&"#"&actCaseAnnGHG_5&"#"&'Annual GHG Emissions - Sector'!$I87,Total_Emissions_by_A_index,0))) ->  | AQ87: =IF(actCaseAnnGHG_5="",NA(),INDEX(Total_Emissions_by_A_vals,MATCH('Annual GHG Emissions - Sector'!AQ$38&"#"&actCaseAnnGHG_5&"#"&'Annual GHG Emissions - Sector'!$I87,Total_Emissions_by_A_index,0))) ->  | AR87: =IF(actCaseAnnGHG_5="",NA(),INDEX(Total_Emissions_by_A_vals,MATCH('Annual GHG Emissions - Sector'!AR$38&"#"&actCaseAnnGHG_5&"#"&'Annual GHG Emissions - Sector'!$I87,Total_Emissions_by_A_index,0))) ->  | AS87: =IF(actCaseAnnGHG_5="",NA(),INDEX(Total_Emissions_by_A_vals,MATCH('Annual GHG Emissions - Sector'!AS$38&"#"&actCaseAnnGHG_5&"#"&'Annual GHG Emissions - Sector'!$I87,Total_Emissions_by_A_index,0))) ->  | AT87: =IF(actCaseAnnGHG_5="",NA(),INDEX(Total_Emissions_by_A_vals,MATCH('Annual GHG Emissions - Sector'!AT$38&"#"&actCaseAnnGHG_5&"#"&'Annual GHG Emissions - Sector'!$I87,Total_Emissions_by_A_index,0))) ->  | AU87: =IF(actCaseAnnGHG_5="",NA(),INDEX(Total_Emissions_by_A_vals,MATCH('Annual GHG Emissions - Sector'!AU$38&"#"&actCaseAnnGHG_5&"#"&'Annual GHG Emissions - Sector'!$I87,Total_Emissions_by_A_index,0))) ->  | AV87: =IF(actCaseAnnGHG_5="",NA(),INDEX(Total_Emissions_by_A_vals,MATCH('Annual GHG Emissions - Sector'!AV$38&"#"&actCaseAnnGHG_5&"#"&'Annual GHG Emissions - Sector'!$I87,Total_Emissions_by_A_index,0))) ->  | AW87: =IF(actCaseAnnGHG_5="",NA(),INDEX(Total_Emissions_by_A_vals,MATCH('Annual GHG Emissions - Sector'!AW$38&"#"&actCaseAnnGHG_5&"#"&'Annual GHG Emissions - Sector'!$I87,Total_Emissions_by_A_index,0))) ->  | AX87: =IF(actCaseAnnGHG_5="",NA(),INDEX(Total_Emissions_by_A_vals,MATCH('Annual GHG Emissions - Sector'!AX$38&"#"&actCaseAnnGHG_5&"#"&'Annual GHG Emissions - Sector'!$I87,Total_Emissions_by_A_index,0))) ->  | AY87: =IF(actCaseAnnGHG_5="",NA(),INDEX(Total_Emissions_by_A_vals,MATCH('Annual GHG Emissions - Sector'!AY$38&"#"&actCaseAnnGHG_5&"#"&'Annual GHG Emissions - Sector'!$I87,Total_Emissions_by_A_index,0))) ->  | AZ87: =IF(actCaseAnnGHG_5="",NA(),INDEX(Total_Emissions_by_A_vals,MATCH('Annual GHG Emissions - Sector'!AZ$38&"#"&actCaseAnnGHG_5&"#"&'Annual GHG Emissions - Sector'!$I87,Total_Emissions_by_A_index,0))) ->  | BA87: =IF(actCaseAnnGHG_5="",NA(),INDEX(Total_Emissions_by_A_vals,MATCH('Annual GHG Emissions - Sector'!BA$38&"#"&actCaseAnnGHG_5&"#"&'Annual GHG Emissions - Sector'!$I87,Total_Emissions_by_A_index,0))) ->  | BB87: =IF(actCaseAnnGHG_5="",NA(),INDEX(Total_Emissions_by_A_vals,MATCH('Annual GHG Emissions - Sector'!BB$38&"#"&actCaseAnnGHG_5&"#"&'Annual GHG Emissions - Sector'!$I87,Total_Emissions_by_A_index,0))) ->  | BC87: =IF(actCaseAnnGHG_5="",NA(),INDEX(Total_Emissions_by_A_vals,MATCH('Annual GHG Emissions - Sector'!BC$38&"#"&actCaseAnnGHG_5&"#"&'Annual GHG Emissions - Sector'!$I87,Total_Emissions_by_A_index,0))) ->  | BD87: =IF(actCaseAnnGHG_5="",NA(),INDEX(Total_Emissions_by_A_vals,MATCH('Annual GHG Emissions - Sector'!BD$38&"#"&actCaseAnnGHG_5&"#"&'Annual GHG Emissions - Sector'!$I87,Total_Emissions_by_A_index,0))) ->  | BE87: =IF(actCaseAnnGHG_5="",NA(),INDEX(Total_Emissions_by_A_vals,MATCH('Annual GHG Emissions - Sector'!BE$38&"#"&actCaseAnnGHG_5&"#"&'Annual GHG Emissions - Sector'!$I87,Total_Emissions_by_A_index,0))) ->  | BF87: =IF(actCaseAnnGHG_5="",NA(),INDEX(Total_Emissions_by_A_vals,MATCH('Annual GHG Emissions - Sector'!BF$38&"#"&actCaseAnnGHG_5&"#"&'Annual GHG Emissions - Sector'!$I87,Total_Emissions_by_A_index,0))) ->  | BG87: =IF(actCaseAnnGHG_5="",NA(),INDEX(Total_Emissions_by_A_vals,MATCH('Annual GHG Emissions - Sector'!BG$38&"#"&actCaseAnnGHG_5&"#"&'Annual GHG Emissions - Sector'!$I87,Total_Emissions_by_A_index,0))) ->  | BH87: =IF(actCaseAnnGHG_5="",NA(),INDEX(Total_Emissions_by_A_vals,MATCH('Annual GHG Emissions - Sector'!BH$38&"#"&actCaseAnnGHG_5&"#"&'Annual GHG Emissions - Sector'!$I87,Total_Emissions_by_A_index,0))) ->  | BI87: =IF(actCaseAnnGHG_5="",NA(),INDEX(Total_Emissions_by_A_vals,MATCH('Annual GHG Emissions - Sector'!BI$38&"#"&actCaseAnnGHG_5&"#"&'Annual GHG Emissions - Sector'!$I87,Total_Emissions_by_A_index,0))) ->  | BJ87: =IF(actCaseAnnGHG_5="",NA(),INDEX(Total_Emissions_by_A_vals,MATCH('Annual GHG Emissions - Sector'!BJ$38&"#"&actCaseAnnGHG_5&"#"&'Annual GHG Emissions - Sector'!$I87,Total_Emissions_by_A_index,0))) ->  | BK87: =IF(actCaseAnnGHG_5="",NA(),INDEX(Total_Emissions_by_A_vals,MATCH('Annual GHG Emissions - Sector'!BK$38&"#"&actCaseAnnGHG_5&"#"&'Annual GHG Emissions - Sector'!$I87,Total_Emissions_by_A_index,0))) ->  | BL87: =IF(actCaseAnnGHG_5="",NA(),INDEX(Total_Emissions_by_A_vals,MATCH('Annual GHG Emissions - Sector'!BL$38&"#"&actCaseAnnGHG_5&"#"&'Annual GHG Emissions - Sector'!$I87,Total_Emissions_by_A_index,0))) ->  | BM87: =IF(actCaseAnnGHG_5="",NA(),INDEX(Total_Emissions_by_A_vals,MATCH('Annual GHG Emissions - Sector'!BM$38&"#"&actCaseAnnGHG_5&"#"&'Annual GHG Emissions - Sector'!$I87,Total_Emissions_by_A_index,0))) ->  | BN87: =IF(actCaseAnnGHG_5="",NA(),INDEX(Total_Emissions_by_A_vals,MATCH('Annual GHG Emissions - Sector'!BN$38&"#"&actCaseAnnGHG_5&"#"&'Annual GHG Emissions - Sector'!$I87,Total_Emissions_by_A_index,0))) ->  | BO87: =IF(actCaseAnnGHG_5="",NA(),INDEX(Total_Emissions_by_A_vals,MATCH('Annual GHG Emissions - Sector'!BO$38&"#"&actCaseAnnGHG_5&"#"&'Annual GHG Emissions - Sector'!$I87,Total_Emissions_by_A_index,0))) ->  | BP87: =IF(actCaseAnnGHG_5="",NA(),INDEX(Total_Emissions_by_A_vals,MATCH('Annual GHG Emissions - Sector'!BP$38&"#"&actCaseAnnGHG_5&"#"&'Annual GHG Emissions - Sector'!$I87,Total_Emissions_by_A_index,0))) ->  | BQ87: =IF(actCaseAnnGHG_5="",NA(),INDEX(Total_Emissions_by_A_vals,MATCH('Annual GHG Emissions - Sector'!BQ$38&"#"&actCaseAnnGHG_5&"#"&'Annual GHG Emissions - Sector'!$I87,Total_Emissions_by_A_index,0))) ->  | BR87: =IF(actCaseAnnGHG_5="",NA(),INDEX(Total_Emissions_by_A_vals,MATCH('Annual GHG Emissions - Sector'!BR$38&"#"&actCaseAnnGHG_5&"#"&'Annual GHG Emissions - Sector'!$I87,Total_Emissions_by_A_index,0))) -> 
I88: High GWP | AI88: =IF(actCaseAnnGHG_5="",NA(),INDEX(Total_Emissions_by_A_vals,MATCH('Annual GHG Emissions - Sector'!AI$38&"#"&actCaseAnnGHG_5&"#"&'Annual GHG Emissions - Sector'!$I88,Total_Emissions_by_A_index,0))) ->  | AJ88: =IF(actCaseAnnGHG_5="",NA(),INDEX(Total_Emissions_by_A_vals,MATCH('Annual GHG Emissions - Sector'!AJ$38&"#"&actCaseAnnGHG_5&"#"&'Annual GHG Emissions - Sector'!$I88,Total_Emissions_by_A_index,0))) ->  | AK88: =IF(actCaseAnnGHG_5="",NA(),INDEX(Total_Emissions_by_A_vals,MATCH('Annual GHG Emissions - Sector'!AK$38&"#"&actCaseAnnGHG_5&"#"&'Annual GHG Emissions - Sector'!$I88,Total_Emissions_by_A_index,0))) ->  | AL88: =IF(actCaseAnnGHG_5="",NA(),INDEX(Total_Emissions_by_A_vals,MATCH('Annual GHG Emissions - Sector'!AL$38&"#"&actCaseAnnGHG_5&"#"&'Annual GHG Emissions - Sector'!$I88,Total_Emissions_by_A_index,0))) ->  | AM88: =IF(actCaseAnnGHG_5="",NA(),INDEX(Total_Emissions_by_A_vals,MATCH('Annual GHG Emissions - Sector'!AM$38&"#"&actCaseAnnGHG_5&"#"&'Annual GHG Emissions - Sector'!$I88,Total_Emissions_by_A_index,0))) ->  | AN88: =IF(actCaseAnnGHG_5="",NA(),INDEX(Total_Emissions_by_A_vals,MATCH('Annual GHG Emissions - Sector'!AN$38&"#"&actCaseAnnGHG_5&"#"&'Annual GHG Emissions - Sector'!$I88,Total_Emissions_by_A_index,0))) ->  | AO88: =IF(actCaseAnnGHG_5="",NA(),INDEX(Total_Emissions_by_A_vals,MATCH('Annual GHG Emissions - Sector'!AO$38&"#"&actCaseAnnGHG_5&"#"&'Annual GHG Emissions - Sector'!$I88,Total_Emissions_by_A_index,0))) ->  | AP88: =IF(actCaseAnnGHG_5="",NA(),INDEX(Total_Emissions_by_A_vals,MATCH('Annual GHG Emissions - Sector'!AP$38&"#"&actCaseAnnGHG_5&"#"&'Annual GHG Emissions - Sector'!$I88,Total_Emissions_by_A_index,0))) ->  | AQ88: =IF(actCaseAnnGHG_5="",NA(),INDEX(Total_Emissions_by_A_vals,MATCH('Annual GHG Emissions - Sector'!AQ$38&"#"&actCaseAnnGHG_5&"#"&'Annual GHG Emissions - Sector'!$I88,Total_Emissions_by_A_index,0))) ->  | AR88: =IF(actCaseAnnGHG_5="",NA(),INDEX(Total_Emissions_by_A_vals,MATCH('Annual GHG Emissions - Sector'!AR$38&"#"&actCaseAnnGHG_5&"#"&'Annual GHG Emissions - Sector'!$I88,Total_Emissions_by_A_index,0))) ->  | AS88: =IF(actCaseAnnGHG_5="",NA(),INDEX(Total_Emissions_by_A_vals,MATCH('Annual GHG Emissions - Sector'!AS$38&"#"&actCaseAnnGHG_5&"#"&'Annual GHG Emissions - Sector'!$I88,Total_Emissions_by_A_index,0))) ->  | AT88: =IF(actCaseAnnGHG_5="",NA(),INDEX(Total_Emissions_by_A_vals,MATCH('Annual GHG Emissions - Sector'!AT$38&"#"&actCaseAnnGHG_5&"#"&'Annual GHG Emissions - Sector'!$I88,Total_Emissions_by_A_index,0))) ->  | AU88: =IF(actCaseAnnGHG_5="",NA(),INDEX(Total_Emissions_by_A_vals,MATCH('Annual GHG Emissions - Sector'!AU$38&"#"&actCaseAnnGHG_5&"#"&'Annual GHG Emissions - Sector'!$I88,Total_Emissions_by_A_index,0))) ->  | AV88: =IF(actCaseAnnGHG_5="",NA(),INDEX(Total_Emissions_by_A_vals,MATCH('Annual GHG Emissions - Sector'!AV$38&"#"&actCaseAnnGHG_5&"#"&'Annual GHG Emissions - Sector'!$I88,Total_Emissions_by_A_index,0))) ->  | AW88: =IF(actCaseAnnGHG_5="",NA(),INDEX(Total_Emissions_by_A_vals,MATCH('Annual GHG Emissions - Sector'!AW$38&"#"&actCaseAnnGHG_5&"#"&'Annual GHG Emissions - Sector'!$I88,Total_Emissions_by_A_index,0))) ->  | AX88: =IF(actCaseAnnGHG_5="",NA(),INDEX(Total_Emissions_by_A_vals,MATCH('Annual GHG Emissions - Sector'!AX$38&"#"&actCaseAnnGHG_5&"#"&'Annual GHG Emissions - Sector'!$I88,Total_Emissions_by_A_index,0))) ->  | AY88: =IF(actCaseAnnGHG_5="",NA(),INDEX(Total_Emissions_by_A_vals,MATCH('Annual GHG Emissions - Sector'!AY$38&"#"&actCaseAnnGHG_5&"#"&'Annual GHG Emissions - Sector'!$I88,Total_Emissions_by_A_index,0))) ->  | AZ88: =IF(actCaseAnnGHG_5="",NA(),INDEX(Total_Emissions_by_A_vals,MATCH('Annual GHG Emissions - Sector'!AZ$38&"#"&actCaseAnnGHG_5&"#"&'Annual GHG Emissions - Sector'!$I88,Total_Emissions_by_A_index,0))) ->  | BA88: =IF(actCaseAnnGHG_5="",NA(),INDEX(Total_Emissions_by_A_vals,MATCH('Annual GHG Emissions - Sector'!BA$38&"#"&actCaseAnnGHG_5&"#"&'Annual GHG Emissions - Sector'!$I88,Total_Emissions_by_A_index,0))) ->  | BB88: =IF(actCaseAnnGHG_5="",NA(),INDEX(Total_Emissions_by_A_vals,MATCH('Annual GHG Emissions - Sector'!BB$38&"#"&actCaseAnnGHG_5&"#"&'Annual GHG Emissions - Sector'!$I88,Total_Emissions_by_A_index,0))) ->  | BC88: =IF(actCaseAnnGHG_5="",NA(),INDEX(Total_Emissions_by_A_vals,MATCH('Annual GHG Emissions - Sector'!BC$38&"#"&actCaseAnnGHG_5&"#"&'Annual GHG Emissions - Sector'!$I88,Total_Emissions_by_A_index,0))) ->  | BD88: =IF(actCaseAnnGHG_5="",NA(),INDEX(Total_Emissions_by_A_vals,MATCH('Annual GHG Emissions - Sector'!BD$38&"#"&actCaseAnnGHG_5&"#"&'Annual GHG Emissions - Sector'!$I88,Total_Emissions_by_A_index,0))) ->  | BE88: =IF(actCaseAnnGHG_5="",NA(),INDEX(Total_Emissions_by_A_vals,MATCH('Annual GHG Emissions - Sector'!BE$38&"#"&actCaseAnnGHG_5&"#"&'Annual GHG Emissions - Sector'!$I88,Total_Emissions_by_A_index,0))) ->  | BF88: =IF(actCaseAnnGHG_5="",NA(),INDEX(Total_Emissions_by_A_vals,MATCH('Annual GHG Emissions - Sector'!BF$38&"#"&actCaseAnnGHG_5&"#"&'Annual GHG Emissions - Sector'!$I88,Total_Emissions_by_A_index,0))) ->  | BG88: =IF(actCaseAnnGHG_5="",NA(),INDEX(Total_Emissions_by_A_vals,MATCH('Annual GHG Emissions - Sector'!BG$38&"#"&actCaseAnnGHG_5&"#"&'Annual GHG Emissions - Sector'!$I88,Total_Emissions_by_A_index,0))) ->  | BH88: =IF(actCaseAnnGHG_5="",NA(),INDEX(Total_Emissions_by_A_vals,MATCH('Annual GHG Emissions - Sector'!BH$38&"#"&actCaseAnnGHG_5&"#"&'Annual GHG Emissions - Sector'!$I88,Total_Emissions_by_A_index,0))) ->  | BI88: =IF(actCaseAnnGHG_5="",NA(),INDEX(Total_Emissions_by_A_vals,MATCH('Annual GHG Emissions - Sector'!BI$38&"#"&actCaseAnnGHG_5&"#"&'Annual GHG Emissions - Sector'!$I88,Total_Emissions_by_A_index,0))) ->  | BJ88: =IF(actCaseAnnGHG_5="",NA(),INDEX(Total_Emissions_by_A_vals,MATCH('Annual GHG Emissions - Sector'!BJ$38&"#"&actCaseAnnGHG_5&"#"&'Annual GHG Emissions - Sector'!$I88,Total_Emissions_by_A_index,0))) ->  | BK88: =IF(actCaseAnnGHG_5="",NA(),INDEX(Total_Emissions_by_A_vals,MATCH('Annual GHG Emissions - Sector'!BK$38&"#"&actCaseAnnGHG_5&"#"&'Annual GHG Emissions - Sector'!$I88,Total_Emissions_by_A_index,0))) ->  | BL88: =IF(actCaseAnnGHG_5="",NA(),INDEX(Total_Emissions_by_A_vals,MATCH('Annual GHG Emissions - Sector'!BL$38&"#"&actCaseAnnGHG_5&"#"&'Annual GHG Emissions - Sector'!$I88,Total_Emissions_by_A_index,0))) ->  | BM88: =IF(actCaseAnnGHG_5="",NA(),INDEX(Total_Emissions_by_A_vals,MATCH('Annual GHG Emissions - Sector'!BM$38&"#"&actCaseAnnGHG_5&"#"&'Annual GHG Emissions - Sector'!$I88,Total_Emissions_by_A_index,0))) ->  | BN88: =IF(actCaseAnnGHG_5="",NA(),INDEX(Total_Emissions_by_A_vals,MATCH('Annual GHG Emissions - Sector'!BN$38&"#"&actCaseAnnGHG_5&"#"&'Annual GHG Emissions - Sector'!$I88,Total_Emissions_by_A_index,0))) ->  | BO88: =IF(actCaseAnnGHG_5="",NA(),INDEX(Total_Emissions_by_A_vals,MATCH('Annual GHG Emissions - Sector'!BO$38&"#"&actCaseAnnGHG_5&"#"&'Annual GHG Emissions - Sector'!$I88,Total_Emissions_by_A_index,0))) ->  | BP88: =IF(actCaseAnnGHG_5="",NA(),INDEX(Total_Emissions_by_A_vals,MATCH('Annual GHG Emissions - Sector'!BP$38&"#"&actCaseAnnGHG_5&"#"&'Annual GHG Emissions - Sector'!$I88,Total_Emissions_by_A_index,0))) ->  | BQ88: =IF(actCaseAnnGHG_5="",NA(),INDEX(Total_Emissions_by_A_vals,MATCH('Annual GHG Emissions - Sector'!BQ$38&"#"&actCaseAnnGHG_5&"#"&'Annual GHG Emissions - Sector'!$I88,Total_Emissions_by_A_index,0))) ->  | BR88: =IF(actCaseAnnGHG_5="",NA(),INDEX(Total_Emissions_by_A_vals,MATCH('Annual GHG Emissions - Sector'!BR$38&"#"&actCaseAnnGHG_5&"#"&'Annual GHG Emissions - Sector'!$I88,Total_Emissions_by_A_index,0))) -> 
I89: Industrial | AI89: =IF(actCaseAnnGHG_5="",NA(),INDEX(Total_Emissions_by_A_vals,MATCH('Annual GHG Emissions - Sector'!AI$38&"#"&actCaseAnnGHG_5&"#"&'Annual GHG Emissions - Sector'!$I89,Total_Emissions_by_A_index,0))) ->  | AJ89: =IF(actCaseAnnGHG_5="",NA(),INDEX(Total_Emissions_by_A_vals,MATCH('Annual GHG Emissions - Sector'!AJ$38&"#"&actCaseAnnGHG_5&"#"&'Annual GHG Emissions - Sector'!$I89,Total_Emissions_by_A_index,0))) ->  | AK89: =IF(actCaseAnnGHG_5="",NA(),INDEX(Total_Emissions_by_A_vals,MATCH('Annual GHG Emissions - Sector'!AK$38&"#"&actCaseAnnGHG_5&"#"&'Annual GHG Emissions - Sector'!$I89,Total_Emissions_by_A_index,0))) ->  | AL89: =IF(actCaseAnnGHG_5="",NA(),INDEX(Total_Emissions_by_A_vals,MATCH('Annual GHG Emissions - Sector'!AL$38&"#"&actCaseAnnGHG_5&"#"&'Annual GHG Emissions - Sector'!$I89,Total_Emissions_by_A_index,0))) ->  | AM89: =IF(actCaseAnnGHG_5="",NA(),INDEX(Total_Emissions_by_A_vals,MATCH('Annual GHG Emissions - Sector'!AM$38&"#"&actCaseAnnGHG_5&"#"&'Annual GHG Emissions - Sector'!$I89,Total_Emissions_by_A_index,0))) ->  | AN89: =IF(actCaseAnnGHG_5="",NA(),INDEX(Total_Emissions_by_A_vals,MATCH('Annual GHG Emissions - Sector'!AN$38&"#"&actCaseAnnGHG_5&"#"&'Annual GHG Emissions - Sector'!$I89,Total_Emissions_by_A_index,0))) ->  | AO89: =IF(actCaseAnnGHG_5="",NA(),INDEX(Total_Emissions_by_A_vals,MATCH('Annual GHG Emissions - Sector'!AO$38&"#"&actCaseAnnGHG_5&"#"&'Annual GHG Emissions - Sector'!$I89,Total_Emissions_by_A_index,0))) ->  | AP89: =IF(actCaseAnnGHG_5="",NA(),INDEX(Total_Emissions_by_A_vals,MATCH('Annual GHG Emissions - Sector'!AP$38&"#"&actCaseAnnGHG_5&"#"&'Annual GHG Emissions - Sector'!$I89,Total_Emissions_by_A_index,0))) ->  | AQ89: =IF(actCaseAnnGHG_5="",NA(),INDEX(Total_Emissions_by_A_vals,MATCH('Annual GHG Emissions - Sector'!AQ$38&"#"&actCaseAnnGHG_5&"#"&'Annual GHG Emissions - Sector'!$I89,Total_Emissions_by_A_index,0))) ->  | AR89: =IF(actCaseAnnGHG_5="",NA(),INDEX(Total_Emissions_by_A_vals,MATCH('Annual GHG Emissions - Sector'!AR$38&"#"&actCaseAnnGHG_5&"#"&'Annual GHG Emissions - Sector'!$I89,Total_Emissions_by_A_index,0))) ->  | AS89: =IF(actCaseAnnGHG_5="",NA(),INDEX(Total_Emissions_by_A_vals,MATCH('Annual GHG Emissions - Sector'!AS$38&"#"&actCaseAnnGHG_5&"#"&'Annual GHG Emissions - Sector'!$I89,Total_Emissions_by_A_index,0))) ->  | AT89: =IF(actCaseAnnGHG_5="",NA(),INDEX(Total_Emissions_by_A_vals,MATCH('Annual GHG Emissions - Sector'!AT$38&"#"&actCaseAnnGHG_5&"#"&'Annual GHG Emissions - Sector'!$I89,Total_Emissions_by_A_index,0))) ->  | AU89: =IF(actCaseAnnGHG_5="",NA(),INDEX(Total_Emissions_by_A_vals,MATCH('Annual GHG Emissions - Sector'!AU$38&"#"&actCaseAnnGHG_5&"#"&'Annual GHG Emissions - Sector'!$I89,Total_Emissions_by_A_index,0))) ->  | AV89: =IF(actCaseAnnGHG_5="",NA(),INDEX(Total_Emissions_by_A_vals,MATCH('Annual GHG Emissions - Sector'!AV$38&"#"&actCaseAnnGHG_5&"#"&'Annual GHG Emissions - Sector'!$I89,Total_Emissions_by_A_index,0))) ->  | AW89: =IF(actCaseAnnGHG_5="",NA(),INDEX(Total_Emissions_by_A_vals,MATCH('Annual GHG Emissions - Sector'!AW$38&"#"&actCaseAnnGHG_5&"#"&'Annual GHG Emissions - Sector'!$I89,Total_Emissions_by_A_index,0))) ->  | AX89: =IF(actCaseAnnGHG_5="",NA(),INDEX(Total_Emissions_by_A_vals,MATCH('Annual GHG Emissions - Sector'!AX$38&"#"&actCaseAnnGHG_5&"#"&'Annual GHG Emissions - Sector'!$I89,Total_Emissions_by_A_index,0))) ->  | AY89: =IF(actCaseAnnGHG_5="",NA(),INDEX(Total_Emissions_by_A_vals,MATCH('Annual GHG Emissions - Sector'!AY$38&"#"&actCaseAnnGHG_5&"#"&'Annual GHG Emissions - Sector'!$I89,Total_Emissions_by_A_index,0))) ->  | AZ89: =IF(actCaseAnnGHG_5="",NA(),INDEX(Total_Emissions_by_A_vals,MATCH('Annual GHG Emissions - Sector'!AZ$38&"#"&actCaseAnnGHG_5&"#"&'Annual GHG Emissions - Sector'!$I89,Total_Emissions_by_A_index,0))) ->  | BA89: =IF(actCaseAnnGHG_5="",NA(),INDEX(Total_Emissions_by_A_vals,MATCH('Annual GHG Emissions - Sector'!BA$38&"#"&actCaseAnnGHG_5&"#"&'Annual GHG Emissions - Sector'!$I89,Total_Emissions_by_A_index,0))) ->  | BB89: =IF(actCaseAnnGHG_5="",NA(),INDEX(Total_Emissions_by_A_vals,MATCH('Annual GHG Emissions - Sector'!BB$38&"#"&actCaseAnnGHG_5&"#"&'Annual GHG Emissions - Sector'!$I89,Total_Emissions_by_A_index,0))) ->  | BC89: =IF(actCaseAnnGHG_5="",NA(),INDEX(Total_Emissions_by_A_vals,MATCH('Annual GHG Emissions - Sector'!BC$38&"#"&actCaseAnnGHG_5&"#"&'Annual GHG Emissions - Sector'!$I89,Total_Emissions_by_A_index,0))) ->  | BD89: =IF(actCaseAnnGHG_5="",NA(),INDEX(Total_Emissions_by_A_vals,MATCH('Annual GHG Emissions - Sector'!BD$38&"#"&actCaseAnnGHG_5&"#"&'Annual GHG Emissions - Sector'!$I89,Total_Emissions_by_A_index,0))) ->  | BE89: =IF(actCaseAnnGHG_5="",NA(),INDEX(Total_Emissions_by_A_vals,MATCH('Annual GHG Emissions - Sector'!BE$38&"#"&actCaseAnnGHG_5&"#"&'Annual GHG Emissions - Sector'!$I89,Total_Emissions_by_A_index,0))) ->  | BF89: =IF(actCaseAnnGHG_5="",NA(),INDEX(Total_Emissions_by_A_vals,MATCH('Annual GHG Emissions - Sector'!BF$38&"#"&actCaseAnnGHG_5&"#"&'Annual GHG Emissions - Sector'!$I89,Total_Emissions_by_A_index,0))) ->  | BG89: =IF(actCaseAnnGHG_5="",NA(),INDEX(Total_Emissions_by_A_vals,MATCH('Annual GHG Emissions - Sector'!BG$38&"#"&actCaseAnnGHG_5&"#"&'Annual GHG Emissions - Sector'!$I89,Total_Emissions_by_A_index,0))) ->  | BH89: =IF(actCaseAnnGHG_5="",NA(),INDEX(Total_Emissions_by_A_vals,MATCH('Annual GHG Emissions - Sector'!BH$38&"#"&actCaseAnnGHG_5&"#"&'Annual GHG Emissions - Sector'!$I89,Total_Emissions_by_A_index,0))) ->  | BI89: =IF(actCaseAnnGHG_5="",NA(),INDEX(Total_Emissions_by_A_vals,MATCH('Annual GHG Emissions - Sector'!BI$38&"#"&actCaseAnnGHG_5&"#"&'Annual GHG Emissions - Sector'!$I89,Total_Emissions_by_A_index,0))) ->  | BJ89: =IF(actCaseAnnGHG_5="",NA(),INDEX(Total_Emissions_by_A_vals,MATCH('Annual GHG Emissions - Sector'!BJ$38&"#"&actCaseAnnGHG_5&"#"&'Annual GHG Emissions - Sector'!$I89,Total_Emissions_by_A_index,0))) ->  | BK89: =IF(actCaseAnnGHG_5="",NA(),INDEX(Total_Emissions_by_A_vals,MATCH('Annual GHG Emissions - Sector'!BK$38&"#"&actCaseAnnGHG_5&"#"&'Annual GHG Emissions - Sector'!$I89,Total_Emissions_by_A_index,0))) ->  | BL89: =IF(actCaseAnnGHG_5="",NA(),INDEX(Total_Emissions_by_A_vals,MATCH('Annual GHG Emissions - Sector'!BL$38&"#"&actCaseAnnGHG_5&"#"&'Annual GHG Emissions - Sector'!$I89,Total_Emissions_by_A_index,0))) ->  | BM89: =IF(actCaseAnnGHG_5="",NA(),INDEX(Total_Emissions_by_A_vals,MATCH('Annual GHG Emissions - Sector'!BM$38&"#"&actCaseAnnGHG_5&"#"&'Annual GHG Emissions - Sector'!$I89,Total_Emissions_by_A_index,0))) ->  | BN89: =IF(actCaseAnnGHG_5="",NA(),INDEX(Total_Emissions_by_A_vals,MATCH('Annual GHG Emissions - Sector'!BN$38&"#"&actCaseAnnGHG_5&"#"&'Annual GHG Emissions - Sector'!$I89,Total_Emissions_by_A_index,0))) ->  | BO89: =IF(actCaseAnnGHG_5="",NA(),INDEX(Total_Emissions_by_A_vals,MATCH('Annual GHG Emissions - Sector'!BO$38&"#"&actCaseAnnGHG_5&"#"&'Annual GHG Emissions - Sector'!$I89,Total_Emissions_by_A_index,0))) ->  | BP89: =IF(actCaseAnnGHG_5="",NA(),INDEX(Total_Emissions_by_A_vals,MATCH('Annual GHG Emissions - Sector'!BP$38&"#"&actCaseAnnGHG_5&"#"&'Annual GHG Emissions - Sector'!$I89,Total_Emissions_by_A_index,0))) ->  | BQ89: =IF(actCaseAnnGHG_5="",NA(),INDEX(Total_Emissions_by_A_vals,MATCH('Annual GHG Emissions - Sector'!BQ$38&"#"&actCaseAnnGHG_5&"#"&'Annual GHG Emissions - Sector'!$I89,Total_Emissions_by_A_index,0))) ->  | BR89: =IF(actCaseAnnGHG_5="",NA(),INDEX(Total_Emissions_by_A_vals,MATCH('Annual GHG Emissions - Sector'!BR$38&"#"&actCaseAnnGHG_5&"#"&'Annual GHG Emissions - Sector'!$I89,Total_Emissions_by_A_index,0))) -> 
I90: Recycling and Waste | AI90: =IF(actCaseAnnGHG_5="",NA(),INDEX(Total_Emissions_by_A_vals,MATCH('Annual GHG Emissions - Sector'!AI$38&"#"&actCaseAnnGHG_5&"#"&'Annual GHG Emissions - Sector'!$I90,Total_Emissions_by_A_index,0))) ->  | AJ90: =IF(actCaseAnnGHG_5="",NA(),INDEX(Total_Emissions_by_A_vals,MATCH('Annual GHG Emissions - Sector'!AJ$38&"#"&actCaseAnnGHG_5&"#"&'Annual GHG Emissions - Sector'!$I90,Total_Emissions_by_A_index,0))) ->  | AK90: =IF(actCaseAnnGHG_5="",NA(),INDEX(Total_Emissions_by_A_vals,MATCH('Annual GHG Emissions - Sector'!AK$38&"#"&actCaseAnnGHG_5&"#"&'Annual GHG Emissions - Sector'!$I90,Total_Emissions_by_A_index,0))) ->  | AL90: =IF(actCaseAnnGHG_5="",NA(),INDEX(Total_Emissions_by_A_vals,MATCH('Annual GHG Emissions - Sector'!AL$38&"#"&actCaseAnnGHG_5&"#"&'Annual GHG Emissions - Sector'!$I90,Total_Emissions_by_A_index,0))) ->  | AM90: =IF(actCaseAnnGHG_5="",NA(),INDEX(Total_Emissions_by_A_vals,MATCH('Annual GHG Emissions - Sector'!AM$38&"#"&actCaseAnnGHG_5&"#"&'Annual GHG Emissions - Sector'!$I90,Total_Emissions_by_A_index,0))) ->  | AN90: =IF(actCaseAnnGHG_5="",NA(),INDEX(Total_Emissions_by_A_vals,MATCH('Annual GHG Emissions - Sector'!AN$38&"#"&actCaseAnnGHG_5&"#"&'Annual GHG Emissions - Sector'!$I90,Total_Emissions_by_A_index,0))) ->  | AO90: =IF(actCaseAnnGHG_5="",NA(),INDEX(Total_Emissions_by_A_vals,MATCH('Annual GHG Emissions - Sector'!AO$38&"#"&actCaseAnnGHG_5&"#"&'Annual GHG Emissions - Sector'!$I90,Total_Emissions_by_A_index,0))) ->  | AP90: =IF(actCaseAnnGHG_5="",NA(),INDEX(Total_Emissions_by_A_vals,MATCH('Annual GHG Emissions - Sector'!AP$38&"#"&actCaseAnnGHG_5&"#"&'Annual GHG Emissions - Sector'!$I90,Total_Emissions_by_A_index,0))) ->  | AQ90: =IF(actCaseAnnGHG_5="",NA(),INDEX(Total_Emissions_by_A_vals,MATCH('Annual GHG Emissions - Sector'!AQ$38&"#"&actCaseAnnGHG_5&"#"&'Annual GHG Emissions - Sector'!$I90,Total_Emissions_by_A_index,0))) ->  | AR90: =IF(actCaseAnnGHG_5="",NA(),INDEX(Total_Emissions_by_A_vals,MATCH('Annual GHG Emissions - Sector'!AR$38&"#"&actCaseAnnGHG_5&"#"&'Annual GHG Emissions - Sector'!$I90,Total_Emissions_by_A_index,0))) ->  | AS90: =IF(actCaseAnnGHG_5="",NA(),INDEX(Total_Emissions_by_A_vals,MATCH('Annual GHG Emissions - Sector'!AS$38&"#"&actCaseAnnGHG_5&"#"&'Annual GHG Emissions - Sector'!$I90,Total_Emissions_by_A_index,0))) ->  | AT90: =IF(actCaseAnnGHG_5="",NA(),INDEX(Total_Emissions_by_A_vals,MATCH('Annual GHG Emissions - Sector'!AT$38&"#"&actCaseAnnGHG_5&"#"&'Annual GHG Emissions - Sector'!$I90,Total_Emissions_by_A_index,0))) ->  | AU90: =IF(actCaseAnnGHG_5="",NA(),INDEX(Total_Emissions_by_A_vals,MATCH('Annual GHG Emissions - Sector'!AU$38&"#"&actCaseAnnGHG_5&"#"&'Annual GHG Emissions - Sector'!$I90,Total_Emissions_by_A_index,0))) ->  | AV90: =IF(actCaseAnnGHG_5="",NA(),INDEX(Total_Emissions_by_A_vals,MATCH('Annual GHG Emissions - Sector'!AV$38&"#"&actCaseAnnGHG_5&"#"&'Annual GHG Emissions - Sector'!$I90,Total_Emissions_by_A_index,0))) ->  | AW90: =IF(actCaseAnnGHG_5="",NA(),INDEX(Total_Emissions_by_A_vals,MATCH('Annual GHG Emissions - Sector'!AW$38&"#"&actCaseAnnGHG_5&"#"&'Annual GHG Emissions - Sector'!$I90,Total_Emissions_by_A_index,0))) ->  | AX90: =IF(actCaseAnnGHG_5="",NA(),INDEX(Total_Emissions_by_A_vals,MATCH('Annual GHG Emissions - Sector'!AX$38&"#"&actCaseAnnGHG_5&"#"&'Annual GHG Emissions - Sector'!$I90,Total_Emissions_by_A_index,0))) ->  | AY90: =IF(actCaseAnnGHG_5="",NA(),INDEX(Total_Emissions_by_A_vals,MATCH('Annual GHG Emissions - Sector'!AY$38&"#"&actCaseAnnGHG_5&"#"&'Annual GHG Emissions - Sector'!$I90,Total_Emissions_by_A_index,0))) ->  | AZ90: =IF(actCaseAnnGHG_5="",NA(),INDEX(Total_Emissions_by_A_vals,MATCH('Annual GHG Emissions - Sector'!AZ$38&"#"&actCaseAnnGHG_5&"#"&'Annual GHG Emissions - Sector'!$I90,Total_Emissions_by_A_index,0))) ->  | BA90: =IF(actCaseAnnGHG_5="",NA(),INDEX(Total_Emissions_by_A_vals,MATCH('Annual GHG Emissions - Sector'!BA$38&"#"&actCaseAnnGHG_5&"#"&'Annual GHG Emissions - Sector'!$I90,Total_Emissions_by_A_index,0))) ->  | BB90: =IF(actCaseAnnGHG_5="",NA(),INDEX(Total_Emissions_by_A_vals,MATCH('Annual GHG Emissions - Sector'!BB$38&"#"&actCaseAnnGHG_5&"#"&'Annual GHG Emissions - Sector'!$I90,Total_Emissions_by_A_index,0))) ->  | BC90: =IF(actCaseAnnGHG_5="",NA(),INDEX(Total_Emissions_by_A_vals,MATCH('Annual GHG Emissions - Sector'!BC$38&"#"&actCaseAnnGHG_5&"#"&'Annual GHG Emissions - Sector'!$I90,Total_Emissions_by_A_index,0))) ->  | BD90: =IF(actCaseAnnGHG_5="",NA(),INDEX(Total_Emissions_by_A_vals,MATCH('Annual GHG Emissions - Sector'!BD$38&"#"&actCaseAnnGHG_5&"#"&'Annual GHG Emissions - Sector'!$I90,Total_Emissions_by_A_index,0))) ->  | BE90: =IF(actCaseAnnGHG_5="",NA(),INDEX(Total_Emissions_by_A_vals,MATCH('Annual GHG Emissions - Sector'!BE$38&"#"&actCaseAnnGHG_5&"#"&'Annual GHG Emissions - Sector'!$I90,Total_Emissions_by_A_index,0))) ->  | BF90: =IF(actCaseAnnGHG_5="",NA(),INDEX(Total_Emissions_by_A_vals,MATCH('Annual GHG Emissions - Sector'!BF$38&"#"&actCaseAnnGHG_5&"#"&'Annual GHG Emissions - Sector'!$I90,Total_Emissions_by_A_index,0))) ->  | BG90: =IF(actCaseAnnGHG_5="",NA(),INDEX(Total_Emissions_by_A_vals,MATCH('Annual GHG Emissions - Sector'!BG$38&"#"&actCaseAnnGHG_5&"#"&'Annual GHG Emissions - Sector'!$I90,Total_Emissions_by_A_index,0))) ->  | BH90: =IF(actCaseAnnGHG_5="",NA(),INDEX(Total_Emissions_by_A_vals,MATCH('Annual GHG Emissions - Sector'!BH$38&"#"&actCaseAnnGHG_5&"#"&'Annual GHG Emissions - Sector'!$I90,Total_Emissions_by_A_index,0))) ->  | BI90: =IF(actCaseAnnGHG_5="",NA(),INDEX(Total_Emissions_by_A_vals,MATCH('Annual GHG Emissions - Sector'!BI$38&"#"&actCaseAnnGHG_5&"#"&'Annual GHG Emissions - Sector'!$I90,Total_Emissions_by_A_index,0))) ->  | BJ90: =IF(actCaseAnnGHG_5="",NA(),INDEX(Total_Emissions_by_A_vals,MATCH('Annual GHG Emissions - Sector'!BJ$38&"#"&actCaseAnnGHG_5&"#"&'Annual GHG Emissions - Sector'!$I90,Total_Emissions_by_A_index,0))) ->  | BK90: =IF(actCaseAnnGHG_5="",NA(),INDEX(Total_Emissions_by_A_vals,MATCH('Annual GHG Emissions - Sector'!BK$38&"#"&actCaseAnnGHG_5&"#"&'Annual GHG Emissions - Sector'!$I90,Total_Emissions_by_A_index,0))) ->  | BL90: =IF(actCaseAnnGHG_5="",NA(),INDEX(Total_Emissions_by_A_vals,MATCH('Annual GHG Emissions - Sector'!BL$38&"#"&actCaseAnnGHG_5&"#"&'Annual GHG Emissions - Sector'!$I90,Total_Emissions_by_A_index,0))) ->  | BM90: =IF(actCaseAnnGHG_5="",NA(),INDEX(Total_Emissions_by_A_vals,MATCH('Annual GHG Emissions - Sector'!BM$38&"#"&actCaseAnnGHG_5&"#"&'Annual GHG Emissions - Sector'!$I90,Total_Emissions_by_A_index,0))) ->  | BN90: =IF(actCaseAnnGHG_5="",NA(),INDEX(Total_Emissions_by_A_vals,MATCH('Annual GHG Emissions - Sector'!BN$38&"#"&actCaseAnnGHG_5&"#"&'Annual GHG Emissions - Sector'!$I90,Total_Emissions_by_A_index,0))) ->  | BO90: =IF(actCaseAnnGHG_5="",NA(),INDEX(Total_Emissions_by_A_vals,MATCH('Annual GHG Emissions - Sector'!BO$38&"#"&actCaseAnnGHG_5&"#"&'Annual GHG Emissions - Sector'!$I90,Total_Emissions_by_A_index,0))) ->  | BP90: =IF(actCaseAnnGHG_5="",NA(),INDEX(Total_Emissions_by_A_vals,MATCH('Annual GHG Emissions - Sector'!BP$38&"#"&actCaseAnnGHG_5&"#"&'Annual GHG Emissions - Sector'!$I90,Total_Emissions_by_A_index,0))) ->  | BQ90: =IF(actCaseAnnGHG_5="",NA(),INDEX(Total_Emissions_by_A_vals,MATCH('Annual GHG Emissions - Sector'!BQ$38&"#"&actCaseAnnGHG_5&"#"&'Annual GHG Emissions - Sector'!$I90,Total_Emissions_by_A_index,0))) ->  | BR90: =IF(actCaseAnnGHG_5="",NA(),INDEX(Total_Emissions_by_A_vals,MATCH('Annual GHG Emissions - Sector'!BR$38&"#"&actCaseAnnGHG_5&"#"&'Annual GHG Emissions - Sector'!$I90,Total_Emissions_by_A_index,0))) -> 
I91: Transportation (Incl. TCU) | AI91: =IF(actCaseAnnGHG_5="",NA(),INDEX(Total_Emissions_by_A_vals,MATCH('Annual GHG Emissions - Sector'!AI$38&"#"&actCaseAnnGHG_5&"#"&'Annual GHG Emissions - Sector'!$I91,Total_Emissions_by_A_index,0))) ->  | AJ91: =IF(actCaseAnnGHG_5="",NA(),INDEX(Total_Emissions_by_A_vals,MATCH('Annual GHG Emissions - Sector'!AJ$38&"#"&actCaseAnnGHG_5&"#"&'Annual GHG Emissions - Sector'!$I91,Total_Emissions_by_A_index,0))) ->  | AK91: =IF(actCaseAnnGHG_5="",NA(),INDEX(Total_Emissions_by_A_vals,MATCH('Annual GHG Emissions - Sector'!AK$38&"#"&actCaseAnnGHG_5&"#"&'Annual GHG Emissions - Sector'!$I91,Total_Emissions_by_A_index,0))) ->  | AL91: =IF(actCaseAnnGHG_5="",NA(),INDEX(Total_Emissions_by_A_vals,MATCH('Annual GHG Emissions - Sector'!AL$38&"#"&actCaseAnnGHG_5&"#"&'Annual GHG Emissions - Sector'!$I91,Total_Emissions_by_A_index,0))) ->  | AM91: =IF(actCaseAnnGHG_5="",NA(),INDEX(Total_Emissions_by_A_vals,MATCH('Annual GHG Emissions - Sector'!AM$38&"#"&actCaseAnnGHG_5&"#"&'Annual GHG Emissions - Sector'!$I91,Total_Emissions_by_A_index,0))) ->  | AN91: =IF(actCaseAnnGHG_5="",NA(),INDEX(Total_Emissions_by_A_vals,MATCH('Annual GHG Emissions - Sector'!AN$38&"#"&actCaseAnnGHG_5&"#"&'Annual GHG Emissions - Sector'!$I91,Total_Emissions_by_A_index,0))) ->  | AO91: =IF(actCaseAnnGHG_5="",NA(),INDEX(Total_Emissions_by_A_vals,MATCH('Annual GHG Emissions - Sector'!AO$38&"#"&actCaseAnnGHG_5&"#"&'Annual GHG Emissions - Sector'!$I91,Total_Emissions_by_A_index,0))) ->  | AP91: =IF(actCaseAnnGHG_5="",NA(),INDEX(Total_Emissions_by_A_vals,MATCH('Annual GHG Emissions - Sector'!AP$38&"#"&actCaseAnnGHG_5&"#"&'Annual GHG Emissions - Sector'!$I91,Total_Emissions_by_A_index,0))) ->  | AQ91: =IF(actCaseAnnGHG_5="",NA(),INDEX(Total_Emissions_by_A_vals,MATCH('Annual GHG Emissions - Sector'!AQ$38&"#"&actCaseAnnGHG_5&"#"&'Annual GHG Emissions - Sector'!$I91,Total_Emissions_by_A_index,0))) ->  | AR91: =IF(actCaseAnnGHG_5="",NA(),INDEX(Total_Emissions_by_A_vals,MATCH('Annual GHG Emissions - Sector'!AR$38&"#"&actCaseAnnGHG_5&"#"&'Annual GHG Emissions - Sector'!$I91,Total_Emissions_by_A_index,0))) ->  | AS91: =IF(actCaseAnnGHG_5="",NA(),INDEX(Total_Emissions_by_A_vals,MATCH('Annual GHG Emissions - Sector'!AS$38&"#"&actCaseAnnGHG_5&"#"&'Annual GHG Emissions - Sector'!$I91,Total_Emissions_by_A_index,0))) ->  | AT91: =IF(actCaseAnnGHG_5="",NA(),INDEX(Total_Emissions_by_A_vals,MATCH('Annual GHG Emissions - Sector'!AT$38&"#"&actCaseAnnGHG_5&"#"&'Annual GHG Emissions - Sector'!$I91,Total_Emissions_by_A_index,0))) ->  | AU91: =IF(actCaseAnnGHG_5="",NA(),INDEX(Total_Emissions_by_A_vals,MATCH('Annual GHG Emissions - Sector'!AU$38&"#"&actCaseAnnGHG_5&"#"&'Annual GHG Emissions - Sector'!$I91,Total_Emissions_by_A_index,0))) ->  | AV91: =IF(actCaseAnnGHG_5="",NA(),INDEX(Total_Emissions_by_A_vals,MATCH('Annual GHG Emissions - Sector'!AV$38&"#"&actCaseAnnGHG_5&"#"&'Annual GHG Emissions - Sector'!$I91,Total_Emissions_by_A_index,0))) ->  | AW91: =IF(actCaseAnnGHG_5="",NA(),INDEX(Total_Emissions_by_A_vals,MATCH('Annual GHG Emissions - Sector'!AW$38&"#"&actCaseAnnGHG_5&"#"&'Annual GHG Emissions - Sector'!$I91,Total_Emissions_by_A_index,0))) ->  | AX91: =IF(actCaseAnnGHG_5="",NA(),INDEX(Total_Emissions_by_A_vals,MATCH('Annual GHG Emissions - Sector'!AX$38&"#"&actCaseAnnGHG_5&"#"&'Annual GHG Emissions - Sector'!$I91,Total_Emissions_by_A_index,0))) ->  | AY91: =IF(actCaseAnnGHG_5="",NA(),INDEX(Total_Emissions_by_A_vals,MATCH('Annual GHG Emissions - Sector'!AY$38&"#"&actCaseAnnGHG_5&"#"&'Annual GHG Emissions - Sector'!$I91,Total_Emissions_by_A_index,0))) ->  | AZ91: =IF(actCaseAnnGHG_5="",NA(),INDEX(Total_Emissions_by_A_vals,MATCH('Annual GHG Emissions - Sector'!AZ$38&"#"&actCaseAnnGHG_5&"#"&'Annual GHG Emissions - Sector'!$I91,Total_Emissions_by_A_index,0))) ->  | BA91: =IF(actCaseAnnGHG_5="",NA(),INDEX(Total_Emissions_by_A_vals,MATCH('Annual GHG Emissions - Sector'!BA$38&"#"&actCaseAnnGHG_5&"#"&'Annual GHG Emissions - Sector'!$I91,Total_Emissions_by_A_index,0))) ->  | BB91: =IF(actCaseAnnGHG_5="",NA(),INDEX(Total_Emissions_by_A_vals,MATCH('Annual GHG Emissions - Sector'!BB$38&"#"&actCaseAnnGHG_5&"#"&'Annual GHG Emissions - Sector'!$I91,Total_Emissions_by_A_index,0))) ->  | BC91: =IF(actCaseAnnGHG_5="",NA(),INDEX(Total_Emissions_by_A_vals,MATCH('Annual GHG Emissions - Sector'!BC$38&"#"&actCaseAnnGHG_5&"#"&'Annual GHG Emissions - Sector'!$I91,Total_Emissions_by_A_index,0))) ->  | BD91: =IF(actCaseAnnGHG_5="",NA(),INDEX(Total_Emissions_by_A_vals,MATCH('Annual GHG Emissions - Sector'!BD$38&"#"&actCaseAnnGHG_5&"#"&'Annual GHG Emissions - Sector'!$I91,Total_Emissions_by_A_index,0))) ->  | BE91: =IF(actCaseAnnGHG_5="",NA(),INDEX(Total_Emissions_by_A_vals,MATCH('Annual GHG Emissions - Sector'!BE$38&"#"&actCaseAnnGHG_5&"#"&'Annual GHG Emissions - Sector'!$I91,Total_Emissions_by_A_index,0))) ->  | BF91: =IF(actCaseAnnGHG_5="",NA(),INDEX(Total_Emissions_by_A_vals,MATCH('Annual GHG Emissions - Sector'!BF$38&"#"&actCaseAnnGHG_5&"#"&'Annual GHG Emissions - Sector'!$I91,Total_Emissions_by_A_index,0))) ->  | BG91: =IF(actCaseAnnGHG_5="",NA(),INDEX(Total_Emissions_by_A_vals,MATCH('Annual GHG Emissions - Sector'!BG$38&"#"&actCaseAnnGHG_5&"#"&'Annual GHG Emissions - Sector'!$I91,Total_Emissions_by_A_index,0))) ->  | BH91: =IF(actCaseAnnGHG_5="",NA(),INDEX(Total_Emissions_by_A_vals,MATCH('Annual GHG Emissions - Sector'!BH$38&"#"&actCaseAnnGHG_5&"#"&'Annual GHG Emissions - Sector'!$I91,Total_Emissions_by_A_index,0))) ->  | BI91: =IF(actCaseAnnGHG_5="",NA(),INDEX(Total_Emissions_by_A_vals,MATCH('Annual GHG Emissions - Sector'!BI$38&"#"&actCaseAnnGHG_5&"#"&'Annual GHG Emissions - Sector'!$I91,Total_Emissions_by_A_index,0))) ->  | BJ91: =IF(actCaseAnnGHG_5="",NA(),INDEX(Total_Emissions_by_A_vals,MATCH('Annual GHG Emissions - Sector'!BJ$38&"#"&actCaseAnnGHG_5&"#"&'Annual GHG Emissions - Sector'!$I91,Total_Emissions_by_A_index,0))) ->  | BK91: =IF(actCaseAnnGHG_5="",NA(),INDEX(Total_Emissions_by_A_vals,MATCH('Annual GHG Emissions - Sector'!BK$38&"#"&actCaseAnnGHG_5&"#"&'Annual GHG Emissions - Sector'!$I91,Total_Emissions_by_A_index,0))) ->  | BL91: =IF(actCaseAnnGHG_5="",NA(),INDEX(Total_Emissions_by_A_vals,MATCH('Annual GHG Emissions - Sector'!BL$38&"#"&actCaseAnnGHG_5&"#"&'Annual GHG Emissions - Sector'!$I91,Total_Emissions_by_A_index,0))) ->  | BM91: =IF(actCaseAnnGHG_5="",NA(),INDEX(Total_Emissions_by_A_vals,MATCH('Annual GHG Emissions - Sector'!BM$38&"#"&actCaseAnnGHG_5&"#"&'Annual GHG Emissions - Sector'!$I91,Total_Emissions_by_A_index,0))) ->  | BN91: =IF(actCaseAnnGHG_5="",NA(),INDEX(Total_Emissions_by_A_vals,MATCH('Annual GHG Emissions - Sector'!BN$38&"#"&actCaseAnnGHG_5&"#"&'Annual GHG Emissions - Sector'!$I91,Total_Emissions_by_A_index,0))) ->  | BO91: =IF(actCaseAnnGHG_5="",NA(),INDEX(Total_Emissions_by_A_vals,MATCH('Annual GHG Emissions - Sector'!BO$38&"#"&actCaseAnnGHG_5&"#"&'Annual GHG Emissions - Sector'!$I91,Total_Emissions_by_A_index,0))) ->  | BP91: =IF(actCaseAnnGHG_5="",NA(),INDEX(Total_Emissions_by_A_vals,MATCH('Annual GHG Emissions - Sector'!BP$38&"#"&actCaseAnnGHG_5&"#"&'Annual GHG Emissions - Sector'!$I91,Total_Emissions_by_A_index,0))) ->  | BQ91: =IF(actCaseAnnGHG_5="",NA(),INDEX(Total_Emissions_by_A_vals,MATCH('Annual GHG Emissions - Sector'!BQ$38&"#"&actCaseAnnGHG_5&"#"&'Annual GHG Emissions - Sector'!$I91,Total_Emissions_by_A_index,0))) ->  | BR91: =IF(actCaseAnnGHG_5="",NA(),INDEX(Total_Emissions_by_A_vals,MATCH('Annual GHG Emissions - Sector'!BR$38&"#"&actCaseAnnGHG_5&"#"&'Annual GHG Emissions - Sector'!$I91,Total_Emissions_by_A_index,0))) -> 
I92: Total | AI92: =SUM(AI85:AI91) ->  | AJ92: =SUM(AJ85:AJ91) ->  | BT92: 0.02663429893 | BU92: 66.97562588
I95: CARB Inventory
J96: 1990 | K96: 1991 | L96: 1992 | M96: 1993 | N96: 1994 | O96: 1995 | P96: 1996 | Q96: 1997 | R96: 1998 | S96: 1999 | T96: 2000 | U96: 2001 | V96: 2002 | W96: 2003 | X96: 2004 | Y96: 2005 | Z96: 2006 | AA96: 2007 | AB96: 2008 | AC96: 2009 | AD96: 2010 | AE96: 2011 | AF96: 2012 | AG96: 2013 | AH96: 2014 | AI96: 2015 | AJ96: 2016 | AK96: 2017 | AL96: 2018 | AM96: 2019 | AN96: 2020 | AO96: 2021 | AP96: 2022 | AQ96: 2023 | AR96: 2024 | AS96: 2025 | AT96: 2026 | AU96: 2027 | AV96: 2028 | AW96: 2029 | AX96: 2030 | AY96: 2031 | AZ96: 2032 | BA96: 2033 | BB96: 2034 | BC96: 2035 | BD96: 2036 | BE96: 2037 | BF96: 2038 | BG96: 2039 | BH96: 2040 | BI96: 2041 | BJ96: 2042 | BK96: 2043 | BL96: 2044 | BM96: 2045 | BN96: 2046 | BO96: 2047 | BP96: 2048 | BQ96: 2049 | BR96: 2050
I97: Agriculture | AH97: 36.10628445
I98: Residential and Commercial | AH98: 38.3448181
I99: Electric Power | AH99: 88.2355891
I100: High GWP | AH100: 17.14806537
I101: Industrial | AH101: 93.32232358
I102: Recycling and Waste | AH102: 8.848776478
I103: Transportation | AH103: 159.5292053
I104: Total | J104: 431 | K104: 410.4031133 | L104: 412.3779657 | M104: 409.3916809 | N104: 421.812624 | O104: 411.4066445 | P104: 409.1694066 | Q104: 427.512987 | R104: 443.8572916 | S104: 451.3211493 | T104: 466.3167045 | U104: 481.2267163 | V104: 480.3167969 | W104: 483.0543085 | X104: 492.8613133 | Y104: 485.1322839 | Z104: 482.518193 | AA104: 489.1603397 | AB104: 487.1005143 | AC104: 458.4411816 | AD104: 453.055471 | AE104: 450.9431009 | AF104: 458.6846035 | AH104: 441.5350624
I105: Reduction Goals | J105: 431 | AN105: 431 | AX105: 258.6 | BR105: 86.2
I106: End Goal | J106: 86.2 | BR106: 86.2
A117: CASE 1 | B117: =actCaseAnnGHG_1 -> Reference
A118: =actCaseAnnGHG_1&"#Electricity" -> Reference#Electricity
A119: Fgas: RES# | B119: ="#"&actCaseAnnGHG_1 -> #Reference
A120: Fgas: COM# | B120: #Reference
A121: Fgas: IND# | B121: #Reference
A122: Fgas: LDV# | B122: #Reference
A123: Fgas: HDV# | B123: #Reference
A124: Fgas: Other trans# | B124: #Reference
A125: Fgas: Electricity# | B125: #Reference
A126: Electricity Generation Fugitive and Process Emissions# | B126: #Reference
A127: Land: Fire# | B127: #Reference
A128: Land: Use change# | B128: #Reference
A129: Waste# | B129: #Reference
A131: Geo-Independent
A132: ="#"&I132&"#"&actCaseAnnGHG_1&"#" -> ##Reference# | B132: Agriculture: Enteric# | C132: Agriculture: Soil Emissions# | D132: Agriculture: Manure# | E132: Agriculture: Other# | H132: ="#"&I132&"#"&actCaseAnnGHG_1&"#Electricity" -> ##Reference#Electricity
A133: ##Reference# | H133: ##Reference#Electricity
A134: ##Reference# | H134: ##Reference#Electricity
A135: ##Reference# | B135: Cement# | C135: Pipeline Fugitive Emissions# | H135: ##Reference#Electricity
A136: ##Reference# | B136: Oil Extraction Fugitive Emissions# | H136: ##Reference#Electricity
A137: ##Reference# | B137: Petroleum Refining# | H137: ##Reference#Electricity
A138: ##Reference# | H138: ##Reference#Electricity
A139: ##Reference# | H139: ##Reference#Electricity
A141: LADWP
A142: ="#"&I142&"#"&actCaseAnnGHG_1&"#" -> ##Reference# | H142: ="#"&I142&"#"&actCaseAnnGHG_1&"#Electricity" -> ##Reference#Electricity
A143: ##Reference# | H143: ##Reference#Electricity
A144: ##Reference# | H144: ##Reference#Electricity
A145: ##Reference# | H145: ##Reference#Electricity
A146: ##Reference# | H146: ##Reference#Electricity
A147: ##Reference# | H147: ##Reference#Electricity
A148: ##Reference# | H148: ##Reference#Electricity
A149: ##Reference# | H149: ##Reference#Electricity
A151: Other
A152: ="#"&I152&"#"&actCaseAnnGHG_1&"#" -> ##Reference# | B152: Agriculture: Enteric# | C152: Agriculture: Soil Emissions# | D152: Agriculture: Manure# | E152: Agriculture: Other# | H152: ="#"&I152&"#"&actCaseAnnGHG_1&"#Electricity" -> ##Reference#Electricity
A153: ##Reference# | H153: ##Reference#Electricity
A154: ##Reference# | H154: ##Reference#Electricity
A155: ##Reference# | B155: Cement# | C155: Pipeline Fugitive Emissions# | H155: ##Reference#Electricity
A156: ##Reference# | B156: Oil Extraction Fugitive Emissions# | H156: ##Reference#Electricity
A157: ##Reference# | B157: Petroleum Refining# | H157: ##Reference#Electricity
A158: ##Reference# | H158: ##Reference#Electricity
A159: ##Reference# | H159: ##Reference#Electricity
A161: PG&E
A162: ="#"&I162&"#"&actCaseAnnGHG_1&"#" -> ##Reference# | H162: ="#"&I162&"#"&actCaseAnnGHG_1&"#Electricity" -> ##Reference#Electricity
A163: ##Reference# | H163: ##Reference#Electricity
A164: ##Reference# | H164: ##Reference#Electricity
A165: ##Reference# | H165: ##Reference#Electricity
A166: ##Reference# | H166: ##Reference#Electricity
A167: ##Reference# | H167: ##Reference#Electricity
A168: ##Reference# | H168: ##Reference#Electricity
A169: ##Reference# | H169: ##Reference#Electricity
A171: SCE
A172: ="#"&I172&"#"&actCaseAnnGHG_1&"#" -> ##Reference# | H172: ="#"&I172&"#"&actCaseAnnGHG_1&"#Electricity" -> ##Reference#Electricity
A173: ##Reference# | H173: ##Reference#Electricity
A174: ##Reference# | H174: ##Reference#Electricity
A175: ##Reference# | H175: ##Reference#Electricity
A176: ##Reference# | H176: ##Reference#Electricity
A177: ##Reference# | H177: ##Reference#Electricity
A178: ##Reference# | H178: ##Reference#Electricity
A179: ##Reference# | H179: ##Reference#Electricity
A181: SDG&E
A182: ="#"&I182&"#"&actCaseAnnGHG_1&"#" -> ##Reference# | H182: ="#"&I182&"#"&actCaseAnnGHG_1&"#Electricity" -> ##Reference#Electricity
A183: ##Reference# | H183: ##Reference#Electricity
A184: ##Reference# | H184: ##Reference#Electricity
A185: ##Reference# | H185: ##Reference#Electricity
A186: ##Reference# | H186: ##Reference#Electricity
A187: ##Reference# | H187: ##Reference#Electricity
A188: ##Reference# | H188: ##Reference#Electricity
A189: ##Reference# | H189: ##Reference#Electricity
A191: SMUD
A192: ="#"&I192&"#"&actCaseAnnGHG_1&"#" -> ##Reference# | H192: ="#"&I192&"#"&actCaseAnnGHG_1&"#Electricity" -> ##Reference#Electricity
A193: ##Reference# | H193: ##Reference#Electricity
A194: ##Reference# | H194: ##Reference#Electricity
A195: ##Reference# | H195: ##Reference#Electricity
A196: ##Reference# | H196: ##Reference#Electricity
A197: ##Reference# | H197: ##Reference#Electricity
A198: ##Reference# | H198: ##Reference#Electricity
A199: ##Reference# | H199: ##Reference#Electricity
A201: CASE 2
A202: =actCaseAnnGHG_2&"#Electricity" -> SP - Cap and Tax#Electricity
A203: Fgas: RES# | B203: ="#"&actCaseAnnGHG_2 -> #SP - Cap and Tax
A204: Fgas: COM# | B204: #SP - Cap and Tax
A205: Fgas: IND# | B205: #SP - Cap and Tax
A206: Fgas: LDV# | B206: #SP - Cap and Tax
A207: Fgas: HDV# | B207: #SP - Cap and Tax
A208: Fgas: Other trans# | B208: #SP - Cap and Tax
A209: Fgas: Electricity# | B209: #SP - Cap and Tax
A210: Electricity Generation Fugitive and Process Emissions# | B210: #SP - Cap and Tax
A211: Land: Fire# | B211: #SP - Cap and Tax
A212: Land: Use change# | B212: #SP - Cap and Tax
A213: Waste# | B213: #SP - Cap and Tax
A215: Geo-Independent
A216: ="#"&I216&"#"&actCaseAnnGHG_2&"#" -> ##SP - Cap and Tax# | B216: Agriculture: Enteric# | C216: Agriculture: Soil Emissions# | D216: Agriculture: Manure# | E216: Agriculture: Other# | H216: ="#"&I216&"#"&actCaseAnnGHG_2&"#Electricity" -> ##SP - Cap and Tax#Electricity
A217: ##SP - Cap and Tax# | H217: ##SP - Cap and Tax#Electricity
A218: ##SP - Cap and Tax# | H218: ##SP - Cap and Tax#Electricity
A219: ##SP - Cap and Tax# | B219: Cement# | C219: Pipeline Fugitive Emissions# | H219: ##SP - Cap and Tax#Electricity
A220: ##SP - Cap and Tax# | B220: Oil Extraction Fugitive Emissions# | H220: ##SP - Cap and Tax#Electricity
A221: ##SP - Cap and Tax# | B221: Petroleum Refining# | H221: ##SP - Cap and Tax#Electricity
A222: ##SP - Cap and Tax# | H222: ##SP - Cap and Tax#Electricity
A223: ##SP - Cap and Tax# | H223: ##SP - Cap and Tax#Electricity
A225: LADWP
A226: ="#"&I226&"#"&actCaseAnnGHG_2&"#" -> ##SP - Cap and Tax# | H226: ="#"&I226&"#"&actCaseAnnGHG_2&"#Electricity" -> ##SP - Cap and Tax#Electricity
A227: ##SP - Cap and Tax# | H227: ##SP - Cap and Tax#Electricity
A228: ##SP - Cap and Tax# | H228: ##SP - Cap and Tax#Electricity
A229: ##SP - Cap and Tax# | H229: ##SP - Cap and Tax#Electricity
A230: ##SP - Cap and Tax# | H230: ##SP - Cap and Tax#Electricity
A231: ##SP - Cap and Tax# | H231: ##SP - Cap and Tax#Electricity
A232: ##SP - Cap and Tax# | H232: ##SP - Cap and Tax#Electricity
A233: ##SP - Cap and Tax# | H233: ##SP - Cap and Tax#Electricity
A235: Other
A236: ="#"&I236&"#"&actCaseAnnGHG_2&"#" -> ##SP - Cap and Tax# | B236: Agriculture: Enteric# | C236: Agriculture: Soil Emissions# | D236: Agriculture: Manure# | E236: Agriculture: Other# | H236: ="#"&I236&"#"&actCaseAnnGHG_2&"#Electricity" -> ##SP - Cap and Tax#Electricity
A237: ##SP - Cap and Tax# | H237: ##SP - Cap and Tax#Electricity
A238: ##SP - Cap and Tax# | H238: ##SP - Cap and Tax#Electricity
A239: ##SP - Cap and Tax# | B239: Cement# | C239: Pipeline Fugitive Emissions# | H239: ##SP - Cap and Tax#Electricity
A240: ##SP - Cap and Tax# | B240: Oil Extraction Fugitive Emissions# | H240: ##SP - Cap and Tax#Electricity
A241: ##SP - Cap and Tax# | B241: Petroleum Refining# | H241: ##SP - Cap and Tax#Electricity
A242: ##SP - Cap and Tax# | H242: ##SP - Cap and Tax#Electricity
A243: ##SP - Cap and Tax# | H243: ##SP - Cap and Tax#Electricity
A245: PG&E
A246: ="#"&I246&"#"&actCaseAnnGHG_2&"#" -> ##SP - Cap and Tax# | H246: ="#"&I246&"#"&actCaseAnnGHG_2&"#Electricity" -> ##SP - Cap and Tax#Electricity
A247: ##SP - Cap and Tax# | H247: ##SP - Cap and Tax#Electricity
A248: ##SP - Cap and Tax# | H248: ##SP - Cap and Tax#Electricity
A249: ##SP - Cap and Tax# | H249: ##SP - Cap and Tax#Electricity
A250: ##SP - Cap and Tax# | H250: ##SP - Cap and Tax#Electricity
A251: ##SP - Cap and Tax# | H251: ##SP - Cap and Tax#Electricity
A252: ##SP - Cap and Tax# | H252: ##SP - Cap and Tax#Electricity
A253: ##SP - Cap and Tax# | H253: ##SP - Cap and Tax#Electricity
A255: SCE
A256: ="#"&I256&"#"&actCaseAnnGHG_2&"#" -> ##SP - Cap and Tax# | H256: ="#"&I256&"#"&actCaseAnnGHG_2&"#Electricity" -> ##SP - Cap and Tax#Electricity
A257: ##SP - Cap and Tax# | H257: ##SP - Cap and Tax#Electricity
A258: ##SP - Cap and Tax# | H258: ##SP - Cap and Tax#Electricity
A259: ##SP - Cap and Tax# | H259: ##SP - Cap and Tax#Electricity
A260: ##SP - Cap and Tax# | H260: ##SP - Cap and Tax#Electricity
... 98 more rows

Sheet Summary Tables
C2: Case Name
B3: Base Case | C3: Reference
B4: Detailed Comparison Case 1 | C4: Alternative 1
B5: Comparison Case 2 | C5: SP - Cap and Tax
B6: Comparison Case 3
B7: Comparison Case 4
B8: Year for Chart | C8: 2030
B10: ="Comparison to "&TabCostCase_1&" in "&$C$8 -> Comparison to Reference in 2030
B11: Case | C11: GHGs [MMTCO2] | D11: Stock Costs [$Billion] | E11: Fuel Costs [$Billion] | F11: Total Costs [$Billion]
B13: =IF(TabCostCase_2="",NA(),TabCostCase_2) -> Alternative 1 | C13: =IF(ISBLANK($C4),NA(),(SUMPRODUCT((Non_Energy_GHGs_index_3=$C4)*(Non_Energy_GHGs_index_2=$C$8)*(Non_Energy_GHGs_vals))+SUMPRODUCT(($C4=Energy_GHGs_by_Sect1_index_4)*(Energy_GHGs_by_Sect1_index_1='Summary Tables'!$C$8)*Energy_GHGs_by_Sect1_vals)-(SUMPRODUCT((Non_Energy_GHGs_index_3=TabCostCase_1)*(Non_Energy_GHGs_index_2=$C$8)*(Non_Energy_GHGs_vals))+SUMPRODUCT((TabCostCase_1=Energy_GHGs_by_Sect1_index_4)*(Energy_GHGs_by_Sect1_index_1='Summary Tables'!$C$8)*Energy_GHGs_by_Sect1_vals)))/1000000) -> -133.636709 | D13: =IF($C4="",NA(),(SUMPRODUCT(($C4=IF(TabCostGeoRes,Total_Costs1_index_4,Total_Costs1_index_3))*("Stock Costs"=IF(TabCostGeoRes,Total_Costs1_index_5,Total_Costs1_index_4))*($C$8=Total_Costs1_index_1)*(Total_Costs1_vals))+SUMPRODUCT(($C4=IF(TabCostGeoRes,Total_Costs1_index_4,Total_Costs1_index_3))*("Demand Change Measure Costs"=IF(TabCostGeoRes,Total_Costs1_index_5,Total_Costs1_index_4))*($C$8=Total_Costs1_index_1)*(Total_Costs1_vals))-SUMPRODUCT((TabCostCase_1=IF(TabCostGeoRes,Total_Costs1_index_4,Total_Costs1_index_3))*("Stock Costs"=IF(TabCostGeoRes,Total_Costs1_index_5,Total_Costs1_index_4))*($C$8=Total_Costs1_index_1)*(Total_Costs1_vals))-SUMPRODUCT((TabCostCase_1=IF(TabCostGeoRes,Total_Costs1_index_4,Total_Costs1_index_3))*("Demand Change Measure Costs"=IF(TabCostGeoRes,Total_Costs1_index_5,Total_Costs1_index_4))*($C$8=Total_Costs1_index_1)*(Total_Costs1_vals)))/10^9) -> 17.87877675 | E13: =F13-D13 -> 0.9367465485 | F13: =IF(ISBLANK($C4),NA(),(SUMPRODUCT(($C4=IF(TabCostGeoRes,Total_Costs1_index_4,Total_Costs1_index_3))*($C$8=Total_Costs1_index_1)*(Total_Costs1_vals))-SUMPRODUCT((TabCostCase_1=IF(TabCostGeoRes,Total_Costs1_index_4,Total_Costs1_index_3))*($C$8=Total_Costs1_index_1)*(Total_Costs1_vals)))/1000000000) -> 18.8155233
B14: =IF(TabCostCase_3="",NA(),TabCostCase_3) -> SP - Cap and Tax | C14: =IF(ISBLANK($C5),NA(),(SUMPRODUCT((Non_Energy_GHGs_index_3=$C5)*(Non_Energy_GHGs_index_2=$C$8)*(Non_Energy_GHGs_vals))+SUMPRODUCT(($C5=Energy_GHGs_by_Sect1_index_4)*(Energy_GHGs_by_Sect1_index_1='Summary Tables'!$C$8)*Energy_GHGs_by_Sect1_vals)-(SUMPRODUCT((Non_Energy_GHGs_index_3=TabCostCase_1)*(Non_Energy_GHGs_index_2=$C$8)*(Non_Energy_GHGs_vals))+SUMPRODUCT((TabCostCase_1=Energy_GHGs_by_Sect1_index_4)*(Energy_GHGs_by_Sect1_index_1='Summary Tables'!$C$8)*Energy_GHGs_by_Sect1_vals)))/1000000) -> -134.4640779 | D14: =IF($C5="",NA(),(SUMPRODUCT(($C5=IF(TabCostGeoRes,Total_Costs1_index_4,Total_Costs1_index_3))*("Stock Costs"=IF(TabCostGeoRes,Total_Costs1_index_5,Total_Costs1_index_4))*($C$8=Total_Costs1_index_1)*(Total_Costs1_vals))+SUMPRODUCT(($C5=IF(TabCostGeoRes,Total_Costs1_index_4,Total_Costs1_index_3))*("Demand Change Measure Costs"=IF(TabCostGeoRes,Total_Costs1_index_5,Total_Costs1_index_4))*($C$8=Total_Costs1_index_1)*(Total_Costs1_vals))-SUMPRODUCT((TabCostCase_1=IF(TabCostGeoRes,Total_Costs1_index_4,Total_Costs1_index_3))*("Stock Costs"=IF(TabCostGeoRes,Total_Costs1_index_5,Total_Costs1_index_4))*($C$8=Total_Costs1_index_1)*(Total_Costs1_vals))-SUMPRODUCT((TabCostCase_1=IF(TabCostGeoRes,Total_Costs1_index_4,Total_Costs1_index_3))*("Demand Change Measure Costs"=IF(TabCostGeoRes,Total_Costs1_index_5,Total_Costs1_index_4))*($C$8=Total_Costs1_index_1)*(Total_Costs1_vals)))/10^9) -> 17.08774839 | E14: =F14-D14 -> -4.080442335 | F14: =IF(ISBLANK($C5),NA(),(SUMPRODUCT(($C5=IF(TabCostGeoRes,Total_Costs1_index_4,Total_Costs1_index_3))*($C$8=Total_Costs1_index_1)*(Total_Costs1_vals))-SUMPRODUCT((TabCostCase_1=IF(TabCostGeoRes,Total_Costs1_index_4,Total_Costs1_index_3))*($C$8=Total_Costs1_index_1)*(Total_Costs1_vals)))/1000000000) -> 13.00730606
G18: ="Change in Fuel Costs Relative to "&TabCostCase_1&" in "&$C$8&" by Sector ($Millions)" -> Change in Fuel Costs Relative to Reference in 2030 by Sector ($Millions) | I18: ="Change in Stock Costs Relative to "&TabCostCase_1&" in "&$C$8&" by Sector ($Millions)" -> Change in Stock Costs Relative to Reference in 2030 by Sector ($Millions)
C19: ="Total Emissions in "&$C$8&" by Sector (MMTCO2e)" -> Total Emissions in 2030 by Sector (MMTCO2e)
B20: End Use Sector | C20: ARB | D20: ARB | E20: Absolute Change | F20: % Change | G20: ARB | H20: ARB | I20: ARB | J20: ARB
C21: =TabCostCase_1 -> Reference | D21: =TabCostCase_2 -> Alternative 1 | G21: =TabCostCase_2 -> Alternative 1 | H21: =TabCostCase_3 -> SP - Cap and Tax | I21: =TabCostCase_2 -> Alternative 1 | J21: =TabCostCase_3 -> SP - Cap and Tax
